Workbook

Sheet Instructions
A30: Release Log
A32: TDSv28 - 08/31/2016 | C32: Update for 4c. Added summary information. Spreadsheet now different from 2016 version due to EDR information.
A33: TDSv26 - 01/19/2016 | C33: Updated for use with CBECC-Res 4b. All runs change slightly due to new water heating calculation. T12 and T13 updated to include an existing water heater.
C34: Standard design on T10 for cases without recirculation now based on central system without recirculation system.
A35: TDSv25 - 11/11/2015 | C35: First 2016 software release for use with CBECC-Res 2016.1.0
A36: TDSv24 - 05/15/2015 | C36: Updated for use with CBECC-Res 4.
A37: TDSv23 - 02/22/2015 Updated to v23 to accommodate change to EAA runs in tests T12 and T13. All other tests and results the same as v22.
A38: TDSv22 - 12/30/2014 Corrects surface types and some results in EAA runs T12, T13. Use CBECC-Res 3b1. All single family results change due to bug fixes.
A39: TDSv21 - 12/11/2014 Separates attic on addition in EAA runs T12, T13. Comments out BypassRuleLimits flag. Results identical to v20 except for EAA most EAA tests subject to the change in attic inputs.
A40: TDSv20 - 11/25/2014 | C40: New results based on v3b. TDS v20 input files modified to separate garage attic from conditioned attic. Unecessary commented out items removed from input files. T13 EAA runs updated to run as compliance 2015.
A41: TDSv19 -08/14/2014 | C41: New results based on v3 of CBECC-Res including changes to 2 story ventilation modeling and LDEF change to water heating. New v19 TDS input files to accommodate new inputs mostly on multifamily.
A42: TDSv18 - 05/17/2014 | C42: Same results as v17 except for changes to T10 and T11 that were switched to be based on proposed configuration.
C43: Adds software type of "candidate" and "reference" selected at the Summary tab cell C7. Candidate toggles off tests with standard design including tests T01, T02, T03 and T09 except T09R06 and T09R07.
C44: Adds construction type of "Both" and "New" selected at the summary tab cell C8. New toggles off the EAA tests.
C45: Improved documentation and fixed incorrect file names in description tab.
C46: Strips off path name and extension for input file name is standard CBECC-Res format with the filename in column CO (93)
C47: The multiple orientation tests reordered to make east the 1st orientation to work with runs done from inside CBECC-Res that do not have the four orientations
A49: TDSv17 - 05/10/2014 | C49: Same results as v16. Removes inputs that generate "NotInput" dialog
A50: TDSv16 - 05/06/2014 | C50: Updates results to 595. Test T07R08 updated to change inputs for duct leakage.
A51: TDSv15 - 04/11/2014 | C51: Updates results to 574.
A52: TDSv14 - 03/12/2014 | C52: Fixes garage wall areas being reversed and floor over garage in 2 Story. Changes results slightly especially in T02 and T05.
A53: TDSv13 - 02/14/2014 | C53: Adds automatic lookup of correct standard design. All numbers changed slightly due to marterials list change
A54: TDSv12 - 01/23/2014 | C54: Changes EAA tests T12 and T13 to use default duct areas.
A55: TDSv11 - 01/07/2014 | C55: Adds tests for MF water heatings, source energy and EAA. Improved checks of standard design. Small 0.01 difference in CZ13 in T01, T03 cases due to new way CBECC-Res calculates standard glass area.
A56: TDSv10 - 12/20/2013 | C56: Switches Candidate format to CBECC-Res .csv format like Reference program. Fixes house to garage attic on 2700ft2 prototype. Fixes walls/doors between zone1 and garage to match CBECC-Res
A57: TDSv09 - 11/18/2013 | C57: Includes data for CBECC-Res 1c. Added column for PV in Reference case.
A58: TDSv08 - 10/29/2013 | C58: Includes data for CBECC-Res 1c. Improved detail tab so it doesn't display data in columns like solar that do not have data at this time.

Sheet Test Data Set Description
A29: Test # | B29: Run # | C29: Number of Runs | D29: Description | E29: Prototype
D30: Standard Design Tests
D31: Following tests all 16 climate zones
D32: Following tests standard design = proposed design
A33: T01 | B33: R01-R16 | C33: 16 | D33: Standard Design Test | E33: S2100
A34: T02 | B34: R01-R16 | C34: 16 | D34: Standard Design Test | E34: S2700
A35: T03 | B35: R01-R16 | C35: 16 | D35: Standard Design Test | E35: S6960
D37: Proposed Design Tests
D38: Following tests should have standard = standard from tests T01, T02 and T03
A39: T04 | B39: R01-R16 | C39: 16 | D39: Proposed Design Test | E39: P2100
A40: T05 | B40: R01-R16 | C40: 16 | D40: Proposed Design Test | E40: P2700
A41: T06 | B41: R01-R16 | C41: 16 | D41: Proposed Design Test | E41: P6960
A43: T07 | D43: =VLOOKUP(A43,TestArray,2) -> Common Measures
D44: Following tests for Climate Zone 12 only
D45: Following tests should have the same standard design as T01R12
A46: T07 | B46: R01 | C46: 1 | D46: =VLOOKUP(A46,TestArray,4+RIGHT(B46,2)) -> Package
A47: T07 | B47: R02 | C47: 1 | D47: Fenestration U 0.40/S 0.40 | E47: T04R12
A48: T07 | B48: R03 | C48: 1 | D48: Wall R13 | E48: T04R12
A49: T07 | B49: R04 | C49: 1 | D49: Ceiling R49 | E49: T04R12
A50: T07 | B50: R05 | C50: 1 | D50: Furnace AFUE 92 | E50: T04R12
A51: T07 | B51: R06 | C51: 1 | D51: Air Conditioner SEER 16/EER 14 | E51: T04R12
A52: T07 | B52: R07 | C52: 1 | D52: No Cool Vent | E52: T04R12
A53: T07 | B53: R08 | C53: 1 | D53: Ducts 2% Leakage | E53: T04R12
A54: T07 | B54: R09 | C54: 1 | D54: Insulation Construction Quality Improved | E54: T04R12
A55: T07 | B55: R10 | C55: 1 | D55: Air Leakage ACH50 2.0 | E55: T04R12
A57: T08 | D57: =VLOOKUP(A57,TestArray,2) -> Water Heating
D58: Following tests for Climate Zone 12 only
D59: Some standard designs are different than T01R12
A60: T08 | B60: R01 | C60: 1 | D60: =VLOOKUP(A60,TestArray,4+RIGHT(B60,2)) -> Package | E60: T04R12
A61: T08 | B61: R02 | C61: 1 | D61: Parallel Piping | E61: T04R12
A62: T08 | B62: R03 | C62: 1 | D62: Small Tankless EF 0.80/Input 195000/0 gal | E62: T04R12
A63: T08 | B63: R04 | C63: 1 | D63: Large Tankless RE 0.76/Input 300000/0 gal | E63: T04R12
A64: T08 | B64: R05 | C64: 1 | D64: Large Storage RE 0.77/Input 100000/75gal/Stby 0.01 | E64: T04R12
A65: T08 | B65: R06 | C65: 1 | D65: Large Storage RE 0.77/Input 100000/75gal/Stby 0.03 | E65: T04R12
A66: T08 | B66: R07 | C66: 1 | D66: Electric Resistance EF 0.92/Input 4500 | E66: T04R12
A67: T08 | B67: R08 | C67: 1 | D67: Heat Pump EF 2.4/Input 4500 | E67: T04R12
A68: T08 | B68: R09 | C68: 1 | D68: 2 Water Heaters using Multiplier | E68: T04R12
A69: T08 | B69: R10 | C69: 1 | D69: 2 Water Heaters Using 2 entries | E69: T04R12
A71: T09 | D71: =VLOOKUP(A71,TestArray,2) -> Multiple Orientation
D72: Following tests for Climate Zone 12 only
A74: T09 | B74: R01 | C74: 1 | D74: =VLOOKUP(A74,TestArray,4+RIGHT(B74,2)) -> Single Standard Front 45 | E74: T01R12
A75: T09 | B75: R02 | C75: 1 | D75: East Standard | E75: T01R12
A76: T09 | B76: R03 | C76: 1 | D76: South Standard | E76: T01R12
A77: T09 | B77: R04 | C77: 1 | D77: West Standard | E77: T01R12
A78: T09 | B78: R05 | C78: 1 | D78: North Standard | E78: T01R12
A79: T09 | B79: R06 | C79: 1 | D79: Single Proposed front 45 | E79: T04R12
A80: T09 | B80: R07 | C80: 1 | D80: East Proposed | E80: T04R12
A81: T09 | B81: R08 | C81: 1 | D81: South Proposed | E81: T04R12
A82: T09 | B82: R09 | C82: 1 | D82: West Proposed | E82: T04R12
A83: T09 | B83: R10 | C83: 1 | D83: North Proposed | E83: T04R12
A85: T10 | D85: =VLOOKUP(A85,TestArray,2) -> Multi Family Water Heating
D86: Following tests for Climate Zone 12 only
D87: Some standard designs are different than T03R12
A88: T10 | B88: R01 | C88: 1 | D88: =VLOOKUP(A88,TestArray,4+RIGHT(B88,2)) -> 8 Storage | E88: T06R12
A89: T10 | B89: R02 | C89: 1 | D89: 8 Storage 2 Systems | E89: T06R12
A90: T10 | B90: R03 | C90: 1 | D90: 8 LgStor | E90: T06R12
A91: T10 | B91: R04 | C91: 1 | D91: 2 LgStor Central Solar | E91: T06R12
A92: T10 | B92: R05 | C92: 1 | D92: 2 LgStor Central Solar Recirc | E92: T06R12
A93: T10 | B93: R06 | C93: 1 | D93: 2 LgStor Central Recirc | E93: T06R12
A94: T10 | B94: R07 | C94: 1 | D94: 2 SmInstantant Central Solar | E94: T06R12
A95: T10 | B95: R08 | C95: 1 | D95: 2 SmInstantant Central Solar Recirc | E95: T06R12
A96: T10 | B96: R09 | C96: 1 | D96: 1 Indirect Central Solar | E96: T06R12
A97: T10 | B97: R10 | C97: 1 | D97: 1 Indirect Central Solar Recirc | E97: T06R12
A99: T11 | D99: =VLOOKUP(A99,TestArray,2) -> Source Energy
D100: Following tests for Climate Zone 12 only
D101: Some standard designs are different than T01R12
A102: T11 | B102: R01 | C102: 1 | D102: =VLOOKUP(A102,TestArray,4+RIGHT(B102,2)) -> Package | E102: T04R12
A103: T11 | B103: R02 | C103: 1 | D103: Package No Natural Gas | E103: T04R12
A104: T11 | B104: R03 | C104: 1 | D104: Electric DHW | E104: T04R12
A105: T11 | B105: R04 | C105: 1 | D105: Electric DHW no Natural Gas | E105: T04R12
A106: T11 | B106: R05 | C106: 1 | D106: Heatpump DHW | E106: T04R12
A107: T11 | B107: R06 | C107: 1 | D107: Heatpump DHW no Natural Gas | E107: T04R12
A108: T11 | B108: R07 | C108: 1 | D108: Heatpump HVAC | E108: T04R12
A109: T11 | B109: R08 | C109: 1 | D109: Heatpump HVAC no Natural Gas | E109: T04R12
A110: T11 | B110: R09 | C110: 1 | D110: Heatpump HVAC & DHW | E110: T04R12
A111: T11 | B111: R10 | C111: 1 | D111: Heatpump HVAC & DHW no Natural Gas | E111: T04R12
A113: T12 | D113: =VLOOKUP(A113,TestArray,2) -> E+A+A Base & Windows
D114: Following tests for Climate Zone 12 only
D115: Standard Design Varies with features and verification
A116: T12 | B116: R01 | C116: 1 | D116: =VLOOKUP(A116,TestArray,4+RIGHT(B116,2)) -> E 1440ft2 as New Construction | E116: P1665
A117: T12 | B117: R02 | C117: 1 | D117: E 1440ft2 as Addition/Alteration | E117: P1665
A118: T12 | B118: R03 | C118: 1 | D118: EA 1665ft2 | E118: P1665
A119: T12 | B119: R04 | C119: 1 | D119: EAA Ceiling R38 Verified | E119: P1665
A120: T12 | B120: R05 | C120: 1 | D120: EAA Ceiling R38 Verified Wind U0.41/S0.36 | E120: P1665
A121: T12 | B121: R06 | C121: 1 | D121: EAA Ceiling R38 Verified Wind U0.41/S0.36 Verified | E121: P1665
A122: T12 | B122: R07 | C122: 1 | D122: EAA Ceiling R38 Verified Wind U0.40/S0.35 | E122: P1665
A123: T12 | B123: R08 | C123: 1 | D123: EAA Ceiling R38 Verified Wind U0.40/S0.35 Verified | E123: P1665
A124: T12 | B124: R09 | C124: 1 | D124: EAA Ceiling R38 Verified Wind U0.39/S0.34 | E124: P1665
A125: T12 | B125: R10 | C125: 1 | D125: EAA Ceiling R38 Verified Wind U0.39/S0.34 Verified | E125: P1665
A127: T13 | D127: =VLOOKUP(A127,TestArray,2) -> E+A+A Walls & HVAC
D128: Following tests for Climate Zone 12 only
D129: Standard Design Varies with features and verification
A130: T13 | B130: R01 | C130: 1 | D130: =VLOOKUP(A130,TestArray,4+RIGHT(B130,2)) -> EAA Ceiling R38 Verified Wall R11 | E130: P1665
A131: T13 | B131: R02 | C131: 1 | D131: EAA Ceiling R38 Verified Wall R11 Verified | E131: P1665
A132: T13 | B132: R03 | C132: 1 | D132: EAA Ceiling R38 Verified Wall R13 | E132: P1665
A133: T13 | B133: R04 | C133: 1 | D133: EAA Ceiling R38 Verified Wall R13 Verified | E133: P1665
A134: T13 | B134: R05 | C134: 1 | D134: EAA Ceiling R38 Verified HVAC Worse | E134: P1665
A135: T13 | B135: R06 | C135: 1 | D135: EAA Ceiling R38 Verified HVAC Worse Verified | E135: P1665
A136: T13 | B136: R07 | C136: 1 | D136: EAA Ceiling R38 Verified HVAC Equal | E136: P1665
A137: T13 | B137: R08 | C137: 1 | D137: EAA Ceiling R38 Verified HVAC Equal Verified | E137: P1665
A138: T13 | B138: R09 | C138: 1 | D138: EAA Ceiling R38 Verified HVAC Better | E138: P1665
A139: T13 | B139: R10 | C139: 1 | D139: EAA Ceiling R38 Verified HVAC Better Verified | E139: P1665

Sheet Summary
A1: Summary of Residential ACM Tests (kTDV/ft2)
B3: Comparison Date: | C3: 2016-09-01 | M3: Blue fields should be updated to match current results
B4: Comparison Author: | C4: Ken Nittler
B5: Candidate Software: | C5: CBECC-Res 2013 670 | M5: Cell C5 should be updated to the candidate software
B6: Reference Software: | C6: CBECC-Res 2013 667
B7: Type of Software: | C7: Reference | M7: Cell C7 should be changed for the type of program being approved. Candidate programs do not have to do standard design tests
B8: Type of Construction: | C8: Both | M8: Cell C8 should be changed for the type of construction being approved. New gets to skip tests T12 and T13.
B9: Tolerance: | C9: 0.03
C11: Average | D11: Average
B12: Pass/ | C12: Proposed | D12: Standard
A13: Test | B13: Fail | C13: kTDV/ft2 | D13: kTDV/ft2 | F13: Description
A14: T01 | B14: =ResultT01 -> Pass | C14: =T01Proposed -> 48.5075 | D14: =T01Standard -> 48.5075 | F14: =VLOOKUP(A14,TestArray,2)&" in "&VLOOKUP(A14,TestArray,3)&" for Prototype "&VLOOKUP(A14,TestArray,4) -> Standard Design in All Zones for Prototype S2100ft2
A15: T02 | B15: =ResultT02 -> Pass | C15: =T02Proposed -> 45.47 | D15: =T02Standard -> 45.47 | F15: Standard Design in All Zones for Prototype S2700ft2
A16: T03 | B16: =ResultT03 -> Pass | C16: =T03Proposed -> 58.001875 | D16: =T03Standard -> 58.001875 | F16: Standard Design in All Zones for Prototype S6960ft2
A17: T04 | B17: =ResultT04 -> Pass | C17: =T04Proposed -> 45.073125 | D17: =T04Standard -> 48.5075 | F17: Proposed Design in All Zones for Prototype P2100ft2
A18: T05 | B18: =ResultT05 -> Pass | C18: =T05Proposed -> 41.6125 | D18: =T05Standard -> 45.47 | F18: Proposed Design in All Zones for Prototype P2700ft2
A19: T06 | B19: =ResultT06 -> Pass | C19: =T06Proposed -> 54.338125 | D19: =T06Standard -> 58.001875 | F19: Proposed Design in All Zones for Prototype P6960ft2
A20: T07 | B20: =ResultT07 -> Pass | C20: =T07Proposed -> 46.62 | D20: =T07Standard -> 51.32 | F20: Common Measures in Zone 12 for Prototype P2100ft2
A21: T08 | B21: =ResultT08 -> Pass | C21: =T08Proposed -> 49.251 | D21: =T08Standard -> 51.32 | F21: Water Heating in Zone 12 for Prototype P2100ft2
A22: T09 | B22: =ResultT09 -> Pass | C22: =T09Proposed -> 51.231 | D22: =T09Standard -> 51.32 | F22: Multiple Orientation in Zone 12 for Prototype S2100ft2/P2100ft2
A23: T10 | B23: =ResultT10 -> Pass | C23: =T10Proposed -> 59.734 | D23: =T10Standard -> 63.796 | F23: Multi Family Water Heating in Zone 12 for Prototype P6960ft2
A24: T11 | B24: =ResultT11 -> Pass | C24: =T11Proposed -> 63.057 | D24: =T11Standard -> 66.286 | F24: Source Energy in Zone 12 for Prototype P2100ft2
A25: T12 | B25: =ResultT12 -> Pass | C25: =T12Proposed -> 165.436 | D25: =T12Standard -> 172.969 | F25: E+A+A Base & Windows in Zone 12 for Prototype P1665ft2
A26: T13 | B26: =ResultT13 -> Pass | C26: =T13Proposed -> 124.008 | D26: =T13Standard -> 157.217 | F26: E+A+A Walls & HVAC in Zone 12 for Prototype P1665ft2
A28: Page 1 of 7

Sheet Details
A1: Comparison between Reference & Candidate Software (kTDV/ft2) | P1: =INDIRECT(P4) -> 'Reference'!$A$1:$DA$1000 | Q1: 'Reference'!$A$1:$DA$1000 | R1: 'Reference'!$A$1:$DA$1000 | S1: 'Reference'!$A$1:$DA$1000 | T1: 'Reference'!$A$1:$DA$1000 | U1: 'Reference'!$A$1:$DA$1000 | V1: 'Reference'!$A$1:$DA$1000 | W1: 'Reference'!$A$1:$DA$1000 | Y1: =INDIRECT(Y4) -> 'Candidate'!$A$1:$DA$1000 | Z1: 'Candidate'!$A$1:$DA$1000 | AA1: 'Candidate'!$A$1:$DA$1000 | AB1: 'Candidate'!$A$1:$DA$1000 | AC1: 'Candidate'!$A$1:$DA$1000 | AD1: 'Candidate'!$A$1:$DA$1000 | AE1: 'Candidate'!$A$1:$DA$1000 | AF1: 'Candidate'!$A$1:$DA$1000 | AH1: =INDIRECT(AH4) -> 'Reference'!$A$1:$DA$1000 | AI1: 'Reference'!$A$1:$DA$1000 | AJ1: 'Reference'!$A$1:$DA$1000 | AK1: 'Reference'!$A$1:$DA$1000 | AL1: 'Reference'!$A$1:$DA$1000 | AM1: 'Reference'!$A$1:$DA$1000 | AN1: 'Reference'!$A$1:$DA$1000 | AO1: 'Reference'!$A$1:$DA$1000 | AQ1: =INDIRECT(AQ4) -> 'Candidate'!$A$1:$DA$1000 | AR1: 'Candidate'!$A$1:$DA$1000 | AS1: 'Candidate'!$A$1:$DA$1000 | AT1: 'Candidate'!$A$1:$DA$1000 | AU1: 'Candidate'!$A$1:$DA$1000 | AV1: 'Candidate'!$A$1:$DA$1000 | AW1: 'Candidate'!$A$1:$DA$1000 | AX1: 'Candidate'!$A$1:$DA$1000
B2: =Summary!B3 -> Comparison Date: | C2: =Comparison_Date -> 2016-09-01 | P2: =INDIRECT(P4&"FileName") -> 'ReferenceLookups'!$N$1:$N$1000 | Y2: =INDIRECT(Y4&"FileName") -> 'CandidateLookups'!$N$1:$N$1000 | AH2: =INDIRECT(AH4&"FileName") -> 'ReferenceLookups'!$N$1:$N$1000 | AQ2: =INDIRECT(AQ4&"FileName") -> 'CandidateLookups'!$N$1:$N$1000
B3: =Summary!B4 -> Comparison Author: | C3: =Comparison_Author -> Ken Nittler | Q3: =INDIRECT(Q$4&Q$5&Q$6) -> 38 | R3: 39 | S3: 40 | T3: 41 | U3: 42 | V3: 43 | W3: 49 | Z3: =INDIRECT(Z$4&Z$5&Z$6) -> 38 | AA3: 39 | AB3: 40 | AC3: 41 | AD3: 42 | AE3: 43 | AF3: 49 | AI3: =INDIRECT(AI$4&AI$5&AI$6) -> 80 | AJ3: 81 | AK3: 82 | AL3: 83 | AM3: 84 | AN3: 0 | AO3: 90 | AR3: =INDIRECT(AR$4&AR$5&AR$6) -> 80 | AS3: 81 | AT3: 82 | AU3: 83 | AV3: 84 | AW3: 0 | AX3: 90
B4: =Summary!B5 -> Candidate Software: | C4: =Candidate_Software -> CBECC-Res 2013 670 | N4: Standard | P4: Reference | Q4: Reference | R4: =Q4 -> Reference | S4: Reference | T4: Reference | U4: Reference | V4: Reference | W4: Reference | Y4: Candidate | Z4: =Y4 -> Candidate | AA4: Candidate | AB4: Candidate | AC4: Candidate | AD4: Candidate | AE4: Candidate | AF4: Candidate | AH4: Reference | AI4: =AH4 -> Reference | AJ4: Reference | AK4: Reference | AL4: Reference | AM4: Reference | AN4: Reference | AO4: Reference | AQ4: Candidate | AR4: =AQ4 -> Candidate | AS4: Candidate | AT4: Candidate | AU4: Candidate | AV4: Candidate | AW4: Candidate | AX4: Candidate | BA4: Standard
E5: Reference | F5: Candidate | G5: Percent | H5: Within | I5: Standard | J5: Reference | K5: Candidate | L5: Percent | M5: Within | N5: Equals | P5: Proposed | Q5: =P5 -> Proposed | R5: Proposed | S5: Proposed | T5: Proposed | U5: Proposed | V5: Proposed | W5: Proposed | Y5: Proposed | Z5: Proposed | AA5: Proposed | AB5: Proposed | AC5: Proposed | AD5: Proposed | AE5: Proposed | AF5: Proposed | AH5: Standard | AI5: Standard | AJ5: Standard | AK5: Standard | AL5: Standard | AM5: Standard | AN5: Standard | AO5: Standard | AQ5: Standard | AR5: Standard | AS5: Standard | AT5: Standard | AU5: Standard | AV5: Standard | AW5: Standard | AX5: Standard | BA5: Design
A6: Test | B6: Run | C6: Description | D6: Pass/Fail | E6: Proposed | F6: Proposed | G6: Difference | H6: Tolerance | I6: Equals | J6: Standard | K6: Standard | L6: Difference | M6: Tolerance | N6: Lookup | O6: Margin | P6: Row | Q6: SpcHeat | R6: SpcCool | S6: IAQVent | T6: OtherHVAC | U6: WtrHeat | V6: Solar | W6: Total | Y6: Row | Z6: =Q6 -> SpcHeat | AA6: SpcCool | AB6: IAQVent | AC6: OtherHVAC | AD6: WtrHeat | AE6: Solar | AF6: Total | AH6: Row | AI6: SpcHeat | AJ6: SpcCool | AK6: IAQVent | AL6: OtherHVAC | AM6: WtrHeat | AN6: Solar | AO6: Total | AQ6: Row | AR6: =AI6 -> SpcHeat | AS6: SpcCool | AT6: IAQVent | AU6: OtherHVAC | AV6: WtrHeat | AW6: Solar | AX6: Total | AZ6: Run | BA6: Row
A8: T01 | B8: =VLOOKUP(A8,TestArray,2)&" in "&VLOOKUP(A8,TestArray,3)&" for Prototype "&VLOOKUP(A8,TestArray,4) -> Standard Design in All Zones for Prototype S2100ft2 | I8: =VLOOKUP(A8,TestArray,21) -> Standard = Proposed for this test
A9: =A8 -> T01 | B9: R01 | C9: =VLOOKUP(A9,TestArray,4+RIGHT(B9,2)) -> Zone 01 | D9: =IF(SoftwareType="Candidate","n/a",IF(AND(H9=Yes,M9=Yes,ABS(E9-I9)<=Tolerance/2),Pass,Fail)) -> Pass | E9: =W9 -> 48.08 | F9: =AF9 -> 48.08 | G9: =(F9-E9)/E9 -> 0 | H9: =IF(AND((E9-Tolerance<=F9),(E9+Tolerance>=F9)),Yes,No) -> Yes | I9: =INDIRECT("AO"&INDEX(StandardArray,MATCH($N9,StandardList,0),2)) -> 48.08 | J9: =AO9 -> 48.08 | K9: =AX9 -> 48.08 | L9: =(K9-I9)/I9 -> 0 | M9: =IF(AND((I9-Tolerance<=K9),(I9+Tolerance>=K9),(J9-Tolerance<=K9),(J9+Tolerance>=K9)),Yes,No) -> Yes | N9: =A9&B9 -> T01R01 | O9: =K9-F9 -> 0 | P9: =MATCH($A9&$B9,INDIRECT(P$2),0) -> 4 | Q9: =IF(Q$3=0,"",INDEX(INDIRECT(Q$1),$P9,Q$3)) -> 32.4 | R9: 0 | S9: 1.13 | T9: 0 | U9: 14.55 | V9: 0 | W9: =IF(TotalSum="No",INDEX(INDIRECT(W$1),$P9,W$3),SUM(Q9:V9)) -> 48.08 | Y9: =MATCH($A9&$B9,INDIRECT(Y$2),0) -> 4 | Z9: =IF(Z$3=0,"",INDEX(INDIRECT(Z$1),$Y9,Z$3)) -> 32.4 | AA9: 0 | AB9: 1.13 | AC9: 0 | AD9: 14.55 | AE9: 0 | AF9: =IF(TotalSum="No",INDEX(INDIRECT(AF$1),$Y9,AF$3),SUM(Z9:AE9)) -> 48.08 | AH9: =MATCH($A9&$B9,INDIRECT(AH$2),0) -> 4 | AI9: =IF(AI$3=0,"",INDEX(INDIRECT(AI$1),$AH9,AI$3)) -> 32.4 | AJ9: 0 | AK9: 1.13 | AL9: 0 | AM9: 14.55 | AO9: =IF(TotalSum="No",INDEX(INDIRECT(AO$1),$AH9,AO$3),SUM(AI9:AN9)) -> 48.08 | AQ9: =MATCH($A9&$B9,INDIRECT(AQ$2),0) -> 4 | AR9: =IF(AR$3=0,"",INDEX(INDIRECT(AR$1),$AQ9,AR$3)) -> 32.4 | AS9: 0 | AT9: 1.13 | AU9: 0 | AV9: 14.55 | AX9: =IF(TotalSum="No",INDEX(INDIRECT(AX$1),$AQ9,AX$3),SUM(AR9:AW9)) -> 48.08 | AZ9: =A9&B9 -> T01R01 | BA9: =ROW(AZ9) -> 9
A10: =A9 -> T01 | B10: R02 | C10: Zone 02 | D10: Pass | E10: 38.64 | F10: 38.64 | G10: 0 | H10: Yes | I10: 38.64 | J10: 38.64 | K10: 38.64 | L10: 0 | M10: Yes | N10: T01R02 | O10: =K10-F10 -> 0 | P10: 5 | Q10: 22.7 | R10: 1.02 | S10: 1.13 | T10: 0 | U10: 13.79 | V10: 0 | W10: 38.64 | Y10: 5 | Z10: 22.7 | AA10: 1.02 | AB10: 1.13 | AC10: 0 | AD10: 13.79 | AE10: 0 | AF10: 38.64 | AH10: 5 | AI10: 22.7 | AJ10: 1.02 | AK10: 1.13 | AL10: 0 | AM10: 13.79 | AO10: 38.64 | AQ10: 5 | AR10: 22.7 | AS10: 1.02 | AT10: 1.13 | AU10: 0 | AV10: 13.79 | AX10: 38.64 | AZ10: T01R02 | BA10: =ROW(AZ10) -> 10
A11: T01 | B11: R03 | C11: Zone 03 | D11: Pass | E11: 28.12 | F11: 28.12 | G11: 0 | H11: Yes | I11: 28.12 | J11: 28.12 | K11: 28.12 | L11: 0 | M11: Yes | N11: T01R03 | O11: 0 | P11: 6 | Q11: 13.19 | R11: 0 | S11: 1.13 | T11: 0 | U11: 13.8 | V11: 0 | W11: 28.12 | Y11: 6 | Z11: 13.19 | AA11: 0 | AB11: 1.13 | AC11: 0 | AD11: 13.8 | AE11: 0 | AF11: 28.12 | AH11: 6 | AI11: 13.19 | AJ11: 0 | AK11: 1.13 | AL11: 0 | AM11: 13.8 | AO11: 28.12 | AQ11: 6 | AR11: 13.19 | AS11: 0 | AT11: 1.13 | AU11: 0 | AV11: 13.8 | AX11: 28.12 | AZ11: T01R03 | BA11: 11
A12: T01 | B12: R04 | C12: Zone 04 | D12: Pass | E12: 34.66 | F12: 34.66 | G12: 0 | H12: Yes | I12: 34.66 | J12: 34.66 | K12: 34.66 | L12: 0 | M12: Yes | N12: T01R04 | O12: 0 | P12: 7 | Q12: 17.29 | R12: 2.75 | S12: 1.13 | T12: 0 | U12: 13.49 | V12: 0 | W12: 34.66 | Y12: 7 | Z12: 17.29 | AA12: 2.75 | AB12: 1.13 | AC12: 0 | AD12: 13.49 | AE12: 0 | AF12: 34.66 | AH12: 7 | AI12: 17.29 | AJ12: 2.75 | AK12: 1.13 | AL12: 0 | AM12: 13.49 | AO12: 34.66 | AQ12: 7 | AR12: 17.29 | AS12: 2.75 | AT12: 1.13 | AU12: 0 | AV12: 13.49 | AX12: 34.66 | AZ12: T01R04 | BA12: 12
A13: T01 | B13: R05 | C13: Zone 05 | D13: Pass | E13: 25.7 | F13: 25.7 | G13: 0 | H13: Yes | I13: 25.7 | J13: 25.7 | K13: 25.7 | L13: 0 | M13: Yes | N13: T01R05 | O13: 0 | P13: 8 | Q13: 10.61 | R13: 0 | S13: 1.13 | T13: 0 | U13: 13.96 | V13: 0 | W13: 25.7 | Y13: 8 | Z13: 10.61 | AA13: 0 | AB13: 1.13 | AC13: 0 | AD13: 13.96 | AE13: 0 | AF13: 25.7 | AH13: 8 | AI13: 10.61 | AJ13: 0 | AK13: 1.13 | AL13: 0 | AM13: 13.96 | AO13: 25.7 | AQ13: 8 | AR13: 10.61 | AS13: 0 | AT13: 1.13 | AU13: 0 | AV13: 13.96 | AX13: 25.7 | AZ13: T01R05 | BA13: 13
A14: T01 | B14: R06 | C14: Zone 06 | D14: Pass | E14: 22.01 | F14: 22.01 | G14: 0 | H14: Yes | I14: 22.01 | J14: 22.01 | K14: 22.01 | L14: 0 | M14: Yes | N14: T01R06 | O14: 0 | P14: 9 | Q14: 5.59 | R14: 2.09 | S14: 1.09 | T14: 0 | U14: 13.24 | V14: 0 | W14: 22.01 | Y14: 9 | Z14: 5.59 | AA14: 2.09 | AB14: 1.09 | AC14: 0 | AD14: 13.24 | AE14: 0 | AF14: 22.01 | AH14: 9 | AI14: 5.59 | AJ14: 2.09 | AK14: 1.09 | AL14: 0 | AM14: 13.24 | AO14: 22.01 | AQ14: 9 | AR14: 5.59 | AS14: 2.09 | AT14: 1.09 | AU14: 0 | AV14: 13.24 | AX14: 22.01 | AZ14: T01R06 | BA14: 14
A15: T01 | B15: R07 | C15: Zone 07 | D15: Pass | E15: 16.09 | F15: 16.09 | G15: 0 | H15: Yes | I15: 16.09 | J15: 16.09 | K15: 16.09 | L15: 0 | M15: Yes | N15: T01R07 | O15: 0 | P15: 10 | Q15: 1.51 | R15: 0.56 | S15: 1.13 | T15: 0 | U15: 12.89 | V15: 0 | W15: 16.09 | Y15: 10 | Z15: 1.51 | AA15: 0.56 | AB15: 1.13 | AC15: 0 | AD15: 12.89 | AE15: 0 | AF15: 16.09 | AH15: 10 | AI15: 1.51 | AJ15: 0.56 | AK15: 1.13 | AL15: 0 | AM15: 12.89 | AO15: 16.09 | AQ15: 10 | AR15: 1.51 | AS15: 0.56 | AT15: 1.13 | AU15: 0 | AV15: 12.89 | AX15: 16.09 | AZ15: T01R07 | BA15: 15
A16: T01 | B16: R08 | C16: Zone 08 | D16: Pass | E16: 27.08 | F16: 27.08 | G16: 0 | H16: Yes | I16: 27.08 | J16: 27.08 | K16: 27.08 | L16: 0 | M16: Yes | N16: T01R08 | O16: 0 | P16: 11 | Q16: 3.88 | R16: 9.14 | S16: 1.09 | T16: 0 | U16: 12.97 | V16: 0 | W16: 27.08 | Y16: 11 | Z16: 3.88 | AA16: 9.14 | AB16: 1.09 | AC16: 0 | AD16: 12.97 | AE16: 0 | AF16: 27.08 | AH16: 11 | AI16: 3.88 | AJ16: 9.14 | AK16: 1.09 | AL16: 0 | AM16: 12.97 | AO16: 27.08 | AQ16: 11 | AR16: 3.88 | AS16: 9.14 | AT16: 1.09 | AU16: 0 | AV16: 12.97 | AX16: 27.08 | AZ16: T01R08 | BA16: 16
A17: T01 | B17: R09 | C17: Zone 09 | D17: Pass | E17: 40.29 | F17: 40.29 | G17: 0 | H17: Yes | I17: 40.29 | J17: 40.29 | K17: 40.29 | L17: 0 | M17: Yes | N17: T01R09 | O17: 0 | P17: 12 | Q17: 6.18 | R17: 20.04 | S17: 1.09 | T17: 0 | U17: 12.98 | V17: 0 | W17: 40.29 | Y17: 12 | Z17: 6.18 | AA17: 20.04 | AB17: 1.09 | AC17: 0 | AD17: 12.98 | AE17: 0 | AF17: 40.29 | AH17: 12 | AI17: 6.18 | AJ17: 20.04 | AK17: 1.09 | AL17: 0 | AM17: 12.98 | AO17: 40.29 | AQ17: 12 | AR17: 6.18 | AS17: 20.04 | AT17: 1.09 | AU17: 0 | AV17: 12.98 | AX17: 40.29 | AZ17: T01R09 | BA17: 17
A18: T01 | B18: R10 | C18: Zone 10 | D18: Pass | E18: 41.91 | F18: 41.91 | G18: 0 | H18: Yes | I18: 41.91 | J18: 41.91 | K18: 41.91 | L18: 0 | M18: Yes | N18: T01R10 | O18: 0 | P18: 13 | Q18: 7.41 | R18: 20.48 | S18: 1.08 | T18: 0 | U18: 12.94 | V18: 0 | W18: 41.91 | Y18: 13 | Z18: 7.41 | AA18: 20.48 | AB18: 1.08 | AC18: 0 | AD18: 12.94 | AE18: 0 | AF18: 41.91 | AH18: 13 | AI18: 7.41 | AJ18: 20.48 | AK18: 1.08 | AL18: 0 | AM18: 12.94 | AO18: 41.91 | AQ18: 13 | AR18: 7.41 | AS18: 20.48 | AT18: 1.08 | AU18: 0 | AV18: 12.94 | AX18: 41.91 | AZ18: T01R10 | BA18: 18
A19: T01 | B19: R11 | C19: Zone 11 | D19: Pass | E19: 74.69 | F19: 74.69 | G19: 0 | H19: Yes | I19: 74.69 | J19: 74.69 | K19: 74.69 | L19: 0 | M19: Yes | N19: T01R11 | O19: 0 | P19: 14 | Q19: =IF(Q$3=0,"",INDEX(INDIRECT(Q$1),$P19,Q$3)) -> 20.54 | R19: 39.97 | S19: 1.13 | T19: 0 | U19: 13.05 | V19: 0 | W19: 74.69 | Y19: 14 | Z19: =IF(Z$3=0,"",INDEX(INDIRECT(Z$1),$Y19,Z$3)) -> 20.54 | AA19: 39.97 | AB19: 1.13 | AC19: 0 | AD19: 13.05 | AE19: 0 | AF19: 74.69 | AH19: 14 | AI19: =IF(AI$3=0,"",INDEX(INDIRECT(AI$1),$AH19,AI$3)) -> 20.54 | AJ19: 39.97 | AK19: 1.13 | AL19: 0 | AM19: 13.05 | AO19: 74.69 | AQ19: 14 | AR19: =IF(AR$3=0,"",INDEX(INDIRECT(AR$1),$AQ19,AR$3)) -> 20.54 | AS19: 39.97 | AT19: 1.13 | AU19: 0 | AV19: 13.05 | AX19: 74.69 | AZ19: T01R11 | BA19: 19
A20: T01 | B20: R12 | C20: Zone 12 | D20: Pass | E20: 51.32 | F20: 51.32 | G20: 0 | H20: Yes | I20: 51.32 | J20: 51.32 | K20: 51.32 | L20: 0 | M20: Yes | N20: T01R12 | O20: 0 | P20: 15 | Q20: 22.22 | R20: 14.64 | S20: 1.13 | T20: 0 | U20: 13.33 | V20: 0 | W20: 51.32 | Y20: 15 | Z20: 22.22 | AA20: 14.64 | AB20: 1.13 | AC20: 0 | AD20: 13.33 | AE20: 0 | AF20: 51.32 | AH20: 15 | AI20: 22.22 | AJ20: 14.64 | AK20: 1.13 | AL20: 0 | AM20: 13.33 | AO20: 51.32 | AQ20: 15 | AR20: 22.22 | AS20: 14.64 | AT20: 1.13 | AU20: 0 | AV20: 13.33 | AX20: 51.32 | AZ20: T01R12 | BA20: 20
A21: T01 | B21: R13 | C21: Zone 13 | D21: Pass | E21: 77.17 | F21: 77.17 | G21: 0 | H21: Yes | I21: 77.17 | J21: 77.17 | K21: 77.17 | L21: 0 | M21: Yes | N21: T01R13 | O21: 0 | P21: 16 | Q21: 18.35 | R21: 44.77 | S21: 1.13 | T21: 0 | U21: 12.92 | V21: 0 | W21: 77.17 | Y21: 16 | Z21: 18.35 | AA21: 44.77 | AB21: 1.13 | AC21: 0 | AD21: 12.92 | AE21: 0 | AF21: 77.17 | AH21: 16 | AI21: 18.35 | AJ21: 44.77 | AK21: 1.13 | AL21: 0 | AM21: 12.92 | AO21: 77.17 | AQ21: 16 | AR21: 18.35 | AS21: 44.77 | AT21: 1.13 | AU21: 0 | AV21: 12.92 | AX21: 77.17 | AZ21: T01R13 | BA21: 21
A22: T01 | B22: R14 | C22: Zone 14 | D22: Pass | E22: 70.53 | F22: 70.53 | G22: 0 | H22: Yes | I22: 70.53 | J22: 70.53 | K22: 70.53 | L22: 0 | M22: Yes | N22: T01R14 | O22: 0 | P22: 17 | Q22: 20.06 | R22: 36.18 | S22: 1.08 | T22: 0 | U22: 13.21 | V22: 0 | W22: 70.53 | Y22: 17 | Z22: 20.06 | AA22: 36.18 | AB22: 1.08 | AC22: 0 | AD22: 13.21 | AE22: 0 | AF22: 70.53 | AH22: 17 | AI22: 20.06 | AJ22: 36.18 | AK22: 1.08 | AL22: 0 | AM22: 13.21 | AO22: 70.53 | AQ22: 17 | AR22: 20.06 | AS22: 36.18 | AT22: 1.08 | AU22: 0 | AV22: 13.21 | AX22: 70.53 | AZ22: T01R14 | BA22: 22
A23: T01 | B23: R15 | C23: Zone 15 | D23: Pass | E23: 112.06 | F23: 112.06 | G23: 0 | H23: Yes | I23: 112.06 | J23: 112.06 | K23: 112.06 | L23: 0 | M23: Yes | N23: T01R15 | O23: 0 | P23: 18 | Q23: 0.61 | R23: 98.95 | S23: 1.09 | T23: 0 | U23: 11.41 | V23: 0 | W23: 112.06 | Y23: 18 | Z23: 0.61 | AA23: 98.95 | AB23: 1.09 | AC23: 0 | AD23: 11.41 | AE23: 0 | AF23: 112.06 | AH23: 18 | AI23: 0.61 | AJ23: 98.95 | AK23: 1.09 | AL23: 0 | AM23: 11.41 | AO23: 112.06 | AQ23: 18 | AR23: 0.61 | AS23: 98.95 | AT23: 1.09 | AU23: 0 | AV23: 11.41 | AX23: 112.06 | AZ23: T01R15 | BA23: 23
A24: T01 | B24: R16 | C24: Zone 16 | D24: Pass | E24: 67.77 | F24: 67.77 | G24: 0 | H24: Yes | I24: 67.77 | J24: 67.77 | K24: 67.77 | L24: 0 | M24: Yes | N24: T01R16 | O24: 0 | P24: 19 | Q24: 48.38 | R24: 3.65 | S24: 1.08 | T24: 0 | U24: 14.66 | V24: 0 | W24: 67.77 | Y24: 19 | Z24: 48.38 | AA24: 3.65 | AB24: 1.08 | AC24: 0 | AD24: 14.66 | AE24: 0 | AF24: 67.77 | AH24: 19 | AI24: 48.38 | AJ24: 3.65 | AK24: 1.08 | AL24: 0 | AM24: 14.66 | AO24: 67.77 | AQ24: 19 | AR24: 48.38 | AS24: 3.65 | AT24: 1.08 | AU24: 0 | AV24: 14.66 | AX24: 67.77 | AZ24: T01R16 | BA24: 24
A25: ="Result "&A8 -> Result T01 | D25: =IF(SoftwareType="Candidate","n/a",IF(COUNTIF(D9:D24,Pass)=16,Pass,Fail)) -> Pass | E25: =AVERAGE(E9:E24) -> 48.5075 | F25: =AVERAGE(F9:F24) -> 48.5075 | G25: 0 | I25: =AVERAGE(I9:I24) -> 48.5075 | J25: =AVERAGE(J9:J24) -> 48.5075 | K25: =AVERAGE(K9:K24) -> 48.5075 | L25: 0 | M25: Min | N25: =MIN(L9:L24) -> 0 | O25: =AVERAGE(O9:O24) -> 0 | P25: Ave | Q25: =AVERAGE(Q9:Q24) -> 15.6825 | R25: =AVERAGE(R9:R24) -> 18.39 | S25: =AVERAGE(S9:S24) -> 1.110625 | U25: =AVERAGE(U9:U24) -> 13.324375 | V25: =AVERAGE(V9:V24) -> 0 | W25: =AVERAGE(W9:W24) -> 48.5075 | Y25: Ave | Z25: =AVERAGE(Z9:Z24) -> 15.6825 | AA25: =AVERAGE(AA9:AA24) -> 18.39 | AB25: =AVERAGE(AB9:AB24) -> 1.110625 | AC25: =AVERAGE(AC9:AC24) -> 0 | AD25: =AVERAGE(AD9:AD24) -> 13.324375 | AF25: =AVERAGE(AF9:AF24) -> 48.5075 | AI25: =AVERAGE(AI9:AI24) -> 15.6825 | AJ25: =AVERAGE(AJ9:AJ24) -> 18.39 | AK25: =AVERAGE(AK9:AK24) -> 1.110625 | AL25: =AVERAGE(AL9:AL24) -> 0 | AM25: =AVERAGE(AM9:AM24) -> 13.324375 | AO25: =AVERAGE(AO9:AO24) -> 48.5075 | AQ25: Ave | AR25: =AVERAGE(AR9:AR24) -> 15.6825 | AS25: =AVERAGE(AS9:AS24) -> 18.39 | AT25: =AVERAGE(AT9:AT24) -> 1.110625 | AU25: =AVERAGE(AU9:AU24) -> 0 | AV25: =AVERAGE(AV9:AV24) -> 13.324375 | AX25: =AVERAGE(AX9:AX24) -> 48.5075
L26: Ave | M26: Max | N26: =MAX(L9:L24) -> 0 | Y26: % Diff | Z26: =(Z25-Q25)/Q25 -> 0 | AA26: =(AA25-R25)/R25 -> 0 | AB26: =(AB25-S25)/S25 -> 0 | AD26: =(AD25-U25)/U25 -> 0 | AF26: =(AF25-W25)/W25 -> 0
A27: T02 | B27: =VLOOKUP(A27,TestArray,2)&" in "&VLOOKUP(A27,TestArray,3)&" for Prototype "&VLOOKUP(A27,TestArray,4) -> Standard Design in All Zones for Prototype S2700ft2 | I27: =VLOOKUP(A27,TestArray,21) -> Standard = Proposed for this test
A28: =A27 -> T02 | B28: R01 | C28: =VLOOKUP(A28,TestArray,4+RIGHT(B28,2)) -> Zone 01 | D28: =IF(SoftwareType="Candidate","n/a",IF(AND(H28=Yes,M28=Yes,ABS(E28-I28)<=Tolerance/2),Pass,Fail)) -> Pass | E28: =W28 -> 38.53 | F28: =AF28 -> 38.53 | G28: =(F28-E28)/E28 -> 0 | H28: =IF(AND((E28-Tolerance<=F28),(E28+Tolerance>=F28)),Yes,No) -> Yes | I28: =INDIRECT("AO"&INDEX(StandardArray,MATCH($N28,StandardList,0),2)) -> 38.53 | J28: =AO28 -> 38.53 | K28: =AX28 -> 38.53 | L28: =(K28-I28)/I28 -> 0 | M28: =IF(AND((I28-Tolerance<=K28),(I28+Tolerance>=K28),(J28-Tolerance<=K28),(J28+Tolerance>=K28)),Yes,No) -> Yes | N28: =A28&B28 -> T02R01 | O28: =K28-F28 -> 0 | P28: =MATCH($A28&$B28,INDIRECT(P$2),0) -> 20 | Q28: =IF(Q$3=0,"",INDEX(INDIRECT(Q$1),$P28,Q$3)) -> 25.3 | R28: 0 | S28: 1.11 | T28: 0 | U28: 12.12 | V28: 0 | W28: =IF(TotalSum="No",INDEX(INDIRECT(W$1),$P28,W$3),SUM(Q28:V28)) -> 38.53 | Y28: =MATCH($A28&$B28,INDIRECT(Y$2),0) -> 20 | Z28: =IF(Z$3=0,"",INDEX(INDIRECT(Z$1),$Y28,Z$3)) -> 25.3 | AA28: 0 | AB28: 1.11 | AC28: 0 | AD28: 12.12 | AE28: 0 | AF28: =IF(TotalSum="No",INDEX(INDIRECT(AF$1),$Y28,AF$3),SUM(Z28:AE28)) -> 38.53 | AH28: =MATCH($A28&$B28,INDIRECT(AH$2),0) -> 20 | AI28: =IF(AI$3=0,"",INDEX(INDIRECT(AI$1),$AH28,AI$3)) -> 25.3 | AJ28: 0 | AK28: 1.11 | AL28: 0 | AM28: 12.12 | AO28: =IF(TotalSum="No",INDEX(INDIRECT(AO$1),$AH28,AO$3),SUM(AI28:AN28)) -> 38.53 | AQ28: =MATCH($A28&$B28,INDIRECT(AQ$2),0) -> 20 | AR28: =IF(AR$3=0,"",INDEX(INDIRECT(AR$1),$AQ28,AR$3)) -> 25.3 | AS28: 0 | AT28: 1.11 | AU28: 0 | AV28: 12.12 | AX28: =IF(TotalSum="No",INDEX(INDIRECT(AX$1),$AQ28,AX$3),SUM(AR28:AW28)) -> 38.53 | AZ28: =A28&B28 -> T02R01 | BA28: =ROW(AZ28) -> 28
A29: =A28 -> T02 | B29: R02 | C29: Zone 02 | D29: Pass | E29: 35.41 | F29: 35.41 | G29: 0 | H29: Yes | I29: 35.41 | J29: 35.41 | K29: 35.41 | L29: 0 | M29: Yes | N29: T02R02 | O29: =K29-F29 -> 0 | P29: 21 | Q29: 19.86 | R29: 2.96 | S29: 1.11 | T29: 0 | U29: 11.48 | V29: 0 | W29: 35.41 | Y29: 21 | Z29: 19.86 | AA29: 2.96 | AB29: 1.11 | AC29: 0 | AD29: 11.48 | AE29: 0 | AF29: 35.41 | AH29: 21 | AI29: 19.86 | AJ29: 2.96 | AK29: 1.11 | AL29: 0 | AM29: 11.48 | AO29: 35.41 | AQ29: 21 | AR29: 19.86 | AS29: 2.96 | AT29: 1.11 | AU29: 0 | AV29: 11.48 | AX29: 35.41 | AZ29: T02R02 | BA29: 29
A30: T02 | B30: R03 | C30: Zone 03 | D30: Pass | E30: 23.38 | F30: 23.38 | G30: 0 | H30: Yes | I30: 23.38 | J30: 23.38 | K30: 23.38 | L30: 0 | M30: Yes | N30: T02R03 | O30: 0 | P30: 22 | Q30: 10.49 | R30: 0.29 | S30: 1.11 | T30: 0 | U30: 11.49 | V30: 0 | W30: 23.38 | Y30: 22 | Z30: 10.49 | AA30: 0.29 | AB30: 1.11 | AC30: 0 | AD30: 11.49 | AE30: 0 | AF30: 23.38 | AH30: 22 | AI30: 10.49 | AJ30: 0.29 | AK30: 1.11 | AL30: 0 | AM30: 11.49 | AO30: 23.38 | AQ30: 22 | AR30: 10.49 | AS30: 0.29 | AT30: 1.11 | AU30: 0 | AV30: 11.49 | AX30: 23.38 | AZ30: T02R03 | BA30: 30
A31: T02 | B31: R04 | C31: Zone 04 | D31: Pass | E31: 31.75 | F31: 31.75 | G31: 0 | H31: Yes | I31: 31.75 | J31: 31.75 | K31: 31.75 | L31: 0 | M31: Yes | N31: T02R04 | O31: 0 | P31: 23 | Q31: 15.16 | R31: 4.26 | S31: 1.11 | T31: 0 | U31: 11.22 | V31: 0 | W31: 31.75 | Y31: 23 | Z31: 15.16 | AA31: 4.26 | AB31: 1.11 | AC31: 0 | AD31: 11.22 | AE31: 0 | AF31: 31.75 | AH31: 23 | AI31: 15.16 | AJ31: 4.26 | AK31: 1.11 | AL31: 0 | AM31: 11.22 | AO31: 31.75 | AQ31: 23 | AR31: 15.16 | AS31: 4.26 | AT31: 1.11 | AU31: 0 | AV31: 11.22 | AX31: 31.75 | AZ31: T02R04 | BA31: 31
A32: T02 | B32: R05 | C32: Zone 05 | D32: Pass | E32: 20.76 | F32: 20.76 | G32: 0 | H32: Yes | I32: 20.76 | J32: 20.76 | K32: 20.76 | L32: 0 | M32: Yes | N32: T02R05 | O32: 0 | P32: 24 | Q32: 8.02 | R32: 0.01 | S32: 1.11 | T32: 0 | U32: 11.62 | V32: 0 | W32: 20.76 | Y32: 24 | Z32: 8.02 | AA32: 0.01 | AB32: 1.11 | AC32: 0 | AD32: 11.62 | AE32: 0 | AF32: 20.76 | AH32: 24 | AI32: 8.02 | AJ32: 0.01 | AK32: 1.11 | AL32: 0 | AM32: 11.62 | AO32: 20.76 | AQ32: 24 | AR32: 8.02 | AS32: 0.01 | AT32: 1.11 | AU32: 0 | AV32: 11.62 | AX32: 20.76 | AZ32: T02R05 | BA32: 32
A33: T02 | B33: R06 | C33: Zone 06 | D33: Pass | E33: 19.73 | F33: 19.73 | G33: 0 | H33: Yes | I33: 19.73 | J33: 19.73 | K33: 19.73 | L33: 0 | M33: Yes | N33: T02R06 | O33: 0 | P33: 25 | Q33: 4.91 | R33: 2.73 | S33: 1.07 | T33: 0 | U33: 11.02 | V33: 0 | W33: 19.73 | Y33: 25 | Z33: 4.91 | AA33: 2.73 | AB33: 1.07 | AC33: 0 | AD33: 11.02 | AE33: 0 | AF33: 19.73 | AH33: 25 | AI33: 4.91 | AJ33: 2.73 | AK33: 1.07 | AL33: 0 | AM33: 11.02 | AO33: 19.73 | AQ33: 25 | AR33: 4.91 | AS33: 2.73 | AT33: 1.07 | AU33: 0 | AV33: 11.02 | AX33: 19.73 | AZ33: T02R06 | BA33: 33
A34: T02 | B34: R07 | C34: Zone 07 | D34: Pass | E34: 14.14 | F34: 14.14 | G34: 0 | H34: Yes | I34: 14.14 | J34: 14.14 | K34: 14.14 | L34: 0 | M34: Yes | N34: T02R07 | O34: 0 | P34: 26 | Q34: 1.27 | R34: 1.03 | S34: 1.12 | T34: 0 | U34: 10.72 | V34: 0 | W34: 14.14 | Y34: 26 | Z34: 1.27 | AA34: 1.03 | AB34: 1.12 | AC34: 0 | AD34: 10.72 | AE34: 0 | AF34: 14.14 | AH34: 26 | AI34: 1.27 | AJ34: 1.03 | AK34: 1.12 | AL34: 0 | AM34: 10.72 | AO34: 14.14 | AQ34: 26 | AR34: 1.27 | AS34: 1.03 | AT34: 1.12 | AU34: 0 | AV34: 10.72 | AX34: 14.14 | AZ34: T02R07 | BA34: 34
A35: T02 | B35: R08 | C35: Zone 08 | D35: Pass | E35: 25.44 | F35: 25.44 | G35: 0 | H35: Yes | I35: 25.44 | J35: 25.44 | K35: 25.44 | L35: 0 | M35: Yes | N35: T02R08 | O35: 0 | P35: 27 | Q35: 3.75 | R35: 9.82 | S35: 1.08 | T35: 0 | U35: 10.79 | V35: 0 | W35: 25.44 | Y35: 27 | Z35: 3.75 | AA35: 9.82 | AB35: 1.08 | AC35: 0 | AD35: 10.79 | AE35: 0 | AF35: 25.44 | AH35: 27 | AI35: 3.75 | AJ35: 9.82 | AK35: 1.08 | AL35: 0 | AM35: 10.79 | AO35: 25.44 | AQ35: 27 | AR35: 3.75 | AS35: 9.82 | AT35: 1.08 | AU35: 0 | AV35: 10.79 | AX35: 25.44 | AZ35: T02R08 | BA35: 35
A36: T02 | B36: R09 | C36: Zone 09 | D36: Pass | E36: 38.98 | F36: 38.98 | G36: 0 | H36: Yes | I36: 38.98 | J36: 38.98 | K36: 38.98 | L36: 0 | M36: Yes | N36: T02R09 | O36: 0 | P36: 28 | Q36: 6.05 | R36: 21.07 | S36: 1.07 | T36: 0 | U36: 10.79 | V36: 0 | W36: 38.98 | Y36: 28 | Z36: 6.05 | AA36: 21.07 | AB36: 1.07 | AC36: 0 | AD36: 10.79 | AE36: 0 | AF36: 38.98 | AH36: 28 | AI36: 6.05 | AJ36: 21.07 | AK36: 1.07 | AL36: 0 | AM36: 10.79 | AO36: 38.98 | AQ36: 28 | AR36: 6.05 | AS36: 21.07 | AT36: 1.07 | AU36: 0 | AV36: 10.79 | AX36: 38.98 | AZ36: T02R09 | BA36: 36
A37: T02 | B37: R10 | C37: Zone 10 | D37: Pass | E37: 41.15 | F37: 41.15 | G37: 0 | H37: Yes | I37: 41.15 | J37: 41.15 | K37: 41.15 | L37: 0 | M37: Yes | N37: T02R10 | O37: 0 | P37: 29 | Q37: 7.12 | R37: 22.2 | S37: 1.07 | T37: 0 | U37: 10.76 | V37: 0 | W37: 41.15 | Y37: 29 | Z37: 7.12 | AA37: 22.2 | AB37: 1.07 | AC37: 0 | AD37: 10.76 | AE37: 0 | AF37: 41.15 | AH37: 29 | AI37: 7.12 | AJ37: 22.2 | AK37: 1.07 | AL37: 0 | AM37: 10.76 | AO37: 41.15 | AQ37: 29 | AR37: 7.12 | AS37: 22.2 | AT37: 1.07 | AU37: 0 | AV37: 10.76 | AX37: 41.15 | AZ37: T02R10 | BA37: 37
A38: T02 | B38: R11 | C38: Zone 11 | D38: Pass | E38: 73.18 | F38: 73.18 | G38: 0 | H38: Yes | I38: 73.18 | J38: 73.18 | K38: 73.18 | L38: 0 | M38: Yes | N38: T02R11 | O38: 0 | P38: 30 | Q38: =IF(Q$3=0,"",INDEX(INDIRECT(Q$1),$P38,Q$3)) -> 19.61 | R38: 41.61 | S38: 1.11 | T38: 0 | U38: 10.85 | V38: 0 | W38: 73.18 | Y38: 30 | Z38: =IF(Z$3=0,"",INDEX(INDIRECT(Z$1),$Y38,Z$3)) -> 19.61 | AA38: 41.61 | AB38: 1.11 | AC38: 0 | AD38: 10.85 | AE38: 0 | AF38: 73.18 | AH38: 30 | AI38: =IF(AI$3=0,"",INDEX(INDIRECT(AI$1),$AH38,AI$3)) -> 19.61 | AJ38: 41.61 | AK38: 1.11 | AL38: 0 | AM38: 10.85 | AO38: 73.18 | AQ38: 30 | AR38: =IF(AR$3=0,"",INDEX(INDIRECT(AR$1),$AQ38,AR$3)) -> 19.61 | AS38: 41.61 | AT38: 1.11 | AU38: 0 | AV38: 10.85 | AX38: 73.18 | AZ38: T02R11 | BA38: 38
A39: T02 | B39: R12 | C39: Zone 12 | D39: Pass | E39: 50.8 | F39: 50.8 | G39: 0 | H39: Yes | I39: 50.8 | J39: 50.8 | K39: 50.8 | L39: 0 | M39: Yes | N39: T02R12 | O39: 0 | P39: 31 | Q39: 20.37 | R39: 18.23 | S39: 1.11 | T39: 0 | U39: 11.09 | V39: 0 | W39: 50.8 | Y39: 31 | Z39: 20.37 | AA39: 18.23 | AB39: 1.11 | AC39: 0 | AD39: 11.09 | AE39: 0 | AF39: 50.8 | AH39: 31 | AI39: 20.37 | AJ39: 18.23 | AK39: 1.11 | AL39: 0 | AM39: 11.09 | AO39: 50.8 | AQ39: 31 | AR39: 20.37 | AS39: 18.23 | AT39: 1.11 | AU39: 0 | AV39: 11.09 | AX39: 50.8 | AZ39: T02R12 | BA39: 39
A40: T02 | B40: R13 | C40: Zone 13 | D40: Pass | E40: 75.19 | F40: 75.19 | G40: 0 | H40: Yes | I40: 75.19 | J40: 75.19 | K40: 75.19 | L40: 0 | M40: Yes | N40: T02R13 | O40: 0 | P40: 32 | Q40: 17.95 | R40: 45.39 | S40: 1.11 | T40: 0 | U40: 10.74 | V40: 0 | W40: 75.19 | Y40: 32 | Z40: 17.95 | AA40: 45.39 | AB40: 1.11 | AC40: 0 | AD40: 10.74 | AE40: 0 | AF40: 75.19 | AH40: 32 | AI40: 17.95 | AJ40: 45.39 | AK40: 1.11 | AL40: 0 | AM40: 10.74 | AO40: 75.19 | AQ40: 32 | AR40: 17.95 | AS40: 45.39 | AT40: 1.11 | AU40: 0 | AV40: 10.74 | AX40: 75.19 | AZ40: T02R13 | BA40: 40
A41: T02 | B41: R14 | C41: Zone 14 | D41: Pass | E41: 69.35 | F41: 69.35 | G41: 0 | H41: Yes | I41: 69.35 | J41: 69.35 | K41: 69.35 | L41: 0 | M41: Yes | N41: T02R14 | O41: 0 | P41: 33 | Q41: 19.16 | R41: 38.14 | S41: 1.07 | T41: 0 | U41: 10.98 | V41: 0 | W41: 69.35 | Y41: 33 | Z41: 19.16 | AA41: 38.14 | AB41: 1.07 | AC41: 0 | AD41: 10.98 | AE41: 0 | AF41: 69.35 | AH41: 33 | AI41: 19.16 | AJ41: 38.14 | AK41: 1.07 | AL41: 0 | AM41: 10.98 | AO41: 69.35 | AQ41: 33 | AR41: 19.16 | AS41: 38.14 | AT41: 1.07 | AU41: 0 | AV41: 10.98 | AX41: 69.35 | AZ41: T02R14 | BA41: 41
A42: T02 | B42: R15 | C42: Zone 15 | D42: Pass | E42: 106.16 | F42: 106.16 | G42: 0 | H42: Yes | I42: 106.16 | J42: 106.16 | K42: 106.16 | L42: 0 | M42: Yes | N42: T02R15 | O42: 0 | P42: 34 | Q42: 1.48 | R42: 94.14 | S42: 1.07 | T42: 0 | U42: 9.47 | V42: 0 | W42: 106.16 | Y42: 34 | Z42: 1.48 | AA42: 94.14 | AB42: 1.07 | AC42: 0 | AD42: 9.47 | AE42: 0 | AF42: 106.16 | AH42: 34 | AI42: 1.48 | AJ42: 94.14 | AK42: 1.07 | AL42: 0 | AM42: 9.47 | AO42: 106.16 | AQ42: 34 | AR42: 1.48 | AS42: 94.14 | AT42: 1.07 | AU42: 0 | AV42: 9.47 | AX42: 106.16 | AZ42: T02R15 | BA42: 42
A43: T02 | B43: R16 | C43: Zone 16 | D43: Pass | E43: 63.57 | F43: 63.57 | G43: 0 | H43: Yes | I43: 63.57 | J43: 63.57 | K43: 63.57 | L43: 0 | M43: Yes | N43: T02R16 | O43: 0 | P43: 35 | Q43: 44.02 | R43: 6.27 | S43: 1.06 | T43: 0 | U43: 12.22 | V43: 0 | W43: 63.57 | Y43: 35 | Z43: 44.02 | AA43: 6.27 | AB43: 1.06 | AC43: 0 | AD43: 12.22 | AE43: 0 | AF43: 63.57 | AH43: 35 | AI43: 44.02 | AJ43: 6.27 | AK43: 1.06 | AL43: 0 | AM43: 12.22 | AO43: 63.57 | AQ43: 35 | AR43: 44.02 | AS43: 6.27 | AT43: 1.06 | AU43: 0 | AV43: 12.22 | AX43: 63.57 | AZ43: T02R16 | BA43: 43
A44: ="Result "&A27 -> Result T02 | D44: =IF(SoftwareType="Candidate","n/a",IF(COUNTIF(D28:D43,Pass)=16,Pass,Fail)) -> Pass | E44: =AVERAGE(E28:E43) -> 45.47 | F44: =AVERAGE(F28:F43) -> 45.47 | G44: 0 | I44: =AVERAGE(I28:I43) -> 45.47 | J44: =AVERAGE(J28:J43) -> 45.47 | K44: =AVERAGE(K28:K43) -> 45.47 | L44: 0 | M44: Min | N44: =MIN(L28:L43) -> 0 | O44: =AVERAGE(O28:O43) -> 0 | P44: Ave | Q44: =AVERAGE(Q28:Q43) -> 14.0325 | R44: =AVERAGE(R28:R43) -> 19.259375 | S44: =AVERAGE(S28:S43) -> 1.093125 | U44: =AVERAGE(U28:U43) -> 11.085 | V44: =AVERAGE(V28:V43) -> 0 | W44: =AVERAGE(W28:W43) -> 45.47 | Y44: Ave | Z44: =AVERAGE(Z28:Z43) -> 14.0325 | AA44: =AVERAGE(AA28:AA43) -> 19.259375 | AB44: =AVERAGE(AB28:AB43) -> 1.093125 | AC44: =AVERAGE(AC28:AC43) -> 0 | AD44: =AVERAGE(AD28:AD43) -> 11.085 | AF44: =AVERAGE(AF28:AF43) -> 45.47 | AI44: =AVERAGE(AI28:AI43) -> 14.0325 | AJ44: =AVERAGE(AJ28:AJ43) -> 19.259375 | AK44: =AVERAGE(AK28:AK43) -> 1.093125 | AL44: =AVERAGE(AL28:AL43) -> 0 | AM44: =AVERAGE(AM28:AM43) -> 11.085 | AO44: =AVERAGE(AO28:AO43) -> 45.47 | AQ44: Ave | AR44: =AVERAGE(AR28:AR43) -> 14.0325 | AS44: =AVERAGE(AS28:AS43) -> 19.259375 | AT44: =AVERAGE(AT28:AT43) -> 1.093125 | AU44: =AVERAGE(AU28:AU43) -> 0 | AV44: =AVERAGE(AV28:AV43) -> 11.085 | AX44: =AVERAGE(AX28:AX43) -> 45.47
C45: Page 2 of 7 | L45: Ave | M45: Max | N45: =MAX(L28:L43) -> 0 | Y45: % Diff | Z45: =(Z44-Q44)/Q44 -> 0 | AA45: =(AA44-R44)/R44 -> 0 | AB45: =(AB44-S44)/S44 -> 0 | AD45: =(AD44-U44)/U44 -> 0 | AF45: =(AF44-W44)/W44 -> 0
A46: T03 | B46: =VLOOKUP(A46,TestArray,2)&" in "&VLOOKUP(A46,TestArray,3)&" for Prototype "&VLOOKUP(A46,TestArray,4) -> Standard Design in All Zones for Prototype S6960ft2 | I46: =VLOOKUP(A46,TestArray,21) -> Standard = Proposed for this test
A47: =A46 -> T03 | B47: R01 | C47: =VLOOKUP(A47,TestArray,4+RIGHT(B47,2)) -> Zone 01 | D47: =IF(SoftwareType="Candidate","n/a",IF(AND(H47=Yes,M47=Yes,ABS(E47-I47)<=Tolerance/2),Pass,Fail)) -> Pass | E47: =W47 -> 44.64 | F47: =AF47 -> 44.64 | G47: =(F47-E47)/E47 -> 0 | H47: =IF(AND((E47-Tolerance<=F47),(E47+Tolerance>=F47)),Yes,No) -> Yes | I47: =INDIRECT("AO"&INDEX(StandardArray,MATCH($N47,StandardList,0),2)) -> 44.64 | J47: =AO47 -> 44.64 | K47: =AX47 -> 44.64 | L47: =(K47-I47)/I47 -> 0 | M47: =IF(AND((I47-Tolerance<=K47),(I47+Tolerance>=K47),(J47-Tolerance<=K47),(J47+Tolerance>=K47)),Yes,No) -> Yes | N47: =A47&B47 -> T03R01 | O47: =K47-F47 -> 0 | P47: =MATCH($A47&$B47,INDIRECT(P$2),0) -> 36 | Q47: =IF(Q$3=0,"",INDEX(INDIRECT(Q$1),$P47,Q$3)) -> 15.08 | R47: 0.03 | S47: 2.4 | T47: 0 | U47: 27.13 | V47: 0 | W47: =IF(TotalSum="No",INDEX(INDIRECT(W$1),$P47,W$3),SUM(Q47:V47)) -> 44.64 | Y47: =MATCH($A47&$B47,INDIRECT(Y$2),0) -> 36 | Z47: =IF(Z$3=0,"",INDEX(INDIRECT(Z$1),$Y47,Z$3)) -> 15.08 | AA47: 0.03 | AB47: 2.4 | AC47: 0 | AD47: 27.13 | AE47: 0 | AF47: =IF(TotalSum="No",INDEX(INDIRECT(AF$1),$Y47,AF$3),SUM(Z47:AE47)) -> 44.64 | AH47: =MATCH($A47&$B47,INDIRECT(AH$2),0) -> 36 | AI47: =IF(AI$3=0,"",INDEX(INDIRECT(AI$1),$AH47,AI$3)) -> 15.08 | AJ47: 0.03 | AK47: 2.4 | AL47: 0 | AM47: 27.13 | AO47: =IF(TotalSum="No",INDEX(INDIRECT(AO$1),$AH47,AO$3),SUM(AI47:AN47)) -> 44.64 | AQ47: =MATCH($A47&$B47,INDIRECT(AQ$2),0) -> 36 | AR47: =IF(AR$3=0,"",INDEX(INDIRECT(AR$1),$AQ47,AR$3)) -> 15.08 | AS47: 0.03 | AT47: 2.4 | AU47: 0 | AV47: 27.13 | AX47: =IF(TotalSum="No",INDEX(INDIRECT(AX$1),$AQ47,AX$3),SUM(AR47:AW47)) -> 44.64 | AZ47: =A47&B47 -> T03R01 | BA47: =ROW(AZ47) -> 47
A48: =A47 -> T03 | B48: R02 | C48: Zone 02 | D48: Pass | E48: 46.61 | F48: 46.61 | G48: 0 | H48: Yes | I48: 46.61 | J48: 46.61 | K48: 46.61 | L48: 0 | M48: Yes | N48: T03R02 | O48: =K48-F48 -> 0 | P48: 37 | Q48: 11.03 | R48: 7.36 | S48: 2.4 | T48: 0 | U48: 25.82 | V48: 0 | W48: 46.61 | Y48: 37 | Z48: 11.03 | AA48: 7.36 | AB48: 2.4 | AC48: 0 | AD48: 25.82 | AE48: 0 | AF48: 46.61 | AH48: 37 | AI48: 11.03 | AJ48: 7.36 | AK48: 2.4 | AL48: 0 | AM48: 25.82 | AO48: 46.61 | AQ48: 37 | AR48: 11.03 | AS48: 7.36 | AT48: 2.4 | AU48: 0 | AV48: 25.82 | AX48: 46.61 | AZ48: T03R02 | BA48: 48
A49: T03 | B49: R03 | C49: Zone 03 | D49: Pass | E49: 34.74 | F49: 34.74 | G49: 0 | H49: Yes | I49: 34.74 | J49: 34.74 | K49: 34.74 | L49: 0 | M49: Yes | N49: T03R03 | O49: 0 | P49: 38 | Q49: 4.73 | R49: 1.78 | S49: 2.4 | T49: 0 | U49: 25.83 | V49: 0 | W49: 34.74 | Y49: 38 | Z49: 4.73 | AA49: 1.78 | AB49: 2.4 | AC49: 0 | AD49: 25.83 | AE49: 0 | AF49: 34.74 | AH49: 38 | AI49: 4.73 | AJ49: 1.78 | AK49: 2.4 | AL49: 0 | AM49: 25.83 | AO49: 34.74 | AQ49: 38 | AR49: 4.73 | AS49: 1.78 | AT49: 2.4 | AU49: 0 | AV49: 25.83 | AX49: 34.74 | AZ49: T03R03 | BA49: 49
A50: T03 | B50: R04 | C50: Zone 04 | D50: Pass | E50: 44.25 | F50: 44.25 | G50: 0 | H50: Yes | I50: 44.25 | J50: 44.25 | K50: 44.25 | L50: 0 | M50: Yes | N50: T03R04 | O50: 0 | P50: 39 | Q50: 7.31 | R50: 9.24 | S50: 2.4 | T50: 0 | U50: 25.3 | V50: 0 | W50: 44.25 | Y50: 39 | Z50: 7.31 | AA50: 9.24 | AB50: 2.4 | AC50: 0 | AD50: 25.3 | AE50: 0 | AF50: 44.25 | AH50: 39 | AI50: 7.31 | AJ50: 9.24 | AK50: 2.4 | AL50: 0 | AM50: 25.3 | AO50: 44.25 | AQ50: 39 | AR50: 7.31 | AS50: 9.24 | AT50: 2.4 | AU50: 0 | AV50: 25.3 | AX50: 44.25 | AZ50: T03R04 | BA50: 50
A51: T03 | B51: R05 | C51: Zone 05 | D51: Pass | E51: 33.33 | F51: 33.33 | G51: 0 | H51: Yes | I51: 33.33 | J51: 33.33 | K51: 33.33 | L51: 0 | M51: Yes | N51: T03R05 | O51: 0 | P51: 40 | Q51: 3.41 | R51: 1.42 | S51: 2.4 | T51: 0 | U51: 26.1 | V51: 0 | W51: 33.33 | Y51: 40 | Z51: 3.41 | AA51: 1.42 | AB51: 2.4 | AC51: 0 | AD51: 26.1 | AE51: 0 | AF51: 33.33 | AH51: 40 | AI51: 3.41 | AJ51: 1.42 | AK51: 2.4 | AL51: 0 | AM51: 26.1 | AO51: 33.33 | AQ51: 40 | AR51: 3.41 | AS51: 1.42 | AT51: 2.4 | AU51: 0 | AV51: 26.1 | AX51: 33.33 | AZ51: T03R05 | BA51: 51
A52: T03 | B52: R06 | C52: Zone 06 | D52: Pass | E52: 34.66 | F52: 34.66 | G52: 0 | H52: Yes | I52: 34.66 | J52: 34.66 | K52: 34.66 | L52: 0 | M52: Yes | N52: T03R06 | O52: 0 | P52: 41 | Q52: 1.17 | R52: 6.28 | S52: 2.32 | T52: 0 | U52: 24.89 | V52: 0 | W52: 34.66 | Y52: 41 | Z52: 1.17 | AA52: 6.28 | AB52: 2.32 | AC52: 0 | AD52: 24.89 | AE52: 0 | AF52: 34.66 | AH52: 41 | AI52: 1.17 | AJ52: 6.28 | AK52: 2.32 | AL52: 0 | AM52: 24.89 | AO52: 34.66 | AQ52: 41 | AR52: 1.17 | AS52: 6.28 | AT52: 2.32 | AU52: 0 | AV52: 24.89 | AX52: 34.66 | AZ52: T03R06 | BA52: 52
A53: T03 | B53: R07 | C53: Zone 07 | D53: Pass | E53: 31.66 | F53: 31.66 | G53: 0 | H53: Yes | I53: 31.66 | J53: 31.66 | K53: 31.66 | L53: 0 | M53: Yes | N53: T03R07 | O53: 0 | P53: 42 | Q53: 0.03 | R53: 4.98 | S53: 2.41 | T53: 0 | U53: 24.24 | V53: 0 | W53: 31.66 | Y53: 42 | Z53: 0.03 | AA53: 4.98 | AB53: 2.41 | AC53: 0 | AD53: 24.24 | AE53: 0 | AF53: 31.66 | AH53: 42 | AI53: 0.03 | AJ53: 4.98 | AK53: 2.41 | AL53: 0 | AM53: 24.24 | AO53: 31.66 | AQ53: 42 | AR53: 0.03 | AS53: 4.98 | AT53: 2.41 | AU53: 0 | AV53: 24.24 | AX53: 31.66 | AZ53: T03R07 | BA53: 53
A54: T03 | B54: R08 | C54: Zone 08 | D54: Pass | E54: 45.47 | F54: 45.47 | G54: 0 | H54: Yes | I54: 45.47 | J54: 45.47 | K54: 45.47 | L54: 0 | M54: Yes | N54: T03R08 | O54: 0 | P54: 43 | Q54: 0.85 | R54: 17.87 | S54: 2.32 | T54: 0 | U54: 24.43 | V54: 0 | W54: 45.47 | Y54: 43 | Z54: 0.85 | AA54: 17.87 | AB54: 2.32 | AC54: 0 | AD54: 24.43 | AE54: 0 | AF54: 45.47 | AH54: 43 | AI54: 0.85 | AJ54: 17.87 | AK54: 2.32 | AL54: 0 | AM54: 24.43 | AO54: 45.47 | AQ54: 43 | AR54: 0.85 | AS54: 17.87 | AT54: 2.32 | AU54: 0 | AV54: 24.43 | AX54: 45.47 | AZ54: T03R08 | BA54: 54
A55: T03 | B55: R09 | C55: Zone 09 | D55: Pass | E55: 56.24 | F55: 56.24 | G55: 0 | H55: Yes | I55: 56.24 | J55: 56.24 | K55: 56.24 | L55: 0 | M55: Yes | N55: T03R09 | O55: 0 | P55: 44 | Q55: 1.74 | R55: 27.76 | S55: 2.3 | T55: 0 | U55: 24.44 | V55: 0 | W55: 56.24 | Y55: 44 | Z55: 1.74 | AA55: 27.76 | AB55: 2.3 | AC55: 0 | AD55: 24.44 | AE55: 0 | AF55: 56.24 | AH55: 44 | AI55: 1.74 | AJ55: 27.76 | AK55: 2.3 | AL55: 0 | AM55: 24.44 | AO55: 56.24 | AQ55: 44 | AR55: 1.74 | AS55: 27.76 | AT55: 2.3 | AU55: 0 | AV55: 24.44 | AX55: 56.24 | AZ55: T03R09 | BA55: 55
A56: T03 | B56: R10 | C56: Zone 10 | D56: Pass | E56: 57.75 | F56: 57.75 | G56: 0 | H56: Yes | I56: 57.75 | J56: 57.75 | K56: 57.75 | L56: 0 | M56: Yes | N56: T03R10 | O56: 0 | P56: 45 | Q56: 2.25 | R56: 28.83 | S56: 2.3 | T56: 0 | U56: 24.37 | V56: 0 | W56: 57.75 | Y56: 45 | Z56: 2.25 | AA56: 28.83 | AB56: 2.3 | AC56: 0 | AD56: 24.37 | AE56: 0 | AF56: 57.75 | AH56: 45 | AI56: 2.25 | AJ56: 28.83 | AK56: 2.3 | AL56: 0 | AM56: 24.37 | AO56: 57.75 | AQ56: 45 | AR56: 2.25 | AS56: 28.83 | AT56: 2.3 | AU56: 0 | AV56: 24.37 | AX56: 57.75 | AZ56: T03R10 | BA56: 56
A57: T03 | B57: R11 | C57: Zone 11 | D57: Pass | E57: 82.57 | F57: 82.57 | G57: 0 | H57: Yes | I57: 82.57 | J57: 82.57 | K57: 82.57 | L57: 0 | M57: Yes | N57: T03R11 | O57: 0 | P57: 46 | Q57: =IF(Q$3=0,"",INDEX(INDIRECT(Q$1),$P57,Q$3)) -> 11.12 | R57: 44.5 | S57: 2.4 | T57: 0 | U57: 24.55 | V57: 0 | W57: 82.57 | Y57: 46 | Z57: =IF(Z$3=0,"",INDEX(INDIRECT(Z$1),$Y57,Z$3)) -> 11.12 | AA57: 44.5 | AB57: 2.4 | AC57: 0 | AD57: 24.55 | AE57: 0 | AF57: 82.57 | AH57: 46 | AI57: =IF(AI$3=0,"",INDEX(INDIRECT(AI$1),$AH57,AI$3)) -> 11.12 | AJ57: 44.5 | AK57: 2.4 | AL57: 0 | AM57: 24.55 | AO57: 82.57 | AQ57: 46 | AR57: =IF(AR$3=0,"",INDEX(INDIRECT(AR$1),$AQ57,AR$3)) -> 11.12 | AS57: 44.5 | AT57: 2.4 | AU57: 0 | AV57: 24.55 | AX57: 82.57 | AZ57: T03R11 | BA57: 57
A58: T03 | B58: R12 | C58: Zone 12 | D58: Pass | E58: 65.23 | F58: 65.23 | G58: 0 | H58: Yes | I58: 65.23 | J58: 65.23 | K58: 65.23 | L58: 0 | M58: Yes | N58: T03R12 | O58: 0 | P58: 47 | Q58: 10.91 | R58: 26.89 | S58: 2.4 | T58: 0 | U58: 25.03 | V58: 0 | W58: 65.23 | Y58: 47 | Z58: 10.91 | AA58: 26.89 | AB58: 2.4 | AC58: 0 | AD58: 25.03 | AE58: 0 | AF58: 65.23 | AH58: 47 | AI58: 10.91 | AJ58: 26.89 | AK58: 2.4 | AL58: 0 | AM58: 25.03 | AO58: 65.23 | AQ58: 47 | AR58: 10.91 | AS58: 26.89 | AT58: 2.4 | AU58: 0 | AV58: 25.03 | AX58: 65.23 | AZ58: T03R12 | BA58: 58
A59: T03 | B59: R13 | C59: Zone 13 | D59: Pass | E59: 84.05 | F59: 84.05 | G59: 0 | H59: Yes | I59: 84.05 | J59: 84.05 | K59: 84.05 | L59: 0 | M59: Yes | N59: T03R13 | O59: 0 | P59: 48 | Q59: 9.57 | R59: 47.75 | S59: 2.4 | T59: 0 | U59: 24.33 | V59: 0 | W59: 84.05 | Y59: 48 | Z59: 9.57 | AA59: 47.75 | AB59: 2.4 | AC59: 0 | AD59: 24.33 | AE59: 0 | AF59: 84.05 | AH59: 48 | AI59: 9.57 | AJ59: 47.75 | AK59: 2.4 | AL59: 0 | AM59: 24.33 | AO59: 84.05 | AQ59: 48 | AR59: 9.57 | AS59: 47.75 | AT59: 2.4 | AU59: 0 | AV59: 24.33 | AX59: 84.05 | AZ59: T03R13 | BA59: 59
A60: T03 | B60: R14 | C60: Zone 14 | D60: Pass | E60: 78.4 | F60: 78.4 | G60: 0 | H60: Yes | I60: 78.4 | J60: 78.4 | K60: 78.4 | L60: 0 | M60: Yes | N60: T03R14 | O60: 0 | P60: 49 | Q60: 10.78 | R60: 40.49 | S60: 2.3 | T60: 0 | U60: 24.83 | V60: 0 | W60: 78.4 | Y60: 49 | Z60: 10.78 | AA60: 40.49 | AB60: 2.3 | AC60: 0 | AD60: 24.83 | AE60: 0 | AF60: 78.4 | AH60: 49 | AI60: 10.78 | AJ60: 40.49 | AK60: 2.3 | AL60: 0 | AM60: 24.83 | AO60: 78.4 | AQ60: 49 | AR60: 10.78 | AS60: 40.49 | AT60: 2.3 | AU60: 0 | AV60: 24.83 | AX60: 78.4 | AZ60: T03R14 | BA60: 60
A61: T03 | B61: R15 | C61: Zone 15 | D61: Pass | E61: 118.93 | F61: 118.93 | G61: 0 | H61: Yes | I61: 118.93 | J61: 118.93 | K61: 118.93 | L61: 0 | M61: Yes | N61: T03R15 | O61: 0 | P61: 50 | Q61: 0.16 | R61: 94.7 | S61: 2.3 | T61: 0 | U61: 21.77 | V61: 0 | W61: 118.93 | Y61: 50 | Z61: 0.16 | AA61: 94.7 | AB61: 2.3 | AC61: 0 | AD61: 21.77 | AE61: 0 | AF61: 118.93 | AH61: 50 | AI61: 0.16 | AJ61: 94.7 | AK61: 2.3 | AL61: 0 | AM61: 21.77 | AO61: 118.93 | AQ61: 50 | AR61: 0.16 | AS61: 94.7 | AT61: 2.3 | AU61: 0 | AV61: 21.77 | AX61: 118.93 | AZ61: T03R15 | BA61: 61
A62: T03 | B62: R16 | C62: Zone 16 | D62: Pass | E62: 69.5 | F62: 69.5 | G62: 0 | H62: Yes | I62: 69.5 | J62: 69.5 | K62: 69.5 | L62: 0 | M62: Yes | N62: T03R16 | O62: 0 | P62: 51 | Q62: 29.99 | R62: 9.87 | S62: 2.3 | T62: 0 | U62: 27.34 | V62: 0 | W62: 69.5 | Y62: 51 | Z62: 29.99 | AA62: 9.87 | AB62: 2.3 | AC62: 0 | AD62: 27.34 | AE62: 0 | AF62: 69.5 | AH62: 51 | AI62: 29.99 | AJ62: 9.87 | AK62: 2.3 | AL62: 0 | AM62: 27.34 | AO62: 69.5 | AQ62: 51 | AR62: 29.99 | AS62: 9.87 | AT62: 2.3 | AU62: 0 | AV62: 27.34 | AX62: 69.5 | AZ62: T03R16 | BA62: 62
A63: ="Result "&A46 -> Result T03 | D63: =IF(SoftwareType="Candidate","n/a",IF(COUNTIF(D47:D62,Pass)=16,Pass,Fail)) -> Pass | E63: =AVERAGE(E47:E62) -> 58.001875 | F63: =AVERAGE(F47:F62) -> 58.001875 | G63: 0 | I63: =AVERAGE(I47:I62) -> 58.001875 | J63: =AVERAGE(J47:J62) -> 58.001875 | K63: =AVERAGE(K47:K62) -> 58.001875 | L63: 0 | M63: Min | N63: =MIN(L47:L62) -> 0 | O63: =AVERAGE(O47:O62) -> 0 | P63: Ave | Q63: =AVERAGE(Q47:Q62) -> 7.508125 | R63: =AVERAGE(R47:R62) -> 23.109375 | S63: =AVERAGE(S47:S62) -> 2.359375 | U63: =AVERAGE(U47:U62) -> 25.025 | V63: =AVERAGE(V47:V62) -> 0 | W63: =AVERAGE(W47:W62) -> 58.001875 | Y63: Ave | Z63: =AVERAGE(Z47:Z62) -> 7.508125 | AA63: =AVERAGE(AA47:AA62) -> 23.109375 | AB63: =AVERAGE(AB47:AB62) -> 2.359375 | AC63: =AVERAGE(AC47:AC62) -> 0 | AD63: =AVERAGE(AD47:AD62) -> 25.025 | AF63: =AVERAGE(AF47:AF62) -> 58.001875 | AI63: =AVERAGE(AI47:AI62) -> 7.508125 | AJ63: =AVERAGE(AJ47:AJ62) -> 23.109375 | AK63: =AVERAGE(AK47:AK62) -> 2.359375 | AL63: =AVERAGE(AL47:AL62) -> 0 | AM63: =AVERAGE(AM47:AM62) -> 25.025 | AO63: =AVERAGE(AO47:AO62) -> 58.001875 | AQ63: Ave | AR63: =AVERAGE(AR47:AR62) -> 7.508125 | AS63: =AVERAGE(AS47:AS62) -> 23.109375 | AT63: =AVERAGE(AT47:AT62) -> 2.359375 | AU63: =AVERAGE(AU47:AU62) -> 0 | AV63: =AVERAGE(AV47:AV62) -> 25.025 | AX63: =AVERAGE(AX47:AX62) -> 58.001875
L64: Ave | M64: Max | N64: =MAX(L47:L62) -> 0 | Y64: % Diff | Z64: =(Z63-Q63)/Q63 -> 0 | AA64: =(AA63-R63)/R63 -> 0 | AB64: =(AB63-S63)/S63 -> 0 | AD64: =(AD63-U63)/U63 -> 0 | AF64: =(AF63-W63)/W63 -> 0
A65: T04 | B65: =VLOOKUP(A65,TestArray,2)&" in "&VLOOKUP(A65,TestArray,3)&" for Prototype "&VLOOKUP(A65,TestArray,4) -> Proposed Design in All Zones for Prototype P2100ft2 | I65: =VLOOKUP(A65,TestArray,21) -> Standard = T01 Standard for this test
A66: =A65 -> T04 | B66: R01 | C66: =VLOOKUP(A66,TestArray,4+RIGHT(B66,2)) -> Zone 01 | D66: =IF(AND(H66=Yes,M66=Yes),Pass,Fail) -> Pass | E66: =W66 -> 46.27 | F66: =AF66 -> 46.27 | G66: =(F66-E66)/E66 -> 0 | H66: =IF(AND((E66-Tolerance<=F66),(E66+Tolerance>=F66)),Yes,No) -> Yes | I66: =INDIRECT("AO"&INDEX(StandardArray,MATCH($N66,StandardList,0),2)) -> 48.08 | J66: =AO66 -> 48.08 | K66: =AX66 -> 48.08 | L66: =(K66-I66)/I66 -> 0 | M66: =IF(AND((I66-Tolerance<=K66),(I66+Tolerance>=K66),(J66-Tolerance<=K66),(J66+Tolerance>=K66)),Yes,No) -> Yes | N66: =N9 -> T01R01 | O66: =K66-F66 -> 1.81 | P66: =MATCH($A66&$B66,INDIRECT(P$2),0) -> 52 | Q66: =IF(Q$3=0,"",INDEX(INDIRECT(Q$1),$P66,Q$3)) -> 30.59 | R66: 0 | S66: 1.13 | T66: 0 | U66: 14.55 | V66: 0 | W66: =IF(TotalSum="No",INDEX(INDIRECT(W$1),$P66,W$3),SUM(Q66:V66)) -> 46.27 | Y66: =MATCH($A66&$B66,INDIRECT(Y$2),0) -> 52 | Z66: =IF(Z$3=0,"",INDEX(INDIRECT(Z$1),$Y66,Z$3)) -> 30.59 | AA66: 0 | AB66: 1.13 | AC66: 0 | AD66: 14.55 | AE66: 0 | AF66: =IF(TotalSum="No",INDEX(INDIRECT(AF$1),$Y66,AF$3),SUM(Z66:AE66)) -> 46.27 | AH66: =MATCH($A66&$B66,INDIRECT(AH$2),0) -> 52 | AI66: =IF(AI$3=0,"",INDEX(INDIRECT(AI$1),$AH66,AI$3)) -> 32.4 | AJ66: 0 | AK66: 1.13 | AL66: 0 | AM66: 14.55 | AO66: =IF(TotalSum="No",INDEX(INDIRECT(AO$1),$AH66,AO$3),SUM(AI66:AN66)) -> 48.08 | AQ66: =MATCH($A66&$B66,INDIRECT(AQ$2),0) -> 52 | AR66: =IF(AR$3=0,"",INDEX(INDIRECT(AR$1),$AQ66,AR$3)) -> 32.4 | AS66: 0 | AT66: 1.13 | AU66: 0 | AV66: 14.55 | AX66: =IF(TotalSum="No",INDEX(INDIRECT(AX$1),$AQ66,AX$3),SUM(AR66:AW66)) -> 48.08 | AZ66: =A66&B66 -> T04R01 | BA66: =ROW(AZ66) -> 66
A67: =A66 -> T04 | B67: R02 | C67: Zone 02 | D67: Pass | E67: 36.59 | F67: 36.59 | G67: 0 | H67: Yes | I67: 38.64 | J67: 38.64 | K67: 38.64 | L67: 0 | M67: Yes | N67: =N10 -> T01R02 | O67: =K67-F67 -> 2.05 | P67: 53 | Q67: 21.43 | R67: 0.24 | S67: 1.13 | T67: 0 | U67: 13.79 | V67: 0 | W67: 36.59 | Y67: 53 | Z67: 21.43 | AA67: 0.24 | AB67: 1.13 | AC67: 0 | AD67: 13.79 | AE67: 0 | AF67: 36.59 | AH67: 53 | AI67: 22.7 | AJ67: 1.02 | AK67: 1.13 | AL67: 0 | AM67: 13.79 | AO67: 38.64 | AQ67: 53 | AR67: 22.7 | AS67: 1.02 | AT67: 1.13 | AU67: 0 | AV67: 13.79 | AX67: 38.64 | AZ67: T04R02 | BA67: 67
A68: T04 | B68: R03 | C68: Zone 03 | D68: Pass | E68: 26.05 | F68: 26.05 | G68: 0 | H68: Yes | I68: 28.12 | J68: 28.12 | K68: 28.12 | L68: 0 | M68: Yes | N68: T01R03 | O68: 2.07 | P68: 54 | Q68: 11.12 | R68: 0 | S68: 1.13 | T68: 0 | U68: 13.8 | V68: 0 | W68: 26.05 | Y68: 54 | Z68: 11.12 | AA68: 0 | AB68: 1.13 | AC68: 0 | AD68: 13.8 | AE68: 0 | AF68: 26.05 | AH68: 54 | AI68: 13.19 | AJ68: 0 | AK68: 1.13 | AL68: 0 | AM68: 13.8 | AO68: 28.12 | AQ68: 54 | AR68: 13.19 | AS68: 0 | AT68: 1.13 | AU68: 0 | AV68: 13.8 | AX68: 28.12 | AZ68: T04R03 | BA68: 68
A69: T04 | B69: R04 | C69: Zone 04 | D69: Pass | E69: 32.42 | F69: 32.42 | G69: 0 | H69: Yes | I69: 34.66 | J69: 34.66 | K69: 34.66 | L69: 0 | M69: Yes | N69: T01R04 | O69: 2.24 | P69: 55 | Q69: 15.83 | R69: 1.97 | S69: 1.13 | T69: 0 | U69: 13.49 | V69: 0 | W69: 32.42 | Y69: 55 | Z69: 15.83 | AA69: 1.97 | AB69: 1.13 | AC69: 0 | AD69: 13.49 | AE69: 0 | AF69: 32.42 | AH69: 55 | AI69: 17.29 | AJ69: 2.75 | AK69: 1.13 | AL69: 0 | AM69: 13.49 | AO69: 34.66 | AQ69: 55 | AR69: 17.29 | AS69: 2.75 | AT69: 1.13 | AU69: 0 | AV69: 13.49 | AX69: 34.66 | AZ69: T04R04 | BA69: 69
A70: T04 | B70: R05 | C70: Zone 05 | D70: Pass | E70: 23.54 | F70: 23.54 | G70: 0 | H70: Yes | I70: 25.7 | J70: 25.7 | K70: 25.7 | L70: 0 | M70: Yes | N70: T01R05 | O70: 2.16 | P70: 56 | Q70: 8.45 | R70: 0 | S70: 1.13 | T70: 0 | U70: 13.96 | V70: 0 | W70: 23.54 | Y70: 56 | Z70: 8.45 | AA70: 0 | AB70: 1.13 | AC70: 0 | AD70: 13.96 | AE70: 0 | AF70: 23.54 | AH70: 56 | AI70: 10.61 | AJ70: 0 | AK70: 1.13 | AL70: 0 | AM70: 13.96 | AO70: 25.7 | AQ70: 56 | AR70: 10.61 | AS70: 0 | AT70: 1.13 | AU70: 0 | AV70: 13.96 | AX70: 25.7 | AZ70: T04R05 | BA70: 70
A71: T04 | B71: R06 | C71: Zone 06 | D71: Pass | E71: 20.47 | F71: 20.47 | G71: 0 | H71: Yes | I71: 22.01 | J71: 22.01 | K71: 22.01 | L71: 0 | M71: Yes | N71: T01R06 | O71: 1.54 | P71: 57 | Q71: 4.59 | R71: 1.55 | S71: 1.09 | T71: 0 | U71: 13.24 | V71: 0 | W71: 20.47 | Y71: 57 | Z71: 4.59 | AA71: 1.55 | AB71: 1.09 | AC71: 0 | AD71: 13.24 | AE71: 0 | AF71: 20.47 | AH71: 57 | AI71: 5.59 | AJ71: 2.09 | AK71: 1.09 | AL71: 0 | AM71: 13.24 | AO71: 22.01 | AQ71: 57 | AR71: 5.59 | AS71: 2.09 | AT71: 1.09 | AU71: 0 | AV71: 13.24 | AX71: 22.01 | AZ71: T04R06 | BA71: 71
A72: T04 | B72: R07 | C72: Zone 07 | D72: Pass | E72: 15.33 | F72: 15.33 | G72: 0 | H72: Yes | I72: 16.09 | J72: 16.09 | K72: 16.09 | L72: 0 | M72: Yes | N72: T01R07 | O72: 0.76 | P72: 58 | Q72: 1.07 | R72: 0.24 | S72: 1.13 | T72: 0 | U72: 12.89 | V72: 0 | W72: 15.33 | Y72: 58 | Z72: 1.07 | AA72: 0.24 | AB72: 1.13 | AC72: 0 | AD72: 12.89 | AE72: 0 | AF72: 15.33 | AH72: 58 | AI72: 1.51 | AJ72: 0.56 | AK72: 1.13 | AL72: 0 | AM72: 12.89 | AO72: 16.09 | AQ72: 58 | AR72: 1.51 | AS72: 0.56 | AT72: 1.13 | AU72: 0 | AV72: 12.89 | AX72: 16.09 | AZ72: T04R07 | BA72: 72
A73: T04 | B73: R08 | C73: Zone 08 | D73: Pass | E73: 24.78 | F73: 24.78 | G73: 0 | H73: Yes | I73: 27.08 | J73: 27.08 | K73: 27.08 | L73: 0 | M73: Yes | N73: T01R08 | O73: 2.3 | P73: 59 | Q73: 3.13 | R73: 7.59 | S73: 1.09 | T73: 0 | U73: 12.97 | V73: 0 | W73: 24.78 | Y73: 59 | Z73: 3.13 | AA73: 7.59 | AB73: 1.09 | AC73: 0 | AD73: 12.97 | AE73: 0 | AF73: 24.78 | AH73: 59 | AI73: 3.88 | AJ73: 9.14 | AK73: 1.09 | AL73: 0 | AM73: 12.97 | AO73: 27.08 | AQ73: 59 | AR73: 3.88 | AS73: 9.14 | AT73: 1.09 | AU73: 0 | AV73: 12.97 | AX73: 27.08 | AZ73: T04R08 | BA73: 73
A74: T04 | B74: R09 | C74: Zone 09 | D74: Pass | E74: 36.54 | F74: 36.54 | G74: 0 | H74: Yes | I74: 40.29 | J74: 40.29 | K74: 40.29 | L74: 0 | M74: Yes | N74: T01R09 | O74: 3.75 | P74: 60 | Q74: 5.28 | R74: 17.19 | S74: 1.09 | T74: 0 | U74: 12.98 | V74: 0 | W74: 36.54 | Y74: 60 | Z74: 5.28 | AA74: 17.19 | AB74: 1.09 | AC74: 0 | AD74: 12.98 | AE74: 0 | AF74: 36.54 | AH74: 60 | AI74: 6.18 | AJ74: 20.04 | AK74: 1.09 | AL74: 0 | AM74: 12.98 | AO74: 40.29 | AQ74: 60 | AR74: 6.18 | AS74: 20.04 | AT74: 1.09 | AU74: 0 | AV74: 12.98 | AX74: 40.29 | AZ74: T04R09 | BA74: 74
A75: T04 | B75: R10 | C75: Zone 10 | D75: Pass | E75: 37.85 | F75: 37.85 | G75: 0 | H75: Yes | I75: 41.91 | J75: 41.91 | K75: 41.91 | L75: 0 | M75: Yes | N75: T01R10 | O75: 4.06 | P75: 61 | Q75: 6.33 | R75: 17.5 | S75: 1.08 | T75: 0 | U75: 12.94 | V75: 0 | W75: 37.85 | Y75: 61 | Z75: 6.33 | AA75: 17.5 | AB75: 1.08 | AC75: 0 | AD75: 12.94 | AE75: 0 | AF75: 37.85 | AH75: 61 | AI75: 7.41 | AJ75: 20.48 | AK75: 1.08 | AL75: 0 | AM75: 12.94 | AO75: 41.91 | AQ75: 61 | AR75: 7.41 | AS75: 20.48 | AT75: 1.08 | AU75: 0 | AV75: 12.94 | AX75: 41.91 | AZ75: T04R10 | BA75: 75
A76: T04 | B76: R11 | C76: Zone 11 | D76: Pass | E76: 69.14 | F76: 69.14 | G76: 0 | H76: Yes | I76: 74.69 | J76: 74.69 | K76: 74.69 | L76: 0 | M76: Yes | N76: T01R11 | O76: 5.55 | P76: 62 | Q76: =IF(Q$3=0,"",INDEX(INDIRECT(Q$1),$P76,Q$3)) -> 18.97 | R76: 35.99 | S76: 1.13 | T76: 0 | U76: 13.05 | V76: 0 | W76: 69.14 | Y76: 62 | Z76: =IF(Z$3=0,"",INDEX(INDIRECT(Z$1),$Y76,Z$3)) -> 18.97 | AA76: 35.99 | AB76: 1.13 | AC76: 0 | AD76: 13.05 | AE76: 0 | AF76: 69.14 | AH76: 62 | AI76: =IF(AI$3=0,"",INDEX(INDIRECT(AI$1),$AH76,AI$3)) -> 20.54 | AJ76: 39.97 | AK76: 1.13 | AL76: 0 | AM76: 13.05 | AO76: 74.69 | AQ76: 62 | AR76: =IF(AR$3=0,"",INDEX(INDIRECT(AR$1),$AQ76,AR$3)) -> 20.54 | AS76: 39.97 | AT76: 1.13 | AU76: 0 | AV76: 13.05 | AX76: 74.69 | AZ76: T04R11 | BA76: 76
A77: T04 | B77: R12 | C77: Zone 12 | D77: Pass | E77: 46.88 | F77: 46.88 | G77: 0 | H77: Yes | I77: 51.32 | J77: 51.32 | K77: 51.32 | L77: 0 | M77: Yes | N77: T01R12 | O77: 4.44 | P77: 63 | Q77: 20.99 | R77: 11.43 | S77: 1.13 | T77: 0 | U77: 13.33 | V77: 0 | W77: 46.88 | Y77: 63 | Z77: 20.99 | AA77: 11.43 | AB77: 1.13 | AC77: 0 | AD77: 13.33 | AE77: 0 | AF77: 46.88 | AH77: 63 | AI77: 22.22 | AJ77: 14.64 | AK77: 1.13 | AL77: 0 | AM77: 13.33 | AO77: 51.32 | AQ77: 63 | AR77: 22.22 | AS77: 14.64 | AT77: 1.13 | AU77: 0 | AV77: 13.33 | AX77: 51.32 | AZ77: T04R12 | BA77: 77
A78: T04 | B78: R13 | C78: Zone 13 | D78: Pass | E78: 71.43 | F78: 71.43 | G78: 0 | H78: Yes | I78: 77.17 | J78: 77.17 | K78: 77.17 | L78: 0 | M78: Yes | N78: T01R13 | O78: 5.74 | P78: 64 | Q78: 17.34 | R78: 40.04 | S78: 1.13 | T78: 0 | U78: 12.92 | V78: 0 | W78: 71.43 | Y78: 64 | Z78: 17.34 | AA78: 40.04 | AB78: 1.13 | AC78: 0 | AD78: 12.92 | AE78: 0 | AF78: 71.43 | AH78: 64 | AI78: 18.35 | AJ78: 44.77 | AK78: 1.13 | AL78: 0 | AM78: 12.92 | AO78: 77.17 | AQ78: 64 | AR78: 18.35 | AS78: 44.77 | AT78: 1.13 | AU78: 0 | AV78: 12.92 | AX78: 77.17 | AZ78: T04R13 | BA78: 78
A79: T04 | B79: R14 | C79: Zone 14 | D79: Pass | E79: 63.83 | F79: 63.83 | G79: 0 | H79: Yes | I79: 70.53 | J79: 70.53 | K79: 70.53 | L79: 0 | M79: Yes | N79: T01R14 | O79: 6.7 | P79: 65 | Q79: 18.13 | R79: 31.41 | S79: 1.08 | T79: 0 | U79: 13.21 | V79: 0 | W79: 63.83 | Y79: 65 | Z79: 18.13 | AA79: 31.41 | AB79: 1.08 | AC79: 0 | AD79: 13.21 | AE79: 0 | AF79: 63.83 | AH79: 65 | AI79: 20.06 | AJ79: 36.18 | AK79: 1.08 | AL79: 0 | AM79: 13.21 | AO79: 70.53 | AQ79: 65 | AR79: 20.06 | AS79: 36.18 | AT79: 1.08 | AU79: 0 | AV79: 13.21 | AX79: 70.53 | AZ79: T04R14 | BA79: 79
A80: T04 | B80: R15 | C80: Zone 15 | D80: Pass | E80: 106.49 | F80: 106.49 | G80: 0 | H80: Yes | I80: 112.06 | J80: 112.06 | K80: 112.06 | L80: 0 | M80: Yes | N80: T01R15 | O80: 5.57 | P80: 66 | Q80: 0.38 | R80: 93.61 | S80: 1.09 | T80: 0 | U80: 11.41 | V80: 0 | W80: 106.49 | Y80: 66 | Z80: 0.38 | AA80: 93.61 | AB80: 1.09 | AC80: 0 | AD80: 11.41 | AE80: 0 | AF80: 106.49 | AH80: 66 | AI80: 0.61 | AJ80: 98.95 | AK80: 1.09 | AL80: 0 | AM80: 11.41 | AO80: 112.06 | AQ80: 66 | AR80: 0.61 | AS80: 98.95 | AT80: 1.09 | AU80: 0 | AV80: 11.41 | AX80: 112.06 | AZ80: T04R15 | BA80: 80
A81: T04 | B81: R16 | C81: Zone 16 | D81: Pass | E81: 63.56 | F81: 63.56 | G81: 0 | H81: Yes | I81: 67.77 | J81: 67.77 | K81: 67.77 | L81: 0 | M81: Yes | N81: T01R16 | O81: 4.21 | P81: 67 | Q81: 46.25 | R81: 1.57 | S81: 1.08 | T81: 0 | U81: 14.66 | V81: 0 | W81: 63.56 | Y81: 67 | Z81: 46.25 | AA81: 1.57 | AB81: 1.08 | AC81: 0 | AD81: 14.66 | AE81: 0 | AF81: 63.56 | AH81: 67 | AI81: 48.38 | AJ81: 3.65 | AK81: 1.08 | AL81: 0 | AM81: 14.66 | AO81: 67.77 | AQ81: 67 | AR81: 48.38 | AS81: 3.65 | AT81: 1.08 | AU81: 0 | AV81: 14.66 | AX81: 67.77 | AZ81: T04R16 | BA81: 81
A82: ="Result "&A65 -> Result T04 | D82: =IF(SoftwareType="Candidate","n/a",IF(COUNTIF(D66:D81,Pass)=16,Pass,Fail)) -> Pass | E82: =AVERAGE(E66:E81) -> 45.073125 | F82: =AVERAGE(F66:F81) -> 45.073125 | G82: 0 | I82: =AVERAGE(I66:I81) -> 48.5075 | J82: =AVERAGE(J66:J81) -> 48.5075 | K82: =AVERAGE(K66:K81) -> 48.5075 | L82: 0 | M82: Min | N82: =MIN(L66:L81) -> 0 | O82: =AVERAGE(O66:O81) -> 3.434375 | P82: Ave | Q82: =AVERAGE(Q66:Q81) -> 14.3675 | R82: =AVERAGE(R66:R81) -> 16.270625 | S82: =AVERAGE(S66:S81) -> 1.110625 | U82: =AVERAGE(U66:U81) -> 13.324375 | V82: =AVERAGE(V66:V81) -> 0 | W82: =AVERAGE(W66:W81) -> 45.073125 | Y82: Ave | Z82: =AVERAGE(Z66:Z81) -> 14.3675 | AA82: =AVERAGE(AA66:AA81) -> 16.270625 | AB82: =AVERAGE(AB66:AB81) -> 1.110625 | AC82: =AVERAGE(AC66:AC81) -> 0 | AD82: =AVERAGE(AD66:AD81) -> 13.324375 | AF82: =AVERAGE(AF66:AF81) -> 45.073125 | AI82: =AVERAGE(AI66:AI81) -> 15.6825 | AJ82: =AVERAGE(AJ66:AJ81) -> 18.39 | AK82: =AVERAGE(AK66:AK81) -> 1.110625 | AL82: =AVERAGE(AL66:AL81) -> 0 | AM82: =AVERAGE(AM66:AM81) -> 13.324375 | AO82: =AVERAGE(AO66:AO81) -> 48.5075 | AQ82: Ave | AR82: =AVERAGE(AR66:AR81) -> 15.6825 | AS82: =AVERAGE(AS66:AS81) -> 18.39 | AT82: =AVERAGE(AT66:AT81) -> 1.110625 | AU82: =AVERAGE(AU66:AU81) -> 0 | AV82: =AVERAGE(AV66:AV81) -> 13.324375 | AX82: =AVERAGE(AX66:AX81) -> 48.5075
C83: Page 3 of 7 | L83: Ave | M83: Max | N83: =MAX(L66:L81) -> 0 | Y83: % Diff | Z83: =(Z82-Q82)/Q82 -> 0 | AA83: =(AA82-R82)/R82 -> 0 | AB83: =(AB82-S82)/S82 -> 0 | AD83: =(AD82-U82)/U82 -> 0 | AF83: =(AF82-W82)/W82 -> 0
A84: T05 | B84: =VLOOKUP(A84,TestArray,2)&" in "&VLOOKUP(A84,TestArray,3)&" for Prototype "&VLOOKUP(A84,TestArray,4) -> Proposed Design in All Zones for Prototype P2700ft2 | I84: =VLOOKUP(A84,TestArray,21) -> Standard = T02 Standard for this test
A85: =A84 -> T05 | B85: R01 | C85: =VLOOKUP(A85,TestArray,4+RIGHT(B85,2)) -> Zone 01 | D85: =IF(AND(H85=Yes,M85=Yes),Pass,Fail) -> Pass | E85: =W85 -> 36.67 | F85: =AF85 -> 36.67 | G85: =(F85-E85)/E85 -> 0 | H85: =IF(AND((E85-Tolerance<=F85),(E85+Tolerance>=F85)),Yes,No) -> Yes | I85: =INDIRECT("AO"&INDEX(StandardArray,MATCH($N85,StandardList,0),2)) -> 38.53 | J85: =AO85 -> 38.53 | K85: =AX85 -> 38.53 | L85: =(K85-I85)/I85 -> 0 | M85: =IF(AND((I85-Tolerance<=K85),(I85+Tolerance>=K85),(J85-Tolerance<=K85),(J85+Tolerance>=K85)),Yes,No) -> Yes | N85: =N28 -> T02R01 | O85: =K85-F85 -> 1.86 | P85: =MATCH($A85&$B85,INDIRECT(P$2),0) -> 68 | Q85: =IF(Q$3=0,"",INDEX(INDIRECT(Q$1),$P85,Q$3)) -> 23.44 | R85: 0 | S85: 1.11 | T85: 0 | U85: 12.12 | V85: 0 | W85: =IF(TotalSum="No",INDEX(INDIRECT(W$1),$P85,W$3),SUM(Q85:V85)) -> 36.67 | Y85: =MATCH($A85&$B85,INDIRECT(Y$2),0) -> 68 | Z85: =IF(Z$3=0,"",INDEX(INDIRECT(Z$1),$Y85,Z$3)) -> 23.44 | AA85: 0 | AB85: 1.11 | AC85: 0 | AD85: 12.12 | AE85: 0 | AF85: =IF(TotalSum="No",INDEX(INDIRECT(AF$1),$Y85,AF$3),SUM(Z85:AE85)) -> 36.67 | AH85: =MATCH($A85&$B85,INDIRECT(AH$2),0) -> 68 | AI85: =IF(AI$3=0,"",INDEX(INDIRECT(AI$1),$AH85,AI$3)) -> 25.3 | AJ85: 0 | AK85: 1.11 | AL85: 0 | AM85: 12.12 | AO85: =IF(TotalSum="No",INDEX(INDIRECT(AO$1),$AH85,AO$3),SUM(AI85:AN85)) -> 38.53 | AQ85: =MATCH($A85&$B85,INDIRECT(AQ$2),0) -> 68 | AR85: =IF(AR$3=0,"",INDEX(INDIRECT(AR$1),$AQ85,AR$3)) -> 25.3 | AS85: 0 | AT85: 1.11 | AU85: 0 | AV85: 12.12 | AX85: =IF(TotalSum="No",INDEX(INDIRECT(AX$1),$AQ85,AX$3),SUM(AR85:AW85)) -> 38.53 | AZ85: =A85&B85 -> T05R01 | BA85: =ROW(AZ85) -> 85
A86: =A85 -> T05 | B86: R02 | C86: Zone 02 | D86: Pass | E86: 32.53 | F86: 32.53 | G86: 0 | H86: Yes | I86: 35.41 | J86: 35.41 | K86: 35.41 | L86: 0 | M86: Yes | N86: T02R02 | O86: =K86-F86 -> 2.88 | P86: 69 | Q86: 18.62 | R86: 1.32 | S86: 1.11 | T86: 0 | U86: 11.48 | V86: 0 | W86: 32.53 | Y86: 69 | Z86: 18.62 | AA86: 1.32 | AB86: 1.11 | AC86: 0 | AD86: 11.48 | AE86: 0 | AF86: 32.53 | AH86: 69 | AI86: 19.86 | AJ86: 2.96 | AK86: 1.11 | AL86: 0 | AM86: 11.48 | AO86: 35.41 | AQ86: 69 | AR86: 19.86 | AS86: 2.96 | AT86: 1.11 | AU86: 0 | AV86: 11.48 | AX86: 35.41 | AZ86: T05R02 | BA86: 86
A87: T05 | B87: R03 | C87: Zone 03 | D87: Pass | E87: 21.25 | F87: 21.25 | G87: 0 | H87: Yes | I87: 23.38 | J87: 23.38 | K87: 23.38 | L87: 0 | M87: Yes | N87: T02R03 | O87: 2.13 | P87: 70 | Q87: 8.54 | R87: 0.11 | S87: 1.11 | T87: 0 | U87: 11.49 | V87: 0 | W87: 21.25 | Y87: 70 | Z87: 8.54 | AA87: 0.11 | AB87: 1.11 | AC87: 0 | AD87: 11.49 | AE87: 0 | AF87: 21.25 | AH87: 70 | AI87: 10.49 | AJ87: 0.29 | AK87: 1.11 | AL87: 0 | AM87: 11.49 | AO87: 23.38 | AQ87: 70 | AR87: 10.49 | AS87: 0.29 | AT87: 1.11 | AU87: 0 | AV87: 11.49 | AX87: 23.38 | AZ87: T05R03 | BA87: 87
A88: T05 | B88: R04 | C88: Zone 04 | D88: Pass | E88: 28.81 | F88: 28.81 | G88: 0 | H88: Yes | I88: 31.75 | J88: 31.75 | K88: 31.75 | L88: 0 | M88: Yes | N88: T02R04 | O88: 2.94 | P88: 71 | Q88: 13.75 | R88: 2.73 | S88: 1.11 | T88: 0 | U88: 11.22 | V88: 0 | W88: 28.81 | Y88: 71 | Z88: 13.75 | AA88: 2.73 | AB88: 1.11 | AC88: 0 | AD88: 11.22 | AE88: 0 | AF88: 28.81 | AH88: 71 | AI88: 15.16 | AJ88: 4.26 | AK88: 1.11 | AL88: 0 | AM88: 11.22 | AO88: 31.75 | AQ88: 71 | AR88: 15.16 | AS88: 4.26 | AT88: 1.11 | AU88: 0 | AV88: 11.22 | AX88: 31.75 | AZ88: T05R04 | BA88: 88
A89: T05 | B89: R05 | C89: Zone 05 | D89: Pass | E89: 18.76 | F89: 18.76 | G89: 0 | H89: Yes | I89: 20.76 | J89: 20.76 | K89: 20.76 | L89: 0 | M89: Yes | N89: T02R05 | O89: 2 | P89: 72 | Q89: 5.99 | R89: 0.04 | S89: 1.11 | T89: 0 | U89: 11.62 | V89: 0 | W89: 18.76 | Y89: 72 | Z89: 5.99 | AA89: 0.04 | AB89: 1.11 | AC89: 0 | AD89: 11.62 | AE89: 0 | AF89: 18.76 | AH89: 72 | AI89: 8.02 | AJ89: 0.01 | AK89: 1.11 | AL89: 0 | AM89: 11.62 | AO89: 20.76 | AQ89: 72 | AR89: 8.02 | AS89: 0.01 | AT89: 1.11 | AU89: 0 | AV89: 11.62 | AX89: 20.76 | AZ89: T05R05 | BA89: 89
A90: T05 | B90: R06 | C90: Zone 06 | D90: Pass | E90: 18.23 | F90: 18.23 | G90: 0 | H90: Yes | I90: 19.73 | J90: 19.73 | K90: 19.73 | L90: 0 | M90: Yes | N90: T02R06 | O90: 1.5 | P90: 73 | Q90: 4.03 | R90: 2.11 | S90: 1.07 | T90: 0 | U90: 11.02 | V90: 0 | W90: 18.23 | Y90: 73 | Z90: 4.03 | AA90: 2.11 | AB90: 1.07 | AC90: 0 | AD90: 11.02 | AE90: 0 | AF90: 18.23 | AH90: 73 | AI90: 4.91 | AJ90: 2.73 | AK90: 1.07 | AL90: 0 | AM90: 11.02 | AO90: 19.73 | AQ90: 73 | AR90: 4.91 | AS90: 2.73 | AT90: 1.07 | AU90: 0 | AV90: 11.02 | AX90: 19.73 | AZ90: T05R06 | BA90: 90
A91: T05 | B91: R07 | C91: Zone 07 | D91: Pass | E91: 13.36 | F91: 13.36 | G91: 0 | H91: Yes | I91: 14.14 | J91: 14.14 | K91: 14.14 | L91: 0 | M91: Yes | N91: T02R07 | O91: 0.78 | P91: 74 | Q91: 0.97 | R91: 0.55 | S91: 1.12 | T91: 0 | U91: 10.72 | V91: 0 | W91: 13.36 | Y91: 74 | Z91: 0.97 | AA91: 0.55 | AB91: 1.12 | AC91: 0 | AD91: 10.72 | AE91: 0 | AF91: 13.36 | AH91: 74 | AI91: 1.27 | AJ91: 1.03 | AK91: 1.12 | AL91: 0 | AM91: 10.72 | AO91: 14.14 | AQ91: 74 | AR91: 1.27 | AS91: 1.03 | AT91: 1.12 | AU91: 0 | AV91: 10.72 | AX91: 14.14 | AZ91: T05R07 | BA91: 91
A92: T05 | B92: R08 | C92: Zone 08 | D92: Pass | E92: 23.11 | F92: 23.11 | G92: 0 | H92: Yes | I92: 25.44 | J92: 25.44 | K92: 25.44 | L92: 0 | M92: Yes | N92: T02R08 | O92: 2.33 | P92: 75 | Q92: 3.1 | R92: 8.14 | S92: 1.08 | T92: 0 | U92: 10.79 | V92: 0 | W92: 23.11 | Y92: 75 | Z92: 3.1 | AA92: 8.14 | AB92: 1.08 | AC92: 0 | AD92: 10.79 | AE92: 0 | AF92: 23.11 | AH92: 75 | AI92: 3.75 | AJ92: 9.82 | AK92: 1.08 | AL92: 0 | AM92: 10.79 | AO92: 25.44 | AQ92: 75 | AR92: 3.75 | AS92: 9.82 | AT92: 1.08 | AU92: 0 | AV92: 10.79 | AX92: 25.44 | AZ92: T05R08 | BA92: 92
A93: T05 | B93: R09 | C93: Zone 09 | D93: Pass | E93: 34.77 | F93: 34.77 | G93: 0 | H93: Yes | I93: 38.98 | J93: 38.98 | K93: 38.98 | L93: 0 | M93: Yes | N93: T02R09 | O93: 4.21 | P93: 76 | Q93: 5.24 | R93: 17.67 | S93: 1.07 | T93: 0 | U93: 10.79 | V93: 0 | W93: 34.77 | Y93: 76 | Z93: 5.24 | AA93: 17.67 | AB93: 1.07 | AC93: 0 | AD93: 10.79 | AE93: 0 | AF93: 34.77 | AH93: 76 | AI93: 6.05 | AJ93: 21.07 | AK93: 1.07 | AL93: 0 | AM93: 10.79 | AO93: 38.98 | AQ93: 76 | AR93: 6.05 | AS93: 21.07 | AT93: 1.07 | AU93: 0 | AV93: 10.79 | AX93: 38.98 | AZ93: T05R09 | BA93: 93
A94: T05 | B94: R10 | C94: Zone 10 | D94: Pass | E94: 36.67 | F94: 36.67 | G94: 0 | H94: Yes | I94: 41.15 | J94: 41.15 | K94: 41.15 | L94: 0 | M94: Yes | N94: T02R10 | O94: 4.48 | P94: 77 | Q94: 6.13 | R94: 18.71 | S94: 1.07 | T94: 0 | U94: 10.76 | V94: 0 | W94: 36.67 | Y94: 77 | Z94: 6.13 | AA94: 18.71 | AB94: 1.07 | AC94: 0 | AD94: 10.76 | AE94: 0 | AF94: 36.67 | AH94: 77 | AI94: 7.12 | AJ94: 22.2 | AK94: 1.07 | AL94: 0 | AM94: 10.76 | AO94: 41.15 | AQ94: 77 | AR94: 7.12 | AS94: 22.2 | AT94: 1.07 | AU94: 0 | AV94: 10.76 | AX94: 41.15 | AZ94: T05R10 | BA94: 94
A95: T05 | B95: R11 | C95: Zone 11 | D95: Pass | E95: 66.9 | F95: 66.9 | G95: 0 | H95: Yes | I95: 73.18 | J95: 73.18 | K95: 73.18 | L95: 0 | M95: Yes | N95: T02R11 | O95: 6.28 | P95: 78 | Q95: =IF(Q$3=0,"",INDEX(INDIRECT(Q$1),$P95,Q$3)) -> 18.08 | R95: 36.86 | S95: 1.11 | T95: 0 | U95: 10.85 | V95: 0 | W95: 66.9 | Y95: 78 | Z95: =IF(Z$3=0,"",INDEX(INDIRECT(Z$1),$Y95,Z$3)) -> 18.08 | AA95: 36.86 | AB95: 1.11 | AC95: 0 | AD95: 10.85 | AE95: 0 | AF95: 66.9 | AH95: 78 | AI95: =IF(AI$3=0,"",INDEX(INDIRECT(AI$1),$AH95,AI$3)) -> 19.61 | AJ95: 41.61 | AK95: 1.11 | AL95: 0 | AM95: 10.85 | AO95: 73.18 | AQ95: 78 | AR95: =IF(AR$3=0,"",INDEX(INDIRECT(AR$1),$AQ95,AR$3)) -> 19.61 | AS95: 41.61 | AT95: 1.11 | AU95: 0 | AV95: 10.85 | AX95: 73.18 | AZ95: T05R11 | BA95: 95
A96: T05 | B96: R12 | C96: Zone 12 | D96: Pass | E96: 45.83 | F96: 45.83 | G96: 0 | H96: Yes | I96: 50.8 | J96: 50.8 | K96: 50.8 | L96: 0 | M96: Yes | N96: T02R12 | O96: 4.97 | P96: 79 | Q96: 19.19 | R96: 14.44 | S96: 1.11 | T96: 0 | U96: 11.09 | V96: 0 | W96: 45.83 | Y96: 79 | Z96: 19.19 | AA96: 14.44 | AB96: 1.11 | AC96: 0 | AD96: 11.09 | AE96: 0 | AF96: 45.83 | AH96: 79 | AI96: 20.37 | AJ96: 18.23 | AK96: 1.11 | AL96: 0 | AM96: 11.09 | AO96: 50.8 | AQ96: 79 | AR96: 20.37 | AS96: 18.23 | AT96: 1.11 | AU96: 0 | AV96: 11.09 | AX96: 50.8 | AZ96: T05R12 | BA96: 96
A97: T05 | B97: R13 | C97: Zone 13 | D97: Pass | E97: 68.57 | F97: 68.57 | G97: 0 | H97: Yes | I97: 75.19 | J97: 75.19 | K97: 75.19 | L97: 0 | M97: Yes | N97: T02R13 | O97: 6.62 | P97: 80 | Q97: 16.94 | R97: 39.78 | S97: 1.11 | T97: 0 | U97: 10.74 | V97: 0 | W97: 68.57 | Y97: 80 | Z97: 16.94 | AA97: 39.78 | AB97: 1.11 | AC97: 0 | AD97: 10.74 | AE97: 0 | AF97: 68.57 | AH97: 80 | AI97: 17.95 | AJ97: 45.39 | AK97: 1.11 | AL97: 0 | AM97: 10.74 | AO97: 75.19 | AQ97: 80 | AR97: 17.95 | AS97: 45.39 | AT97: 1.11 | AU97: 0 | AV97: 10.74 | AX97: 75.19 | AZ97: T05R13 | BA97: 97
A98: T05 | B98: R14 | C98: Zone 14 | D98: Pass | E98: 61.98 | F98: 61.98 | G98: 0 | H98: Yes | I98: 69.35 | J98: 69.35 | K98: 69.35 | L98: 0 | M98: Yes | N98: T02R14 | O98: 7.37 | P98: 81 | Q98: 17.26 | R98: 32.67 | S98: 1.07 | T98: 0 | U98: 10.98 | V98: 0 | W98: 61.98 | Y98: 81 | Z98: 17.26 | AA98: 32.67 | AB98: 1.07 | AC98: 0 | AD98: 10.98 | AE98: 0 | AF98: 61.98 | AH98: 81 | AI98: 19.16 | AJ98: 38.14 | AK98: 1.07 | AL98: 0 | AM98: 10.98 | AO98: 69.35 | AQ98: 81 | AR98: 19.16 | AS98: 38.14 | AT98: 1.07 | AU98: 0 | AV98: 10.98 | AX98: 69.35 | AZ98: T05R14 | BA98: 98
A99: T05 | B99: R15 | C99: Zone 15 | D99: Pass | E99: 99.4 | F99: 99.4 | G99: 0 | H99: Yes | I99: 106.16 | J99: 106.16 | K99: 106.16 | L99: 0 | M99: Yes | N99: T02R15 | O99: 6.76 | P99: 82 | Q99: 1.08 | R99: 87.78 | S99: 1.07 | T99: 0 | U99: 9.47 | V99: 0 | W99: 99.4 | Y99: 82 | Z99: 1.08 | AA99: 87.78 | AB99: 1.07 | AC99: 0 | AD99: 9.47 | AE99: 0 | AF99: 99.4 | AH99: 82 | AI99: 1.48 | AJ99: 94.14 | AK99: 1.07 | AL99: 0 | AM99: 9.47 | AO99: 106.16 | AQ99: 82 | AR99: 1.48 | AS99: 94.14 | AT99: 1.07 | AU99: 0 | AV99: 9.47 | AX99: 106.16 | AZ99: T05R15 | BA99: 99
A100: T05 | B100: R16 | C100: Zone 16 | D100: Pass | E100: 58.96 | F100: 58.96 | G100: 0 | H100: Yes | I100: 63.57 | J100: 63.57 | K100: 63.57 | L100: 0 | M100: Yes | N100: T02R16 | O100: 4.61 | P100: 83 | Q100: 42.01 | R100: 3.67 | S100: 1.06 | T100: 0 | U100: 12.22 | V100: 0 | W100: 58.96 | Y100: 83 | Z100: 42.01 | AA100: 3.67 | AB100: 1.06 | AC100: 0 | AD100: 12.22 | AE100: 0 | AF100: 58.96 | AH100: 83 | AI100: 44.02 | AJ100: 6.27 | AK100: 1.06 | AL100: 0 | AM100: 12.22 | AO100: 63.57 | AQ100: 83 | AR100: 44.02 | AS100: 6.27 | AT100: 1.06 | AU100: 0 | AV100: 12.22 | AX100: 63.57 | AZ100: T05R16 | BA100: 100
A101: ="Result "&A84 -> Result T05 | D101: =IF(SoftwareType="Candidate","n/a",IF(COUNTIF(D85:D100,Pass)=16,Pass,Fail)) -> Pass | E101: =AVERAGE(E85:E100) -> 41.6125 | F101: =AVERAGE(F85:F100) -> 41.6125 | G101: 0 | I101: =AVERAGE(I85:I100) -> 45.47 | J101: =AVERAGE(J85:J100) -> 45.47 | K101: =AVERAGE(K85:K100) -> 45.47 | L101: 0 | M101: Min | N101: =MIN(L85:L100) -> 0 | O101: =AVERAGE(O85:O100) -> 3.8575 | P101: Ave | Q101: =AVERAGE(Q85:Q100) -> 12.773125 | R101: =AVERAGE(R85:R100) -> 16.66125 | S101: =AVERAGE(S85:S100) -> 1.093125 | U101: =AVERAGE(U85:U100) -> 11.085 | V101: =AVERAGE(V85:V100) -> 0 | W101: =AVERAGE(W85:W100) -> 41.6125 | Y101: Ave | Z101: =AVERAGE(Z85:Z100) -> 12.773125 | AA101: =AVERAGE(AA85:AA100) -> 16.66125 | AB101: =AVERAGE(AB85:AB100) -> 1.093125 | AC101: =AVERAGE(AC85:AC100) -> 0 | AD101: =AVERAGE(AD85:AD100) -> 11.085 | AF101: =AVERAGE(AF85:AF100) -> 41.6125 | AI101: =AVERAGE(AI85:AI100) -> 14.0325 | AJ101: =AVERAGE(AJ85:AJ100) -> 19.259375 | AK101: =AVERAGE(AK85:AK100) -> 1.093125 | AL101: =AVERAGE(AL85:AL100) -> 0 | AM101: =AVERAGE(AM85:AM100) -> 11.085 | AO101: =AVERAGE(AO85:AO100) -> 45.47 | AQ101: Ave | AR101: =AVERAGE(AR85:AR100) -> 14.0325 | AS101: =AVERAGE(AS85:AS100) -> 19.259375 | AT101: =AVERAGE(AT85:AT100) -> 1.093125 | AU101: =AVERAGE(AU85:AU100) -> 0 | AV101: =AVERAGE(AV85:AV100) -> 11.085 | AX101: =AVERAGE(AX85:AX100) -> 45.47
L102: Ave | M102: Max | N102: =MAX(L85:L100) -> 0 | Y102: % Diff | Z102: =(Z101-Q101)/Q101 -> 0 | AA102: =(AA101-R101)/R101 -> 0 | AB102: =(AB101-S101)/S101 -> 0 | AD102: =(AD101-U101)/U101 -> 0 | AF102: =(AF101-W101)/W101 -> 0
A103: T06 | B103: =VLOOKUP(A103,TestArray,2)&" in "&VLOOKUP(A103,TestArray,3)&" for Prototype "&VLOOKUP(A103,TestArray,4) -> Proposed Design in All Zones for Prototype P6960ft2 | I103: =VLOOKUP(A103,TestArray,21) -> Standard = T03 Standard for this test
A104: =A103 -> T06 | B104: R01 | C104: =VLOOKUP(A104,TestArray,4+RIGHT(B104,2)) -> Zone 01 | D104: =IF(AND(H104=Yes,M104=Yes),Pass,Fail) -> Pass | E104: =W104 -> 45.42 | F104: =AF104 -> 45.42 | G104: =(F104-E104)/E104 -> 0 | H104: =IF(AND((E104-Tolerance<=F104),(E104+Tolerance>=F104)),Yes,No) -> Yes | I104: =INDIRECT("AO"&INDEX(StandardArray,MATCH($N104,StandardList,0),2)) -> 44.64 | J104: =AO104 -> 44.64 | K104: =AX104 -> 44.64 | L104: =(K104-I104)/I104 -> 0 | M104: =IF(AND((I104-Tolerance<=K104),(I104+Tolerance>=K104),(J104-Tolerance<=K104),(J104+Tolerance>=K104)),Yes,No) -> Yes | N104: =N47 -> T03R01 | O104: =K104-F104 -> -0.78 | P104: =MATCH($A104&$B104,INDIRECT(P$2),0) -> 84 | Q104: =IF(Q$3=0,"",INDEX(INDIRECT(Q$1),$P104,Q$3)) -> 15.89 | R104: 0 | S104: 2.4 | T104: 0 | U104: 27.13 | V104: 0 | W104: =IF(TotalSum="No",INDEX(INDIRECT(W$1),$P104,W$3),SUM(Q104:V104)) -> 45.42 | Y104: =MATCH($A104&$B104,INDIRECT(Y$2),0) -> 84 | Z104: =IF(Z$3=0,"",INDEX(INDIRECT(Z$1),$Y104,Z$3)) -> 15.89 | AA104: 0 | AB104: 2.4 | AC104: 0 | AD104: 27.13 | AE104: 0 | AF104: =IF(TotalSum="No",INDEX(INDIRECT(AF$1),$Y104,AF$3),SUM(Z104:AE104)) -> 45.42 | AH104: =MATCH($A104&$B104,INDIRECT(AH$2),0) -> 84 | AI104: =IF(AI$3=0,"",INDEX(INDIRECT(AI$1),$AH104,AI$3)) -> 15.08 | AJ104: 0.03 | AK104: 2.4 | AL104: 0 | AM104: 27.13 | AO104: =IF(TotalSum="No",INDEX(INDIRECT(AO$1),$AH104,AO$3),SUM(AI104:AN104)) -> 44.64 | AQ104: =MATCH($A104&$B104,INDIRECT(AQ$2),0) -> 84 | AR104: =IF(AR$3=0,"",INDEX(INDIRECT(AR$1),$AQ104,AR$3)) -> 15.08 | AS104: 0.03 | AT104: 2.4 | AU104: 0 | AV104: 27.13 | AX104: =IF(TotalSum="No",INDEX(INDIRECT(AX$1),$AQ104,AX$3),SUM(AR104:AW104)) -> 44.64 | AZ104: =A104&B104 -> T06R01 | BA104: =ROW(AZ104) -> 104
A105: =A104 -> T06 | B105: R02 | C105: Zone 02 | D105: Pass | E105: 44.48 | F105: 44.48 | G105: 0 | H105: Yes | I105: 46.61 | J105: 46.61 | K105: 46.61 | L105: 0 | M105: Yes | N105: T03R02 | O105: =K105-F105 -> 2.13 | P105: 85 | Q105: 11.38 | R105: 4.88 | S105: 2.4 | T105: 0 | U105: 25.82 | V105: 0 | W105: 44.48 | Y105: 85 | Z105: 11.38 | AA105: 4.88 | AB105: 2.4 | AC105: 0 | AD105: 25.82 | AE105: 0 | AF105: 44.48 | AH105: 85 | AI105: 11.03 | AJ105: 7.36 | AK105: 2.4 | AL105: 0 | AM105: 25.82 | AO105: 46.61 | AQ105: 85 | AR105: 11.03 | AS105: 7.36 | AT105: 2.4 | AU105: 0 | AV105: 25.82 | AX105: 46.61 | AZ105: T06R02 | BA105: 105
A106: T06 | B106: R03 | C106: Zone 03 | D106: Pass | E106: 33.66 | F106: 33.66 | G106: 0 | H106: Yes | I106: 34.74 | J106: 34.74 | K106: 34.74 | L106: 0 | M106: Yes | N106: T03R03 | O106: 1.08 | P106: 86 | Q106: 4.69 | R106: 0.74 | S106: 2.4 | T106: 0 | U106: 25.83 | V106: 0 | W106: 33.66 | Y106: 86 | Z106: 4.69 | AA106: 0.74 | AB106: 2.4 | AC106: 0 | AD106: 25.83 | AE106: 0 | AF106: 33.66 | AH106: 86 | AI106: 4.73 | AJ106: 1.78 | AK106: 2.4 | AL106: 0 | AM106: 25.83 | AO106: 34.74 | AQ106: 86 | AR106: 4.73 | AS106: 1.78 | AT106: 2.4 | AU106: 0 | AV106: 25.83 | AX106: 34.74 | AZ106: T06R03 | BA106: 106
A107: T06 | B107: R04 | C107: Zone 04 | D107: Pass | E107: 40.98 | F107: 40.98 | G107: 0 | H107: Yes | I107: 44.25 | J107: 44.25 | K107: 44.25 | L107: 0 | M107: Yes | N107: T03R04 | O107: 3.27 | P107: 87 | Q107: 7.51 | R107: 5.77 | S107: 2.4 | T107: 0 | U107: 25.3 | V107: 0 | W107: 40.98 | Y107: 87 | Z107: 7.51 | AA107: 5.77 | AB107: 2.4 | AC107: 0 | AD107: 25.3 | AE107: 0 | AF107: 40.98 | AH107: 87 | AI107: 7.31 | AJ107: 9.24 | AK107: 2.4 | AL107: 0 | AM107: 25.3 | AO107: 44.25 | AQ107: 87 | AR107: 7.31 | AS107: 9.24 | AT107: 2.4 | AU107: 0 | AV107: 25.3 | AX107: 44.25 | AZ107: T06R04 | BA107: 107
A108: T06 | B108: R05 | C108: Zone 05 | D108: Pass | E108: 32.54 | F108: 32.54 | G108: 0 | H108: Yes | I108: 33.33 | J108: 33.33 | K108: 33.33 | L108: 0 | M108: Yes | N108: T03R05 | O108: 0.79 | P108: 88 | Q108: 3.75 | R108: 0.29 | S108: 2.4 | T108: 0 | U108: 26.1 | V108: 0 | W108: 32.54 | Y108: 88 | Z108: 3.75 | AA108: 0.29 | AB108: 2.4 | AC108: 0 | AD108: 26.1 | AE108: 0 | AF108: 32.54 | AH108: 88 | AI108: 3.41 | AJ108: 1.42 | AK108: 2.4 | AL108: 0 | AM108: 26.1 | AO108: 33.33 | AQ108: 88 | AR108: 3.41 | AS108: 1.42 | AT108: 2.4 | AU108: 0 | AV108: 26.1 | AX108: 33.33 | AZ108: T06R05 | BA108: 108
A109: T06 | B109: R06 | C109: Zone 06 | D109: Pass | E109: 32.78 | F109: 32.78 | G109: 0 | H109: Yes | I109: 34.66 | J109: 34.66 | K109: 34.66 | L109: 0 | M109: Yes | N109: T03R06 | O109: 1.88 | P109: 89 | Q109: 1.26 | R109: 4.31 | S109: 2.32 | T109: 0 | U109: 24.89 | V109: 0 | W109: 32.78 | Y109: 89 | Z109: 1.26 | AA109: 4.31 | AB109: 2.32 | AC109: 0 | AD109: 24.89 | AE109: 0 | AF109: 32.78 | AH109: 89 | AI109: 1.17 | AJ109: 6.28 | AK109: 2.32 | AL109: 0 | AM109: 24.89 | AO109: 34.66 | AQ109: 89 | AR109: 1.17 | AS109: 6.28 | AT109: 2.32 | AU109: 0 | AV109: 24.89 | AX109: 34.66 | AZ109: T06R06 | BA109: 109
A110: T06 | B110: R07 | C110: Zone 07 | D110: Pass | E110: 29.66 | F110: 29.66 | G110: 0 | H110: Yes | I110: 31.66 | J110: 31.66 | K110: 31.66 | L110: 0 | M110: Yes | N110: T03R07 | O110: 2 | P110: 90 | Q110: 0.09 | R110: 2.92 | S110: 2.41 | T110: 0 | U110: 24.24 | V110: 0 | W110: 29.66 | Y110: 90 | Z110: 0.09 | AA110: 2.92 | AB110: 2.41 | AC110: 0 | AD110: 24.24 | AE110: 0 | AF110: 29.66 | AH110: 90 | AI110: 0.03 | AJ110: 4.98 | AK110: 2.41 | AL110: 0 | AM110: 24.24 | AO110: 31.66 | AQ110: 90 | AR110: 0.03 | AS110: 4.98 | AT110: 2.41 | AU110: 0 | AV110: 24.24 | AX110: 31.66 | AZ110: T06R07 | BA110: 110
A111: T06 | B111: R08 | C111: Zone 08 | D111: Pass | E111: 42.19 | F111: 42.19 | G111: 0 | H111: Yes | I111: 45.47 | J111: 45.47 | K111: 45.47 | L111: 0 | M111: Yes | N111: T03R08 | O111: 3.28 | P111: 91 | Q111: 0.9 | R111: 14.54 | S111: 2.32 | T111: 0 | U111: 24.43 | V111: 0 | W111: 42.19 | Y111: 91 | Z111: 0.9 | AA111: 14.54 | AB111: 2.32 | AC111: 0 | AD111: 24.43 | AE111: 0 | AF111: 42.19 | AH111: 91 | AI111: 0.85 | AJ111: 17.87 | AK111: 2.32 | AL111: 0 | AM111: 24.43 | AO111: 45.47 | AQ111: 91 | AR111: 0.85 | AS111: 17.87 | AT111: 2.32 | AU111: 0 | AV111: 24.43 | AX111: 45.47 | AZ111: T06R08 | BA111: 111
A112: T06 | B112: R09 | C112: Zone 09 | D112: Pass | E112: 51.32 | F112: 51.32 | G112: 0 | H112: Yes | I112: 56.24 | J112: 56.24 | K112: 56.24 | L112: 0 | M112: Yes | N112: T03R09 | O112: 4.92 | P112: 92 | Q112: 1.89 | R112: 22.69 | S112: 2.3 | T112: 0 | U112: 24.44 | V112: 0 | W112: 51.32 | Y112: 92 | Z112: 1.89 | AA112: 22.69 | AB112: 2.3 | AC112: 0 | AD112: 24.44 | AE112: 0 | AF112: 51.32 | AH112: 92 | AI112: 1.74 | AJ112: 27.76 | AK112: 2.3 | AL112: 0 | AM112: 24.44 | AO112: 56.24 | AQ112: 92 | AR112: 1.74 | AS112: 27.76 | AT112: 2.3 | AU112: 0 | AV112: 24.44 | AX112: 56.24 | AZ112: T06R09 | BA112: 112
A113: T06 | B113: R10 | C113: Zone 10 | D113: Pass | E113: 52.73 | F113: 52.73 | G113: 0 | H113: Yes | I113: 57.75 | J113: 57.75 | K113: 57.75 | L113: 0 | M113: Yes | N113: T03R10 | O113: 5.02 | P113: 93 | Q113: 2.4 | R113: 23.66 | S113: 2.3 | T113: 0 | U113: 24.37 | V113: 0 | W113: 52.73 | Y113: 93 | Z113: 2.4 | AA113: 23.66 | AB113: 2.3 | AC113: 0 | AD113: 24.37 | AE113: 0 | AF113: 52.73 | AH113: 93 | AI113: 2.25 | AJ113: 28.83 | AK113: 2.3 | AL113: 0 | AM113: 24.37 | AO113: 57.75 | AQ113: 93 | AR113: 2.25 | AS113: 28.83 | AT113: 2.3 | AU113: 0 | AV113: 24.37 | AX113: 57.75 | AZ113: T06R10 | BA113: 113
A114: T06 | B114: R11 | C114: Zone 11 | D114: Pass | E114: 76.76 | F114: 76.76 | G114: 0 | H114: Yes | I114: 82.57 | J114: 82.57 | K114: 82.57 | L114: 0 | M114: Yes | N114: T03R11 | O114: 5.81 | P114: 94 | Q114: =IF(Q$3=0,"",INDEX(INDIRECT(Q$1),$P114,Q$3)) -> 11.27 | R114: 38.54 | S114: 2.4 | T114: 0 | U114: 24.55 | V114: 0 | W114: 76.76 | Y114: 94 | Z114: =IF(Z$3=0,"",INDEX(INDIRECT(Z$1),$Y114,Z$3)) -> 11.27 | AA114: 38.54 | AB114: 2.4 | AC114: 0 | AD114: 24.55 | AE114: 0 | AF114: 76.76 | AH114: 94 | AI114: =IF(AI$3=0,"",INDEX(INDIRECT(AI$1),$AH114,AI$3)) -> 11.12 | AJ114: 44.5 | AK114: 2.4 | AL114: 0 | AM114: 24.55 | AO114: 82.57 | AQ114: 94 | AR114: =IF(AR$3=0,"",INDEX(INDIRECT(AR$1),$AQ114,AR$3)) -> 11.12 | AS114: 44.5 | AT114: 2.4 | AU114: 0 | AV114: 24.55 | AX114: 82.57 | AZ114: T06R11 | BA114: 114
A115: T06 | B115: R12 | C115: Zone 12 | D115: Pass | E115: 59.96 | F115: 59.96 | G115: 0 | H115: Yes | I115: 65.23 | J115: 65.23 | K115: 65.23 | L115: 0 | M115: Yes | N115: T03R12 | O115: 5.27 | P115: 95 | Q115: 11.09 | R115: 21.44 | S115: 2.4 | T115: 0 | U115: 25.03 | V115: 0 | W115: 59.96 | Y115: 95 | Z115: 11.09 | AA115: 21.44 | AB115: 2.4 | AC115: 0 | AD115: 25.03 | AE115: 0 | AF115: 59.96 | AH115: 95 | AI115: 10.91 | AJ115: 26.89 | AK115: 2.4 | AL115: 0 | AM115: 25.03 | AO115: 65.23 | AQ115: 95 | AR115: 10.91 | AS115: 26.89 | AT115: 2.4 | AU115: 0 | AV115: 25.03 | AX115: 65.23 | AZ115: T06R12 | BA115: 115
A116: T06 | B116: R13 | C116: Zone 13 | D116: Pass | E116: 77.45 | F116: 77.45 | G116: 0 | H116: Yes | I116: 84.05 | J116: 84.05 | K116: 84.05 | L116: 0 | M116: Yes | N116: T03R13 | O116: 6.6 | P116: 96 | Q116: 9.7 | R116: 41.02 | S116: 2.4 | T116: 0 | U116: 24.33 | V116: 0 | W116: 77.45 | Y116: 96 | Z116: 9.7 | AA116: 41.02 | AB116: 2.4 | AC116: 0 | AD116: 24.33 | AE116: 0 | AF116: 77.45 | AH116: 96 | AI116: 9.57 | AJ116: 47.75 | AK116: 2.4 | AL116: 0 | AM116: 24.33 | AO116: 84.05 | AQ116: 96 | AR116: 9.57 | AS116: 47.75 | AT116: 2.4 | AU116: 0 | AV116: 24.33 | AX116: 84.05 | AZ116: T06R13 | BA116: 116
A117: T06 | B117: R14 | C117: Zone 14 | D117: Pass | E117: 72.35 | F117: 72.35 | G117: 0 | H117: Yes | I117: 78.4 | J117: 78.4 | K117: 78.4 | L117: 0 | M117: Yes | N117: T03R14 | O117: 6.05 | P117: 97 | Q117: 11.23 | R117: 33.99 | S117: 2.3 | T117: 0 | U117: 24.83 | V117: 0 | W117: 72.35 | Y117: 97 | Z117: 11.23 | AA117: 33.99 | AB117: 2.3 | AC117: 0 | AD117: 24.83 | AE117: 0 | AF117: 72.35 | AH117: 97 | AI117: 10.78 | AJ117: 40.49 | AK117: 2.3 | AL117: 0 | AM117: 24.83 | AO117: 78.4 | AQ117: 97 | AR117: 10.78 | AS117: 40.49 | AT117: 2.3 | AU117: 0 | AV117: 24.83 | AX117: 78.4 | AZ117: T06R14 | BA117: 117
A118: T06 | B118: R15 | C118: Zone 15 | D118: Pass | E118: 110.58 | F118: 110.58 | G118: 0 | H118: Yes | I118: 118.93 | J118: 118.93 | K118: 118.93 | L118: 0 | M118: Yes | N118: T03R15 | O118: 8.35 | P118: 98 | Q118: 0.17 | R118: 86.34 | S118: 2.3 | T118: 0 | U118: 21.77 | V118: 0 | W118: 110.58 | Y118: 98 | Z118: 0.17 | AA118: 86.34 | AB118: 2.3 | AC118: 0 | AD118: 21.77 | AE118: 0 | AF118: 110.58 | AH118: 98 | AI118: 0.16 | AJ118: 94.7 | AK118: 2.3 | AL118: 0 | AM118: 21.77 | AO118: 118.93 | AQ118: 98 | AR118: 0.16 | AS118: 94.7 | AT118: 2.3 | AU118: 0 | AV118: 21.77 | AX118: 118.93 | AZ118: T06R15 | BA118: 118
A119: T06 | B119: R16 | C119: Zone 16 | D119: Pass | E119: 66.55 | F119: 66.55 | G119: 0 | H119: Yes | I119: 69.5 | J119: 69.5 | K119: 69.5 | L119: 0 | M119: Yes | N119: T03R16 | O119: 2.95 | P119: 99 | Q119: 30.78 | R119: 6.13 | S119: 2.3 | T119: 0 | U119: 27.34 | V119: 0 | W119: 66.55 | Y119: 99 | Z119: 30.78 | AA119: 6.13 | AB119: 2.3 | AC119: 0 | AD119: 27.34 | AE119: 0 | AF119: 66.55 | AH119: 99 | AI119: 29.99 | AJ119: 9.87 | AK119: 2.3 | AL119: 0 | AM119: 27.34 | AO119: 69.5 | AQ119: 99 | AR119: 29.99 | AS119: 9.87 | AT119: 2.3 | AU119: 0 | AV119: 27.34 | AX119: 69.5 | AZ119: T06R16 | BA119: 119
A120: ="Result "&A103 -> Result T06 | D120: =IF(SoftwareType="Candidate","n/a",IF(COUNTIF(D104:D119,Pass)=16,Pass,Fail)) -> Pass | E120: =AVERAGE(E104:E119) -> 54.338125 | F120: =AVERAGE(F104:F119) -> 54.338125 | G120: 0 | I120: =AVERAGE(I104:I119) -> 58.001875 | J120: =AVERAGE(J104:J119) -> 58.001875 | K120: =AVERAGE(K104:K119) -> 58.001875 | L120: 0 | M120: Min | N120: =MIN(L104:L119) -> 0 | O120: =AVERAGE(O104:O119) -> 3.66375 | P120: Ave | Q120: =AVERAGE(Q104:Q119) -> 7.75 | R120: =AVERAGE(R104:R119) -> 19.20375 | S120: =AVERAGE(S104:S119) -> 2.359375 | U120: =AVERAGE(U104:U119) -> 25.025 | V120: =AVERAGE(V104:V119) -> 0 | W120: =AVERAGE(W104:W119) -> 54.338125 | Y120: Ave | Z120: =AVERAGE(Z104:Z119) -> 7.75 | AA120: =AVERAGE(AA104:AA119) -> 19.20375 | AB120: =AVERAGE(AB104:AB119) -> 2.359375 | AC120: =AVERAGE(AC104:AC119) -> 0 | AD120: =AVERAGE(AD104:AD119) -> 25.025 | AF120: =AVERAGE(AF104:AF119) -> 54.338125 | AI120: =AVERAGE(AI104:AI119) -> 7.508125 | AJ120: =AVERAGE(AJ104:AJ119) -> 23.109375 | AK120: =AVERAGE(AK104:AK119) -> 2.359375 | AL120: =AVERAGE(AL104:AL119) -> 0 | AM120: =AVERAGE(AM104:AM119) -> 25.025 | AO120: =AVERAGE(AO104:AO119) -> 58.001875 | AQ120: Ave | AR120: =AVERAGE(AR104:AR119) -> 7.508125 | AS120: =AVERAGE(AS104:AS119) -> 23.109375 | AT120: =AVERAGE(AT104:AT119) -> 2.359375 | AU120: =AVERAGE(AU104:AU119) -> 0 | AV120: =AVERAGE(AV104:AV119) -> 25.025 | AX120: =AVERAGE(AX104:AX119) -> 58.001875
C121: Page 4 of 7 | L121: Ave | M121: Max | N121: =MAX(L104:L119) -> 0 | Y121: % Diff | Z121: =(Z120-Q120)/Q120 -> 0 | AA121: =(AA120-R120)/R120 -> 0 | AB121: =(AB120-S120)/S120 -> 0 | AD121: =(AD120-U120)/U120 -> 0 | AF121: =(AF120-W120)/W120 -> 0
A122: T07 | B122: =VLOOKUP(A122,TestArray,2)&" in "&VLOOKUP(A122,TestArray,3)&" for Prototype "&VLOOKUP(A122,TestArray,4) -> Common Measures in Zone 12 for Prototype P2100ft2 | I122: =VLOOKUP(A122,TestArray,21) -> Standard = T01 Standard for this test
A123: =A122 -> T07 | B123: R01 | C123: =VLOOKUP(A123,TestArray,4+RIGHT(B123,2)) -> Package | D123: =IF(AND(H123=Yes,M123=Yes),Pass,Fail) -> Pass | E123: =W123 -> 46.88 | F123: =AF123 -> 46.88 | G123: =(F123-E123)/E123 -> 0 | H123: =IF(AND((E123-Tolerance<=F123),(E123+Tolerance>=F123)),Yes,No) -> Yes | I123: =INDIRECT("AO"&INDEX(StandardArray,MATCH($N123,StandardList,0),2)) -> 51.32 | J123: =AO123 -> 51.32 | K123: =AX123 -> 51.32 | L123: =(K123-I123)/I123 -> 0 | M123: =IF(AND((I123-Tolerance<=K123),(I123+Tolerance>=K123),(J123-Tolerance<=K123),(J123+Tolerance>=K123)),Yes,No) -> Yes | N123: T01R12 | O123: =K123-F123 -> 4.44 | P123: =MATCH($A123&$B123,INDIRECT(P$2),0) -> 100 | Q123: =IF(Q$3=0,"",INDEX(INDIRECT(Q$1),$P123,Q$3)) -> 20.99 | R123: 11.43 | S123: 1.13 | T123: 0 | U123: 13.33 | V123: 0 | W123: =IF(TotalSum="No",INDEX(INDIRECT(W$1),$P123,W$3),SUM(Q123:V123)) -> 46.88 | Y123: =MATCH($A123&$B123,INDIRECT(Y$2),0) -> 100 | Z123: =IF(Z$3=0,"",INDEX(INDIRECT(Z$1),$Y123,Z$3)) -> 20.99 | AA123: 11.43 | AB123: 1.13 | AC123: 0 | AD123: 13.33 | AE123: 0 | AF123: =IF(TotalSum="No",INDEX(INDIRECT(AF$1),$Y123,AF$3),SUM(Z123:AE123)) -> 46.88 | AH123: =MATCH($A123&$B123,INDIRECT(AH$2),0) -> 100 | AI123: =IF(AI$3=0,"",INDEX(INDIRECT(AI$1),$AH123,AI$3)) -> 22.22 | AJ123: 14.64 | AK123: 1.13 | AL123: 0 | AM123: 13.33 | AO123: =IF(TotalSum="No",INDEX(INDIRECT(AO$1),$AH123,AO$3),SUM(AI123:AN123)) -> 51.32 | AQ123: =MATCH($A123&$B123,INDIRECT(AQ$2),0) -> 100 | AR123: =IF(AR$3=0,"",INDEX(INDIRECT(AR$1),$AQ123,AR$3)) -> 22.22 | AS123: 14.64 | AT123: 1.13 | AU123: 0 | AV123: 13.33 | AX123: =IF(TotalSum="No",INDEX(INDIRECT(AX$1),$AQ123,AX$3),SUM(AR123:AW123)) -> 51.32 | AZ123: =A123&B123 -> T07R01 | BA123: =ROW(AZ123) -> 123
A124: =A123 -> T07 | B124: R02 | C124: Fenestration U 0.40/S 0.40 | D124: Pass | E124: 52.1 | F124: 52.1 | G124: 0 | H124: Yes | I124: 51.32 | J124: 51.32 | K124: 51.32 | L124: 0 | M124: Yes | N124: =N123 -> T01R12 | O124: -0.78 | P124: 101 | Q124: 19.36 | R124: 18.28 | S124: 1.13 | T124: 0 | U124: 13.33 | V124: 0 | W124: 52.1 | Y124: 101 | Z124: 19.36 | AA124: 18.28 | AB124: 1.13 | AC124: 0 | AD124: 13.33 | AE124: 0 | AF124: 52.1 | AH124: 101 | AI124: 22.22 | AJ124: 14.64 | AK124: 1.13 | AL124: 0 | AM124: 13.33 | AO124: 51.32 | AQ124: 101 | AR124: 22.22 | AS124: 14.64 | AT124: 1.13 | AU124: 0 | AV124: 13.33 | AX124: 51.32 | AZ124: T07R02 | BA124: 124
A125: T07 | B125: R03 | C125: Wall R13 | D125: Pass | E125: 47.6 | F125: 47.6 | G125: 0 | H125: Yes | I125: 51.32 | J125: 51.32 | K125: 51.32 | L125: 0 | M125: Yes | N125: =N124 -> T01R12 | O125: 3.72 | P125: 102 | Q125: 21.42 | R125: 11.72 | S125: 1.13 | T125: 0 | U125: 13.33 | V125: 0 | W125: 47.6 | Y125: 102 | Z125: 21.42 | AA125: 11.72 | AB125: 1.13 | AC125: 0 | AD125: 13.33 | AE125: 0 | AF125: 47.6 | AH125: 102 | AI125: 22.22 | AJ125: 14.64 | AK125: 1.13 | AL125: 0 | AM125: 13.33 | AO125: 51.32 | AQ125: 102 | AR125: 22.22 | AS125: 14.64 | AT125: 1.13 | AU125: 0 | AV125: 13.33 | AX125: 51.32 | AZ125: T07R03 | BA125: 125
A126: T07 | B126: R04 | C126: Ceiling R49 | D126: Pass | E126: 45.78 | F126: 45.78 | G126: 0 | H126: Yes | I126: 51.32 | J126: 51.32 | K126: 51.32 | L126: 0 | M126: Yes | N126: T01R12 | O126: 5.54 | P126: 103 | Q126: 20.54 | R126: 10.78 | S126: 1.13 | T126: 0 | U126: 13.33 | V126: 0 | W126: 45.78 | Y126: 103 | Z126: 20.54 | AA126: 10.78 | AB126: 1.13 | AC126: 0 | AD126: 13.33 | AE126: 0 | AF126: 45.78 | AH126: 103 | AI126: 22.22 | AJ126: 14.64 | AK126: 1.13 | AL126: 0 | AM126: 13.33 | AO126: 51.32 | AQ126: 103 | AR126: 22.22 | AS126: 14.64 | AT126: 1.13 | AU126: 0 | AV126: 13.33 | AX126: 51.32 | AZ126: T07R04 | BA126: 126
A127: T07 | B127: R05 | C127: Furnace AFUE 92 | D127: Pass | E127: 43.96 | F127: 43.96 | G127: 0 | H127: Yes | I127: 51.32 | J127: 51.32 | K127: 51.32 | L127: 0 | M127: Yes | N127: T01R12 | O127: 7.36 | P127: 104 | Q127: 18.07 | R127: 11.43 | S127: 1.13 | T127: 0 | U127: 13.33 | V127: 0 | W127: 43.96 | Y127: 104 | Z127: 18.07 | AA127: 11.43 | AB127: 1.13 | AC127: 0 | AD127: 13.33 | AE127: 0 | AF127: 43.96 | AH127: 104 | AI127: 22.22 | AJ127: 14.64 | AK127: 1.13 | AL127: 0 | AM127: 13.33 | AO127: 51.32 | AQ127: 104 | AR127: 22.22 | AS127: 14.64 | AT127: 1.13 | AU127: 0 | AV127: 13.33 | AX127: 51.32 | AZ127: T07R05 | BA127: 127
A128: T07 | B128: R06 | C128: Air Conditioner SEER 16/EER 14 | D128: Pass | E128: 45.25 | F128: 45.25 | G128: 0 | H128: Yes | I128: 51.32 | J128: 51.32 | K128: 51.32 | L128: 0 | M128: Yes | N128: T01R12 | O128: 6.07 | P128: 105 | Q128: 20.99 | R128: 9.8 | S128: 1.13 | T128: 0 | U128: 13.33 | V128: 0 | W128: 45.25 | Y128: 105 | Z128: 20.99 | AA128: 9.8 | AB128: 1.13 | AC128: 0 | AD128: 13.33 | AE128: 0 | AF128: 45.25 | AH128: 105 | AI128: 22.22 | AJ128: 14.64 | AK128: 1.13 | AL128: 0 | AM128: 13.33 | AO128: 51.32 | AQ128: 105 | AR128: 22.22 | AS128: 14.64 | AT128: 1.13 | AU128: 0 | AV128: 13.33 | AX128: 51.32 | AZ128: T07R06 | BA128: 128
A129: T07 | B129: R07 | C129: No Cool Vent | D129: Pass | E129: 51.1 | F129: 51.1 | G129: 0 | H129: Yes | I129: 51.32 | J129: 51.32 | K129: 51.32 | L129: 0 | M129: Yes | N129: T01R12 | O129: 0.22 | P129: 106 | Q129: 20.92 | R129: 15.72 | S129: 1.13 | T129: 0 | U129: 13.33 | V129: 0 | W129: 51.1 | Y129: 106 | Z129: 20.92 | AA129: 15.72 | AB129: 1.13 | AC129: 0 | AD129: 13.33 | AE129: 0 | AF129: 51.1 | AH129: 106 | AI129: 22.22 | AJ129: 14.64 | AK129: 1.13 | AL129: 0 | AM129: 13.33 | AO129: 51.32 | AQ129: 106 | AR129: 22.22 | AS129: 14.64 | AT129: 1.13 | AU129: 0 | AV129: 13.33 | AX129: 51.32 | AZ129: T07R07 | BA129: 129
A130: T07 | B130: R08 | C130: Ducts 2% Leakage | D130: Pass | E130: 45.66 | F130: 45.66 | G130: 0 | H130: Yes | I130: 51.32 | J130: 51.32 | K130: 51.32 | L130: 0 | M130: Yes | N130: T01R12 | O130: 5.66 | P130: 107 | Q130: 20.27 | R130: 10.93 | S130: 1.13 | T130: 0 | U130: 13.33 | V130: 0 | W130: 45.66 | Y130: 107 | Z130: 20.27 | AA130: 10.93 | AB130: 1.13 | AC130: 0 | AD130: 13.33 | AE130: 0 | AF130: 45.66 | AH130: 107 | AI130: 22.22 | AJ130: 14.64 | AK130: 1.13 | AL130: 0 | AM130: 13.33 | AO130: 51.32 | AQ130: 107 | AR130: 22.22 | AS130: 14.64 | AT130: 1.13 | AU130: 0 | AV130: 13.33 | AX130: 51.32 | AZ130: T07R08 | BA130: 130
A131: T07 | B131: R09 | C131: Insulation Construction Quality Improved | D131: Pass | E131: 42.18 | F131: 42.18 | G131: 0 | H131: Yes | I131: 51.32 | J131: 51.32 | K131: 51.32 | L131: 0 | M131: Yes | N131: T01R12 | O131: 9.14 | P131: 108 | Q131: 17.59 | R131: 10.13 | S131: 1.13 | T131: 0 | U131: 13.33 | V131: 0 | W131: 42.18 | Y131: 108 | Z131: 17.59 | AA131: 10.13 | AB131: 1.13 | AC131: 0 | AD131: 13.33 | AE131: 0 | AF131: 42.18 | AH131: 108 | AI131: 22.22 | AJ131: 14.64 | AK131: 1.13 | AL131: 0 | AM131: 13.33 | AO131: 51.32 | AQ131: 108 | AR131: 22.22 | AS131: 14.64 | AT131: 1.13 | AU131: 0 | AV131: 13.33 | AX131: 51.32 | AZ131: T07R09 | BA131: 131
A132: T07 | B132: R10 | C132: Air Leakage ACH50 2.0 | D132: Pass | E132: 45.69 | F132: 45.69 | G132: 0 | H132: Yes | I132: 51.32 | J132: 51.32 | K132: 51.32 | L132: 0 | M132: Yes | N132: T01R12 | O132: 5.63 | P132: 109 | Q132: 20.63 | R132: 10.6 | S132: 1.13 | T132: 0 | U132: 13.33 | V132: 0 | W132: 45.69 | Y132: 109 | Z132: 20.63 | AA132: 10.6 | AB132: 1.13 | AC132: 0 | AD132: 13.33 | AE132: 0 | AF132: 45.69 | AH132: 109 | AI132: 22.22 | AJ132: 14.64 | AK132: 1.13 | AL132: 0 | AM132: 13.33 | AO132: 51.32 | AQ132: 109 | AR132: 22.22 | AS132: 14.64 | AT132: 1.13 | AU132: 0 | AV132: 13.33 | AX132: 51.32 | AZ132: T07R10 | BA132: 132
A133: ="Result "&A122 -> Result T07 | D133: =IF(COUNTIF(D123:D132,Pass)=10,Pass,Fail) -> Pass | E133: =AVERAGE(E123:E132) -> 46.62 | F133: =AVERAGE(F123:F132) -> 46.62 | G133: 0 | I133: =AVERAGE(I123:I132) -> 51.32 | J133: =AVERAGE(J123:J132) -> 51.32 | K133: =AVERAGE(K123:K132) -> 51.32 | L133: 0 | M133: Min | N133: =MIN(L123:L132) -> 0 | O133: =AVERAGE(O123:O132) -> 4.7 | P133: Ave | Q133: =AVERAGE(Q123:Q132) -> 20.078 | R133: =AVERAGE(R123:R132) -> 12.082 | S133: =AVERAGE(S123:S132) -> 1.13 | U133: =AVERAGE(U123:U132) -> 13.33 | V133: =AVERAGE(V123:V132) -> 0 | W133: =AVERAGE(W123:W132) -> 46.62 | Y133: Ave | Z133: =AVERAGE(Z123:Z132) -> 20.078 | AA133: =AVERAGE(AA123:AA132) -> 12.082 | AB133: =AVERAGE(AB123:AB132) -> 1.13 | AC133: =AVERAGE(AC123:AC132) -> 0 | AD133: =AVERAGE(AD123:AD132) -> 13.33 | AF133: =AVERAGE(AF123:AF132) -> 46.62 | AI133: =AVERAGE(AI123:AI132) -> 22.22 | AJ133: =AVERAGE(AJ123:AJ132) -> 14.64 | AK133: =AVERAGE(AK123:AK132) -> 1.13 | AL133: =AVERAGE(AL123:AL132) -> 0 | AM133: =AVERAGE(AM123:AM132) -> 13.33 | AO133: =AVERAGE(AO123:AO132) -> 51.32 | AR133: =AVERAGE(AR123:AR132) -> 22.22 | AS133: =AVERAGE(AS123:AS132) -> 14.64 | AT133: =AVERAGE(AT123:AT132) -> 1.13 | AU133: =AVERAGE(AU123:AU132) -> 0 | AV133: =AVERAGE(AV123:AV132) -> 13.33 | AX133: =AVERAGE(AX123:AX132) -> 51.32
L134: Ave | M134: Max | N134: =MAX(L123:L132) -> 0 | Y134: % Diff | Z134: =(Z133-Q133)/Q133 -> 0 | AA134: =(AA133-R133)/R133 -> 0 | AB134: =(AB133-S133)/S133 -> 0 | AD134: =(AD133-U133)/U133 -> 0 | AF134: =(AF133-W133)/W133 -> 0
A135: T08 | B135: =VLOOKUP(A135,TestArray,2)&" in "&VLOOKUP(A135,TestArray,3)&" for Prototype "&VLOOKUP(A135,TestArray,4) -> Water Heating in Zone 12 for Prototype P2100ft2 | I135: =VLOOKUP(A135,TestArray,21) -> Standard = T01 Standard for this test
A136: =A135 -> T08 | B136: R01 | C136: =VLOOKUP(A136,TestArray,4+RIGHT(B136,2)) -> Package | D136: =IF(AND(H136=Yes,M136=Yes),Pass,Fail) -> Pass | E136: =W136 -> 46.88 | F136: =AF136 -> 46.88 | G136: =(F136-E136)/E136 -> 0 | H136: =IF(AND((E136-Tolerance<=F136),(E136+Tolerance>=F136)),Yes,No) -> Yes | I136: =INDIRECT("AO"&INDEX(StandardArray,MATCH($N136,StandardList,0),2)) -> 51.32 | J136: =AO136 -> 51.32 | K136: =AX136 -> 51.32 | L136: =(K136-I136)/I136 -> 0 | M136: =IF(AND((I136-Tolerance<=K136),(I136+Tolerance>=K136),(J136-Tolerance<=K136),(J136+Tolerance>=K136)),Yes,No) -> Yes | N136: T01R12 | O136: =K136-F136 -> 4.44 | P136: =MATCH($A136&$B136,INDIRECT(P$2),0) -> 110 | Q136: =IF(Q$3=0,"",INDEX(INDIRECT(Q$1),$P136,Q$3)) -> 20.99 | R136: 11.43 | S136: 1.13 | T136: 0 | U136: 13.33 | V136: 0 | W136: =IF(TotalSum="No",INDEX(INDIRECT(W$1),$P136,W$3),SUM(Q136:V136)) -> 46.88 | Y136: =MATCH($A136&$B136,INDIRECT(Y$2),0) -> 110 | Z136: =IF(Z$3=0,"",INDEX(INDIRECT(Z$1),$Y136,Z$3)) -> 20.99 | AA136: 11.43 | AB136: 1.13 | AC136: 0 | AD136: 13.33 | AE136: 0 | AF136: =IF(TotalSum="No",INDEX(INDIRECT(AF$1),$Y136,AF$3),SUM(Z136:AE136)) -> 46.88 | AH136: =MATCH($A136&$B136,INDIRECT(AH$2),0) -> 110 | AI136: =IF(AI$3=0,"",INDEX(INDIRECT(AI$1),$AH136,AI$3)) -> 22.22 | AJ136: 14.64 | AK136: 1.13 | AL136: 0 | AM136: 13.33 | AO136: =IF(TotalSum="No",INDEX(INDIRECT(AO$1),$AH136,AO$3),SUM(AI136:AN136)) -> 51.32 | AQ136: =MATCH($A136&$B136,INDIRECT(AQ$2),0) -> 110 | AR136: =IF(AR$3=0,"",INDEX(INDIRECT(AR$1),$AQ136,AR$3)) -> 22.22 | AS136: 14.64 | AT136: 1.13 | AU136: 0 | AV136: 13.33 | AX136: =IF(TotalSum="No",INDEX(INDIRECT(AX$1),$AQ136,AX$3),SUM(AR136:AW136)) -> 51.32 | AZ136: =A136&B136 -> T08R01 | BA136: =ROW(AZ136) -> 136
A137: =A136 -> T08 | B137: R02 | C137: Parallel Piping | D137: Pass | E137: 46.99 | F137: 46.99 | G137: 0 | H137: Yes | I137: 51.32 | J137: 51.32 | K137: 51.32 | L137: 0 | M137: Yes | N137: =N136 -> T01R12 | O137: 4.33 | P137: 111 | Q137: 20.99 | R137: 11.43 | S137: 1.13 | T137: 0 | U137: 13.44 | V137: 0 | W137: 46.99 | Y137: 111 | Z137: 20.99 | AA137: 11.43 | AB137: 1.13 | AC137: 0 | AD137: 13.44 | AE137: 0 | AF137: 46.99 | AH137: 111 | AI137: 22.22 | AJ137: 14.64 | AK137: 1.13 | AL137: 0 | AM137: 13.33 | AO137: 51.32 | AQ137: 111 | AR137: 22.22 | AS137: 14.64 | AT137: 1.13 | AU137: 0 | AV137: 13.33 | AX137: 51.32 | AZ137: T08R02 | BA137: 137
A138: T08 | B138: R03 | C138: Small Tankless EF 0.80/Input 195000/0 gal | D138: Pass | E138: 43.08 | F138: 43.08 | G138: 0 | H138: Yes | I138: 51.32 | J138: 51.32 | K138: 51.32 | L138: 0 | M138: Yes | N138: =N137 -> T01R12 | O138: 8.24 | P138: 112 | Q138: 20.99 | R138: 11.43 | S138: 1.13 | T138: 0 | U138: 9.53 | V138: 0 | W138: 43.08 | Y138: 112 | Z138: 20.99 | AA138: 11.43 | AB138: 1.13 | AC138: 0 | AD138: 9.53 | AE138: 0 | AF138: 43.08 | AH138: 112 | AI138: 22.22 | AJ138: 14.64 | AK138: 1.13 | AL138: 0 | AM138: 13.33 | AO138: 51.32 | AQ138: 112 | AR138: 22.22 | AS138: 14.64 | AT138: 1.13 | AU138: 0 | AV138: 13.33 | AX138: 51.32 | AZ138: T08R03 | BA138: 138
A139: T08 | B139: R04 | C139: Large Tankless RE 0.76/Input 300000/0 gal | D139: Pass | E139: 43.58 | F139: 43.58 | G139: 0 | H139: Yes | I139: 51.32 | J139: 51.32 | K139: 51.32 | L139: 0 | M139: Yes | N139: T01R12 | O139: 7.74 | P139: 113 | Q139: 20.99 | R139: 11.43 | S139: 1.13 | T139: 0 | U139: 10.03 | V139: 0 | W139: 43.58 | Y139: 113 | Z139: 20.99 | AA139: 11.43 | AB139: 1.13 | AC139: 0 | AD139: 10.03 | AE139: 0 | AF139: 43.58 | AH139: 113 | AI139: 22.22 | AJ139: 14.64 | AK139: 1.13 | AL139: 0 | AM139: 13.33 | AO139: 51.32 | AQ139: 113 | AR139: 22.22 | AS139: 14.64 | AT139: 1.13 | AU139: 0 | AV139: 13.33 | AX139: 51.32 | AZ139: T08R04 | BA139: 139
A140: T08 | B140: R05 | C140: Large Storage RE 0.77/Input 100000/75gal/Stby 0.01 | D140: Pass | E140: 45.54 | F140: 45.54 | G140: 0 | H140: Yes | I140: 51.32 | J140: 51.32 | K140: 51.32 | L140: 0 | M140: Yes | N140: T01R12 | O140: 5.78 | P140: 114 | Q140: 20.99 | R140: 11.43 | S140: 1.13 | T140: 0 | U140: 11.99 | V140: 0 | W140: 45.54 | Y140: 114 | Z140: 20.99 | AA140: 11.43 | AB140: 1.13 | AC140: 0 | AD140: 11.99 | AE140: 0 | AF140: 45.54 | AH140: 114 | AI140: 22.22 | AJ140: 14.64 | AK140: 1.13 | AL140: 0 | AM140: 13.33 | AO140: 51.32 | AQ140: 114 | AR140: 22.22 | AS140: 14.64 | AT140: 1.13 | AU140: 0 | AV140: 13.33 | AX140: 51.32 | AZ140: T08R05 | BA140: 140
A141: T08 | B141: R06 | C141: Large Storage RE 0.77/Input 100000/75gal/Stby 0.03 | D141: Pass | E141: 51.31 | F141: 51.31 | G141: 0 | H141: Yes | I141: 51.32 | J141: 51.32 | K141: 51.32 | L141: 0 | M141: Yes | N141: T01R12 | O141: 0.01 | P141: 115 | Q141: 20.99 | R141: 11.43 | S141: 1.13 | T141: 0 | U141: 17.76 | V141: 0 | W141: 51.31 | Y141: 115 | Z141: 20.99 | AA141: 11.43 | AB141: 1.13 | AC141: 0 | AD141: 17.76 | AE141: 0 | AF141: 51.31 | AH141: 115 | AI141: 22.22 | AJ141: 14.64 | AK141: 1.13 | AL141: 0 | AM141: 13.33 | AO141: 51.32 | AQ141: 115 | AR141: 22.22 | AS141: 14.64 | AT141: 1.13 | AU141: 0 | AV141: 13.33 | AX141: 51.32 | AZ141: T08R06 | BA141: 141
A142: T08 | B142: R07 | C142: Electric Resistance EF 0.92/Input 4500 | D142: Pass | E142: 64.4 | F142: 64.4 | G142: 0 | H142: Yes | I142: 51.32 | J142: 51.32 | K142: 51.32 | L142: 0 | M142: Yes | N142: T01R12 | O142: -13.08 | P142: 116 | Q142: 20.99 | R142: 11.43 | S142: 1.13 | T142: 0 | U142: 30.85 | V142: 0 | W142: 64.4 | Y142: 116 | Z142: 20.99 | AA142: 11.43 | AB142: 1.13 | AC142: 0 | AD142: 30.85 | AE142: 0 | AF142: 64.4 | AH142: 116 | AI142: 22.22 | AJ142: 14.64 | AK142: 1.13 | AL142: 0 | AM142: 13.33 | AO142: 51.32 | AQ142: 116 | AR142: 22.22 | AS142: 14.64 | AT142: 1.13 | AU142: 0 | AV142: 13.33 | AX142: 51.32 | AZ142: T08R07 | BA142: 142
A143: T08 | B143: R08 | C143: Heat Pump EF 2.4/Input 4500 | D143: Pass | E143: 48.61 | F143: 48.61 | G143: 0 | H143: Yes | I143: 51.32 | J143: 51.32 | K143: 51.32 | L143: 0 | M143: Yes | N143: T01R12 | O143: 2.71 | P143: 117 | Q143: 20.99 | R143: 11.43 | S143: 1.13 | T143: 0 | U143: 15.06 | V143: 0 | W143: 48.61 | Y143: 117 | Z143: 20.99 | AA143: 11.43 | AB143: 1.13 | AC143: 0 | AD143: 15.06 | AE143: 0 | AF143: 48.61 | AH143: 117 | AI143: 22.22 | AJ143: 14.64 | AK143: 1.13 | AL143: 0 | AM143: 13.33 | AO143: 51.32 | AQ143: 117 | AR143: 22.22 | AS143: 14.64 | AT143: 1.13 | AU143: 0 | AV143: 13.33 | AX143: 51.32 | AZ143: T08R08 | BA143: 143
A144: T08 | B144: R09 | C144: 2 Water Heaters using Multiplier | D144: Pass | E144: 51.06 | F144: 51.06 | G144: 0 | H144: Yes | I144: 51.32 | J144: 51.32 | K144: 51.32 | L144: 0 | M144: Yes | N144: T01R12 | O144: 0.26 | P144: 118 | Q144: 20.99 | R144: 11.43 | S144: 1.13 | T144: 0 | U144: 17.51 | V144: 0 | W144: 51.06 | Y144: 118 | Z144: 20.99 | AA144: 11.43 | AB144: 1.13 | AC144: 0 | AD144: 17.51 | AE144: 0 | AF144: 51.06 | AH144: 118 | AI144: 22.22 | AJ144: 14.64 | AK144: 1.13 | AL144: 0 | AM144: 13.33 | AO144: 51.32 | AQ144: 118 | AR144: 22.22 | AS144: 14.64 | AT144: 1.13 | AU144: 0 | AV144: 13.33 | AX144: 51.32 | AZ144: T08R09 | BA144: 144
A145: T08 | B145: R10 | C145: 2 Water Heaters Using 2 entries | D145: Pass | E145: 51.06 | F145: 51.06 | G145: 0 | H145: Yes | I145: 51.32 | J145: 51.32 | K145: 51.32 | L145: 0 | M145: Yes | N145: T01R12 | O145: 0.26 | P145: 119 | Q145: 20.99 | R145: 11.43 | S145: 1.13 | T145: 0 | U145: 17.51 | V145: 0 | W145: 51.06 | Y145: 119 | Z145: 20.99 | AA145: 11.43 | AB145: 1.13 | AC145: 0 | AD145: 17.51 | AE145: 0 | AF145: 51.06 | AH145: 119 | AI145: 22.22 | AJ145: 14.64 | AK145: 1.13 | AL145: 0 | AM145: 13.33 | AO145: 51.32 | AQ145: 119 | AR145: 22.22 | AS145: 14.64 | AT145: 1.13 | AU145: 0 | AV145: 13.33 | AX145: 51.32 | AZ145: T08R10 | BA145: 145
A146: ="Result "&A135 -> Result T08 | D146: =IF(COUNTIF(D136:D145,Pass)=10,Pass,Fail) -> Pass | E146: =AVERAGE(E136:E145) -> 49.251 | F146: =AVERAGE(F136:F145) -> 49.251 | G146: 0 | I146: =AVERAGE(I136:I145) -> 51.32 | J146: =AVERAGE(J136:J145) -> 51.32 | K146: =AVERAGE(K136:K145) -> 51.32 | L146: 0 | M146: Min | N146: =MIN(L136:L145) -> 0 | O146: =AVERAGE(O136:O145) -> 2.069 | P146: Ave | Q146: =AVERAGE(Q136:Q145) -> 20.99 | R146: =AVERAGE(R136:R145) -> 11.43 | S146: =AVERAGE(S136:S145) -> 1.13 | U146: =AVERAGE(U136:U145) -> 15.701 | V146: =AVERAGE(V136:V145) -> 0 | W146: =AVERAGE(W136:W145) -> 49.251 | Y146: Ave | Z146: =AVERAGE(Z136:Z145) -> 20.99 | AA146: =AVERAGE(AA136:AA145) -> 11.43 | AB146: =AVERAGE(AB136:AB145) -> 1.13 | AC146: =AVERAGE(AC136:AC145) -> 0 | AD146: =AVERAGE(AD136:AD145) -> 15.701 | AF146: =AVERAGE(AF136:AF145) -> 49.251 | AI146: =AVERAGE(AI136:AI145) -> 22.22 | AJ146: =AVERAGE(AJ136:AJ145) -> 14.64 | AK146: =AVERAGE(AK136:AK145) -> 1.13 | AL146: =AVERAGE(AL136:AL145) -> 0 | AM146: =AVERAGE(AM136:AM145) -> 13.33 | AO146: =AVERAGE(AO136:AO145) -> 51.32 | AR146: =AVERAGE(AR136:AR145) -> 22.22 | AS146: =AVERAGE(AS136:AS145) -> 14.64 | AT146: =AVERAGE(AT136:AT145) -> 1.13 | AU146: =AVERAGE(AU136:AU145) -> 0 | AV146: =AVERAGE(AV136:AV145) -> 13.33 | AX146: =AVERAGE(AX136:AX145) -> 51.32
L147: Ave | M147: Max | N147: =MAX(L136:L145) -> 0 | Y147: % Diff | Z147: =(Z146-Q146)/Q146 -> 0 | AA147: =(AA146-R146)/R146 -> 0 | AB147: =(AB146-S146)/S146 -> 0 | AD147: =(AD146-U146)/U146 -> 0 | AF147: =(AF146-W146)/W146 -> 0
A148: T09 | B148: =VLOOKUP(A148,TestArray,2)&" in "&VLOOKUP(A148,TestArray,3)&" for Prototype "&VLOOKUP(A148,TestArray,4) -> Multiple Orientation in Zone 12 for Prototype S2100ft2/P2100ft2 | I148: =VLOOKUP(A148,TestArray,21) -> Standard = T01 Standard for this test
A149: =A148 -> T09 | B149: R01 | C149: =VLOOKUP(A149,TestArray,4+RIGHT(B149,2)) -> Single Standard Front 45 | D149: =IF(SoftwareType="Candidate","n/a",IF(AND(H149=Yes,M149=Yes),Pass,Fail)) -> Pass | E149: =W149 -> 52.75 | F149: =AF149 -> 52.75 | G149: =(F149-E149)/E149 -> 0 | H149: =IF(AND((E149-Tolerance<=F149),(E149+Tolerance>=F149)),Yes,No) -> Yes | I149: =INDIRECT("AO"&INDEX(StandardArray,MATCH($N149,StandardList,0),2)) -> 51.32 | J149: =AO149 -> 51.32 | K149: =AX149 -> 51.32 | L149: =(K149-I149)/I149 -> 0 | M149: =IF(AND((I149-Tolerance<=K149),(I149+Tolerance>=K149),(J149-Tolerance<=K149),(J149+Tolerance>=K149)),Yes,No) -> Yes | N149: T01R12 | O149: =K149-F149 -> -1.43 | P149: =MATCH($A149&$B149,INDIRECT(P$2),0) -> 120 | Q149: =IF(Q$3=0,"",INDEX(INDIRECT(Q$1),$P149,Q$3)) -> 22.45 | R149: 15.84 | S149: 1.13 | T149: 0 | U149: 13.33 | V149: 0 | W149: =IF(TotalSum="No",INDEX(INDIRECT(W$1),$P149,W$3),SUM(Q149:V149)) -> 52.75 | Y149: =MATCH($A149&$B149,INDIRECT(Y$2),0) -> 120 | Z149: =IF(Z$3=0,"",INDEX(INDIRECT(Z$1),$Y149,Z$3)) -> 22.45 | AA149: 15.84 | AB149: 1.13 | AC149: 0 | AD149: 13.33 | AE149: 0 | AF149: =IF(TotalSum="No",INDEX(INDIRECT(AF$1),$Y149,AF$3),SUM(Z149:AE149)) -> 52.75 | AH149: =MATCH($A149&$B149,INDIRECT(AH$2),0) -> 120 | AI149: =IF(AI$3=0,"",INDEX(INDIRECT(AI$1),$AH149,AI$3)) -> 22.22 | AJ149: 14.64 | AK149: 1.13 | AL149: 0 | AM149: 13.33 | AO149: =IF(TotalSum="No",INDEX(INDIRECT(AO$1),$AH149,AO$3),SUM(AI149:AN149)) -> 51.32 | AQ149: =MATCH($A149&$B149,INDIRECT(AQ$2),0) -> 120 | AR149: =IF(AR$3=0,"",INDEX(INDIRECT(AR$1),$AQ149,AR$3)) -> 22.22 | AS149: 14.64 | AT149: 1.13 | AU149: 0 | AV149: 13.33 | AX149: =IF(TotalSum="No",INDEX(INDIRECT(AX$1),$AQ149,AX$3),SUM(AR149:AW149)) -> 51.32 | AZ149: =A149&B149 -> T09R01 | BA149: =ROW(AZ149) -> 149
A150: =A149 -> T09 | B150: R02 | C150: East Standard | D150: =IF(SoftwareType="Candidate","n/a",IF(AND(H150=Yes,M150=Yes),Pass,Fail)) -> Pass | E150: 51.32 | F150: 51.32 | G150: 0 | H150: Yes | I150: 51.32 | J150: 51.32 | K150: 51.32 | L150: 0 | M150: Yes | N150: =N149 -> T01R12 | O150: 0 | P150: 122 | Q150: 22.22 | R150: 14.64 | S150: 1.13 | T150: 0 | U150: 13.33 | V150: 0 | W150: 51.32 | Y150: 122 | Z150: 22.22 | AA150: 14.64 | AB150: 1.13 | AC150: 0 | AD150: 13.33 | AE150: 0 | AF150: 51.32 | AH150: 122 | AI150: 22.22 | AJ150: 14.64 | AK150: 1.13 | AL150: 0 | AM150: 13.33 | AO150: 51.32 | AQ150: 122 | AR150: 22.22 | AS150: 14.64 | AT150: 1.13 | AU150: 0 | AV150: 13.33 | AX150: 51.32 | AZ150: T09R02 | BA150: 150
A151: T09 | B151: R03 | C151: South Standard | D151: =IF(SoftwareType="Candidate","n/a",IF(AND(H151=Yes,M151=Yes),Pass,Fail)) -> Pass | E151: 51.32 | F151: 51.32 | G151: 0 | H151: Yes | I151: 51.32 | J151: 51.32 | K151: 51.32 | L151: 0 | M151: Yes | N151: =N150 -> T01R12 | O151: 0 | P151: 123 | Q151: 22.22 | R151: 14.64 | S151: 1.13 | T151: 0 | U151: 13.33 | V151: 0 | W151: 51.32 | Y151: 123 | Z151: 22.22 | AA151: 14.64 | AB151: 1.13 | AC151: 0 | AD151: 13.33 | AE151: 0 | AF151: 51.32 | AH151: 123 | AI151: 22.22 | AJ151: 14.64 | AK151: 1.13 | AL151: 0 | AM151: 13.33 | AO151: 51.32 | AQ151: 123 | AR151: 22.22 | AS151: 14.64 | AT151: 1.13 | AU151: 0 | AV151: 13.33 | AX151: 51.32 | AZ151: T09R03 | BA151: 151
A152: T09 | B152: R04 | C152: West Standard | D152: =IF(SoftwareType="Candidate","n/a",IF(AND(H152=Yes,M152=Yes),Pass,Fail)) -> Pass | E152: 51.32 | F152: 51.32 | G152: 0 | H152: Yes | I152: 51.32 | J152: 51.32 | K152: 51.32 | L152: 0 | M152: Yes | N152: T01R12 | O152: 0 | P152: 124 | Q152: 22.22 | R152: 14.64 | S152: 1.13 | T152: 0 | U152: 13.33 | V152: 0 | W152: 51.32 | Y152: 124 | Z152: 22.22 | AA152: 14.64 | AB152: 1.13 | AC152: 0 | AD152: 13.33 | AE152: 0 | AF152: 51.32 | AH152: 124 | AI152: 22.22 | AJ152: 14.64 | AK152: 1.13 | AL152: 0 | AM152: 13.33 | AO152: 51.32 | AQ152: 124 | AR152: 22.22 | AS152: 14.64 | AT152: 1.13 | AU152: 0 | AV152: 13.33 | AX152: 51.32 | AZ152: T09R04 | BA152: 152
A153: T09 | B153: R05 | C153: North Standard | D153: =IF(SoftwareType="Candidate","n/a",IF(AND(H153=Yes,M153=Yes),Pass,Fail)) -> Pass | E153: 51.32 | F153: 51.32 | G153: 0 | H153: Yes | I153: 51.32 | J153: 51.32 | K153: 51.32 | L153: 0 | M153: Yes | N153: T01R12 | O153: 0 | P153: 121 | Q153: 22.22 | R153: 14.64 | S153: 1.13 | T153: 0 | U153: 13.33 | V153: 0 | W153: 51.32 | Y153: 121 | Z153: 22.22 | AA153: 14.64 | AB153: 1.13 | AC153: 0 | AD153: 13.33 | AE153: 0 | AF153: 51.32 | AH153: 121 | AI153: 22.22 | AJ153: 14.64 | AK153: 1.13 | AL153: 0 | AM153: 13.33 | AO153: 51.32 | AQ153: 121 | AR153: 22.22 | AS153: 14.64 | AT153: 1.13 | AU153: 0 | AV153: 13.33 | AX153: 51.32 | AZ153: T09R05 | BA153: 153
A154: T09 | B154: R06 | C154: Single Proposed front 45 | D154: =IF(AND(H154=Yes,M154=Yes),Pass,Fail) -> Pass | E154: 52.39 | F154: 52.39 | G154: 0 | H154: Yes | I154: 51.32 | J154: 51.32 | K154: 51.32 | L154: 0 | M154: Yes | N154: T01R12 | O154: -1.07 | P154: 125 | Q154: 21.94 | R154: 15.99 | S154: 1.13 | T154: 0 | U154: 13.33 | V154: 0 | W154: 52.39 | Y154: 125 | Z154: 21.94 | AA154: 15.99 | AB154: 1.13 | AC154: 0 | AD154: 13.33 | AE154: 0 | AF154: 52.39 | AH154: 125 | AI154: 22.22 | AJ154: 14.64 | AK154: 1.13 | AL154: 0 | AM154: 13.33 | AO154: 51.32 | AQ154: 125 | AR154: 22.22 | AS154: 14.64 | AT154: 1.13 | AU154: 0 | AV154: 13.33 | AX154: 51.32 | AZ154: T09R06 | BA154: 154
A155: T09 | B155: R07 | C155: East Proposed | D155: =IF(AND(H155=Yes,M155=Yes),Pass,Fail) -> Pass | E155: 54.17 | F155: 54.17 | G155: 0 | H155: Yes | I155: 51.32 | J155: 51.32 | K155: 51.32 | L155: 0 | M155: Yes | N155: T01R12 | O155: -2.85 | P155: 127 | Q155: 22.79 | R155: 16.92 | S155: 1.13 | T155: 0 | U155: 13.33 | V155: 0 | W155: 54.17 | Y155: 127 | Z155: 22.79 | AA155: 16.92 | AB155: 1.13 | AC155: 0 | AD155: 13.33 | AE155: 0 | AF155: 54.17 | AH155: 127 | AI155: 22.22 | AJ155: 14.64 | AK155: 1.13 | AL155: 0 | AM155: 13.33 | AO155: 51.32 | AQ155: 127 | AR155: 22.22 | AS155: 14.64 | AT155: 1.13 | AU155: 0 | AV155: 13.33 | AX155: 51.32 | AZ155: T09R07 | BA155: 155
A156: T09 | B156: R08 | C156: South Proposed | D156: =IF(SoftwareType="Candidate","n/a",IF(AND(H156=Yes,M156=Yes),Pass,Fail)) -> Pass | E156: 47.82 | F156: 47.82 | G156: 0 | H156: Yes | I156: 51.32 | J156: 51.32 | K156: 51.32 | L156: 0 | M156: Yes | N156: T01R12 | O156: 3.5 | P156: 128 | Q156: 23.29 | R156: 10.07 | S156: 1.13 | T156: 0 | U156: 13.33 | V156: 0 | W156: 47.82 | Y156: 128 | Z156: 23.29 | AA156: 10.07 | AB156: 1.13 | AC156: 0 | AD156: 13.33 | AE156: 0 | AF156: 47.82 | AH156: 128 | AI156: 22.22 | AJ156: 14.64 | AK156: 1.13 | AL156: 0 | AM156: 13.33 | AO156: 51.32 | AQ156: 128 | AR156: 22.22 | AS156: 14.64 | AT156: 1.13 | AU156: 0 | AV156: 13.33 | AX156: 51.32 | AZ156: T09R08 | BA156: 156
A157: T09 | B157: R09 | C157: West Proposed | D157: =IF(SoftwareType="Candidate","n/a",IF(AND(H157=Yes,M157=Yes),Pass,Fail)) -> Pass | E157: 53.02 | F157: 53.02 | G157: 0 | H157: Yes | I157: 51.32 | J157: 51.32 | K157: 51.32 | L157: 0 | M157: Yes | N157: T01R12 | O157: -1.7 | P157: 129 | Q157: 22.43 | R157: 16.13 | S157: 1.13 | T157: 0 | U157: 13.33 | V157: 0 | W157: 53.02 | Y157: 129 | Z157: 22.43 | AA157: 16.13 | AB157: 1.13 | AC157: 0 | AD157: 13.33 | AE157: 0 | AF157: 53.02 | AH157: 129 | AI157: 22.22 | AJ157: 14.64 | AK157: 1.13 | AL157: 0 | AM157: 13.33 | AO157: 51.32 | AQ157: 129 | AR157: 22.22 | AS157: 14.64 | AT157: 1.13 | AU157: 0 | AV157: 13.33 | AX157: 51.32 | AZ157: T09R09 | BA157: 157
A158: T09 | B158: R10 | C158: North Proposed | D158: =IF(SoftwareType="Candidate","n/a",IF(AND(H158=Yes,M158=Yes),Pass,Fail)) -> Pass | E158: 46.88 | F158: 46.88 | G158: 0 | H158: Yes | I158: 51.32 | J158: 51.32 | K158: 51.32 | L158: 0 | M158: Yes | N158: T01R12 | O158: 4.44 | P158: 126 | Q158: 20.99 | R158: 11.43 | S158: 1.13 | T158: 0 | U158: 13.33 | V158: 0 | W158: 46.88 | Y158: 126 | Z158: 20.99 | AA158: 11.43 | AB158: 1.13 | AC158: 0 | AD158: 13.33 | AE158: 0 | AF158: 46.88 | AH158: 126 | AI158: 22.22 | AJ158: 14.64 | AK158: 1.13 | AL158: 0 | AM158: 13.33 | AO158: 51.32 | AQ158: 126 | AR158: 22.22 | AS158: 14.64 | AT158: 1.13 | AU158: 0 | AV158: 13.33 | AX158: 51.32 | AZ158: T09R10 | BA158: 158
A159: ="Result "&A148 -> Result T09 | D159: =IF(SoftwareType="Candidate",IF(COUNTIF(D154:D155,Pass)=2,Pass,Fail),IF(COUNTIF(D149:D158,Pass)=10,Pass,Fail)) -> Pass | E159: =AVERAGE(E149:E158) -> 51.231 | F159: =AVERAGE(F149:F158) -> 51.231 | G159: 0 | I159: =AVERAGE(I149:I158) -> 51.32 | J159: =AVERAGE(J149:J158) -> 51.32 | K159: =AVERAGE(K149:K158) -> 51.32 | L159: 0 | M159: Min | N159: =MIN(L149:L158) -> 0 | O159: =AVERAGE(O149:O158) -> 0.089 | P159: Ave | Q159: =AVERAGE(Q149:Q158) -> 22.277 | R159: =AVERAGE(R149:R158) -> 14.494 | S159: =AVERAGE(S149:S158) -> 1.13 | U159: =AVERAGE(U149:U158) -> 13.33 | V159: =AVERAGE(V149:V158) -> 0 | W159: =AVERAGE(W149:W158) -> 51.231 | Y159: Ave | Z159: =AVERAGE(Z149:Z158) -> 22.277 | AA159: =AVERAGE(AA149:AA158) -> 14.494 | AB159: =AVERAGE(AB149:AB158) -> 1.13 | AC159: =AVERAGE(AC149:AC158) -> 0 | AD159: =AVERAGE(AD149:AD158) -> 13.33 | AF159: =AVERAGE(AF149:AF158) -> 51.231 | AI159: =AVERAGE(AI149:AI158) -> 22.22 | AJ159: =AVERAGE(AJ149:AJ158) -> 14.64 | AK159: =AVERAGE(AK149:AK158) -> 1.13 | AL159: =AVERAGE(AL149:AL158) -> 0 | AM159: =AVERAGE(AM149:AM158) -> 13.33 | AO159: =AVERAGE(AO149:AO158) -> 51.32 | AR159: =AVERAGE(AR149:AR158) -> 22.22 | AS159: =AVERAGE(AS149:AS158) -> 14.64 | AT159: =AVERAGE(AT149:AT158) -> 1.13 | AU159: =AVERAGE(AU149:AU158) -> 0 | AV159: =AVERAGE(AV149:AV158) -> 13.33 | AX159: =AVERAGE(AX149:AX158) -> 51.32
C160: Page 5 of 7 | L160: Ave | M160: Max | N160: =MAX(L149:L158) -> 0 | Y160: % Diff | Z160: =(Z159-Q159)/Q159 -> 0 | AA160: =(AA159-R159)/R159 -> 0 | AB160: =(AB159-S159)/S159 -> 0 | AD160: =(AD159-U159)/U159 -> 0 | AF160: =(AF159-W159)/W159 -> 0
A161: T10 | B161: =VLOOKUP(A161,TestArray,2)&" in "&VLOOKUP(A161,TestArray,3)&" for Prototype "&VLOOKUP(A161,TestArray,4) -> Multi Family Water Heating in Zone 12 for Prototype P6960ft2 | I161: =VLOOKUP(A161,TestArray,21) -> Standard = Varies for this test
A162: =A161 -> T10 | B162: R01 | C162: =VLOOKUP(A162,TestArray,4+RIGHT(B162,2)) -> 8 Storage | D162: =IF(AND(H162=Yes,M162=Yes),Pass,Fail) -> Pass | E162: =W162 -> 59.96 | F162: =AF162 -> 59.96 | G162: =(F162-E162)/E162 -> 0 | H162: =IF(AND((E162-Tolerance<=F162),(E162+Tolerance>=F162)),Yes,No) -> Yes | I162: =INDIRECT("AO"&INDEX(StandardArray,MATCH($N162,StandardList,0),2)) -> 65.23 | J162: =AO162 -> 65.23 | K162: =AX162 -> 65.23 | L162: =(K162-I162)/I162 -> 0 | M162: =IF(AND((I162-Tolerance<=K162),(I162+Tolerance>=K162),(J162-Tolerance<=K162),(J162+Tolerance>=K162)),Yes,No) -> Yes | N162: T10R01 | O162: =K162-F162 -> 5.27 | P162: =MATCH($A162&$B162,INDIRECT(P$2),0) -> 130 | Q162: =IF(Q$3=0,"",INDEX(INDIRECT(Q$1),$P162,Q$3)) -> 11.09 | R162: 21.44 | S162: 2.4 | T162: 0 | U162: 25.03 | V162: 0 | W162: =IF(TotalSum="No",INDEX(INDIRECT(W$1),$P162,W$3),SUM(Q162:V162)) -> 59.96 | Y162: =MATCH($A162&$B162,INDIRECT(Y$2),0) -> 130 | Z162: =IF(Z$3=0,"",INDEX(INDIRECT(Z$1),$Y162,Z$3)) -> 11.09 | AA162: 21.44 | AB162: 2.4 | AC162: 0 | AD162: 25.03 | AE162: 0 | AF162: =IF(TotalSum="No",INDEX(INDIRECT(AF$1),$Y162,AF$3),SUM(Z162:AE162)) -> 59.96 | AH162: =MATCH($A162&$B162,INDIRECT(AH$2),0) -> 130 | AI162: =IF(AI$3=0,"",INDEX(INDIRECT(AI$1),$AH162,AI$3)) -> 10.91 | AJ162: 26.89 | AK162: 2.4 | AL162: 0 | AM162: 25.03 | AO162: =IF(TotalSum="No",INDEX(INDIRECT(AO$1),$AH162,AO$3),SUM(AI162:AN162)) -> 65.23 | AQ162: =MATCH($A162&$B162,INDIRECT(AQ$2),0) -> 130 | AR162: =IF(AR$3=0,"",INDEX(INDIRECT(AR$1),$AQ162,AR$3)) -> 10.91 | AS162: 26.89 | AT162: 2.4 | AU162: 0 | AV162: 25.03 | AX162: =IF(TotalSum="No",INDEX(INDIRECT(AX$1),$AQ162,AX$3),SUM(AR162:AW162)) -> 65.23 | AZ162: =A162&B162 -> T10R01 | BA162: =ROW(AZ162) -> 162
A163: =A162 -> T10 | B163: R02 | C163: 8 Storage 2 Systems | D163: Pass | E163: 59.96 | F163: 59.96 | G163: 0 | H163: Yes | I163: 65.23 | J163: 65.23 | K163: 65.23 | L163: 0 | M163: Yes | N163: =N162 -> T10R01 | O163: 5.27 | P163: 131 | Q163: 11.09 | R163: 21.44 | S163: 2.4 | T163: 0 | U163: 25.03 | V163: 0 | W163: 59.96 | Y163: 131 | Z163: 11.09 | AA163: 21.44 | AB163: 2.4 | AC163: 0 | AD163: 25.03 | AE163: 0 | AF163: 59.96 | AH163: 131 | AI163: 10.91 | AJ163: 26.89 | AK163: 2.4 | AL163: 0 | AM163: 25.03 | AO163: 65.23 | AQ163: 131 | AR163: 10.91 | AS163: 26.89 | AT163: 2.4 | AU163: 0 | AV163: 25.03 | AX163: 65.23 | AZ163: T10R02 | BA163: 163
A164: T10 | B164: R03 | C164: 8 LgStor | D164: Pass | E164: 66.44 | F164: 66.44 | G164: 0 | H164: Yes | I164: 65.23 | J164: 65.23 | K164: 65.23 | L164: 0 | M164: Yes | N164: =N163 -> T10R01 | O164: -1.21 | P164: 132 | Q164: 11.09 | R164: 21.44 | S164: 2.4 | T164: 0 | U164: 31.51 | V164: 0 | W164: 66.44 | Y164: 132 | Z164: 11.09 | AA164: 21.44 | AB164: 2.4 | AC164: 0 | AD164: 31.51 | AE164: 0 | AF164: 66.44 | AH164: 132 | AI164: 10.91 | AJ164: 26.89 | AK164: 2.4 | AL164: 0 | AM164: 25.03 | AO164: 65.23 | AQ164: 132 | AR164: 10.91 | AS164: 26.89 | AT164: 2.4 | AU164: 0 | AV164: 25.03 | AX164: 65.23 | AZ164: T10R03 | BA164: 164
A165: T10 | B165: R04 | C165: 2 LgStor Central Solar | D165: Pass | E165: 54.48 | F165: 54.48 | G165: 0 | H165: Yes | I165: 59.75 | J165: 59.75 | K165: 59.75 | L165: 0 | M165: Yes | N165: T10R04 | O165: 5.27 | P165: 133 | Q165: 11.09 | R165: 21.44 | S165: 2.4 | T165: 0 | U165: 19.55 | V165: 0 | W165: 54.48 | Y165: 133 | Z165: 11.09 | AA165: 21.44 | AB165: 2.4 | AC165: 0 | AD165: 19.55 | AE165: 0 | AF165: 54.48 | AH165: 133 | AI165: 10.91 | AJ165: 26.89 | AK165: 2.4 | AL165: 0 | AM165: 19.55 | AO165: 59.75 | AQ165: 133 | AR165: 10.91 | AS165: 26.89 | AT165: 2.4 | AU165: 0 | AV165: 19.55 | AX165: 59.75 | AZ165: T10R04 | BA165: 165
A166: T10 | B166: R05 | C166: 2 LgStor Central Solar Recirc | D166: Pass | E166: 60.91 | F166: 60.91 | G166: 0 | H166: Yes | I166: 66.18 | J166: 66.18 | K166: 66.18 | L166: 0 | M166: Yes | N166: T10R05 | O166: 5.27 | P166: 134 | Q166: 11.09 | R166: 21.44 | S166: 2.4 | T166: 0 | U166: 25.98 | V166: 0 | W166: 60.91 | Y166: 134 | Z166: 11.09 | AA166: 21.44 | AB166: 2.4 | AC166: 0 | AD166: 25.98 | AE166: 0 | AF166: 60.91 | AH166: 134 | AI166: 10.91 | AJ166: 26.89 | AK166: 2.4 | AL166: 0 | AM166: 25.98 | AO166: 66.18 | AQ166: 134 | AR166: 10.91 | AS166: 26.89 | AT166: 2.4 | AU166: 0 | AV166: 25.98 | AX166: 66.18 | AZ166: T10R05 | BA166: 166
A167: T10 | B167: R06 | C167: 2 LgStor Central Recirc | D167: Pass | E167: 65.19 | F167: 65.19 | G167: 0 | H167: Yes | I167: 66.18 | J167: 66.18 | K167: 66.18 | L167: 0 | M167: Yes | N167: T10R05 | O167: 0.99 | P167: 135 | Q167: 11.09 | R167: 21.44 | S167: 2.4 | T167: 0 | U167: 30.26 | V167: 0 | W167: 65.19 | Y167: 135 | Z167: 11.09 | AA167: 21.44 | AB167: 2.4 | AC167: 0 | AD167: 30.26 | AE167: 0 | AF167: 65.19 | AH167: 135 | AI167: 10.91 | AJ167: 26.89 | AK167: 2.4 | AL167: 0 | AM167: 25.98 | AO167: 66.18 | AQ167: 135 | AR167: 10.91 | AS167: 26.89 | AT167: 2.4 | AU167: 0 | AV167: 25.98 | AX167: 66.18 | AZ167: T10R06 | BA167: 167
A168: T10 | B168: R07 | C168: 2 SmInstantant Central Solar | D168: Pass | E168: 51.07 | F168: 51.07 | G168: 0 | H168: Yes | I168: 56.34 | J168: 56.34 | K168: 56.34 | L168: 0 | M168: Yes | N168: T10R07 | O168: 5.27 | P168: 136 | Q168: 11.09 | R168: 21.44 | S168: 2.4 | T168: 0 | U168: 16.14 | V168: 0 | W168: 51.07 | Y168: 136 | Z168: 11.09 | AA168: 21.44 | AB168: 2.4 | AC168: 0 | AD168: 16.14 | AE168: 0 | AF168: 51.07 | AH168: 136 | AI168: 10.91 | AJ168: 26.89 | AK168: 2.4 | AL168: 0 | AM168: 16.14 | AO168: 56.34 | AQ168: 136 | AR168: 10.91 | AS168: 26.89 | AT168: 2.4 | AU168: 0 | AV168: 16.14 | AX168: 56.34 | AZ168: T10R07 | BA168: 168
A169: T10 | B169: R08 | C169: 2 SmInstantant Central Solar Recirc | D169: Pass | E169: 57.79 | F169: 57.79 | G169: 0 | H169: Yes | I169: 63.06 | J169: 63.06 | K169: 63.06 | L169: 0 | M169: Yes | N169: T10R08 | O169: 5.27 | P169: 137 | Q169: 11.09 | R169: 21.44 | S169: 2.4 | T169: 0 | U169: 22.86 | V169: 0 | W169: 57.79 | Y169: 137 | Z169: 11.09 | AA169: 21.44 | AB169: 2.4 | AC169: 0 | AD169: 22.86 | AE169: 0 | AF169: 57.79 | AH169: 137 | AI169: 10.91 | AJ169: 26.89 | AK169: 2.4 | AL169: 0 | AM169: 22.86 | AO169: 63.06 | AQ169: 137 | AR169: 10.91 | AS169: 26.89 | AT169: 2.4 | AU169: 0 | AV169: 22.86 | AX169: 63.06 | AZ169: T10R08 | BA169: 169
A170: T10 | B170: R09 | C170: 1 Indirect Central Solar | D170: Pass | E170: 57.35 | F170: 57.35 | G170: 0 | H170: Yes | I170: 61.96 | J170: 61.96 | K170: 61.96 | L170: 0 | M170: Yes | N170: T10R09 | O170: 4.61 | P170: 138 | Q170: 11.09 | R170: 21.44 | S170: 2.4 | T170: 0 | U170: 22.42 | V170: 0 | W170: 57.35 | Y170: 138 | Z170: 11.09 | AA170: 21.44 | AB170: 2.4 | AC170: 0 | AD170: 22.42 | AE170: 0 | AF170: 57.35 | AH170: 138 | AI170: 10.91 | AJ170: 26.89 | AK170: 2.4 | AL170: 0 | AM170: 21.76 | AO170: 61.96 | AQ170: 138 | AR170: 10.91 | AS170: 26.89 | AT170: 2.4 | AU170: 0 | AV170: 21.76 | AX170: 61.96 | AZ170: T10R09 | BA170: 170
A171: T10 | B171: R10 | C171: 1 Indirect Central Solar Recirc | D171: Pass | E171: 64.19 | F171: 64.19 | G171: 0 | H171: Yes | I171: 68.8 | J171: 68.8 | K171: 68.8 | L171: 0 | M171: Yes | N171: T10R10 | O171: 4.61 | P171: 139 | Q171: 11.09 | R171: 21.44 | S171: 2.4 | T171: 0 | U171: 29.26 | V171: 0 | W171: 64.19 | Y171: 139 | Z171: 11.09 | AA171: 21.44 | AB171: 2.4 | AC171: 0 | AD171: 29.26 | AE171: 0 | AF171: 64.19 | AH171: 139 | AI171: 10.91 | AJ171: 26.89 | AK171: 2.4 | AL171: 0 | AM171: 28.6 | AO171: 68.8 | AQ171: 139 | AR171: 10.91 | AS171: 26.89 | AT171: 2.4 | AU171: 0 | AV171: 28.6 | AX171: 68.8 | AZ171: T10R10 | BA171: 171
A172: ="Result "&A161 -> Result T10 | D172: =IF(COUNTIF(D162:D171,Pass)=10,Pass,Fail) -> Pass | E172: =AVERAGE(E162:E171) -> 59.734 | F172: =AVERAGE(F162:F171) -> 59.734 | G172: 0 | I172: =AVERAGE(I162:I171) -> 63.796 | J172: =AVERAGE(J162:J171) -> 63.796 | K172: =AVERAGE(K162:K171) -> 63.796 | L172: 0 | M172: Min | N172: =MIN(L162:L171) -> 0 | O172: =AVERAGE(O162:O171) -> 4.062 | P172: Ave | Q172: =AVERAGE(Q162:Q171) -> 11.09 | R172: =AVERAGE(R162:R171) -> 21.44 | S172: =AVERAGE(S162:S171) -> 2.4 | U172: =AVERAGE(U162:U171) -> 24.804 | V172: =AVERAGE(V162:V171) -> 0 | W172: =AVERAGE(W162:W171) -> 59.734 | Y172: Ave | Z172: =AVERAGE(Z162:Z171) -> 11.09 | AA172: =AVERAGE(AA162:AA171) -> 21.44 | AB172: =AVERAGE(AB162:AB171) -> 2.4 | AC172: =AVERAGE(AC162:AC171) -> 0 | AD172: =AVERAGE(AD162:AD171) -> 24.804 | AF172: =AVERAGE(AF162:AF171) -> 59.734 | AI172: =AVERAGE(AI162:AI171) -> 10.91 | AJ172: =AVERAGE(AJ162:AJ171) -> 26.89 | AK172: =AVERAGE(AK162:AK171) -> 2.4 | AL172: =AVERAGE(AL162:AL171) -> 0 | AM172: =AVERAGE(AM162:AM171) -> 23.596 | AO172: =AVERAGE(AO162:AO171) -> 63.796 | AR172: =AVERAGE(AR162:AR171) -> 10.91 | AS172: =AVERAGE(AS162:AS171) -> 26.89 | AT172: =AVERAGE(AT162:AT171) -> 2.4 | AU172: =AVERAGE(AU162:AU171) -> 0 | AV172: =AVERAGE(AV162:AV171) -> 23.596 | AX172: =AVERAGE(AX162:AX171) -> 63.796
L173: Ave | M173: Max | N173: =MAX(L162:L171) -> 0 | Y173: % Diff | Z173: =(Z172-Q172)/Q172 -> 0 | AA173: =(AA172-R172)/R172 -> 0 | AB173: =(AB172-S172)/S172 -> 0 | AD173: =(AD172-U172)/U172 -> 0 | AF173: =(AF172-W172)/W172 -> 0
A174: T11 | B174: =VLOOKUP(A174,TestArray,2)&" in "&VLOOKUP(A174,TestArray,3)&" for Prototype "&VLOOKUP(A174,TestArray,4) -> Source Energy in Zone 12 for Prototype P2100ft2 | I174: =VLOOKUP(A174,TestArray,21) -> Standard = Varies for this test
A175: =A174 -> T11 | B175: R01 | C175: =VLOOKUP(A175,TestArray,4+RIGHT(B175,2)) -> Package | D175: =IF(AND(H175=Yes,M175=Yes),Pass,Fail) -> Pass | E175: =W175 -> 46.88 | F175: =AF175 -> 46.88 | G175: =(F175-E175)/E175 -> 0 | H175: =IF(AND((E175-Tolerance<=F175),(E175+Tolerance>=F175)),Yes,No) -> Yes | I175: =INDIRECT("AO"&INDEX(StandardArray,MATCH($N175,StandardList,0),2)) -> 51.32 | J175: =AO175 -> 51.32 | K175: =AX175 -> 51.32 | L175: =(K175-I175)/I175 -> 0 | M175: =IF(AND((I175-Tolerance<=K175),(I175+Tolerance>=K175),(J175-Tolerance<=K175),(J175+Tolerance>=K175)),Yes,No) -> Yes | N175: T04R12 | O175: =K175-F175 -> 4.44 | P175: =MATCH($A175&$B175,INDIRECT(P$2),0) -> 140 | Q175: =IF(Q$3=0,"",INDEX(INDIRECT(Q$1),$P175,Q$3)) -> 20.99 | R175: 11.43 | S175: 1.13 | T175: 0 | U175: 13.33 | V175: 0 | W175: =IF(TotalSum="No",INDEX(INDIRECT(W$1),$P175,W$3),SUM(Q175:V175)) -> 46.88 | Y175: =MATCH($A175&$B175,INDIRECT(Y$2),0) -> 140 | Z175: =IF(Z$3=0,"",INDEX(INDIRECT(Z$1),$Y175,Z$3)) -> 20.99 | AA175: 11.43 | AB175: 1.13 | AC175: 0 | AD175: 13.33 | AE175: 0 | AF175: =IF(TotalSum="No",INDEX(INDIRECT(AF$1),$Y175,AF$3),SUM(Z175:AE175)) -> 46.88 | AH175: =MATCH($A175&$B175,INDIRECT(AH$2),0) -> 140 | AI175: =IF(AI$3=0,"",INDEX(INDIRECT(AI$1),$AH175,AI$3)) -> 22.22 | AJ175: 14.64 | AK175: 1.13 | AL175: 0 | AM175: 13.33 | AO175: =IF(TotalSum="No",INDEX(INDIRECT(AO$1),$AH175,AO$3),SUM(AI175:AN175)) -> 51.32 | AQ175: =MATCH($A175&$B175,INDIRECT(AQ$2),0) -> 140 | AR175: =IF(AR$3=0,"",INDEX(INDIRECT(AR$1),$AQ175,AR$3)) -> 22.22 | AS175: 14.64 | AT175: 1.13 | AU175: 0 | AV175: 13.33 | AX175: =IF(TotalSum="No",INDEX(INDIRECT(AX$1),$AQ175,AX$3),SUM(AR175:AW175)) -> 51.32 | AZ175: =A175&B175 -> T11R01 | BA175: =ROW(AZ175) -> 175
A176: =A175 -> T11 | B176: R02 | C176: Package No Natural Gas | D176: Pass | E176: 97.34 | F176: 97.34 | G176: 0 | H176: Yes | I176: 103.36 | J176: 103.36 | K176: 103.36 | L176: 0 | M176: Yes | N176: T11R02 | O176: 6.02 | P176: 141 | Q176: 50.4 | R176: 11.43 | S176: 1.13 | T176: 0 | U176: 34.38 | V176: 0 | W176: 97.34 | Y176: 141 | Z176: 50.4 | AA176: 11.43 | AB176: 1.13 | AC176: 0 | AD176: 34.38 | AE176: 0 | AF176: 97.34 | AH176: 141 | AI176: 53.21 | AJ176: 14.64 | AK176: 1.13 | AL176: 0 | AM176: 34.38 | AO176: 103.36 | AQ176: 141 | AR176: 53.21 | AS176: 14.64 | AT176: 1.13 | AU176: 0 | AV176: 34.38 | AX176: 103.36 | AZ176: T11R02 | BA176: 176
A177: T11 | B177: R03 | C177: Electric DHW | D177: Pass | E177: 63.24 | F177: 63.24 | G177: 0 | H177: Yes | I177: 51.32 | J177: 51.32 | K177: 51.32 | L177: 0 | M177: Yes | N177: T04R12 | O177: -11.92 | P177: 142 | Q177: 20.99 | R177: 11.43 | S177: 1.13 | T177: 0 | U177: 29.69 | V177: 0 | W177: 63.24 | Y177: 142 | Z177: 20.99 | AA177: 11.43 | AB177: 1.13 | AC177: 0 | AD177: 29.69 | AE177: 0 | AF177: 63.24 | AH177: 142 | AI177: 22.22 | AJ177: 14.64 | AK177: 1.13 | AL177: 0 | AM177: 13.33 | AO177: 51.32 | AQ177: 142 | AR177: 22.22 | AS177: 14.64 | AT177: 1.13 | AU177: 0 | AV177: 13.33 | AX177: 51.32 | AZ177: T11R03 | BA177: 177
A178: T11 | B178: R04 | C178: Electric DHW no Natural Gas | D178: Pass | E178: 92.65 | F178: 92.65 | G178: 0 | H178: Yes | I178: 88.28 | J178: 88.28 | K178: 88.28 | L178: 0 | M178: Yes | N178: T11R04 | O178: -4.37 | P178: 143 | Q178: 50.4 | R178: 11.43 | S178: 1.13 | T178: 0 | U178: 29.69 | V178: 0 | W178: 92.65 | Y178: 143 | Z178: 50.4 | AA178: 11.43 | AB178: 1.13 | AC178: 0 | AD178: 29.69 | AE178: 0 | AF178: 92.65 | AH178: 143 | AI178: 53.21 | AJ178: 14.64 | AK178: 1.13 | AL178: 0 | AM178: 19.3 | AO178: 88.28 | AQ178: 143 | AR178: 53.21 | AS178: 14.64 | AT178: 1.13 | AU178: 0 | AV178: 19.3 | AX178: 88.28 | AZ178: T11R04 | BA178: 178
A179: T11 | B179: R05 | C179: Heatpump DHW | D179: Pass | E179: 48.61 | F179: 48.61 | G179: 0 | H179: Yes | I179: 51.32 | J179: 51.32 | K179: 51.32 | L179: 0 | M179: Yes | N179: T04R12 | O179: 2.71 | P179: 144 | Q179: 20.99 | R179: 11.43 | S179: 1.13 | T179: 0 | U179: 15.06 | V179: 0 | W179: 48.61 | Y179: 144 | Z179: 20.99 | AA179: 11.43 | AB179: 1.13 | AC179: 0 | AD179: 15.06 | AE179: 0 | AF179: 48.61 | AH179: 144 | AI179: 22.22 | AJ179: 14.64 | AK179: 1.13 | AL179: 0 | AM179: 13.33 | AO179: 51.32 | AQ179: 144 | AR179: 22.22 | AS179: 14.64 | AT179: 1.13 | AU179: 0 | AV179: 13.33 | AX179: 51.32 | AZ179: T11R05 | BA179: 179
A180: T11 | B180: R06 | C180: Heatpump DHW no Natural Gas | D180: Pass | E180: 78.02 | F180: 78.02 | G180: 0 | H180: Yes | I180: 88.28 | J180: 88.28 | K180: 88.28 | L180: 0 | M180: Yes | N180: =N178 -> T11R04 | O180: 10.26 | P180: 145 | Q180: 50.4 | R180: 11.43 | S180: 1.13 | T180: 0 | U180: 15.06 | V180: 0 | W180: 78.02 | Y180: 145 | Z180: 50.4 | AA180: 11.43 | AB180: 1.13 | AC180: 0 | AD180: 15.06 | AE180: 0 | AF180: 78.02 | AH180: 145 | AI180: 53.21 | AJ180: 14.64 | AK180: 1.13 | AL180: 0 | AM180: 19.3 | AO180: 88.28 | AQ180: 145 | AR180: 53.21 | AS180: 14.64 | AT180: 1.13 | AU180: 0 | AV180: 19.3 | AX180: 88.28 | AZ180: T11R06 | BA180: 180
A181: T11 | B181: R07 | C181: Heatpump HVAC | D181: Pass | E181: 44.83 | F181: 44.83 | G181: 0 | H181: Yes | I181: 50.49 | J181: 50.49 | K181: 50.49 | L181: 0 | M181: Yes | N181: T11R07 | O181: 5.66 | P181: 146 | Q181: 19.65 | R181: 10.72 | S181: 1.13 | T181: 0 | U181: 13.33 | V181: 0 | W181: 44.83 | Y181: 146 | Z181: 19.65 | AA181: 10.72 | AB181: 1.13 | AC181: 0 | AD181: 13.33 | AE181: 0 | AF181: 44.83 | AH181: 146 | AI181: 21.39 | AJ181: 14.64 | AK181: 1.13 | AL181: 0 | AM181: 13.33 | AO181: 50.49 | AQ181: 146 | AR181: 21.39 | AS181: 14.64 | AT181: 1.13 | AU181: 0 | AV181: 13.33 | AX181: 50.49 | AZ181: T11R07 | BA181: 181
A182: T11 | B182: R08 | C182: Heatpump HVAC no Natural Gas | D182: Pass | E182: 65.88 | F182: 65.88 | G182: 0 | H182: Yes | I182: 71.54 | J182: 71.54 | K182: 71.54 | L182: 0 | M182: Yes | N182: T11R08 | O182: 5.66 | P182: 147 | Q182: 19.65 | R182: 10.72 | S182: 1.13 | T182: 0 | U182: 34.38 | V182: 0 | W182: 65.88 | Y182: 147 | Z182: 19.65 | AA182: 10.72 | AB182: 1.13 | AC182: 0 | AD182: 34.38 | AE182: 0 | AF182: 65.88 | AH182: 147 | AI182: 21.39 | AJ182: 14.64 | AK182: 1.13 | AL182: 0 | AM182: 34.38 | AO182: 71.54 | AQ182: 147 | AR182: 21.39 | AS182: 14.64 | AT182: 1.13 | AU182: 0 | AV182: 34.38 | AX182: 71.54 | AZ182: T11R08 | BA182: 182
A183: T11 | B183: R09 | C183: Heatpump HVAC & DHW | D183: Pass | E183: 46.56 | F183: 46.56 | G183: 0 | H183: Yes | I183: 50.49 | J183: 50.49 | K183: 50.49 | L183: 0 | M183: Yes | N183: =N181 -> T11R07 | O183: 3.93 | P183: 148 | Q183: 19.65 | R183: 10.72 | S183: 1.13 | T183: 0 | U183: 15.06 | V183: 0 | W183: 46.56 | Y183: 148 | Z183: 19.65 | AA183: 10.72 | AB183: 1.13 | AC183: 0 | AD183: 15.06 | AE183: 0 | AF183: 46.56 | AH183: 148 | AI183: 21.39 | AJ183: 14.64 | AK183: 1.13 | AL183: 0 | AM183: 13.33 | AO183: 50.49 | AQ183: 148 | AR183: 21.39 | AS183: 14.64 | AT183: 1.13 | AU183: 0 | AV183: 13.33 | AX183: 50.49 | AZ183: T11R09 | BA183: 183
A184: T11 | B184: R10 | C184: Heatpump HVAC & DHW no Natural Gas | D184: Pass | E184: 46.56 | F184: 46.56 | G184: 0 | H184: Yes | I184: 56.46 | J184: 56.46 | K184: 56.46 | L184: 0 | M184: Yes | N184: T11R10 | O184: 9.9 | P184: 149 | Q184: 19.65 | R184: 10.72 | S184: 1.13 | T184: 0 | U184: 15.06 | V184: 0 | W184: 46.56 | Y184: 149 | Z184: 19.65 | AA184: 10.72 | AB184: 1.13 | AC184: 0 | AD184: 15.06 | AE184: 0 | AF184: 46.56 | AH184: 149 | AI184: 21.39 | AJ184: 14.64 | AK184: 1.13 | AL184: 0 | AM184: 19.3 | AO184: 56.46 | AQ184: 149 | AR184: 21.39 | AS184: 14.64 | AT184: 1.13 | AU184: 0 | AV184: 19.3 | AX184: 56.46 | AZ184: T11R10 | BA184: 184
A185: ="Result "&A174 -> Result T11 | D185: =IF(COUNTIF(D175:D184,Pass)=10,Pass,Fail) -> Pass | E185: =AVERAGE(E175:E184) -> 63.057 | F185: =AVERAGE(F175:F184) -> 63.057 | G185: 0 | I185: =AVERAGE(I175:I184) -> 66.286 | J185: =AVERAGE(J175:J184) -> 66.286 | K185: =AVERAGE(K175:K184) -> 66.286 | L185: 0 | M185: Min | N185: =MIN(L175:L184) -> 0 | O185: =AVERAGE(O175:O184) -> 3.229 | P185: Ave | Q185: =AVERAGE(Q175:Q184) -> 29.277 | R185: =AVERAGE(R175:R184) -> 11.146 | S185: =AVERAGE(S175:S184) -> 1.13 | U185: =AVERAGE(U175:U184) -> 21.504 | V185: =AVERAGE(V175:V184) -> 0 | W185: =AVERAGE(W175:W184) -> 63.057 | Y185: Ave | Z185: =AVERAGE(Z175:Z184) -> 29.277 | AA185: =AVERAGE(AA175:AA184) -> 11.146 | AB185: =AVERAGE(AB175:AB184) -> 1.13 | AC185: =AVERAGE(AC175:AC184) -> 0 | AD185: =AVERAGE(AD175:AD184) -> 21.504 | AF185: =AVERAGE(AF175:AF184) -> 63.057 | AI185: =AVERAGE(AI175:AI184) -> 31.185 | AJ185: =AVERAGE(AJ175:AJ184) -> 14.64 | AK185: =AVERAGE(AK175:AK184) -> 1.13 | AL185: =AVERAGE(AL175:AL184) -> 0 | AM185: =AVERAGE(AM175:AM184) -> 19.331 | AO185: =AVERAGE(AO175:AO184) -> 66.286 | AR185: =AVERAGE(AR175:AR184) -> 31.185 | AS185: =AVERAGE(AS175:AS184) -> 14.64 | AT185: =AVERAGE(AT175:AT184) -> 1.13 | AU185: =AVERAGE(AU175:AU184) -> 0 | AV185: =AVERAGE(AV175:AV184) -> 19.331 | AX185: =AVERAGE(AX175:AX184) -> 66.286
L186: Ave | M186: Max | N186: =MAX(L175:L184) -> 0 | Y186: % Diff | Z186: =(Z185-Q185)/Q185 -> 0 | AA186: =(AA185-R185)/R185 -> 0 | AB186: =(AB185-S185)/S185 -> 0 | AD186: =(AD185-U185)/U185 -> 0 | AF186: =(AF185-W185)/W185 -> 0
A187: T12 | B187: =VLOOKUP(A187,TestArray,2)&" in "&VLOOKUP(A187,TestArray,3)&" for Prototype "&VLOOKUP(A187,TestArray,4) -> E+A+A Base & Windows in Zone 12 for Prototype P1665ft2 | I187: =VLOOKUP(A187,TestArray,21) -> Standard = Varies for this test
A188: =A187 -> T12 | B188: R01 | C188: =VLOOKUP(A188,TestArray,4+RIGHT(B188,2)) -> E 1440ft2 as New Construction | D188: =IF(ConstructionType="New","n/a",IF(AND(H188=Yes,M188=Yes),Pass,Fail)) -> Pass | E188: =W188 -> 225.6 | F188: =AF188 -> 225.6 | G188: =(F188-E188)/E188 -> 0 | H188: =IF(AND((E188-Tolerance<=F188),(E188+Tolerance>=F188)),Yes,No) -> Yes | I188: =INDIRECT("AO"&INDEX(StandardArray,MATCH($N188,StandardList,0),2)) -> 72.55 | J188: =AO188 -> 72.55 | K188: =AX188 -> 72.55 | L188: =(K188-I188)/I188 -> 0 | M188: =IF(AND((I188-Tolerance<=K188),(I188+Tolerance>=K188),(J188-Tolerance<=K188),(J188+Tolerance>=K188)),Yes,No) -> Yes | N188: T12R01 | O188: =K188-F188 -> -153.05 | P188: =MATCH($A188&$B188,INDIRECT(P$2),0) -> 150 | Q188: =IF(Q$3=0,"",INDEX(INDIRECT(Q$1),$P188,Q$3)) -> 58.78 | R188: 138.09 | S188: 1.44 | T188: 0 | U188: 27.29 | V188: 0 | W188: =IF(TotalSum="No",INDEX(INDIRECT(W$1),$P188,W$3),SUM(Q188:V188)) -> 225.6 | Y188: =MATCH($A188&$B188,INDIRECT(Y$2),0) -> 150 | Z188: =IF(Z$3=0,"",INDEX(INDIRECT(Z$1),$Y188,Z$3)) -> 58.78 | AA188: 138.09 | AB188: 1.44 | AC188: 0 | AD188: 27.29 | AE188: 0 | AF188: =IF(TotalSum="No",INDEX(INDIRECT(AF$1),$Y188,AF$3),SUM(Z188:AE188)) -> 225.6 | AH188: =MATCH($A188&$B188,INDIRECT(AH$2),0) -> 150 | AI188: =IF(AI$3=0,"",INDEX(INDIRECT(AI$1),$AH188,AI$3)) -> 24.64 | AJ188: 19.18 | AK188: 1.44 | AL188: 0 | AM188: 27.29 | AO188: =IF(TotalSum="No",INDEX(INDIRECT(AO$1),$AH188,AO$3),SUM(AI188:AN188)) -> 72.55 | AQ188: =MATCH($A188&$B188,INDIRECT(AQ$2),0) -> 150 | AR188: =IF(AR$3=0,"",INDEX(INDIRECT(AR$1),$AQ188,AR$3)) -> 24.64 | AS188: 19.18 | AT188: 1.44 | AU188: 0 | AV188: 27.29 | AX188: =IF(TotalSum="No",INDEX(INDIRECT(AX$1),$AQ188,AX$3),SUM(AR188:AW188)) -> 72.55 | AZ188: =A188&B188 -> T12R01 | BA188: =ROW(AZ188) -> 188
A189: =A188 -> T12 | B189: R02 | C189: E 1440ft2 as Addition/Alteration | D189: Pass | E189: 225.5 | F189: 225.5 | G189: 0 | H189: Yes | I189: 225.5 | J189: 225.5 | K189: 225.5 | L189: 0 | M189: Yes | N189: T12R02 | O189: 0 | P189: 151 | Q189: 56.79 | R189: 141.42 | S189: 0 | T189: 0 | U189: 27.29 | V189: 0 | W189: 225.5 | Y189: 151 | Z189: 56.79 | AA189: 141.42 | AB189: 0 | AC189: 0 | AD189: 27.29 | AE189: 0 | AF189: 225.5 | AH189: 151 | AI189: 56.79 | AJ189: 141.42 | AK189: 0 | AL189: 0 | AM189: 27.29 | AO189: 225.5 | AQ189: 151 | AR189: 56.79 | AS189: 141.42 | AT189: 0 | AU189: 0 | AV189: 27.29 | AX189: 225.5 | AZ189: T12R02 | BA189: 189
A190: T12 | B190: R03 | C190: EA 1665ft2 | D190: Pass | E190: 194.22 | F190: 194.22 | G190: 0 | H190: Yes | I190: 193.62 | J190: 193.62 | K190: 193.62 | L190: 0 | M190: Yes | N190: T12R03 | O190: -0.6 | P190: 152 | Q190: 52.09 | R190: 121.83 | S190: 0 | T190: 0 | U190: 20.3 | V190: 0 | W190: 194.22 | Y190: 152 | Z190: 52.09 | AA190: 121.83 | AB190: 0 | AC190: 0 | AD190: 20.3 | AE190: 0 | AF190: 194.22 | AH190: 152 | AI190: 52.66 | AJ190: 120.66 | AK190: 0 | AL190: 0 | AM190: 20.3 | AO190: 193.62 | AQ190: 152 | AR190: 52.66 | AS190: 120.66 | AT190: 0 | AU190: 0 | AV190: 20.3 | AX190: 193.62 | AZ190: T12R03 | BA190: 190
A191: T12 | B191: R04 | C191: EAA Ceiling R38 Verified | D191: Pass | E191: 170.48 | F191: 170.48 | G191: 0 | H191: Yes | I191: 193.62 | J191: 193.62 | K191: 193.62 | L191: 0 | M191: Yes | N191: T12R04 | O191: 23.14 | P191: 153 | Q191: 47.57 | R191: 102.61 | S191: 0 | T191: 0 | U191: 20.3 | V191: 0 | W191: 170.48 | Y191: 153 | Z191: 47.57 | AA191: 102.61 | AB191: 0 | AC191: 0 | AD191: 20.3 | AE191: 0 | AF191: 170.48 | AH191: 153 | AI191: 52.66 | AJ191: 120.66 | AK191: 0 | AL191: 0 | AM191: 20.3 | AO191: 193.62 | AQ191: 153 | AR191: 52.66 | AS191: 120.66 | AT191: 0 | AU191: 0 | AV191: 20.3 | AX191: 193.62 | AZ191: T12R04 | BA191: 191
A192: T12 | B192: R05 | C192: EAA Ceiling R38 Verified Wind U0.41/S0.36 | D192: Pass | E192: 140.45 | F192: 140.45 | G192: 0 | H192: Yes | I192: 164.29 | J192: 164.29 | K192: 164.29 | L192: 0 | M192: Yes | N192: T12R05 | O192: 23.84 | P192: 154 | Q192: 43.63 | R192: 76.52 | S192: 0 | T192: 0 | U192: 20.3 | V192: 0 | W192: 140.45 | Y192: 154 | Z192: 43.63 | AA192: 76.52 | AB192: 0 | AC192: 0 | AD192: 20.3 | AE192: 0 | AF192: 140.45 | AH192: 154 | AI192: 48.55 | AJ192: 95.44 | AK192: 0 | AL192: 0 | AM192: 20.3 | AO192: 164.29 | AQ192: 154 | AR192: 48.55 | AS192: 95.44 | AT192: 0 | AU192: 0 | AV192: 20.3 | AX192: 164.29 | AZ192: T12R05 | BA192: 192
A193: T12 | B193: R06 | C193: EAA Ceiling R38 Verified Wind U0.41/S0.36 Verified | D193: Pass | E193: 140.45 | F193: 140.45 | G193: 0 | H193: Yes | I193: 164.29 | J193: 164.29 | K193: 164.29 | L193: 0 | M193: Yes | N193: =N192 -> T12R05 | O193: 23.84 | P193: 155 | Q193: 43.63 | R193: 76.52 | S193: 0 | T193: 0 | U193: 20.3 | V193: 0 | W193: 140.45 | Y193: 155 | Z193: 43.63 | AA193: 76.52 | AB193: 0 | AC193: 0 | AD193: 20.3 | AE193: 0 | AF193: 140.45 | AH193: 155 | AI193: 48.55 | AJ193: 95.44 | AK193: 0 | AL193: 0 | AM193: 20.3 | AO193: 164.29 | AQ193: 155 | AR193: 48.55 | AS193: 95.44 | AT193: 0 | AU193: 0 | AV193: 20.3 | AX193: 164.29 | AZ193: T12R06 | BA193: 193
A194: T12 | B194: R07 | C194: EAA Ceiling R38 Verified Wind U0.40/S0.35 | D194: Pass | E194: 139.74 | F194: 139.74 | G194: 0 | H194: Yes | I194: 164.29 | J194: 164.29 | K194: 164.29 | L194: 0 | M194: Yes | N194: =N192 -> T12R05 | O194: 24.55 | P194: 156 | Q194: 43.62 | R194: 75.82 | S194: 0 | T194: 0 | U194: 20.3 | V194: 0 | W194: 139.74 | Y194: 156 | Z194: 43.62 | AA194: 75.82 | AB194: 0 | AC194: 0 | AD194: 20.3 | AE194: 0 | AF194: 139.74 | AH194: 156 | AI194: 48.55 | AJ194: 95.44 | AK194: 0 | AL194: 0 | AM194: 20.3 | AO194: 164.29 | AQ194: 156 | AR194: 48.55 | AS194: 95.44 | AT194: 0 | AU194: 0 | AV194: 20.3 | AX194: 164.29 | AZ194: T12R07 | BA194: 194
A195: T12 | B195: R08 | C195: EAA Ceiling R38 Verified Wind U0.40/S0.35 Verified | D195: Pass | E195: 139.74 | F195: 139.74 | G195: 0 | H195: Yes | I195: 193.62 | J195: 193.62 | K195: 193.62 | L195: 0 | M195: Yes | N195: =N191 -> T12R04 | O195: 53.88 | P195: 157 | Q195: 43.62 | R195: 75.82 | S195: 0 | T195: 0 | U195: 20.3 | V195: 0 | W195: 139.74 | Y195: 157 | Z195: 43.62 | AA195: 75.82 | AB195: 0 | AC195: 0 | AD195: 20.3 | AE195: 0 | AF195: 139.74 | AH195: 157 | AI195: 52.66 | AJ195: 120.66 | AK195: 0 | AL195: 0 | AM195: 20.3 | AO195: 193.62 | AQ195: 157 | AR195: 52.66 | AS195: 120.66 | AT195: 0 | AU195: 0 | AV195: 20.3 | AX195: 193.62 | AZ195: T12R08 | BA195: 195
A196: T12 | B196: R09 | C196: EAA Ceiling R38 Verified Wind U0.39/S0.34 | D196: Pass | E196: 139.09 | F196: 139.09 | G196: 0 | H196: Yes | I196: 164.29 | J196: 164.29 | K196: 164.29 | L196: 0 | M196: Yes | N196: =N192 -> T12R05 | O196: 25.2 | P196: 158 | Q196: 43.58 | R196: 75.21 | S196: 0 | T196: 0 | U196: 20.3 | V196: 0 | W196: 139.09 | Y196: 158 | Z196: 43.58 | AA196: 75.21 | AB196: 0 | AC196: 0 | AD196: 20.3 | AE196: 0 | AF196: 139.09 | AH196: 158 | AI196: 48.55 | AJ196: 95.44 | AK196: 0 | AL196: 0 | AM196: 20.3 | AO196: 164.29 | AQ196: 158 | AR196: 48.55 | AS196: 95.44 | AT196: 0 | AU196: 0 | AV196: 20.3 | AX196: 164.29 | AZ196: T12R09 | BA196: 196
A197: T12 | B197: R10 | C197: EAA Ceiling R38 Verified Wind U0.39/S0.34 Verified | D197: Pass | E197: 139.09 | F197: 139.09 | G197: 0 | H197: Yes | I197: 193.62 | J197: 193.62 | K197: 193.62 | L197: 0 | M197: Yes | N197: =N191 -> T12R04 | O197: 54.53 | P197: 159 | Q197: 43.58 | R197: 75.21 | S197: 0 | T197: 0 | U197: 20.3 | V197: 0 | W197: 139.09 | Y197: 159 | Z197: 43.58 | AA197: 75.21 | AB197: 0 | AC197: 0 | AD197: 20.3 | AE197: 0 | AF197: 139.09 | AH197: 159 | AI197: 52.66 | AJ197: 120.66 | AK197: 0 | AL197: 0 | AM197: 20.3 | AO197: 193.62 | AQ197: 159 | AR197: 52.66 | AS197: 120.66 | AT197: 0 | AU197: 0 | AV197: 20.3 | AX197: 193.62 | AZ197: T12R10 | BA197: 197
A198: ="Result "&A187 -> Result T12 | D198: =IF(ConstructionType="New","n/a",IF(COUNTIF(D188:D197,Pass)=10,Pass,Fail)) -> Pass | E198: =AVERAGE(E188:E197) -> 165.436 | F198: =AVERAGE(F188:F197) -> 165.436 | G198: 0 | I198: =AVERAGE(I188:I197) -> 172.969 | J198: =AVERAGE(J188:J197) -> 172.969 | K198: =AVERAGE(K188:K197) -> 172.969 | L198: 0 | M198: Min | N198: =MIN(L188:L197) -> 0 | O198: =AVERAGE(O188:O197) -> 7.533 | P198: Ave | Q198: =AVERAGE(Q188:Q197) -> 47.689 | R198: =AVERAGE(R188:R197) -> 95.905 | S198: =AVERAGE(S188:S197) -> 0.144 | U198: =AVERAGE(U188:U197) -> 21.698 | V198: =AVERAGE(V188:V197) -> 0 | W198: =AVERAGE(W188:W197) -> 165.436 | Y198: Ave | Z198: =AVERAGE(Z188:Z197) -> 47.689 | AA198: =AVERAGE(AA188:AA197) -> 95.905 | AB198: =AVERAGE(AB188:AB197) -> 0.144 | AC198: =AVERAGE(AC188:AC197) -> 0 | AD198: =AVERAGE(AD188:AD197) -> 21.698 | AF198: =AVERAGE(AF188:AF197) -> 165.436 | AI198: =AVERAGE(AI188:AI197) -> 48.627 | AJ198: =AVERAGE(AJ188:AJ197) -> 102.5 | AK198: =AVERAGE(AK188:AK197) -> 0.144 | AL198: =AVERAGE(AL188:AL197) -> 0 | AM198: =AVERAGE(AM188:AM197) -> 21.698 | AO198: =AVERAGE(AO188:AO197) -> 172.969 | AR198: =AVERAGE(AR188:AR197) -> 48.627 | AS198: =AVERAGE(AS188:AS197) -> 102.5 | AT198: =AVERAGE(AT188:AT197) -> 0.144 | AU198: =AVERAGE(AU188:AU197) -> 0 | AV198: =AVERAGE(AV188:AV197) -> 21.698 | AX198: =AVERAGE(AX188:AX197) -> 172.969
C199: Page 6 of 7 | L199: Ave | M199: Max | N199: =MAX(L188:L197) -> 0 | Y199: % Diff | Z199: =(Z198-Q198)/Q198 -> 0 | AA199: =(AA198-R198)/R198 -> 0 | AB199: =(AB198-S198)/S198 -> 0 | AD199: =(AD198-U198)/U198 -> 0 | AF199: =(AF198-W198)/W198 -> 0
A200: T13 | B200: =VLOOKUP(A200,TestArray,2)&" in "&VLOOKUP(A200,TestArray,3)&" for Prototype "&VLOOKUP(A200,TestArray,4) -> E+A+A Walls & HVAC in Zone 12 for Prototype P1665ft2 | I200: =VLOOKUP(A200,TestArray,21) -> Standard = Varies for this test
A201: =A200 -> T13 | B201: R01 | C201: =VLOOKUP(A201,TestArray,4+RIGHT(B201,2)) -> EAA Ceiling R38 Verified Wall R11 | D201: =IF(ConstructionType="New","n/a",IF(AND(H201=Yes,M201=Yes),Pass,Fail)) -> Pass | E201: =W201 -> 137.61 | F201: =AF201 -> 137.61 | G201: =(F201-E201)/E201 -> 0 | H201: =IF(AND((E201-Tolerance<=F201),(E201+Tolerance>=F201)),Yes,No) -> Yes | I201: =INDIRECT("AO"&INDEX(StandardArray,MATCH($N201,StandardList,0),2)) -> 160.41 | J201: =AO201 -> 160.41 | K201: =AX201 -> 160.41 | L201: =(K201-I201)/I201 -> 0 | M201: =IF(AND((I201-Tolerance<=K201),(I201+Tolerance>=K201),(J201-Tolerance<=K201),(J201+Tolerance>=K201)),Yes,No) -> Yes | N201: T13R01 | O201: =K201-F201 -> 22.8 | P201: =MATCH($A201&$B201,INDIRECT(P$2),0) -> 160 | Q201: =IF(Q$3=0,"",INDEX(INDIRECT(Q$1),$P201,Q$3)) -> 32.91 | R201: 84.4 | S201: 0 | T201: 0 | U201: 20.3 | V201: 0 | W201: =IF(TotalSum="No",INDEX(INDIRECT(W$1),$P201,W$3),SUM(Q201:V201)) -> 137.61 | Y201: =MATCH($A201&$B201,INDIRECT(Y$2),0) -> 160 | Z201: =IF(Z$3=0,"",INDEX(INDIRECT(Z$1),$Y201,Z$3)) -> 32.91 | AA201: 84.4 | AB201: 0 | AC201: 0 | AD201: 20.3 | AE201: 0 | AF201: =IF(TotalSum="No",INDEX(INDIRECT(AF$1),$Y201,AF$3),SUM(Z201:AE201)) -> 137.61 | AH201: =MATCH($A201&$B201,INDIRECT(AH$2),0) -> 160 | AI201: =IF(AI$3=0,"",INDEX(INDIRECT(AI$1),$AH201,AI$3)) -> 38.07 | AJ201: 102.04 | AK201: 0 | AL201: 0 | AM201: 20.3 | AO201: =IF(TotalSum="No",INDEX(INDIRECT(AO$1),$AH201,AO$3),SUM(AI201:AN201)) -> 160.41 | AQ201: =MATCH($A201&$B201,INDIRECT(AQ$2),0) -> 160 | AR201: =IF(AR$3=0,"",INDEX(INDIRECT(AR$1),$AQ201,AR$3)) -> 38.07 | AS201: 102.04 | AT201: 0 | AU201: 0 | AV201: 20.3 | AX201: =IF(TotalSum="No",INDEX(INDIRECT(AX$1),$AQ201,AX$3),SUM(AR201:AW201)) -> 160.41 | AZ201: =A201&B201 -> T13R01 | BA201: =ROW(AZ201) -> 201
... 11 more rows

Sheet Reference
A1: 2016-08-31T17:02:27 | B1: 667 | C1: T | D1: 166 | E1: 0 | H1: Proposed Model Site Electric Use | R1: Proposed Model Site Natural Gas Use | AB1: Proposed Model Site Other Fuel Use | AL1: Proposed Model TDV | AX1: Standard Model Site Electric Use | BH1: Standard Model Site Natural Gas Use | BR1: Standard Model Site Other Fuel Use | CB1: Standard Model TDV | CM1: Software Versions | CQ1: Proposed Model Electric Demand | DB1: Standard Model Electric Demand | DM1: Savings Results | DQ1: CAHP-SF / CAHP-MF / CMFNH Results | DZ1: Proposed Design Rating Model Site Electric Use | EK1: Proposed Design Rating Model Site Natural Gas Use | EU1: Proposed Design Rating Model Site Other Fuel Use | FE1: Proposed Design Rating Model TDV | FP1: Proposed Design Rating Model Electric Demand | GA1: Reference Design Rating Model Site Electric Use | GK1: Reference Design Rating Model Site Natural Gas Use | GU1: Reference Design Rating Model Site Other Fuel Use | HE1: Reference Design Rating Model TDV | HO1: Reference Design Rating Model Electric Demand | HY1: Energy Design Ratings
B2: Project | E2: Pass / | F2: Compliance | G2: Design | H2: Spc Heat | I2: Spc Cool | J2: IAQ Vent | K2: Other HVAC | L2: Wtr Heat | M2: Ins Light | N2: Appl & Cook | O2: Plug Lds | P2: Exterior | Q2: TOTAL | R2: Spc Heat | S2: Spc Cool | T2: IAQ Vent | U2: Other HVAC | V2: Wtr Heat | W2: Ins Light | X2: Appl & Cook | Y2: Plug Lds | Z2: Exterior | AA2: TOTAL | AB2: Spc Heat | AC2: Spc Cool | AD2: IAQ Vent | AE2: Other HVAC | AF2: Wtr Heat | AG2: Ins Light | AH2: Appl & Cook | AI2: Plug Lds | AJ2: Exterior | AK2: TOTAL | AL2: Spc Heat | AM2: Spc Cool | AN2: IAQ Vent | AO2: Other HVAC | AP2: Wtr Heat | AQ2: PV Credit | AR2: Ins Light | AS2: Appl & Cook | AT2: Plug Lds | AU2: Exterior | AV2: TOTAL | AW2: Comp Total | AX2: Spc Heat | AY2: Spc Cool | AZ2: IAQ Vent | BA2: Other HVAC | BB2: Wtr Heat | BC2: Ins Light | BD2: Appl & Cook | BE2: Plug Lds | BF2: Exterior | BG2: TOTAL | BH2: Spc Heat | BI2: Spc Cool | BJ2: IAQ Vent | BK2: Other HVAC | BL2: Wtr Heat | BM2: Ins Light | BN2: Appl & Cook | BO2: Plug Lds | BP2: Exterior | BQ2: TOTAL | BR2: Spc Heat | BS2: Spc Cool | BT2: IAQ Vent | BU2: Other HVAC | BV2: Wtr Heat | BW2: Ins Light | BX2: Appl & Cook | BY2: Plug Lds | BZ2: Exterior | CA2: TOTAL | CB2: Spc Heat | CC2: Spc Cool | CD2: IAQ Vent | CE2: Other HVAC | CF2: Wtr Heat | CG2: Ins Light | CH2: Appl & Cook | CI2: Plug Lds | CJ2: Exterior | CK2: TOTAL | CL2: Comp Total | CM2: Compliance | CP2: End User | CQ2: Spc Heat | CR2: Spc Cool | CS2: IAQ Vent | CT2: Other HVAC | CU2: Wtr Heat | CV2: Ins Light | CW2: Appl & Cook | CX2: Plug Lds | CY2: Exterior | CZ2: TOTAL | DA2: Comp Total | DB2: Spc Heat | DC2: Spc Cool | DD2: IAQ Vent | DE2: Other HVAC | DF2: Wtr Heat | DG2: Ins Light | DH2: Appl & Cook | DI2: Plug Lds | DJ2: Exterior | DK2: TOTAL | DL2: Comp Total | DM2: Total Demand | DN2: Compliance Demand | DO2: Total TDV | DP2: Compliance TDV | DQ2: Zero Energy Ready Kicker | DR2: Future Code Kicker | DS2: High Efficacy Licker | DT2: Low Use Kicker | DU2: Ultra Low Use Kicker | DV2: Initial Score | DW2: Initial Incentive | DX2: Final Score | DY2: Final Incentive | DZ2: Spc Heat | EA2: Spc Cool | EB2: IAQ Vent | EC2: Other HVAC | ED2: Wtr Heat | EE2: PV | EF2: Ins Light | EG2: Appl & Cook | EH2: Plug Lds | EI2: Exterior | EJ2: TOTAL | EK2: Spc Heat | EL2: Spc Cool | EM2: IAQ Vent | EN2: Other HVAC | EO2: Wtr Heat | EP2: Ins Light | EQ2: Appl & Cook | ER2: Plug Lds | ES2: Exterior | ET2: TOTAL | EU2: Spc Heat | EV2: Spc Cool | EW2: IAQ Vent | EX2: Other HVAC | EY2: Wtr Heat | EZ2: Ins Light | FA2: Appl & Cook | FB2: Plug Lds | FC2: Exterior | FD2: TOTAL | FE2: Spc Heat | FF2: Spc Cool | FG2: IAQ Vent | FH2: Other HVAC | FI2: Wtr Heat | FJ2: PV Credit | FK2: Ins Light | FL2: Appl & Cook | FM2: Plug Lds | FN2: Exterior | FO2: TOTAL | FP2: Spc Heat | FQ2: Spc Cool | FR2: IAQ Vent | FS2: Other HVAC | FT2: Wtr Heat | FU2: PV | FV2: Ins Light | FW2: Appl & Cook | FX2: Plug Lds | FY2: Exterior | FZ2: TOTAL | GA2: Spc Heat | GB2: Spc Cool | GC2: IAQ Vent | GD2: Other HVAC | GE2: Wtr Heat | GF2: Ins Light | GG2: Appl & Cook | GH2: Plug Lds | GI2: Exterior | GJ2: TOTAL | GK2: Spc Heat | GL2: Spc Cool | GM2: IAQ Vent | GN2: Other HVAC | GO2: Wtr Heat | GP2: Ins Light | GQ2: Appl & Cook | GR2: Plug Lds | GS2: Exterior | GT2: TOTAL | GU2: Spc Heat | GV2: Spc Cool | GW2: IAQ Vent | GX2: Other HVAC | GY2: Wtr Heat | GZ2: Ins Light | HA2: Appl & Cook | HB2: Plug Lds | HC2: Exterior | HD2: TOTAL | HE2: Spc Heat | HF2: Spc Cool | HG2: IAQ Vent | HH2: Other HVAC | HI2: Wtr Heat | HJ2: Ins Light | HK2: Appl & Cook | HL2: Plug Lds | HM2: Exterior | HN2: TOTAL | HO2: Spc Heat | HP2: Spc Cool | HQ2: IAQ Vent | HR2: Other HVAC | HS2: Wtr Heat | HT2: Ins Light | HU2: Appl & Cook | HV2: Plug Lds | HW2: Exterior | HX2: TOTAL | HY2: Excluding | HZ2: Only | IA2: Standard
A3: Run Date/Time | B3: Path/File | C3: Run Title | D3: Analysis Type | E3: Fail | F3: Margin | G3: Rating | H3: (kWh) | I3: (kWh) | J3: (kWh) | K3: (kWh) | L3: (kWh) | M3: (kWh) | N3: (kWh) | O3: (kWh) | P3: (kWh) | Q3: (kWh) | R3: (Therms) | S3: (Therms) | T3: (Therms) | U3: (Therms) | V3: (Therms) | W3: (Therms) | X3: (Therms) | Y3: (Therms) | Z3: (Therms) | AA3: (Therms) | AB3: (MMBtu) | AC3: (MMBtu) | AD3: (MMBtu) | AE3: (MMBtu) | AF3: (MMBtu) | AG3: (MMBtu) | AH3: (MMBtu) | AI3: (MMBtu) | AJ3: (MMBtu) | AK3: (MMBtu) | AL3: (kTDV/ft2-yr) | AM3: (kTDV/ft2-yr) | AN3: (kTDV/ft2-yr) | AO3: (kTDV/ft2-yr) | AP3: (kTDV/ft2-yr) | AQ3: (kTDV/ft2-yr) | AR3: (kTDV/ft2-yr) | AS3: (kTDV/ft2-yr) | AT3: (kTDV/ft2-yr) | AU3: (kTDV/ft2-yr) | AV3: (kTDV/ft2-yr) | AW3: (kTDV/ft2-yr) | AX3: (kWh) | AY3: (kWh) | AZ3: (kWh) | BA3: (kWh) | BB3: (kWh) | BC3: (kWh) | BD3: (kWh) | BE3: (kWh) | BF3: (kWh) | BG3: (kWh) | BH3: (Therms) | BI3: (Therms) | BJ3: (Therms) | BK3: (Therms) | BL3: (Therms) | BM3: (Therms) | BN3: (Therms) | BO3: (Therms) | BP3: (Therms) | BQ3: (Therms) | BR3: (MMBtu) | BS3: (MMBtu) | BT3: (MMBtu) | BU3: (MMBtu) | BV3: (MMBtu) | BW3: (MMBtu) | BX3: (MMBtu) | BY3: (MMBtu) | BZ3: (MMBtu) | CA3: (MMBtu) | CB3: (kTDV/ft2-yr) | CC3: (kTDV/ft2-yr) | CD3: (kTDV/ft2-yr) | CE3: (kTDV/ft2-yr) | CF3: (kTDV/ft2-yr) | CG3: (kTDV/ft2-yr) | CH3: (kTDV/ft2-yr) | CI3: (kTDV/ft2-yr) | CJ3: (kTDV/ft2-yr) | CK3: (kTDV/ft2-yr) | CL3: (kTDV/ft2-yr) | CM3: Ruleset | CN3: CSE | CO3: CEC DHW | CP3: Application | CQ3: (kW) | CR3: (kW) | CS3: (kW) | CT3: (kW) | CU3: (kW) | CV3: (kW) | CW3: (kW) | CX3: (kW) | CY3: (kW) | CZ3: (kW) | DA3: (kW) | DB3: (kW) | DC3: (kW) | DD3: (kW) | DE3: (kW) | DF3: (kW) | DG3: (kW) | DH3: (kW) | DI3: (kW) | DJ3: (kW) | DK3: (kW) | DL3: (kW) | DM3: (kW) | DN3: (kW) | DO3: (%) | DP3: (%) | DQ3: (0 or 5) | DR3: (0 or 3) | DS3: (0 or 5) | DT3: (0 or 5) | DU3: (0 or 5) | DV3: (int) | DW3: ($) | DX3: (int) | DY3: ($) | DZ3: (kWh) | EA3: (kWh) | EB3: (kWh) | EC3: (kWh) | ED3: (kWh) | EE3: (kWh) | EF3: (kWh) | EG3: (kWh) | EH3: (kWh) | EI3: (kWh) | EJ3: (kWh) | EK3: (Therms) | EL3: (Therms) | EM3: (Therms) | EN3: (Therms) | EO3: (Therms) | EP3: (Therms) | EQ3: (Therms) | ER3: (Therms) | ES3: (Therms) | ET3: (Therms) | EU3: (MMBtu) | EV3: (MMBtu) | EW3: (MMBtu) | EX3: (MMBtu) | EY3: (MMBtu) | EZ3: (MMBtu) | FA3: (MMBtu) | FB3: (MMBtu) | FC3: (MMBtu) | FD3: (MMBtu) | FE3: (kTDV/ft2-yr) | FF3: (kTDV/ft2-yr) | FG3: (kTDV/ft2-yr) | FH3: (kTDV/ft2-yr) | FI3: (kTDV/ft2-yr) | FJ3: (kTDV/ft2-yr) | FK3: (kTDV/ft2-yr) | FL3: (kTDV/ft2-yr) | FM3: (kTDV/ft2-yr) | FN3: (kTDV/ft2-yr) | FO3: (kTDV/ft2-yr) | FP3: (kW) | FQ3: (kW) | FR3: (kW) | FS3: (kW) | FT3: (kW) | FU3: (kW) | FV3: (kW) | FW3: (kW) | FX3: (kW) | FY3: (kW) | FZ3: (kW) | GA3: (kWh) | GB3: (kWh) | GC3: (kWh) | GD3: (kWh) | GE3: (kWh) | GF3: (kWh) | GG3: (kWh) | GH3: (kWh) | GI3: (kWh) | GJ3: (kWh) | GK3: (Therms) | GL3: (Therms) | GM3: (Therms) | GN3: (Therms) | GO3: (Therms) | GP3: (Therms) | GQ3: (Therms) | GR3: (Therms) | GS3: (Therms) | GT3: (Therms) | GU3: (MMBtu) | GV3: (MMBtu) | GW3: (MMBtu) | GX3: (MMBtu) | GY3: (MMBtu) | GZ3: (MMBtu) | HA3: (MMBtu) | HB3: (MMBtu) | HC3: (MMBtu) | HD3: (MMBtu) | HE3: (kTDV/ft2-yr) | HF3: (kTDV/ft2-yr) | HG3: (kTDV/ft2-yr) | HH3: (kTDV/ft2-yr) | HI3: (kTDV/ft2-yr) | HJ3: (kTDV/ft2-yr) | HK3: (kTDV/ft2-yr) | HL3: (kTDV/ft2-yr) | HM3: (kTDV/ft2-yr) | HN3: (kTDV/ft2-yr) | HO3: (kW) | HP3: (kW) | HQ3: (kW) | HR3: (kW) | HS3: (kW) | HT3: (kW) | HU3: (kW) | HV3: (kW) | HW3: (kW) | HX3: (kW) | HY3: PV | HZ3: PV | IA3: Design
A4: 2016-08-31T17:03:07 | B4: T01R01 | C4: v26 01 S21 G20 M01 | D4: Proposed and Standard | E4: PASS | F4: 0 | G4: 0 | H4: 309.864 | I4: 0 | J4: 111.69 | K4: 0 | L4: 0 | M4: 1044.66 | N4: 957.89 | O4: 2206.29 | P4: 116.718 | Q4: 4747.12 | R4: 360.855 | S4: 0 | T4: 0 | U4: 0 | V4: 191.027 | W4: 0 | X4: 52.5151 | Y4: 0 | Z4: 0 | AA4: 604.397 | AB4: 0 | AC4: 0 | AD4: 0 | AE4: 0 | AF4: 0 | AG4: 0 | AH4: 0 | AI4: 0 | AJ4: 0 | AK4: 0 | AL4: 32.4 | AM4: 0 | AN4: 1.13 | AO4: 0 | AP4: 14.55 | AQ4: 0 | AR4: 11 | AS4: 13.78 | AT4: 22.61 | AU4: 1.15 | AV4: 96.62 | AW4: 48.08 | AX4: 309.864 | AY4: 0 | AZ4: 111.69 | BA4: 0 | BB4: 0 | BC4: 1044.66 | BD4: 957.89 | BE4: 2206.29 | BF4: 116.718 | BG4: 4747.12 | BH4: 360.855 | BI4: 0 | BJ4: 0 | BK4: 0 | BL4: 191.027 | BM4: 0 | BN4: 52.5151 | BO4: 0 | BP4: 0 | BQ4: 604.397 | BR4: 0 | BS4: 0 | BT4: 0 | BU4: 0 | BV4: 0 | BW4: 0 | BX4: 0 | BY4: 0 | BZ4: 0 | CA4: 0 | CB4: 32.4 | CC4: 0 | CD4: 1.13 | CE4: 0 | CF4: 14.55 | CG4: 11 | CH4: 13.78 | CI4: 22.61 | CJ4: 1.15 | CK4: 96.62 | CL4: 48.08 | CM4: CA Residential 2013, Vers. 1.0 | CN4: CSE 0.813 EXE | CP4: MPCBECC | CQ4: 0 | CR4: 0 | CS4: 0.0127538 | CT4: 0 | CU4: 0 | CV4: 0.132573 | CW4: 0.109774 | CX4: 0.254941 | CY4: 0.00647993 | CZ4: 0.516522 | DA4: 0.0127538 | DB4: 0 | DC4: 0 | DD4: 0.0127538 | DE4: 0 | DF4: 0 | DG4: 0.132573 | DH4: 0.109774 | DI4: 0.254941 | DJ4: 0.00647993 | DK4: 0.516522 | DL4: 0.0127538 | DM4: 0 | DN4: 0 | DO4: 0 | DP4: 0
A5: 2016-08-31T17:03:12 | B5: T01R02 | C5: v26 02 S21 G20 M01 | D5: Proposed and Standard | E5: PASS | F5: 0 | G5: 0 | H5: 208.925 | I5: 16.1766 | J5: 111.69 | K5: 0 | L5: 0 | M5: 1044.66 | N5: 957.89 | O5: 2206.29 | P5: 116.718 | Q5: 4662.35 | R5: 243.297 | S5: 0 | T5: 0 | U5: 0 | V5: 180.413 | W5: 0 | X5: 52.5151 | Y5: 0 | Z5: 0 | AA5: 476.225 | AB5: 0 | AC5: 0 | AD5: 0 | AE5: 0 | AF5: 0 | AG5: 0 | AH5: 0 | AI5: 0 | AJ5: 0 | AK5: 0 | AL5: 22.7 | AM5: 1.02 | AN5: 1.13 | AO5: 0 | AP5: 13.79 | AQ5: 0 | AR5: 11.01 | AS5: 13.78 | AT5: 22.62 | AU5: 1.14 | AV5: 87.19 | AW5: 38.64 | AX5: 208.925 | AY5: 16.1766 | AZ5: 111.69 | BA5: 0 | BB5: 0 | BC5: 1044.66 | BD5: 957.89 | BE5: 2206.29 | BF5: 116.718 | BG5: 4662.35 | BH5: 243.297 | BI5: 0 | BJ5: 0 | BK5: 0 | BL5: 180.413 | BM5: 0 | BN5: 52.5151 | BO5: 0 | BP5: 0 | BQ5: 476.225 | BR5: 0 | BS5: 0 | BT5: 0 | BU5: 0 | BV5: 0 | BW5: 0 | BX5: 0 | BY5: 0 | BZ5: 0 | CA5: 0 | CB5: 22.7 | CC5: 1.02 | CD5: 1.13 | CE5: 0 | CF5: 13.79 | CG5: 11.01 | CH5: 13.78 | CI5: 22.62 | CJ5: 1.14 | CK5: 87.19 | CL5: 38.64 | CM5: CA Residential 2013, Vers. 1.0 | CN5: CSE 0.813 EXE | CP5: MPCBECC | CQ5: 0 | CR5: 0.0625688 | CS5: 0.0127538 | CT5: 0 | CU5: 0 | CV5: 0.132573 | CW5: 0.109774 | CX5: 0.254941 | CY5: 0.00647993 | CZ5: 0.579091 | DA5: 0.0753225 | DB5: 0 | DC5: 0.0625688 | DD5: 0.0127538 | DE5: 0 | DF5: 0 | DG5: 0.132573 | DH5: 0.109774 | DI5: 0.254941 | DJ5: 0.00647993 | DK5: 0.579091 | DL5: 0.0753225 | DM5: 0 | DN5: 0 | DO5: 0 | DP5: 0
A6: 2016-08-31T17:03:11 | B6: T01R03 | C6: v26 03 S21 G20 M01 | D6: Proposed and Standard | E6: PASS | F6: 0 | G6: 0 | H6: 119.76 | I6: 0 | J6: 111.69 | K6: 0 | L6: 0 | M6: 1044.66 | N6: 957.89 | O6: 2206.29 | P6: 116.718 | Q6: 4557.01 | R6: 139.455 | S6: 0 | T6: 0 | U6: 0 | V6: 180.892 | W6: 0 | X6: 52.5151 | Y6: 0 | Z6: 0 | AA6: 372.862 | AB6: 0 | AC6: 0 | AD6: 0 | AE6: 0 | AF6: 0 | AG6: 0 | AH6: 0 | AI6: 0 | AJ6: 0 | AK6: 0 | AL6: 13.19 | AM6: 0 | AN6: 1.13 | AO6: 0 | AP6: 13.8 | AQ6: 0 | AR6: 10.96 | AS6: 13.78 | AT6: 22.6 | AU6: 1.14 | AV6: 76.6 | AW6: 28.12 | AX6: 119.76 | AY6: 0 | AZ6: 111.69 | BA6: 0 | BB6: 0 | BC6: 1044.66 | BD6: 957.89 | BE6: 2206.29 | BF6: 116.718 | BG6: 4557.01 | BH6: 139.455 | BI6: 0 | BJ6: 0 | BK6: 0 | BL6: 180.892 | BM6: 0 | BN6: 52.5151 | BO6: 0 | BP6: 0 | BQ6: 372.862 | BR6: 0 | BS6: 0 | BT6: 0 | BU6: 0 | BV6: 0 | BW6: 0 | BX6: 0 | BY6: 0 | BZ6: 0 | CA6: 0 | CB6: 13.19 | CC6: 0 | CD6: 1.13 | CE6: 0 | CF6: 13.8 | CG6: 10.96 | CH6: 13.78 | CI6: 22.6 | CJ6: 1.14 | CK6: 76.6 | CL6: 28.12 | CM6: CA Residential 2013, Vers. 1.0 | CN6: CSE 0.813 EXE | CP6: MPCBECC | CQ6: 0 | CR6: 0 | CS6: 0.0127538 | CT6: 0 | CU6: 0 | CV6: 0.132573 | CW6: 0.109774 | CX6: 0.254941 | CY6: 0.00647993 | CZ6: 0.516522 | DA6: 0.0127538 | DB6: 0 | DC6: 0 | DD6: 0.0127538 | DE6: 0 | DF6: 0 | DG6: 0.132573 | DH6: 0.109774 | DI6: 0.254941 | DJ6: 0.00647993 | DK6: 0.516522 | DL6: 0.0127538 | DM6: 0 | DN6: 0 | DO6: 0 | DP6: 0
A7: 2016-08-31T17:03:11 | B7: T01R04 | C7: v26 04 S21 G20 M01 | D7: Proposed and Standard | E7: PASS | F7: 0 | G7: 0 | H7: 158.292 | I7: 73.0588 | J7: 111.69 | K7: 0 | L7: 0 | M7: 1044.66 | N7: 957.89 | O7: 2206.29 | P7: 116.718 | Q7: 4668.6 | R7: 184.335 | S7: 0 | T7: 0 | U7: 0 | V7: 176.348 | W7: 0 | X7: 52.5151 | Y7: 0 | Z7: 0 | AA7: 413.197 | AB7: 0 | AC7: 0 | AD7: 0 | AE7: 0 | AF7: 0 | AG7: 0 | AH7: 0 | AI7: 0 | AJ7: 0 | AK7: 0 | AL7: 17.29 | AM7: 2.75 | AN7: 1.13 | AO7: 0 | AP7: 13.49 | AQ7: 0 | AR7: 11.03 | AS7: 13.79 | AT7: 22.64 | AU7: 1.14 | AV7: 83.26 | AW7: 34.66 | AX7: 158.292 | AY7: 73.0588 | AZ7: 111.69 | BA7: 0 | BB7: 0 | BC7: 1044.66 | BD7: 957.89 | BE7: 2206.29 | BF7: 116.718 | BG7: 4668.6 | BH7: 184.335 | BI7: 0 | BJ7: 0 | BK7: 0 | BL7: 176.348 | BM7: 0 | BN7: 52.5151 | BO7: 0 | BP7: 0 | BQ7: 413.197 | BR7: 0 | BS7: 0 | BT7: 0 | BU7: 0 | BV7: 0 | BW7: 0 | BX7: 0 | BY7: 0 | BZ7: 0 | CA7: 0 | CB7: 17.29 | CC7: 2.75 | CD7: 1.13 | CE7: 0 | CF7: 13.49 | CG7: 11.03 | CH7: 13.79 | CI7: 22.64 | CJ7: 1.14 | CK7: 83.26 | CL7: 34.66 | CM7: CA Residential 2013, Vers. 1.0 | CN7: CSE 0.813 EXE | CP7: MPCBECC | CQ7: 0 | CR7: 0.198419 | CS7: 0.0127538 | CT7: 0 | CU7: 0 | CV7: 0.132573 | CW7: 0.109774 | CX7: 0.254941 | CY7: 0.00647993 | CZ7: 0.714941 | DA7: 0.211173 | DB7: 0 | DC7: 0.198419 | DD7: 0.0127538 | DE7: 0 | DF7: 0 | DG7: 0.132573 | DH7: 0.109774 | DI7: 0.254941 | DJ7: 0.00647993 | DK7: 0.714941 | DL7: 0.211173 | DM7: 0 | DN7: 0 | DO7: 0 | DP7: 0
A8: 2016-08-31T17:03:11 | B8: T01R05 | C8: v26 05 S21 G20 M01 | D8: Proposed and Standard | E8: PASS | F8: 0 | G8: 0 | H8: 98.4221 | I8: 0 | J8: 111.69 | K8: 0 | L8: 0 | M8: 1044.66 | N8: 957.89 | O8: 2206.29 | P8: 116.718 | Q8: 4535.67 | R8: 114.621 | S8: 0 | T8: 0 | U8: 0 | V8: 183.121 | W8: 0 | X8: 52.5151 | Y8: 0 | Z8: 0 | AA8: 350.257 | AB8: 0 | AC8: 0 | AD8: 0 | AE8: 0 | AF8: 0 | AG8: 0 | AH8: 0 | AI8: 0 | AJ8: 0 | AK8: 0 | AL8: 10.61 | AM8: 0 | AN8: 1.13 | AO8: 0 | AP8: 13.96 | AQ8: 0 | AR8: 10.89 | AS8: 13.77 | AT8: 22.53 | AU8: 1.13 | AV8: 74.02 | AW8: 25.7 | AX8: 98.4222 | AY8: 0 | AZ8: 111.69 | BA8: 0 | BB8: 0 | BC8: 1044.66 | BD8: 957.89 | BE8: 2206.29 | BF8: 116.718 | BG8: 4535.67 | BH8: 114.621 | BI8: 0 | BJ8: 0 | BK8: 0 | BL8: 183.121 | BM8: 0 | BN8: 52.5151 | BO8: 0 | BP8: 0 | BQ8: 350.257 | BR8: 0 | BS8: 0 | BT8: 0 | BU8: 0 | BV8: 0 | BW8: 0 | BX8: 0 | BY8: 0 | BZ8: 0 | CA8: 0 | CB8: 10.61 | CC8: 0 | CD8: 1.13 | CE8: 0 | CF8: 13.96 | CG8: 10.89 | CH8: 13.77 | CI8: 22.53 | CJ8: 1.13 | CK8: 74.02 | CL8: 25.7 | CM8: CA Residential 2013, Vers. 1.0 | CN8: CSE 0.813 EXE | CP8: MPCBECC | CQ8: 0 | CR8: 0 | CS8: 0.0127538 | CT8: 0 | CU8: 0 | CV8: 0.132573 | CW8: 0.109774 | CX8: 0.254941 | CY8: 0.00647993 | CZ8: 0.516522 | DA8: 0.0127538 | DB8: 0 | DC8: 0 | DD8: 0.0127538 | DE8: 0 | DF8: 0 | DG8: 0.132573 | DH8: 0.109774 | DI8: 0.254941 | DJ8: 0.00647993 | DK8: 0.516522 | DL8: 0.0127538 | DM8: 0 | DN8: 0 | DO8: 0 | DP8: 0
A9: 2016-08-31T17:03:12 | B9: T01R06 | C9: v26 06 S21 G20 M01 | D9: Proposed and Standard | E9: PASS | F9: 0 | G9: 0 | H9: 50.5009 | I9: 46.8832 | J9: 111.69 | K9: 0 | L9: 0 | M9: 1044.66 | N9: 957.89 | O9: 2206.29 | P9: 116.718 | Q9: 4534.64 | R9: 58.8081 | S9: 0 | T9: 0 | U9: 0 | V9: 172.404 | W9: 0 | X9: 52.5151 | Y9: 0 | Z9: 0 | AA9: 283.727 | AB9: 0 | AC9: 0 | AD9: 0 | AE9: 0 | AF9: 0 | AG9: 0 | AH9: 0 | AI9: 0 | AJ9: 0 | AK9: 0 | AL9: 5.59 | AM9: 2.09 | AN9: 1.09 | AO9: 0 | AP9: 13.24 | AQ9: 0 | AR9: 10.6 | AS9: 13.48 | AT9: 21.84 | AU9: 1.1 | AV9: 69.03 | AW9: 22.01 | AX9: 50.5009 | AY9: 46.8832 | AZ9: 111.69 | BA9: 0 | BB9: 0 | BC9: 1044.66 | BD9: 957.89 | BE9: 2206.29 | BF9: 116.718 | BG9: 4534.64 | BH9: 58.8081 | BI9: 0 | BJ9: 0 | BK9: 0 | BL9: 172.404 | BM9: 0 | BN9: 52.5151 | BO9: 0 | BP9: 0 | BQ9: 283.727 | BR9: 0 | BS9: 0 | BT9: 0 | BU9: 0 | BV9: 0 | BW9: 0 | BX9: 0 | BY9: 0 | BZ9: 0 | CA9: 0 | CB9: 5.59 | CC9: 2.09 | CD9: 1.09 | CE9: 0 | CF9: 13.24 | CG9: 10.6 | CH9: 13.48 | CI9: 21.84 | CJ9: 1.1 | CK9: 69.03 | CL9: 22.01 | CM9: CA Residential 2013, Vers. 1.0 | CN9: CSE 0.813 EXE | CP9: MPCBECC | CQ9: 0 | CR9: 0.144859 | CS9: 0.0127538 | CT9: 0 | CU9: 0 | CV9: 0.132573 | CW9: 0.109774 | CX9: 0.254941 | CY9: 0.00647993 | CZ9: 0.66138 | DA9: 0.157612 | DB9: 0 | DC9: 0.144859 | DD9: 0.0127538 | DE9: 0 | DF9: 0 | DG9: 0.132573 | DH9: 0.109774 | DI9: 0.254941 | DJ9: 0.00647993 | DK9: 0.66138 | DL9: 0.157612 | DM9: 0 | DN9: 0 | DO9: 0 | DP9: 0
A10: 2016-08-31T17:03:09 | B10: T01R07 | C10: v26 07 S21 G20 M01 | D10: Proposed and Standard | E10: PASS | F10: 0 | G10: 0 | H10: 14.1955 | I10: 9.33663 | J10: 111.69 | K10: 0 | L10: 0 | M10: 1044.66 | N10: 957.89 | O10: 2206.29 | P10: 116.718 | Q10: 4460.78 | R10: 16.53 | S10: 0 | T10: 0 | U10: 0 | V10: 171.11 | W10: 0 | X10: 52.5151 | Y10: 0 | Z10: 0 | AA10: 240.155 | AB10: 0 | AC10: 0 | AD10: 0 | AE10: 0 | AF10: 0 | AG10: 0 | AH10: 0 | AI10: 0 | AJ10: 0 | AK10: 0 | AL10: 1.51 | AM10: 0.56 | AN10: 1.13 | AO10: 0 | AP10: 12.89 | AQ10: 0 | AR10: 11.1 | AS10: 13.77 | AT10: 22.75 | AU10: 1.17 | AV10: 64.88 | AW10: 16.09 | AX10: 14.1955 | AY10: 9.33663 | AZ10: 111.69 | BA10: 0 | BB10: 0 | BC10: 1044.66 | BD10: 957.89 | BE10: 2206.29 | BF10: 116.718 | BG10: 4460.78 | BH10: 16.53 | BI10: 0 | BJ10: 0 | BK10: 0 | BL10: 171.11 | BM10: 0 | BN10: 52.5151 | BO10: 0 | BP10: 0 | BQ10: 240.155 | BR10: 0 | BS10: 0 | BT10: 0 | BU10: 0 | BV10: 0 | BW10: 0 | BX10: 0 | BY10: 0 | BZ10: 0 | CA10: 0 | CB10: 1.51 | CC10: 0.56 | CD10: 1.13 | CE10: 0 | CF10: 12.89 | CG10: 11.1 | CH10: 13.77 | CI10: 22.75 | CJ10: 1.17 | CK10: 64.88 | CL10: 16.09 | CM10: CA Residential 2013, Vers. 1.0 | CN10: CSE 0.813 EXE | CP10: MPCBECC | CQ10: 0 | CR10: 0.044141 | CS10: 0.0127538 | CT10: 0 | CU10: 0 | CV10: 0.132573 | CW10: 0.109774 | CX10: 0.254941 | CY10: 0.00647993 | CZ10: 0.560663 | DA10: 0.0568948 | DB10: 0 | DC10: 0.044141 | DD10: 0.0127538 | DE10: 0 | DF10: 0 | DG10: 0.132573 | DH10: 0.109774 | DI10: 0.254941 | DJ10: 0.00647993 | DK10: 0.560663 | DL10: 0.0568948 | DM10: 0 | DN10: 0 | DO10: 0 | DP10: 0
A11: 2016-08-31T17:03:12 | B11: T01R08 | C11: v26 08 S21 G20 M01 | D11: Proposed and Standard | E11: PASS | F11: 0 | G11: 0 | H11: 34.9609 | I11: 364.376 | J11: 111.69 | K11: 0 | L11: 0 | M11: 1044.66 | N11: 957.89 | O11: 2206.29 | P11: 116.718 | Q11: 4836.59 | R11: 40.712 | S11: 0 | T11: 0 | U11: 0 | V11: 168.805 | W11: 0 | X11: 52.5151 | Y11: 0 | Z11: 0 | AA11: 262.032 | AB11: 0 | AC11: 0 | AD11: 0 | AE11: 0 | AF11: 0 | AG11: 0 | AH11: 0 | AI11: 0 | AJ11: 0 | AK11: 0 | AL11: 3.88 | AM11: 9.14 | AN11: 1.09 | AO11: 0 | AP11: 12.97 | AQ11: 0 | AR11: 10.67 | AS11: 13.5 | AT11: 21.92 | AU11: 1.12 | AV11: 74.29 | AW11: 27.08 | AX11: 34.9609 | AY11: 364.376 | AZ11: 111.69 | BA11: 0 | BB11: 0 | BC11: 1044.66 | BD11: 957.89 | BE11: 2206.29 | BF11: 116.718 | BG11: 4836.59 | BH11: 40.712 | BI11: 0 | BJ11: 0 | BK11: 0 | BL11: 168.805 | BM11: 0 | BN11: 52.5151 | BO11: 0 | BP11: 0 | BQ11: 262.032 | BR11: 0 | BS11: 0 | BT11: 0 | BU11: 0 | BV11: 0 | BW11: 0 | BX11: 0 | BY11: 0 | BZ11: 0 | CA11: 0 | CB11: 3.88 | CC11: 9.14 | CD11: 1.09 | CE11: 0 | CF11: 12.97 | CG11: 10.67 | CH11: 13.5 | CI11: 21.92 | CJ11: 1.12 | CK11: 74.29 | CL11: 27.08 | CM11: CA Residential 2013, Vers. 1.0 | CN11: CSE 0.813 EXE | CP11: MPCBECC | CQ11: 0 | CR11: 0.586574 | CS11: 0.0127538 | CT11: 0 | CU11: 0 | CV11: 0.132573 | CW11: 0.109774 | CX11: 0.254941 | CY11: 0.00647993 | CZ11: 1.1031 | DA11: 0.599327 | DB11: 0 | DC11: 0.586574 | DD11: 0.0127538 | DE11: 0 | DF11: 0 | DG11: 0.132573 | DH11: 0.109774 | DI11: 0.254941 | DJ11: 0.00647993 | DK11: 1.1031 | DL11: 0.599327 | DM11: 0 | DN11: 0 | DO11: 0 | DP11: 0
A12: 2016-08-31T17:03:07 | B12: T01R09 | C12: v26 09 S21 G20 M01 | D12: Proposed and Standard | E12: PASS | F12: 0 | G12: 0 | H12: 56.2129 | I12: 685.125 | J12: 111.69 | K12: 0 | L12: 0 | M12: 1044.66 | N12: 957.89 | O12: 2206.29 | P12: 116.718 | Q12: 5178.59 | R12: 65.4796 | S12: 0 | T12: 0 | U12: 0 | V12: 168.621 | W12: 0 | X12: 52.5151 | Y12: 0 | Z12: 0 | AA12: 286.616 | AB12: 0 | AC12: 0 | AD12: 0 | AE12: 0 | AF12: 0 | AG12: 0 | AH12: 0 | AI12: 0 | AJ12: 0 | AK12: 0 | AL12: 6.18 | AM12: 20.04 | AN12: 1.09 | AO12: 0 | AP12: 12.98 | AQ12: 0 | AR12: 10.57 | AS12: 13.43 | AT12: 21.73 | AU12: 1.1 | AV12: 87.12 | AW12: 40.29 | AX12: 56.2128 | AY12: 685.125 | AZ12: 111.69 | BA12: 0 | BB12: 0 | BC12: 1044.66 | BD12: 957.89 | BE12: 2206.29 | BF12: 116.718 | BG12: 5178.59 | BH12: 65.4796 | BI12: 0 | BJ12: 0 | BK12: 0 | BL12: 168.621 | BM12: 0 | BN12: 52.5151 | BO12: 0 | BP12: 0 | BQ12: 286.616 | BR12: 0 | BS12: 0 | BT12: 0 | BU12: 0 | BV12: 0 | BW12: 0 | BX12: 0 | BY12: 0 | BZ12: 0 | CA12: 0 | CB12: 6.18 | CC12: 20.04 | CD12: 1.09 | CE12: 0 | CF12: 12.98 | CG12: 10.57 | CH12: 13.43 | CI12: 21.73 | CJ12: 1.1 | CK12: 87.12 | CL12: 40.29 | CM12: CA Residential 2013, Vers. 1.0 | CN12: CSE 0.813 EXE | CP12: MPCBECC | CQ12: 0 | CR12: 1.22111 | CS12: 0.0127538 | CT12: 0 | CU12: 0 | CV12: 0.132573 | CW12: 0.109774 | CX12: 0.254941 | CY12: 0.00647993 | CZ12: 1.73764 | DA12: 1.23387 | DB12: 0 | DC12: 1.22111 | DD12: 0.0127538 | DE12: 0 | DF12: 0 | DG12: 0.132573 | DH12: 0.109774 | DI12: 0.254941 | DJ12: 0.00647993 | DK12: 1.73764 | DL12: 1.23387 | DM12: 0 | DN12: 0 | DO12: 0 | DP12: 0
A13: 2016-08-31T17:03:07 | B13: T01R10 | C13: v26 10 S21 G20 M01 | D13: Proposed and Standard | E13: PASS | F13: 0 | G13: 0 | H13: 67.6431 | I13: 838.158 | J13: 111.69 | K13: 0 | L13: 0 | M13: 1044.66 | N13: 957.89 | O13: 2206.29 | P13: 116.718 | Q13: 5343.05 | R13: 78.7978 | S13: 0 | T13: 0 | U13: 0 | V13: 167.936 | W13: 0 | X13: 52.5151 | Y13: 0 | Z13: 0 | AA13: 299.249 | AB13: 0 | AC13: 0 | AD13: 0 | AE13: 0 | AF13: 0 | AG13: 0 | AH13: 0 | AI13: 0 | AJ13: 0 | AK13: 0 | AL13: 7.41 | AM13: 20.48 | AN13: 1.08 | AO13: 0 | AP13: 12.94 | AQ13: 0 | AR13: 10.48 | AS13: 13.41 | AT13: 21.64 | AU13: 1.1 | AV13: 88.54 | AW13: 41.91 | AX13: 67.6431 | AY13: 838.158 | AZ13: 111.69 | BA13: 0 | BB13: 0 | BC13: 1044.66 | BD13: 957.89 | BE13: 2206.29 | BF13: 116.718 | BG13: 5343.05 | BH13: 78.7978 | BI13: 0 | BJ13: 0 | BK13: 0 | BL13: 167.936 | BM13: 0 | BN13: 52.5151 | BO13: 0 | BP13: 0 | BQ13: 299.249 | BR13: 0 | BS13: 0 | BT13: 0 | BU13: 0 | BV13: 0 | BW13: 0 | BX13: 0 | BY13: 0 | BZ13: 0 | CA13: 0 | CB13: 7.41 | CC13: 20.48 | CD13: 1.08 | CE13: 0 | CF13: 12.94 | CG13: 10.48 | CH13: 13.41 | CI13: 21.64 | CJ13: 1.1 | CK13: 88.54 | CL13: 41.91 | CM13: CA Residential 2013, Vers. 1.0 | CN13: CSE 0.813 EXE | CP13: MPCBECC | CQ13: 0 | CR13: 1.30707 | CS13: 0.0127538 | CT13: 0 | CU13: 0 | CV13: 0.132573 | CW13: 0.109774 | CX13: 0.254941 | CY13: 0.00647993 | CZ13: 1.82359 | DA13: 1.31982 | DB13: 0 | DC13: 1.30707 | DD13: 0.0127538 | DE13: 0 | DF13: 0 | DG13: 0.132573 | DH13: 0.109774 | DI13: 0.254941 | DJ13: 0.00647993 | DK13: 1.82359 | DL13: 1.31982 | DM13: 0 | DN13: 0 | DO13: 0 | DP13: 0
A14: 2016-08-31T17:03:10 | B14: T01R11 | C14: v26 11 S21 G20 M01 | D14: Proposed and Standard | E14: PASS | F14: 0 | G14: 0 | H14: 187.452 | I14: 1675.92 | J14: 111.69 | K14: 0 | L14: 0 | M14: 1044.66 | N14: 957.89 | O14: 2206.29 | P14: 116.718 | Q14: 6300.62 | R14: 218.314 | S14: 0 | T14: 0 | U14: 0 | V14: 169.437 | W14: 0 | X14: 52.5151 | Y14: 0 | Z14: 0 | AA14: 440.266 | AB14: 0 | AC14: 0 | AD14: 0 | AE14: 0 | AF14: 0 | AG14: 0 | AH14: 0 | AI14: 0 | AJ14: 0 | AK14: 0 | AL14: 20.54 | AM14: 39.97 | AN14: 1.13 | AO14: 0 | AP14: 13.05 | AQ14: 0 | AR14: 11.11 | AS14: 13.79 | AT14: 22.68 | AU14: 1.16 | AV14: 123.43 | AW14: 74.69 | AX14: 187.452 | AY14: 1675.92 | AZ14: 111.69 | BA14: 0 | BB14: 0 | BC14: 1044.66 | BD14: 957.89 | BE14: 2206.29 | BF14: 116.718 | BG14: 6300.62 | BH14: 218.313 | BI14: 0 | BJ14: 0 | BK14: 0 | BL14: 169.437 | BM14: 0 | BN14: 52.5151 | BO14: 0 | BP14: 0 | BQ14: 440.265 | BR14: 0 | BS14: 0 | BT14: 0 | BU14: 0 | BV14: 0 | BW14: 0 | BX14: 0 | BY14: 0 | BZ14: 0 | CA14: 0 | CB14: 20.54 | CC14: 39.97 | CD14: 1.13 | CE14: 0 | CF14: 13.05 | CG14: 11.11 | CH14: 13.79 | CI14: 22.68 | CJ14: 1.16 | CK14: 123.43 | CL14: 74.69 | CM14: CA Residential 2013, Vers. 1.0 | CN14: CSE 0.813 EXE | CP14: MPCBECC | CQ14: 0 | CR14: 1.8903 | CS14: 0.0127538 | CT14: 0 | CU14: 0 | CV14: 0.132573 | CW14: 0.109774 | CX14: 0.254941 | CY14: 0.00647993 | CZ14: 2.40682 | DA14: 1.90306 | DB14: 0 | DC14: 1.8903 | DD14: 0.0127538 | DE14: 0 | DF14: 0 | DG14: 0.132573 | DH14: 0.109774 | DI14: 0.254941 | DJ14: 0.00647993 | DK14: 2.40682 | DL14: 1.90306 | DM14: 0 | DN14: 0 | DO14: 0 | DP14: 0
A15: 2016-08-31T17:03:10 | B15: T01R12 | C15: v26 12 S21 G20 M01 | D15: Proposed and Standard | E15: PASS | F15: 0 | G15: 0 | H15: 202.174 | I15: 429.942 | J15: 111.69 | K15: 0 | L15: 0 | M15: 1044.66 | N15: 957.89 | O15: 2206.29 | P15: 116.718 | Q15: 5069.37 | R15: 235.423 | S15: 0 | T15: 0 | U15: 0 | V15: 173.765 | W15: 0 | X15: 52.5151 | Y15: 0 | Z15: 0 | AA15: 461.702 | AB15: 0 | AC15: 0 | AD15: 0 | AE15: 0 | AF15: 0 | AG15: 0 | AH15: 0 | AI15: 0 | AJ15: 0 | AK15: 0 | AL15: 22.22 | AM15: 14.64 | AN15: 1.13 | AO15: 0 | AP15: 13.33 | AQ15: 0 | AR15: 11.16 | AS15: 13.8 | AT15: 22.73 | AU15: 1.16 | AV15: 100.17 | AW15: 51.32 | AX15: 202.173 | AY15: 429.942 | AZ15: 111.69 | BA15: 0 | BB15: 0 | BC15: 1044.66 | BD15: 957.89 | BE15: 2206.29 | BF15: 116.718 | BG15: 5069.37 | BH15: 235.422 | BI15: 0 | BJ15: 0 | BK15: 0 | BL15: 173.765 | BM15: 0 | BN15: 52.5151 | BO15: 0 | BP15: 0 | BQ15: 461.702 | BR15: 0 | BS15: 0 | BT15: 0 | BU15: 0 | BV15: 0 | BW15: 0 | BX15: 0 | BY15: 0 | BZ15: 0 | CA15: 0 | CB15: 22.22 | CC15: 14.64 | CD15: 1.13 | CE15: 0 | CF15: 13.33 | CG15: 11.16 | CH15: 13.8 | CI15: 22.73 | CJ15: 1.16 | CK15: 100.17 | CL15: 51.32 | CM15: CA Residential 2013, Vers. 1.0 | CN15: CSE 0.813 EXE | CP15: MPCBECC | CQ15: 0 | CR15: 0.819695 | CS15: 0.0127538 | CT15: 0 | CU15: 0 | CV15: 0.132573 | CW15: 0.109774 | CX15: 0.254941 | CY15: 0.00647993 | CZ15: 1.33622 | DA15: 0.832449 | DB15: 0 | DC15: 0.819695 | DD15: 0.0127538 | DE15: 0 | DF15: 0 | DG15: 0.132573 | DH15: 0.109774 | DI15: 0.254941 | DJ15: 0.00647993 | DK15: 1.33622 | DL15: 0.832449 | DM15: 0 | DN15: 0 | DO15: 0 | DP15: 0
A16: 2016-08-31T17:03:10 | B16: T01R13 | C16: v26 13 S21 G20 M01 | D16: Proposed and Standard | E16: PASS | F16: 0 | G16: 0 | H16: 166.107 | I16: 1943.96 | J16: 111.69 | K16: 0 | L16: 0 | M16: 1044.66 | N16: 957.89 | O16: 2206.29 | P16: 116.718 | Q16: 6547.32 | R16: 193.452 | S16: 0 | T16: 0 | U16: 0 | V16: 167.773 | W16: 0 | X16: 52.5151 | Y16: 0 | Z16: 0 | AA16: 413.74 | AB16: 0 | AC16: 0 | AD16: 0 | AE16: 0 | AF16: 0 | AG16: 0 | AH16: 0 | AI16: 0 | AJ16: 0 | AK16: 0 | AL16: 18.35 | AM16: 44.77 | AN16: 1.13 | AO16: 0 | AP16: 12.92 | AQ16: 0 | AR16: 11.09 | AS16: 13.79 | AT16: 22.68 | AU16: 1.15 | AV16: 125.88 | AW16: 77.17 | AX16: 166.106 | AY16: 1943.96 | AZ16: 111.69 | BA16: 0 | BB16: 0 | BC16: 1044.66 | BD16: 957.89 | BE16: 2206.29 | BF16: 116.718 | BG16: 6547.32 | BH16: 193.452 | BI16: 0 | BJ16: 0 | BK16: 0 | BL16: 167.773 | BM16: 0 | BN16: 52.5151 | BO16: 0 | BP16: 0 | BQ16: 413.74 | BR16: 0 | BS16: 0 | BT16: 0 | BU16: 0 | BV16: 0 | BW16: 0 | BX16: 0 | BY16: 0 | BZ16: 0 | CA16: 0 | CB16: 18.35 | CC16: 44.77 | CD16: 1.13 | CE16: 0 | CF16: 12.92 | CG16: 11.09 | CH16: 13.79 | CI16: 22.68 | CJ16: 1.15 | CK16: 125.88 | CL16: 77.17 | CM16: CA Residential 2013, Vers. 1.0 | CN16: CSE 0.813 EXE | CP16: MPCBECC | CQ16: 0 | CR16: 2.29044 | CS16: 0.0127538 | CT16: 0 | CU16: 0 | CV16: 0.132573 | CW16: 0.109774 | CX16: 0.254941 | CY16: 0.00647993 | CZ16: 2.80696 | DA16: 2.30319 | DB16: 0 | DC16: 2.29044 | DD16: 0.0127538 | DE16: 0 | DF16: 0 | DG16: 0.132573 | DH16: 0.109774 | DI16: 0.254941 | DJ16: 0.00647993 | DK16: 2.80696 | DL16: 2.30319 | DM16: 0 | DN16: 0 | DO16: 0 | DP16: 0
A17: 2016-08-31T17:03:25 | B17: T01R14 | C17: v26 14 S21 G20 M01 | D17: Proposed and Standard | E17: PASS | F17: 0 | G17: 0 | H17: 182.489 | I17: 1598.03 | J17: 111.69 | K17: 0 | L17: 0 | M17: 1044.66 | N17: 957.89 | O17: 2206.29 | P17: 116.718 | Q17: 6217.77 | R17: 212.759 | S17: 0 | T17: 0 | U17: 0 | V17: 170.318 | W17: 0 | X17: 52.5151 | Y17: 0 | Z17: 0 | AA17: 435.592 | AB17: 0 | AC17: 0 | AD17: 0 | AE17: 0 | AF17: 0 | AG17: 0 | AH17: 0 | AI17: 0 | AJ17: 0 | AK17: 0 | AL17: 20.06 | AM17: 36.18 | AN17: 1.08 | AO17: 0 | AP17: 13.21 | AQ17: 0 | AR17: 10.59 | AS17: 13.41 | AT17: 21.68 | AU17: 1.1 | AV17: 117.31 | AW17: 70.53 | AX17: 182.489 | AY17: 1598.03 | AZ17: 111.69 | BA17: 0 | BB17: 0 | BC17: 1044.66 | BD17: 957.89 | BE17: 2206.29 | BF17: 116.718 | BG17: 6217.77 | BH17: 212.759 | BI17: 0 | BJ17: 0 | BK17: 0 | BL17: 170.318 | BM17: 0 | BN17: 52.5151 | BO17: 0 | BP17: 0 | BQ17: 435.592 | BR17: 0 | BS17: 0 | BT17: 0 | BU17: 0 | BV17: 0 | BW17: 0 | BX17: 0 | BY17: 0 | BZ17: 0 | CA17: 0 | CB17: 20.06 | CC17: 36.18 | CD17: 1.08 | CE17: 0 | CF17: 13.21 | CG17: 10.59 | CH17: 13.41 | CI17: 21.68 | CJ17: 1.1 | CK17: 117.31 | CL17: 70.53 | CM17: CA Residential 2013, Vers. 1.0 | CN17: CSE 0.813 EXE | CP17: MPCBECC | CQ17: 0 | CR17: 1.92233 | CS17: 0.0127538 | CT17: 0 | CU17: 0 | CV17: 0.132573 | CW17: 0.109774 | CX17: 0.254941 | CY17: 0.00647993 | CZ17: 2.43885 | DA17: 1.93508 | DB17: 0 | DC17: 1.92233 | DD17: 0.0127538 | DE17: 0 | DF17: 0 | DG17: 0.132573 | DH17: 0.109774 | DI17: 0.254941 | DJ17: 0.00647993 | DK17: 2.43885 | DL17: 1.93508 | DM17: 0 | DN17: 0 | DO17: 0 | DP17: 0
A18: 2016-08-31T17:03:08 | B18: T01R15 | C18: v26 15 S21 G20 M01 | D18: Proposed and Standard | E18: PASS | F18: 0 | G18: 0 | H18: 5.46332 | I18: 5779.57 | J18: 111.69 | K18: 0 | L18: 0 | M18: 1044.66 | N18: 957.89 | O18: 2206.29 | P18: 116.718 | Q18: 10222.3 | R18: 6.36316 | S18: 0 | T18: 0 | U18: 0 | V18: 146.706 | W18: 0 | X18: 52.5151 | Y18: 0 | Z18: 0 | AA18: 205.585 | AB18: 0 | AC18: 0 | AD18: 0 | AE18: 0 | AF18: 0 | AG18: 0 | AH18: 0 | AI18: 0 | AJ18: 0 | AK18: 0 | AL18: 0.61 | AM18: 98.95 | AN18: 1.09 | AO18: 0 | AP18: 11.41 | AQ18: 0 | AR18: 10.63 | AS18: 13.43 | AT18: 21.73 | AU18: 1.11 | AV18: 158.96 | AW18: 112.06 | AX18: 5.46332 | AY18: 5779.57 | AZ18: 111.69 | BA18: 0 | BB18: 0 | BC18: 1044.66 | BD18: 957.89 | BE18: 2206.29 | BF18: 116.718 | BG18: 10222.3 | BH18: 6.36316 | BI18: 0 | BJ18: 0 | BK18: 0 | BL18: 146.706 | BM18: 0 | BN18: 52.5151 | BO18: 0 | BP18: 0 | BQ18: 205.585 | BR18: 0 | BS18: 0 | BT18: 0 | BU18: 0 | BV18: 0 | BW18: 0 | BX18: 0 | BY18: 0 | BZ18: 0 | CA18: 0 | CB18: 0.61 | CC18: 98.95 | CD18: 1.09 | CE18: 0 | CF18: 11.41 | CG18: 10.63 | CH18: 13.43 | CI18: 21.73 | CJ18: 1.11 | CK18: 158.96 | CL18: 112.06 | CM18: CA Residential 2013, Vers. 1.0 | CN18: CSE 0.813 EXE | CP18: MPCBECC | CQ18: 0 | CR18: 4.1847 | CS18: 0.0127538 | CT18: 0 | CU18: 0 | CV18: 0.132573 | CW18: 0.109774 | CX18: 0.254941 | CY18: 0.00647993 | CZ18: 4.70122 | DA18: 4.19746 | DB18: 0 | DC18: 4.1847 | DD18: 0.0127538 | DE18: 0 | DF18: 0 | DG18: 0.132573 | DH18: 0.109774 | DI18: 0.254941 | DJ18: 0.00647993 | DK18: 4.70122 | DL18: 4.19746 | DM18: 0 | DN18: 0 | DO18: 0 | DP18: 0
A19: 2016-08-31T17:03:09 | B19: T01R16 | C19: v26 16 S21 G20 M01 | D19: Proposed and Standard | E19: PASS | F19: 0 | G19: 0 | H19: 455.014 | I19: 96.2848 | J19: 111.69 | K19: 0 | L19: 0 | M19: 1044.66 | N19: 957.89 | O19: 2206.29 | P19: 116.718 | Q19: 4988.55 | R19: 531.281 | S19: 0 | T19: 0 | U19: 0 | V19: 189.976 | W19: 0 | X19: 52.5151 | Y19: 0 | Z19: 0 | AA19: 773.772 | AB19: 0 | AC19: 0 | AD19: 0 | AE19: 0 | AF19: 0 | AG19: 0 | AH19: 0 | AI19: 0 | AJ19: 0 | AK19: 0 | AL19: 48.38 | AM19: 3.65 | AN19: 1.08 | AO19: 0 | AP19: 14.66 | AQ19: 0 | AR19: 10.53 | AS19: 13.4 | AT19: 21.64 | AU19: 1.09 | AV19: 114.43 | AW19: 67.77 | AX19: 455.015 | AY19: 96.2848 | AZ19: 111.69 | BA19: 0 | BB19: 0 | BC19: 1044.66 | BD19: 957.89 | BE19: 2206.29 | BF19: 116.718 | BG19: 4988.55 | BH19: 531.282 | BI19: 0 | BJ19: 0 | BK19: 0 | BL19: 189.976 | BM19: 0 | BN19: 52.5151 | BO19: 0 | BP19: 0 | BQ19: 773.773 | BR19: 0 | BS19: 0 | BT19: 0 | BU19: 0 | BV19: 0 | BW19: 0 | BX19: 0 | BY19: 0 | BZ19: 0 | CA19: 0 | CB19: 48.38 | CC19: 3.65 | CD19: 1.08 | CE19: 0 | CF19: 14.66 | CG19: 10.53 | CH19: 13.4 | CI19: 21.64 | CJ19: 1.09 | CK19: 114.43 | CL19: 67.77 | CM19: CA Residential 2013, Vers. 1.0 | CN19: CSE 0.813 EXE | CP19: MPCBECC | CQ19: 0 | CR19: 0.219434 | CS19: 0.0127538 | CT19: 0 | CU19: 0 | CV19: 0.132573 | CW19: 0.109774 | CX19: 0.254941 | CY19: 0.00647993 | CZ19: 0.735956 | DA19: 0.232188 | DB19: 0 | DC19: 0.219434 | DD19: 0.0127538 | DE19: 0 | DF19: 0 | DG19: 0.132573 | DH19: 0.109774 | DI19: 0.254941 | DJ19: 0.00647993 | DK19: 0.735956 | DL19: 0.232188 | DM19: 5.96046e-08 | DN19: 1.49012e-08 | DO19: 0 | DP19: 0
A20: 2016-08-31T17:03:10 | B20: T02R01 | C20: v26 01 S27 G20 M01 | D20: Proposed and Standard | E20: PASS | F20: 0 | G20: 0 | H20: 309.226 | I20: 0 | J20: 141.255 | K20: 0 | L20: 0 | M20: 1299.86 | N20: 1022.71 | O20: 2630.03 | P20: 161.406 | Q20: 5564.49 | R20: 360.112 | S20: 0 | T20: 0 | U20: 0 | V20: 204.655 | W20: 0 | X20: 60.3752 | Y20: 0 | Z20: 0 | AA20: 625.141 | AB20: 0 | AC20: 0 | AD20: 0 | AE20: 0 | AF20: 0 | AG20: 0 | AH20: 0 | AI20: 0 | AJ20: 0 | AK20: 0 | AL20: 25.3 | AM20: 0 | AN20: 1.11 | AO20: 0 | AP20: 12.12 | AQ20: 0 | AR20: 10.64 | AS20: 11.71 | AT20: 20.96 | AU20: 1.23 | AV20: 83.07 | AW20: 38.53 | AX20: 309.226 | AY20: 0 | AZ20: 141.255 | BA20: 0 | BB20: 0 | BC20: 1299.86 | BD20: 1022.71 | BE20: 2630.03 | BF20: 161.406 | BG20: 5564.49 | BH20: 360.112 | BI20: 0 | BJ20: 0 | BK20: 0 | BL20: 204.655 | BM20: 0 | BN20: 60.3752 | BO20: 0 | BP20: 0 | BQ20: 625.141 | BR20: 0 | BS20: 0 | BT20: 0 | BU20: 0 | BV20: 0 | BW20: 0 | BX20: 0 | BY20: 0 | BZ20: 0 | CA20: 0 | CB20: 25.3 | CC20: 0 | CD20: 1.11 | CE20: 0 | CF20: 12.12 | CG20: 10.64 | CH20: 11.71 | CI20: 20.96 | CJ20: 1.23 | CK20: 83.07 | CL20: 38.53 | CM20: CA Residential 2013, Vers. 1.0 | CN20: CSE 0.813 EXE | CP20: MPCBECC | CQ20: 0 | CR20: 0 | CS20: 0.0161297 | CT20: 0 | CU20: 0 | CV20: 0.16496 | CW20: 0.117264 | CX20: 0.303904 | CY20: 0.00896094 | CZ20: 0.611219 | DA20: 0.0161297 | DB20: 0 | DC20: 0 | DD20: 0.0161297 | DE20: 0 | DF20: 0 | DG20: 0.16496 | DH20: 0.117264 | DI20: 0.303904 | DJ20: 0.00896094 | DK20: 0.611219 | DL20: 0.0161297 | DM20: 0 | DN20: 0 | DO20: 0 | DP20: 0
A21: 2016-08-31T17:02:59 | B21: T02R02 | C21: v26 02 S27 G20 M01 | D21: Proposed and Standard | E21: PASS | F21: 0 | G21: 0 | H21: 234.941 | I21: 71.688 | J21: 141.255 | K21: 0 | L21: 0 | M21: 1299.86 | N21: 1022.71 | O21: 2630.03 | P21: 161.406 | Q21: 5561.89 | R21: 273.593 | S21: 0 | T21: 0 | U21: 0 | V21: 193.11 | W21: 0 | X21: 60.3752 | Y21: 0 | Z21: 0 | AA21: 527.078 | AB21: 0 | AC21: 0 | AD21: 0 | AE21: 0 | AF21: 0 | AG21: 0 | AH21: 0 | AI21: 0 | AJ21: 0 | AK21: 0 | AL21: 19.86 | AM21: 2.96 | AN21: 1.11 | AO21: 0 | AP21: 11.48 | AQ21: 0 | AR21: 10.65 | AS21: 11.71 | AT21: 20.97 | AU21: 1.23 | AV21: 79.97 | AW21: 35.41 | AX21: 234.941 | AY21: 71.688 | AZ21: 141.255 | BA21: 0 | BB21: 0 | BC21: 1299.86 | BD21: 1022.71 | BE21: 2630.03 | BF21: 161.406 | BG21: 5561.89 | BH21: 273.592 | BI21: 0 | BJ21: 0 | BK21: 0 | BL21: 193.11 | BM21: 0 | BN21: 60.3752 | BO21: 0 | BP21: 0 | BQ21: 527.077 | BR21: 0 | BS21: 0 | BT21: 0 | BU21: 0 | BV21: 0 | BW21: 0 | BX21: 0 | BY21: 0 | BZ21: 0 | CA21: 0 | CB21: 19.86 | CC21: 2.96 | CD21: 1.11 | CE21: 0 | CF21: 11.48 | CG21: 10.65 | CH21: 11.71 | CI21: 20.97 | CJ21: 1.23 | CK21: 79.97 | CL21: 35.41 | CM21: CA Residential 2013, Vers. 1.0 | CN21: CSE 0.813 EXE | CP21: MPCBECC | CQ21: 0 | CR21: 0.218968 | CS21: 0.0161297 | CT21: 0 | CU21: 0 | CV21: 0.16496 | CW21: 0.117264 | CX21: 0.303904 | CY21: 0.00896094 | CZ21: 0.830187 | DA21: 0.235098 | DB21: 0 | DC21: 0.218968 | DD21: 0.0161297 | DE21: 0 | DF21: 0 | DG21: 0.16496 | DH21: 0.117264 | DI21: 0.303904 | DJ21: 0.00896094 | DK21: 0.830187 | DL21: 0.235098 | DM21: 0 | DN21: 0 | DO21: 0 | DP21: 0
A22: 2016-08-31T17:03:03 | B22: T02R03 | C22: v26 03 S27 G20 M01 | D22: Proposed and Standard | E22: PASS | F22: 0 | G22: 0 | H22: 122.061 | I22: 6.22351 | J22: 141.255 | K22: 0 | L22: 0 | M22: 1299.86 | N22: 1022.71 | O22: 2630.03 | P22: 161.406 | Q22: 5383.55 | R22: 142.134 | S22: 0 | T22: 0 | U22: 0 | V22: 193.626 | W22: 0 | X22: 60.3752 | Y22: 0 | Z22: 0 | AA22: 396.136 | AB22: 0 | AC22: 0 | AD22: 0 | AE22: 0 | AF22: 0 | AG22: 0 | AH22: 0 | AI22: 0 | AJ22: 0 | AK22: 0 | AL22: 10.49 | AM22: 0.29 | AN22: 1.11 | AO22: 0 | AP22: 11.49 | AQ22: 0 | AR22: 10.61 | AS22: 11.71 | AT22: 20.95 | AU22: 1.22 | AV22: 67.87 | AW22: 23.38 | AX22: 122.061 | AY22: 6.22351 | AZ22: 141.255 | BA22: 0 | BB22: 0 | BC22: 1299.86 | BD22: 1022.71 | BE22: 2630.03 | BF22: 161.406 | BG22: 5383.55 | BH22: 142.134 | BI22: 0 | BJ22: 0 | BK22: 0 | BL22: 193.626 | BM22: 0 | BN22: 60.3752 | BO22: 0 | BP22: 0 | BQ22: 396.136 | BR22: 0 | BS22: 0 | BT22: 0 | BU22: 0 | BV22: 0 | BW22: 0 | BX22: 0 | BY22: 0 | BZ22: 0 | CA22: 0 | CB22: 10.49 | CC22: 0.29 | CD22: 1.11 | CE22: 0 | CF22: 11.49 | CG22: 10.61 | CH22: 11.71 | CI22: 20.95 | CJ22: 1.22 | CK22: 67.87 | CL22: 23.38 | CM22: CA Residential 2013, Vers. 1.0 | CN22: CSE 0.813 EXE | CP22: MPCBECC | CQ22: 0 | CR22: 0.0275584 | CS22: 0.0161297 | CT22: 0 | CU22: 0 | CV22: 0.16496 | CW22: 0.117264 | CX22: 0.303904 | CY22: 0.00896094 | CZ22: 0.638777 | DA22: 0.0436881 | DB22: 0 | DC22: 0.0275584 | DD22: 0.0161297 | DE22: 0 | DF22: 0 | DG22: 0.16496 | DH22: 0.117264 | DI22: 0.303904 | DJ22: 0.00896094 | DK22: 0.638777 | DL22: 0.0436881 | DM22: 0 | DN22: 0 | DO22: 0 | DP22: 0
A23: 2016-08-31T17:03:04 | B23: T02R04 | C23: v26 04 S27 G20 M01 | D23: Proposed and Standard | E23: PASS | F23: 0 | G23: 0 | H23: 178.407 | I23: 159.893 | J23: 141.255 | K23: 0 | L23: 0 | M23: 1299.86 | N23: 1022.71 | O23: 2630.03 | P23: 161.406 | Q23: 5593.56 | R23: 207.759 | S23: 0 | T23: 0 | U23: 0 | V23: 188.685 | W23: 0 | X23: 60.3752 | Y23: 0 | Z23: 0 | AA23: 456.82 | AB23: 0 | AC23: 0 | AD23: 0 | AE23: 0 | AF23: 0 | AG23: 0 | AH23: 0 | AI23: 0 | AJ23: 0 | AK23: 0 | AL23: 15.16 | AM23: 4.26 | AN23: 1.11 | AO23: 0 | AP23: 11.22 | AQ23: 0 | AR23: 10.67 | AS23: 11.71 | AT23: 20.99 | AU23: 1.23 | AV23: 76.35 | AW23: 31.75 | AX23: 178.407 | AY23: 159.893 | AZ23: 141.255 | BA23: 0 | BB23: 0 | BC23: 1299.86 | BD23: 1022.71 | BE23: 2630.03 | BF23: 161.406 | BG23: 5593.56 | BH23: 207.759 | BI23: 0 | BJ23: 0 | BK23: 0 | BL23: 188.685 | BM23: 0 | BN23: 60.3752 | BO23: 0 | BP23: 0 | BQ23: 456.819 | BR23: 0 | BS23: 0 | BT23: 0 | BU23: 0 | BV23: 0 | BW23: 0 | BX23: 0 | BY23: 0 | BZ23: 0 | CA23: 0 | CB23: 15.16 | CC23: 4.26 | CD23: 1.11 | CE23: 0 | CF23: 11.22 | CG23: 10.67 | CH23: 11.71 | CI23: 20.99 | CJ23: 1.23 | CK23: 76.35 | CL23: 31.75 | CM23: CA Residential 2013, Vers. 1.0 | CN23: CSE 0.813 EXE | CP23: MPCBECC | CQ23: 0 | CR23: 0.382657 | CS23: 0.0161297 | CT23: 0 | CU23: 0 | CV23: 0.16496 | CW23: 0.117264 | CX23: 0.303904 | CY23: 0.00896094 | CZ23: 0.993876 | DA23: 0.398786 | DB23: 0 | DC23: 0.382657 | DD23: 0.0161297 | DE23: 0 | DF23: 0 | DG23: 0.16496 | DH23: 0.117264 | DI23: 0.303904 | DJ23: 0.00896094 | DK23: 0.993876 | DL23: 0.398786 | DM23: 1.19209e-07 | DN23: 1.19209e-07 | DO23: 0 | DP23: 0
A24: 2016-08-31T17:03:04 | B24: T02R05 | C24: v26 05 S27 G20 M01 | D24: Proposed and Standard | E24: PASS | F24: 0 | G24: 0 | H24: 95.4488 | I24: 0.299821 | J24: 141.255 | K24: 0 | L24: 0 | M24: 1299.86 | N24: 1022.71 | O24: 2630.03 | P24: 161.406 | Q24: 5351.01 | R24: 111.158 | S24: 0 | T24: 0 | U24: 0 | V24: 196.052 | W24: 0 | X24: 60.3752 | Y24: 0 | Z24: 0 | AA24: 367.585 | AB24: 0 | AC24: 0 | AD24: 0 | AE24: 0 | AF24: 0 | AG24: 0 | AH24: 0 | AI24: 0 | AJ24: 0 | AK24: 0 | AL24: 8.02 | AM24: 0.01 | AN24: 1.11 | AO24: 0 | AP24: 11.62 | AQ24: 0 | AR24: 10.54 | AS24: 11.7 | AT24: 20.89 | AU24: 1.22 | AV24: 65.11 | AW24: 20.76 | AX24: 95.4487 | AY24: 0.299824 | AZ24: 141.255 | BA24: 0 | BB24: 0 | BC24: 1299.86 | BD24: 1022.71 | BE24: 2630.03 | BF24: 161.406 | BG24: 5351.01 | BH24: 111.158 | BI24: 0 | BJ24: 0 | BK24: 0 | BL24: 196.052 | BM24: 0 | BN24: 60.3752 | BO24: 0 | BP24: 0 | BQ24: 367.585 | BR24: 0 | BS24: 0 | BT24: 0 | BU24: 0 | BV24: 0 | BW24: 0 | BX24: 0 | BY24: 0 | BZ24: 0 | CA24: 0 | CB24: 8.02 | CC24: 0.01 | CD24: 1.11 | CE24: 0 | CF24: 11.62 | CG24: 10.54 | CH24: 11.7 | CI24: 20.89 | CJ24: 1.22 | CK24: 65.11 | CL24: 20.76 | CM24: CA Residential 2013, Vers. 1.0 | CN24: CSE 0.813 EXE | CP24: MPCBECC | CQ24: 0 | CR24: 0 | CS24: 0.0161297 | CT24: 0 | CU24: 0 | CV24: 0.16496 | CW24: 0.117264 | CX24: 0.303904 | CY24: 0.00896094 | CZ24: 0.611219 | DA24: 0.0161297 | DB24: 0 | DC24: 0 | DD24: 0.0161297 | DE24: 0 | DF24: 0 | DG24: 0.16496 | DH24: 0.117264 | DI24: 0.303904 | DJ24: 0.00896094 | DK24: 0.611219 | DL24: 0.0161297 | DM24: 0 | DN24: 0 | DO24: 0 | DP24: 0
A25: 2016-08-31T17:03:05 | B25: T02R06 | C25: v26 06 S27 G20 M01 | D25: Proposed and Standard | E25: PASS | F25: 0 | G25: 0 | H25: 57.2456 | I25: 89.2273 | J25: 141.255 | K25: 0 | L25: 0 | M25: 1299.86 | N25: 1022.71 | O25: 2630.03 | P25: 161.406 | Q25: 5401.74 | R25: 66.6623 | S25: 0 | T25: 0 | U25: 0 | V25: 184.388 | W25: 0 | X25: 60.3752 | Y25: 0 | Z25: 0 | AA25: 311.426 | AB25: 0 | AC25: 0 | AD25: 0 | AE25: 0 | AF25: 0 | AG25: 0 | AH25: 0 | AI25: 0 | AJ25: 0 | AK25: 0 | AL25: 4.91 | AM25: 2.73 | AN25: 1.07 | AO25: 0 | AP25: 11.02 | AQ25: 0 | AR25: 10.26 | AS25: 11.45 | AT25: 20.25 | AU25: 1.19 | AV25: 62.88 | AW25: 19.73 | AX25: 57.2456 | AY25: 89.2273 | AZ25: 141.255 | BA25: 0 | BB25: 0 | BC25: 1299.86 | BD25: 1022.71 | BE25: 2630.03 | BF25: 161.406 | BG25: 5401.74 | BH25: 66.6623 | BI25: 0 | BJ25: 0 | BK25: 0 | BL25: 184.388 | BM25: 0 | BN25: 60.3752 | BO25: 0 | BP25: 0 | BQ25: 311.426 | BR25: 0 | BS25: 0 | BT25: 0 | BU25: 0 | BV25: 0 | BW25: 0 | BX25: 0 | BY25: 0 | BZ25: 0 | CA25: 0 | CB25: 4.91 | CC25: 2.73 | CD25: 1.07 | CE25: 0 | CF25: 11.02 | CG25: 10.26 | CH25: 11.45 | CI25: 20.25 | CJ25: 1.19 | CK25: 62.88 | CL25: 19.73 | CM25: CA Residential 2013, Vers. 1.0 | CN25: CSE 0.813 EXE | CP25: MPCBECC | CQ25: 0 | CR25: 0.224883 | CS25: 0.0161297 | CT25: 0 | CU25: 0 | CV25: 0.16496 | CW25: 0.117264 | CX25: 0.303904 | CY25: 0.00896094 | CZ25: 0.836102 | DA25: 0.241013 | DB25: 0 | DC25: 0.224883 | DD25: 0.0161297 | DE25: 0 | DF25: 0 | DG25: 0.16496 | DH25: 0.117264 | DI25: 0.303904 | DJ25: 0.00896094 | DK25: 0.836102 | DL25: 0.241013 | DM25: 0 | DN25: 0 | DO25: 0 | DP25: 0
A26: 2016-08-31T17:03:04 | B26: T02R07 | C26: v26 07 S27 G20 M01 | D26: Proposed and Standard | E26: PASS | F26: 0 | G26: 0 | H26: 15.449 | I26: 23.6042 | J26: 141.255 | K26: 0 | L26: 0 | M26: 1299.86 | N26: 1022.71 | O26: 2630.03 | P26: 161.406 | Q26: 5294.32 | R26: 17.9896 | S26: 0 | T26: 0 | U26: 0 | V26: 182.975 | W26: 0 | X26: 60.3752 | Y26: 0 | Z26: 0 | AA26: 261.34 | AB26: 0 | AC26: 0 | AD26: 0 | AE26: 0 | AF26: 0 | AG26: 0 | AH26: 0 | AI26: 0 | AJ26: 0 | AK26: 0 | AL26: 1.27 | AM26: 1.03 | AN26: 1.12 | AO26: 0 | AP26: 10.72 | AQ26: 0 | AR26: 10.74 | AS26: 11.69 | AT26: 21.1 | AU26: 1.26 | AV26: 58.93 | AW26: 14.14 | AX26: 15.4492 | AY26: 23.6042 | AZ26: 141.255 | BA26: 0 | BB26: 0 | BC26: 1299.86 | BD26: 1022.71 | BE26: 2630.03 | BF26: 161.406 | BG26: 5294.32 | BH26: 17.9899 | BI26: 0 | BJ26: 0 | BK26: 0 | BL26: 182.975 | BM26: 0 | BN26: 60.3752 | BO26: 0 | BP26: 0 | BQ26: 261.34 | BR26: 0 | BS26: 0 | BT26: 0 | BU26: 0 | BV26: 0 | BW26: 0 | BX26: 0 | BY26: 0 | BZ26: 0 | CA26: 0 | CB26: 1.27 | CC26: 1.03 | CD26: 1.12 | CE26: 0 | CF26: 10.72 | CG26: 10.74 | CH26: 11.69 | CI26: 21.1 | CJ26: 1.26 | CK26: 58.93 | CL26: 14.14 | CM26: CA Residential 2013, Vers. 1.0 | CN26: CSE 0.813 EXE | CP26: MPCBECC | CQ26: 0 | CR26: 0.0919592 | CS26: 0.0161297 | CT26: 0 | CU26: 0 | CV26: 0.16496 | CW26: 0.117264 | CX26: 0.303904 | CY26: 0.00896094 | CZ26: 0.703178 | DA26: 0.108089 | DB26: 0 | DC26: 0.0919592 | DD26: 0.0161297 | DE26: 0 | DF26: 0 | DG26: 0.16496 | DH26: 0.117264 | DI26: 0.303904 | DJ26: 0.00896094 | DK26: 0.703178 | DL26: 0.108089 | DM26: 0 | DN26: 0 | DO26: 0 | DP26: 0
A27: 2016-08-31T17:03:05 | B27: T02R08 | C27: v26 08 S27 G20 M01 | D27: Proposed and Standard | E27: PASS | F27: 0 | G27: 0 | H27: 43.6065 | I27: 484.434 | J27: 141.255 | K27: 0 | L27: 0 | M27: 1299.86 | N27: 1022.71 | O27: 2630.03 | P27: 161.406 | Q27: 5783.3 | R27: 50.7797 | S27: 0 | T27: 0 | U27: 0 | V27: 180.471 | W27: 0 | X27: 60.3752 | Y27: 0 | Z27: 0 | AA27: 291.625 | AB27: 0 | AC27: 0 | AD27: 0 | AE27: 0 | AF27: 0 | AG27: 0 | AH27: 0 | AI27: 0 | AJ27: 0 | AK27: 0 | AL27: 3.75 | AM27: 9.82 | AN27: 1.08 | AO27: 0 | AP27: 10.79 | AQ27: 0 | AR27: 10.33 | AS27: 11.47 | AT27: 20.32 | AU27: 1.2 | AV27: 68.76 | AW27: 25.44 | AX27: 43.6064 | AY27: 484.434 | AZ27: 141.255 | BA27: 0 | BB27: 0 | BC27: 1299.86 | BD27: 1022.71 | BE27: 2630.03 | BF27: 161.406 | BG27: 5783.3 | BH27: 50.7797 | BI27: 0 | BJ27: 0 | BK27: 0 | BL27: 180.471 | BM27: 0 | BN27: 60.3752 | BO27: 0 | BP27: 0 | BQ27: 291.625 | BR27: 0 | BS27: 0 | BT27: 0 | BU27: 0 | BV27: 0 | BW27: 0 | BX27: 0 | BY27: 0 | BZ27: 0 | CA27: 0 | CB27: 3.75 | CC27: 9.82 | CD27: 1.08 | CE27: 0 | CF27: 10.79 | CG27: 10.33 | CH27: 11.47 | CI27: 20.32 | CJ27: 1.2 | CK27: 68.76 | CL27: 25.44 | CM27: CA Residential 2013, Vers. 1.0 | CN27: CSE 0.813 EXE | CP27: MPCBECC | CQ27: 0 | CR27: 0.805649 | CS27: 0.0161297 | CT27: 0 | CU27: 0 | CV27: 0.16496 | CW27: 0.117264 | CX27: 0.303904 | CY27: 0.00896094 | CZ27: 1.41687 | DA27: 0.821779 | DB27: 0 | DC27: 0.805648 | DD27: 0.0161297 | DE27: 0 | DF27: 0 | DG27: 0.16496 | DH27: 0.117264 | DI27: 0.303904 | DJ27: 0.00896094 | DK27: 1.41687 | DL27: 0.821778 | DM27: -1.07288e-06 | DN27: -1.07288e-06 | DO27: 0 | DP27: 0
A28: 2016-08-31T17:02:59 | B28: T02R09 | C28: v26 09 S27 G20 M01 | D28: Proposed and Standard | E28: PASS | F28: 0 | G28: 0 | H28: 71.0427 | I28: 924.443 | J28: 141.255 | K28: 0 | L28: 0 | M28: 1299.86 | N28: 1022.71 | O28: 2630.03 | P28: 161.406 | Q28: 6250.75 | R28: 82.7541 | S28: 0 | T28: 0 | U28: 0 | V28: 180.273 | W28: 0 | X28: 60.3752 | Y28: 0 | Z28: 0 | AA28: 323.402 | AB28: 0 | AC28: 0 | AD28: 0 | AE28: 0 | AF28: 0 | AG28: 0 | AH28: 0 | AI28: 0 | AJ28: 0 | AK28: 0 | AL28: 6.05 | AM28: 21.07 | AN28: 1.07 | AO28: 0 | AP28: 10.79 | AQ28: 0 | AR28: 10.23 | AS28: 11.41 | AT28: 20.15 | AU28: 1.19 | AV28: 81.96 | AW28: 38.98 | AX28: 71.0427 | AY28: 924.443 | AZ28: 141.255 | BA28: 0 | BB28: 0 | BC28: 1299.86 | BD28: 1022.71 | BE28: 2630.03 | BF28: 161.406 | BG28: 6250.75 | BH28: 82.7541 | BI28: 0 | BJ28: 0 | BK28: 0 | BL28: 180.273 | BM28: 0 | BN28: 60.3752 | BO28: 0 | BP28: 0 | BQ28: 323.402 | BR28: 0 | BS28: 0 | BT28: 0 | BU28: 0 | BV28: 0 | BW28: 0 | BX28: 0 | BY28: 0 | BZ28: 0 | CA28: 0 | CB28: 6.05 | CC28: 21.07 | CD28: 1.07 | CE28: 0 | CF28: 10.79 | CG28: 10.23 | CH28: 11.41 | CI28: 20.15 | CJ28: 1.19 | CK28: 81.96 | CL28: 38.98 | CM28: CA Residential 2013, Vers. 1.0 | CN28: CSE 0.813 EXE | CP28: MPCBECC | CQ28: 0 | CR28: 1.65487 | CS28: 0.0161297 | CT28: 0 | CU28: 0 | CV28: 0.16496 | CW28: 0.117264 | CX28: 0.303904 | CY28: 0.00896094 | CZ28: 2.26609 | DA28: 1.671 | DB28: 0 | DC28: 1.65487 | DD28: 0.0161297 | DE28: 0 | DF28: 0 | DG28: 0.16496 | DH28: 0.117264 | DI28: 0.303904 | DJ28: 0.00896094 | DK28: 2.26609 | DL28: 1.671 | DM28: 0 | DN28: 0 | DO28: 0 | DP28: 0
A29: 2016-08-31T17:03:20 | B29: T02R10 | C29: v26 10 S27 G20 M01 | D29: Proposed and Standard | E29: PASS | F29: 0 | G29: 0 | H29: 83.7218 | I29: 1141.06 | J29: 141.255 | K29: 0 | L29: 0 | M29: 1299.86 | N29: 1022.71 | O29: 2630.03 | P29: 161.406 | Q29: 6480.04 | R29: 97.5279 | S29: 0 | T29: 0 | U29: 0 | V29: 179.53 | W29: 0 | X29: 60.3752 | Y29: 0 | Z29: 0 | AA29: 337.433 | AB29: 0 | AC29: 0 | AD29: 0 | AE29: 0 | AF29: 0 | AG29: 0 | AH29: 0 | AI29: 0 | AJ29: 0 | AK29: 0 | AL29: 7.12 | AM29: 22.2 | AN29: 1.07 | AO29: 0 | AP29: 10.76 | AQ29: 0 | AR29: 10.14 | AS29: 11.39 | AT29: 20.06 | AU29: 1.18 | AV29: 83.92 | AW29: 41.15 | AX29: 83.7218 | AY29: 1141.06 | AZ29: 141.255 | BA29: 0 | BB29: 0 | BC29: 1299.86 | BD29: 1022.71 | BE29: 2630.03 | BF29: 161.406 | BG29: 6480.04 | BH29: 97.5279 | BI29: 0 | BJ29: 0 | BK29: 0 | BL29: 179.53 | BM29: 0 | BN29: 60.3752 | BO29: 0 | BP29: 0 | BQ29: 337.433 | BR29: 0 | BS29: 0 | BT29: 0 | BU29: 0 | BV29: 0 | BW29: 0 | BX29: 0 | BY29: 0 | BZ29: 0 | CA29: 0 | CB29: 7.12 | CC29: 22.2 | CD29: 1.07 | CE29: 0 | CF29: 10.76 | CG29: 10.14 | CH29: 11.39 | CI29: 20.06 | CJ29: 1.18 | CK29: 83.92 | CL29: 41.15 | CM29: CA Residential 2013, Vers. 1.0 | CN29: CSE 0.813 EXE | CP29: MPCBECC | CQ29: 0 | CR29: 1.82822 | CS29: 0.0161297 | CT29: 0 | CU29: 0 | CV29: 0.16496 | CW29: 0.117264 | CX29: 0.303904 | CY29: 0.00896094 | CZ29: 2.43944 | DA29: 1.84435 | DB29: 0 | DC29: 1.82822 | DD29: 0.0161297 | DE29: 0 | DF29: 0 | DG29: 0.16496 | DH29: 0.117264 | DI29: 0.303904 | DJ29: 0.00896094 | DK29: 2.43944 | DL29: 1.84435 | DM29: 0 | DN29: 0 | DO29: 0 | DP29: 0
A30: 2016-08-31T17:03:04 | B30: T02R11 | C30: v26 11 S27 G20 M01 | D30: Proposed and Standard | E30: PASS | F30: 0 | G30: 0 | H30: 230.206 | I30: 2252.94 | J30: 141.255 | K30: 0 | L30: 0 | M30: 1299.86 | N30: 1022.71 | O30: 2630.03 | P30: 161.406 | Q30: 7738.41 | R30: 268.106 | S30: 0 | T30: 0 | U30: 0 | V30: 181.172 | W30: 0 | X30: 60.3752 | Y30: 0 | Z30: 0 | AA30: 509.653 | AB30: 0 | AC30: 0 | AD30: 0 | AE30: 0 | AF30: 0 | AG30: 0 | AH30: 0 | AI30: 0 | AJ30: 0 | AK30: 0 | AL30: 19.61 | AM30: 41.61 | AN30: 1.11 | AO30: 0 | AP30: 10.85 | AQ30: 0 | AR30: 10.76 | AS30: 11.71 | AT30: 21.03 | AU30: 1.25 | AV30: 117.93 | AW30: 73.18 | AX30: 230.206 | AY30: 2252.94 | AZ30: 141.255 | BA30: 0 | BB30: 0 | BC30: 1299.86 | BD30: 1022.71 | BE30: 2630.03 | BF30: 161.406 | BG30: 7738.41 | BH30: 268.106 | BI30: 0 | BJ30: 0 | BK30: 0 | BL30: 181.172 | BM30: 0 | BN30: 60.3752 | BO30: 0 | BP30: 0 | BQ30: 509.653 | BR30: 0 | BS30: 0 | BT30: 0 | BU30: 0 | BV30: 0 | BW30: 0 | BX30: 0 | BY30: 0 | BZ30: 0 | CA30: 0 | CB30: 19.61 | CC30: 41.61 | CD30: 1.11 | CE30: 0 | CF30: 10.85 | CG30: 10.76 | CH30: 11.71 | CI30: 21.03 | CJ30: 1.25 | CK30: 117.93 | CL30: 73.18 | CM30: CA Residential 2013, Vers. 1.0 | CN30: CSE 0.813 EXE | CP30: MPCBECC | CQ30: 0 | CR30: 2.53047 | CS30: 0.0161297 | CT30: 0 | CU30: 0 | CV30: 0.16496 | CW30: 0.117264 | CX30: 0.303904 | CY30: 0.00896094 | CZ30: 3.14168 | DA30: 2.5466 | DB30: 0 | DC30: 2.53047 | DD30: 0.0161297 | DE30: 0 | DF30: 0 | DG30: 0.16496 | DH30: 0.117264 | DI30: 0.303904 | DJ30: 0.00896094 | DK30: 3.14168 | DL30: 2.5466 | DM30: 0 | DN30: 0 | DO30: 0 | DP30: 0
A31: 2016-08-31T17:03:20 | B31: T02R12 | C31: v26 12 S27 G20 M01 | D31: Proposed and Standard | E31: PASS | F31: 0 | G31: 0 | H31: 238.187 | I31: 698.922 | J31: 141.255 | K31: 0 | L31: 0 | M31: 1299.86 | N31: 1022.71 | O31: 2630.03 | P31: 161.406 | Q31: 6192.37 | R31: 277.359 | S31: 0 | T31: 0 | U31: 0 | V31: 185.879 | W31: 0 | X31: 60.3752 | Y31: 0 | Z31: 0 | AA31: 523.613 | AB31: 0 | AC31: 0 | AD31: 0 | AE31: 0 | AF31: 0 | AG31: 0 | AH31: 0 | AI31: 0 | AJ31: 0 | AK31: 0 | AL31: 20.37 | AM31: 18.23 | AN31: 1.11 | AO31: 0 | AP31: 11.09 | AQ31: 0 | AR31: 10.8 | AS31: 11.72 | AT31: 21.07 | AU31: 1.24 | AV31: 95.63 | AW31: 50.8 | AX31: 238.187 | AY31: 698.922 | AZ31: 141.255 | BA31: 0 | BB31: 0 | BC31: 1299.86 | BD31: 1022.71 | BE31: 2630.03 | BF31: 161.406 | BG31: 6192.37 | BH31: 277.359 | BI31: 0 | BJ31: 0 | BK31: 0 | BL31: 185.879 | BM31: 0 | BN31: 60.3752 | BO31: 0 | BP31: 0 | BQ31: 523.613 | BR31: 0 | BS31: 0 | BT31: 0 | BU31: 0 | BV31: 0 | BW31: 0 | BX31: 0 | BY31: 0 | BZ31: 0 | CA31: 0 | CB31: 20.37 | CC31: 18.23 | CD31: 1.11 | CE31: 0 | CF31: 11.09 | CG31: 10.8 | CH31: 11.72 | CI31: 21.07 | CJ31: 1.24 | CK31: 95.63 | CL31: 50.8 | CM31: CA Residential 2013, Vers. 1.0 | CN31: CSE 0.813 EXE | CP31: MPCBECC | CQ31: 0 | CR31: 1.29297 | CS31: 0.0161297 | CT31: 0 | CU31: 0 | CV31: 0.16496 | CW31: 0.117264 | CX31: 0.303904 | CY31: 0.00896094 | CZ31: 1.90419 | DA31: 1.3091 | DB31: 0 | DC31: 1.29297 | DD31: 0.0161297 | DE31: 0 | DF31: 0 | DG31: 0.16496 | DH31: 0.117264 | DI31: 0.303904 | DJ31: 0.00896094 | DK31: 1.90419 | DL31: 1.3091 | DM31: 1.19209e-07 | DN31: 1.19209e-07 | DO31: 0 | DP31: 0
A32: 2016-08-31T17:03:20 | B32: T02R13 | C32: v26 13 S27 G20 M01 | D32: Proposed and Standard | E32: PASS | F32: 0 | G32: 0 | H32: 208.894 | I32: 2548.96 | J32: 141.255 | K32: 0 | L32: 0 | M32: 1299.86 | N32: 1022.71 | O32: 2630.03 | P32: 161.406 | Q32: 8013.12 | R32: 243.284 | S32: 0 | T32: 0 | U32: 0 | V32: 179.364 | W32: 0 | X32: 60.3752 | Y32: 0 | Z32: 0 | AA32: 483.023 | AB32: 0 | AC32: 0 | AD32: 0 | AE32: 0 | AF32: 0 | AG32: 0 | AH32: 0 | AI32: 0 | AJ32: 0 | AK32: 0 | AL32: 17.95 | AM32: 45.39 | AN32: 1.11 | AO32: 0 | AP32: 10.74 | AQ32: 0 | AR32: 10.73 | AS32: 11.72 | AT32: 21.03 | AU32: 1.23 | AV32: 119.9 | AW32: 75.19 | AX32: 208.894 | AY32: 2548.96 | AZ32: 141.255 | BA32: 0 | BB32: 0 | BC32: 1299.86 | BD32: 1022.71 | BE32: 2630.03 | BF32: 161.406 | BG32: 8013.12 | BH32: 243.284 | BI32: 0 | BJ32: 0 | BK32: 0 | BL32: 179.364 | BM32: 0 | BN32: 60.3752 | BO32: 0 | BP32: 0 | BQ32: 483.023 | BR32: 0 | BS32: 0 | BT32: 0 | BU32: 0 | BV32: 0 | BW32: 0 | BX32: 0 | BY32: 0 | BZ32: 0 | CA32: 0 | CB32: 17.95 | CC32: 45.39 | CD32: 1.11 | CE32: 0 | CF32: 10.74 | CG32: 10.73 | CH32: 11.72 | CI32: 21.03 | CJ32: 1.23 | CK32: 119.9 | CL32: 75.19 | CM32: CA Residential 2013, Vers. 1.0 | CN32: CSE 0.813 EXE | CP32: MPCBECC | CQ32: 0 | CR32: 2.96493 | CS32: 0.0161297 | CT32: 0 | CU32: 0 | CV32: 0.16496 | CW32: 0.117264 | CX32: 0.303904 | CY32: 0.00896094 | CZ32: 3.57615 | DA32: 2.98106 | DB32: 0 | DC32: 2.96493 | DD32: 0.0161297 | DE32: 0 | DF32: 0 | DG32: 0.16496 | DH32: 0.117264 | DI32: 0.303904 | DJ32: 0.00896094 | DK32: 3.57615 | DL32: 2.98106 | DM32: 0 | DN32: 0 | DO32: 0 | DP32: 0
A33: 2016-08-31T17:03:20 | B33: T02R14 | C33: v26 14 S27 G20 M01 | D33: Proposed and Standard | E33: PASS | F33: 0 | G33: 0 | H33: 224.012 | I33: 2181.96 | J33: 141.255 | K33: 0 | L33: 0 | M33: 1299.86 | N33: 1022.71 | O33: 2630.03 | P33: 161.406 | Q33: 7661.23 | R33: 261.169 | S33: 0 | T33: 0 | U33: 0 | V33: 182.136 | W33: 0 | X33: 60.3752 | Y33: 0 | Z33: 0 | AA33: 503.68 | AB33: 0 | AC33: 0 | AD33: 0 | AE33: 0 | AF33: 0 | AG33: 0 | AH33: 0 | AI33: 0 | AJ33: 0 | AK33: 0 | AL33: 19.16 | AM33: 38.14 | AN33: 1.07 | AO33: 0 | AP33: 10.98 | AQ33: 0 | AR33: 10.25 | AS33: 11.39 | AT33: 20.1 | AU33: 1.18 | AV33: 112.27 | AW33: 69.35 | AX33: 224.012 | AY33: 2181.96 | AZ33: 141.255 | BA33: 0 | BB33: 0 | BC33: 1299.86 | BD33: 1022.71 | BE33: 2630.03 | BF33: 161.406 | BG33: 7661.23 | BH33: 261.169 | BI33: 0 | BJ33: 0 | BK33: 0 | BL33: 182.136 | BM33: 0 | BN33: 60.3752 | BO33: 0 | BP33: 0 | BQ33: 503.68 | BR33: 0 | BS33: 0 | BT33: 0 | BU33: 0 | BV33: 0 | BW33: 0 | BX33: 0 | BY33: 0 | BZ33: 0 | CA33: 0 | CB33: 19.16 | CC33: 38.14 | CD33: 1.07 | CE33: 0 | CF33: 10.98 | CG33: 10.25 | CH33: 11.39 | CI33: 20.1 | CJ33: 1.18 | CK33: 112.27 | CL33: 69.35 | CM33: CA Residential 2013, Vers. 1.0 | CN33: CSE 0.813 EXE | CP33: MPCBECC | CQ33: 0 | CR33: 2.58426 | CS33: 0.0161297 | CT33: 0 | CU33: 0 | CV33: 0.16496 | CW33: 0.117264 | CX33: 0.303904 | CY33: 0.00896094 | CZ33: 3.19548 | DA33: 2.60039 | DB33: 0 | DC33: 2.58426 | DD33: 0.0161297 | DE33: 0 | DF33: 0 | DG33: 0.16496 | DH33: 0.117264 | DI33: 0.303904 | DJ33: 0.00896094 | DK33: 3.19548 | DL33: 2.60039 | DM33: 0 | DN33: 0 | DO33: 0 | DP33: 0
A34: 2016-08-31T17:03:36 | B34: T02R15 | C34: v26 15 S27 G20 M01 | D34: Proposed and Standard | E34: PASS | F34: 0 | G34: 0 | H34: 16.9968 | I34: 7061.71 | J34: 141.255 | K34: 0 | L34: 0 | M34: 1299.86 | N34: 1022.71 | O34: 2630.03 | P34: 161.406 | Q34: 12334 | R34: 19.7963 | S34: 0 | T34: 0 | U34: 0 | V34: 156.421 | W34: 0 | X34: 60.3752 | Y34: 0 | Z34: 0 | AA34: 236.592 | AB34: 0 | AC34: 0 | AD34: 0 | AE34: 0 | AF34: 0 | AG34: 0 | AH34: 0 | AI34: 0 | AJ34: 0 | AK34: 0 | AL34: 1.48 | AM34: 94.14 | AN34: 1.07 | AO34: 0 | AP34: 9.47 | AQ34: 0 | AR34: 10.29 | AS34: 11.4 | AT34: 20.14 | AU34: 1.19 | AV34: 149.18 | AW34: 106.16 | AX34: 16.9969 | AY34: 7061.71 | AZ34: 141.255 | BA34: 0 | BB34: 0 | BC34: 1299.86 | BD34: 1022.71 | BE34: 2630.03 | BF34: 161.406 | BG34: 12334 | BH34: 19.7964 | BI34: 0 | BJ34: 0 | BK34: 0 | BL34: 156.421 | BM34: 0 | BN34: 60.3752 | BO34: 0 | BP34: 0 | BQ34: 236.592 | BR34: 0 | BS34: 0 | BT34: 0 | BU34: 0 | BV34: 0 | BW34: 0 | BX34: 0 | BY34: 0 | BZ34: 0 | CA34: 0 | CB34: 1.48 | CC34: 94.14 | CD34: 1.07 | CE34: 0 | CF34: 9.47 | CG34: 10.29 | CH34: 11.4 | CI34: 20.14 | CJ34: 1.19 | CK34: 149.18 | CL34: 106.16 | CM34: CA Residential 2013, Vers. 1.0 | CN34: CSE 0.813 EXE | CP34: MPCBECC | CQ34: 0 | CR34: 5.11049 | CS34: 0.0161297 | CT34: 0 | CU34: 0 | CV34: 0.16496 | CW34: 0.117264 | CX34: 0.303904 | CY34: 0.00896094 | CZ34: 5.72171 | DA34: 5.12662 | DB34: 0 | DC34: 5.11049 | DD34: 0.0161297 | DE34: 0 | DF34: 0 | DG34: 0.16496 | DH34: 0.117264 | DI34: 0.303904 | DJ34: 0.00896094 | DK34: 5.72171 | DL34: 5.12662 | DM34: 0 | DN34: 0 | DO34: 0 | DP34: 0
A35: 2016-08-31T17:03:20 | B35: T02R16 | C35: v26 16 S27 G20 M01 | D35: Proposed and Standard | E35: PASS | F35: 0 | G35: 0 | H35: 532.721 | I35: 227.586 | J35: 141.255 | K35: 0 | L35: 0 | M35: 1299.86 | N35: 1022.71 | O35: 2630.03 | P35: 161.406 | Q35: 6015.57 | R35: 622.013 | S35: 0 | T35: 0 | U35: 0 | V35: 203.523 | W35: 0 | X35: 60.3752 | Y35: 0 | Z35: 0 | AA35: 885.911 | AB35: 0 | AC35: 0 | AD35: 0 | AE35: 0 | AF35: 0 | AG35: 0 | AH35: 0 | AI35: 0 | AJ35: 0 | AK35: 0 | AL35: 44.02 | AM35: 6.27 | AN35: 1.06 | AO35: 0 | AP35: 12.22 | AQ35: 0 | AR35: 10.19 | AS35: 11.38 | AT35: 20.06 | AU35: 1.17 | AV35: 106.37 | AW35: 63.57 | AX35: 532.721 | AY35: 227.586 | AZ35: 141.255 | BA35: 0 | BB35: 0 | BC35: 1299.86 | BD35: 1022.71 | BE35: 2630.03 | BF35: 161.406 | BG35: 6015.57 | BH35: 622.013 | BI35: 0 | BJ35: 0 | BK35: 0 | BL35: 203.523 | BM35: 0 | BN35: 60.3752 | BO35: 0 | BP35: 0 | BQ35: 885.911 | BR35: 0 | BS35: 0 | BT35: 0 | BU35: 0 | BV35: 0 | BW35: 0 | BX35: 0 | BY35: 0 | BZ35: 0 | CA35: 0 | CB35: 44.02 | CC35: 6.27 | CD35: 1.06 | CE35: 0 | CF35: 12.22 | CG35: 10.19 | CH35: 11.38 | CI35: 20.06 | CJ35: 1.17 | CK35: 106.37 | CL35: 63.57 | CM35: CA Residential 2013, Vers. 1.0 | CN35: CSE 0.813 EXE | CP35: MPCBECC | CQ35: 0 | CR35: 0.485104 | CS35: 0.0161297 | CT35: 0 | CU35: 0 | CV35: 0.16496 | CW35: 0.117264 | CX35: 0.303904 | CY35: 0.00896094 | CZ35: 1.09632 | DA35: 0.501233 | DB35: 0 | DC35: 0.485104 | DD35: 0.0161297 | DE35: 0 | DF35: 0 | DG35: 0.16496 | DH35: 0.117264 | DI35: 0.303904 | DJ35: 0.00896094 | DK35: 1.09632 | DL35: 0.501233 | DM35: -1.19209e-07 | DN35: -5.96046e-08 | DO35: 0 | DP35: 0
A36: 2016-08-31T17:03:22 | B36: T03R01 | C36: v26 01 S69 G15 M01 | D36: Proposed and Standard | E36: PASS | F36: 0 | G36: 0 | H36: 473.583 | I36: 4.13279 | J36: 785.772 | K36: 0 | L36: 0 | M36: 4171.97 | N36: 6456.02 | O36: 10701.1 | P36: 478.69 | Q36: 23071.3 | R36: 551.515 | S36: 0 | T36: 0 | U36: 0 | V36: 1180.43 | W36: 0 | X36: 291.216 | Y36: 0 | Z36: 0 | AA36: 2023.16 | AB36: 0 | AC36: 0 | AD36: 0 | AE36: 0 | AF36: 0 | AG36: 0 | AH36: 0 | AI36: 0 | AJ36: 0 | AK36: 0 | AL36: 15.08 | AM36: 0.03 | AN36: 2.4 | AO36: 0 | AP36: 27.13 | AQ36: 0 | AR36: 13.25 | AS36: 26.54 | AT36: 33.09 | AU36: 1.42 | AV36: 118.94 | AW36: 44.64 | AX36: 473.583 | AY36: 4.13279 | AZ36: 785.772 | BA36: 0 | BB36: 0 | BC36: 4171.97 | BD36: 6456.02 | BE36: 10701.1 | BF36: 478.69 | BG36: 23071.3 | BH36: 551.515 | BI36: 0 | BJ36: 0 | BK36: 0 | BL36: 1180.43 | BM36: 0 | BN36: 291.216 | BO36: 0 | BP36: 0 | BQ36: 2023.16 | BR36: 0 | BS36: 0 | BT36: 0 | BU36: 0 | BV36: 0 | BW36: 0 | BX36: 0 | BY36: 0 | BZ36: 0 | CA36: 0 | CB36: 15.08 | CC36: 0.03 | CD36: 2.4 | CE36: 0 | CF36: 27.13 | CG36: 13.25 | CH36: 26.54 | CI36: 33.09 | CJ36: 1.42 | CK36: 118.94 | CL36: 44.64 | CM36: CA Residential 2013, Vers. 1.0 | CN36: CSE 0.813 EXE | CP36: MPCBECC | CQ36: 0 | CR36: 0.00281235 | CS36: 0.0897263 | CT36: 0 | CU36: 0 | CV36: 0.529445 | CW36: 0.738709 | CX36: 1.23653 | CY36: 0.0265759 | CZ36: 2.6238 | DA36: 0.0925386 | DB36: 0 | DC36: 0.00281235 | DD36: 0.0897263 | DE36: 0 | DF36: 0 | DG36: 0.529445 | DH36: 0.738709 | DI36: 1.23653 | DJ36: 0.0265759 | DK36: 2.6238 | DL36: 0.0925386 | DM36: 0 | DN36: 0 | DO36: 0 | DP36: 0
A37: 2016-08-31T17:03:10 | B37: T03R02 | C37: v26 02 S69 G15 M01 | D37: Proposed and Standard | E37: PASS | F37: 0 | G37: 0 | H37: 334.824 | I37: 654.005 | J37: 785.772 | K37: 0 | L37: 0 | M37: 4171.97 | N37: 6456.02 | O37: 10701.1 | P37: 478.69 | Q37: 23582.4 | R37: 389.908 | S37: 0 | T37: 0 | U37: 0 | V37: 1119.55 | W37: 0 | X37: 291.216 | Y37: 0 | Z37: 0 | AA37: 1800.68 | AB37: 0 | AC37: 0 | AD37: 0 | AE37: 0 | AF37: 0 | AG37: 0 | AH37: 0 | AI37: 0 | AJ37: 0 | AK37: 0 | AL37: 11.03 | AM37: 7.36 | AN37: 2.4 | AO37: 0 | AP37: 25.82 | AQ37: 0 | AR37: 13.26 | AS37: 26.54 | AT37: 33.11 | AU37: 1.42 | AV37: 120.94 | AW37: 46.61 | AX37: 334.824 | AY37: 654.07 | AZ37: 785.772 | BA37: 0 | BB37: 0 | BC37: 4171.97 | BD37: 6456.02 | BE37: 10701.1 | BF37: 478.69 | BG37: 23582.4 | BH37: 389.908 | BI37: 0 | BJ37: 0 | BK37: 0 | BL37: 1119.55 | BM37: 0 | BN37: 291.216 | BO37: 0 | BP37: 0 | BQ37: 1800.68 | BR37: 0 | BS37: 0 | BT37: 0 | BU37: 0 | BV37: 0 | BW37: 0 | BX37: 0 | BY37: 0 | BZ37: 0 | CA37: 0 | CB37: 11.03 | CC37: 7.36 | CD37: 2.4 | CE37: 0 | CF37: 25.82 | CG37: 13.26 | CH37: 26.54 | CI37: 33.11 | CJ37: 1.42 | CK37: 120.94 | CL37: 46.61 | CM37: CA Residential 2013, Vers. 1.0 | CN37: CSE 0.813 EXE | CP37: MPCBECC | CQ37: 0 | CR37: 1.35681 | CS37: 0.0897263 | CT37: 0 | CU37: 0 | CV37: 0.529445 | CW37: 0.738709 | CX37: 1.23653 | CY37: 0.0265759 | CZ37: 3.9778 | DA37: 1.44654 | DB37: 0 | DC37: 1.35694 | DD37: 0.0897263 | DE37: 0 | DF37: 0 | DG37: 0.529445 | DH37: 0.738709 | DI37: 1.23653 | DJ37: 0.0265759 | DK37: 3.97793 | DL37: 1.44667 | DM37: 0.000127554 | DN37: 0.000127554 | DO37: 0 | DP37: 0
A38: 2016-08-31T17:03:10 | B38: T03R03 | C38: v26 03 S69 G15 M01 | D38: Proposed and Standard | E38: PASS | F38: 0 | G38: 0 | H38: 141.236 | I38: 163.922 | J38: 785.772 | K38: 0 | L38: 0 | M38: 4171.97 | N38: 6456.02 | O38: 10701.1 | P38: 478.69 | Q38: 22898.7 | R38: 164.462 | S38: 0 | T38: 0 | U38: 0 | V38: 1122.4 | W38: 0 | X38: 291.216 | Y38: 0 | Z38: 0 | AA38: 1578.08 | AB38: 0 | AC38: 0 | AD38: 0 | AE38: 0 | AF38: 0 | AG38: 0 | AH38: 0 | AI38: 0 | AJ38: 0 | AK38: 0 | AL38: 4.73 | AM38: 1.78 | AN38: 2.4 | AO38: 0 | AP38: 25.83 | AQ38: 0 | AR38: 13.21 | AS38: 26.54 | AT38: 33.07 | AU38: 1.41 | AV38: 108.97 | AW38: 34.74 | AX38: 141.236 | AY38: 163.937 | AZ38: 785.772 | BA38: 0 | BB38: 0 | BC38: 4171.97 | BD38: 6456.02 | BE38: 10701.1 | BF38: 478.69 | BG38: 22898.7 | BH38: 164.462 | BI38: 0 | BJ38: 0 | BK38: 0 | BL38: 1122.4 | BM38: 0 | BN38: 291.216 | BO38: 0 | BP38: 0 | BQ38: 1578.08 | BR38: 0 | BS38: 0 | BT38: 0 | BU38: 0 | BV38: 0 | BW38: 0 | BX38: 0 | BY38: 0 | BZ38: 0 | CA38: 0 | CB38: 4.73 | CC38: 1.78 | CD38: 2.4 | CE38: 0 | CF38: 25.83 | CG38: 13.21 | CH38: 26.54 | CI38: 33.07 | CJ38: 1.41 | CK38: 108.97 | CL38: 34.74 | CM38: CA Residential 2013, Vers. 1.0 | CN38: CSE 0.813 EXE | CP38: MPCBECC | CQ38: 0 | CR38: 0.354619 | CS38: 0.0897263 | CT38: 0 | CU38: 0 | CV38: 0.529445 | CW38: 0.738709 | CX38: 1.23653 | CY38: 0.0265759 | CZ38: 2.97561 | DA38: 0.444345 | DB38: 0 | DC38: 0.354655 | DD38: 0.0897263 | DE38: 0 | DF38: 0 | DG38: 0.529445 | DH38: 0.738709 | DI38: 1.23653 | DJ38: 0.0265759 | DK38: 2.97564 | DL38: 0.444381 | DM38: 3.55244e-05 | DN38: 3.55244e-05 | DO38: 0 | DP38: 0
A39: 2016-08-31T17:02:50 | B39: T03R04 | C39: v26 04 S69 G15 M01 | D39: Proposed and Standard | E39: PASS | F39: 0 | G39: 0 | H39: 221.01 | I39: 1064 | J39: 785.772 | K39: 0 | L39: 0 | M39: 4171.97 | N39: 6456.02 | O39: 10701.1 | P39: 478.69 | Q39: 23878.6 | R39: 257.371 | S39: 0 | T39: 0 | U39: 0 | V39: 1096.29 | W39: 0 | X39: 291.216 | Y39: 0 | Z39: 0 | AA39: 1644.88 | AB39: 0 | AC39: 0 | AD39: 0 | AE39: 0 | AF39: 0 | AG39: 0 | AH39: 0 | AI39: 0 | AJ39: 0 | AK39: 0 | AL39: 7.31 | AM39: 9.24 | AN39: 2.4 | AO39: 0 | AP39: 25.3 | AQ39: 0 | AR39: 13.29 | AS39: 26.55 | AT39: 33.14 | AU39: 1.41 | AV39: 118.64 | AW39: 44.25 | AX39: 221.01 | AY39: 1064.14 | AZ39: 785.772 | BA39: 0 | BB39: 0 | BC39: 4171.97 | BD39: 6456.02 | BE39: 10701.1 | BF39: 478.69 | BG39: 23878.7 | BH39: 257.371 | BI39: 0 | BJ39: 0 | BK39: 0 | BL39: 1096.29 | BM39: 0 | BN39: 291.216 | BO39: 0 | BP39: 0 | BQ39: 1644.88 | BR39: 0 | BS39: 0 | BT39: 0 | BU39: 0 | BV39: 0 | BW39: 0 | BX39: 0 | BY39: 0 | BZ39: 0 | CA39: 0 | CB39: 7.31 | CC39: 9.24 | CD39: 2.4 | CE39: 0 | CF39: 25.3 | CG39: 13.29 | CH39: 26.55 | CI39: 33.14 | CJ39: 1.41 | CK39: 118.64 | CL39: 44.25 | CM39: CA Residential 2013, Vers. 1.0 | CN39: CSE 0.813 EXE | CP39: MPCBECC | CQ39: 0 | CR39: 1.90052 | CS39: 0.0897263 | CT39: 0 | CU39: 0 | CV39: 0.529445 | CW39: 0.738709 | CX39: 1.23653 | CY39: 0.0265759 | CZ39: 4.52151 | DA39: 1.99025 | DB39: 0 | DC39: 1.90065 | DD39: 0.0897263 | DE39: 0 | DF39: 0 | DG39: 0.529445 | DH39: 0.738709 | DI39: 1.23653 | DJ39: 0.0265759 | DK39: 4.52164 | DL39: 1.99038 | DM39: 0.000133991 | DN39: 0.00013411 | DO39: 0 | DP39: 0
A40: 2016-08-31T17:03:12 | B40: T03R05 | C40: v26 05 S69 G15 M01 | D40: Proposed and Standard | E40: PASS | F40: 0 | G40: 0 | H40: 104.506 | I40: 126.419 | J40: 785.772 | K40: 0 | L40: 0 | M40: 4171.97 | N40: 6456.02 | O40: 10701.1 | P40: 478.69 | Q40: 22824.5 | R40: 121.706 | S40: 0 | T40: 0 | U40: 0 | V40: 1135.17 | W40: 0 | X40: 291.216 | Y40: 0 | Z40: 0 | AA40: 1548.09 | AB40: 0 | AC40: 0 | AD40: 0 | AE40: 0 | AF40: 0 | AG40: 0 | AH40: 0 | AI40: 0 | AJ40: 0 | AK40: 0 | AL40: 3.41 | AM40: 1.42 | AN40: 2.4 | AO40: 0 | AP40: 26.1 | AQ40: 0 | AR40: 13.12 | AS40: 26.53 | AT40: 32.97 | AU40: 1.4 | AV40: 107.35 | AW40: 33.33 | AX40: 104.506 | AY40: 126.424 | AZ40: 785.772 | BA40: 0 | BB40: 0 | BC40: 4171.97 | BD40: 6456.02 | BE40: 10701.1 | BF40: 478.69 | BG40: 22824.5 | BH40: 121.706 | BI40: 0 | BJ40: 0 | BK40: 0 | BL40: 1135.17 | BM40: 0 | BN40: 291.216 | BO40: 0 | BP40: 0 | BQ40: 1548.09 | BR40: 0 | BS40: 0 | BT40: 0 | BU40: 0 | BV40: 0 | BW40: 0 | BX40: 0 | BY40: 0 | BZ40: 0 | CA40: 0 | CB40: 3.41 | CC40: 1.42 | CD40: 2.4 | CE40: 0 | CF40: 26.1 | CG40: 13.12 | CH40: 26.53 | CI40: 32.97 | CJ40: 1.4 | CK40: 107.35 | CL40: 33.33 | CM40: CA Residential 2013, Vers. 1.0 | CN40: CSE 0.813 EXE | CP40: MPCBECC | CQ40: 0 | CR40: 0.320352 | CS40: 0.0897263 | CT40: 0 | CU40: 0 | CV40: 0.529445 | CW40: 0.738709 | CX40: 1.23653 | CY40: 0.0265759 | CZ40: 2.94134 | DA40: 0.410078 | DB40: 0 | DC40: 0.320366 | DD40: 0.0897263 | DE40: 0 | DF40: 0 | DG40: 0.529445 | DH40: 0.738709 | DI40: 1.23653 | DJ40: 0.0265759 | DK40: 2.94135 | DL40: 0.410092 | DM40: 1.38283e-05 | DN40: 1.39475e-05 | DO40: 0 | DP40: 0
A41: 2016-08-31T17:03:08 | B41: T03R06 | C41: v26 06 S69 G15 M01 | D41: Proposed and Standard | E41: PASS | F41: 0 | G41: 0 | H41: 34.8354 | I41: 744.018 | J41: 785.772 | K41: 0 | L41: 0 | M41: 4171.97 | N41: 6456.02 | O41: 10701.1 | P41: 478.69 | Q41: 23372.4 | R41: 40.5657 | S41: 0 | T41: 0 | U41: 0 | V41: 1073.89 | W41: 0 | X41: 291.216 | Y41: 0 | Z41: 0 | AA41: 1405.67 | AB41: 0 | AC41: 0 | AD41: 0 | AE41: 0 | AF41: 0 | AG41: 0 | AH41: 0 | AI41: 0 | AJ41: 0 | AK41: 0 | AL41: 1.17 | AM41: 6.28 | AN41: 2.32 | AO41: 0 | AP41: 24.89 | AQ41: 0 | AR41: 12.77 | AS41: 25.91 | AT41: 31.97 | AU41: 1.37 | AV41: 106.68 | AW41: 34.66 | AX41: 34.835 | AY41: 744.116 | AZ41: 785.772 | BA41: 0 | BB41: 0 | BC41: 4171.97 | BD41: 6456.02 | BE41: 10701.1 | BF41: 478.69 | BG41: 23372.5 | BH41: 40.5652 | BI41: 0 | BJ41: 0 | BK41: 0 | BL41: 1073.89 | BM41: 0 | BN41: 291.216 | BO41: 0 | BP41: 0 | BQ41: 1405.67 | BR41: 0 | BS41: 0 | BT41: 0 | BU41: 0 | BV41: 0 | BW41: 0 | BX41: 0 | BY41: 0 | BZ41: 0 | CA41: 0 | CB41: 1.17 | CC41: 6.28 | CD41: 2.32 | CE41: 0 | CF41: 24.89 | CG41: 12.77 | CH41: 25.91 | CI41: 31.97 | CJ41: 1.37 | CK41: 106.68 | CL41: 34.66 | CM41: CA Residential 2013, Vers. 1.0 | CN41: CSE 0.813 EXE | CP41: MPCBECC | CQ41: 0 | CR41: 1.24154 | CS41: 0.0897263 | CT41: 0 | CU41: 0 | CV41: 0.529445 | CW41: 0.738709 | CX41: 1.23653 | CY41: 0.0265759 | CZ41: 3.86253 | DA41: 1.33126 | DB41: 0 | DC41: 1.24165 | DD41: 0.0897263 | DE41: 0 | DF41: 0 | DG41: 0.529445 | DH41: 0.738709 | DI41: 1.23653 | DJ41: 0.0265759 | DK41: 3.86264 | DL41: 1.33137 | DM41: 0.000108004 | DN41: 0.000108123 | DO41: 0 | DP41: 0
A42: 2016-08-31T17:03:11 | B42: T03R07 | C42: v26 07 S69 G15 M01 | D42: Proposed and Standard | E42: PASS | F42: 0 | G42: 0 | H42: 1.04587 | I42: 448.713 | J42: 785.772 | K42: 0 | L42: 0 | M42: 4171.97 | N42: 6456.02 | O42: 10701.1 | P42: 478.69 | Q42: 23043.3 | R42: 1.21787 | S42: 0 | T42: 0 | U42: 0 | V42: 1066.64 | W42: 0 | X42: 291.216 | Y42: 0 | Z42: 0 | AA42: 1359.07 | AB42: 0 | AC42: 0 | AD42: 0 | AE42: 0 | AF42: 0 | AG42: 0 | AH42: 0 | AI42: 0 | AJ42: 0 | AK42: 0 | AL42: 0.03 | AM42: 4.98 | AN42: 2.41 | AO42: 0 | AP42: 24.24 | AQ42: 0 | AR42: 13.38 | AS42: 26.52 | AT42: 33.3 | AU42: 1.45 | AV42: 106.31 | AW42: 31.66 | AX42: 1.04569 | AY42: 448.933 | AZ42: 785.772 | BA42: 0 | BB42: 0 | BC42: 4171.97 | BD42: 6456.02 | BE42: 10701.1 | BF42: 478.69 | BG42: 23043.5 | BH42: 1.21766 | BI42: 0 | BJ42: 0 | BK42: 0 | BL42: 1066.64 | BM42: 0 | BN42: 291.216 | BO42: 0 | BP42: 0 | BQ42: 1359.07 | BR42: 0 | BS42: 0 | BT42: 0 | BU42: 0 | BV42: 0 | BW42: 0 | BX42: 0 | BY42: 0 | BZ42: 0 | CA42: 0 | CB42: 0.03 | CC42: 4.98 | CD42: 2.41 | CE42: 0 | CF42: 24.24 | CG42: 13.38 | CH42: 26.52 | CI42: 33.3 | CJ42: 1.45 | CK42: 106.31 | CL42: 31.66 | CM42: CA Residential 2013, Vers. 1.0 | CN42: CSE 0.813 EXE | CP42: MPCBECC | CQ42: 0 | CR42: 0.917742 | CS42: 0.0897263 | CT42: 0 | CU42: 0 | CV42: 0.529445 | CW42: 0.738709 | CX42: 1.23653 | CY42: 0.0265759 | CZ42: 3.53873 | DA42: 1.00747 | DB42: 0 | DC42: 0.917876 | DD42: 0.0897263 | DE42: 0 | DF42: 0 | DG42: 0.529445 | DH42: 0.738709 | DI42: 1.23653 | DJ42: 0.0265759 | DK42: 3.53886 | DL42: 1.0076 | DM42: 0.000133991 | DN42: 0.000133991 | DO42: 0 | DP42: 0
A43: 2016-08-31T17:03:11 | B43: T03R08 | C43: v26 08 S69 G15 M01 | D43: Proposed and Standard | E43: PASS | F43: 0 | G43: 0 | H43: 25.0691 | I43: 2547.01 | J43: 785.772 | K43: 0 | L43: 0 | M43: 4171.97 | N43: 6456.02 | O43: 10701.1 | P43: 478.69 | Q43: 25165.6 | R43: 29.1929 | S43: 0 | T43: 0 | U43: 0 | V43: 1053.35 | W43: 0 | X43: 291.216 | Y43: 0 | Z43: 0 | AA43: 1373.76 | AB43: 0 | AC43: 0 | AD43: 0 | AE43: 0 | AF43: 0 | AG43: 0 | AH43: 0 | AI43: 0 | AJ43: 0 | AK43: 0 | AL43: 0.85 | AM43: 17.87 | AN43: 2.32 | AO43: 0 | AP43: 24.43 | AQ43: 0 | AR43: 12.86 | AS43: 25.94 | AT43: 32.08 | AU43: 1.38 | AV43: 117.73 | AW43: 45.47 | AX43: 25.0687 | AY43: 2547.12 | AZ43: 785.772 | BA43: 0 | BB43: 0 | BC43: 4171.97 | BD43: 6456.02 | BE43: 10701.1 | BF43: 478.69 | BG43: 25165.7 | BH43: 29.1925 | BI43: 0 | BJ43: 0 | BK43: 0 | BL43: 1053.35 | BM43: 0 | BN43: 291.216 | BO43: 0 | BP43: 0 | BQ43: 1373.76 | BR43: 0 | BS43: 0 | BT43: 0 | BU43: 0 | BV43: 0 | BW43: 0 | BX43: 0 | BY43: 0 | BZ43: 0 | CA43: 0 | CB43: 0.85 | CC43: 17.87 | CD43: 2.32 | CE43: 0 | CF43: 24.43 | CG43: 12.86 | CH43: 25.94 | CI43: 32.08 | CJ43: 1.38 | CK43: 117.73 | CL43: 45.47 | CM43: CA Residential 2013, Vers. 1.0 | CN43: CSE 0.813 EXE | CP43: MPCBECC | CQ43: 0 | CR43: 3.46526 | CS43: 0.0897263 | CT43: 0 | CU43: 0 | CV43: 0.529445 | CW43: 0.738709 | CX43: 1.23653 | CY43: 0.0265759 | CZ43: 6.08625 | DA43: 3.55499 | DB43: 0 | DC43: 3.46534 | DD43: 0.0897263 | DE43: 0 | DF43: 0 | DG43: 0.529445 | DH43: 0.738709 | DI43: 1.23653 | DJ43: 0.0265759 | DK43: 6.08633 | DL43: 3.55507 | DM43: 7.96318e-05 | DN43: 7.96318e-05 | DO43: 0 | DP43: 0
A44: 2016-08-31T17:03:12 | B44: T03R09 | C44: v26 09 S69 G15 M01 | D44: Proposed and Standard | E44: PASS | F44: 0 | G44: 0 | H44: 52.4728 | I44: 3695.32 | J44: 785.772 | K44: 0 | L44: 0 | M44: 4171.97 | N44: 6456.02 | O44: 10701.1 | P44: 478.69 | Q44: 26341.4 | R44: 61.1229 | S44: 0 | T44: 0 | U44: 0 | V44: 1052.26 | W44: 0 | X44: 291.216 | Y44: 0 | Z44: 0 | AA44: 1404.6 | AB44: 0 | AC44: 0 | AD44: 0 | AE44: 0 | AF44: 0 | AG44: 0 | AH44: 0 | AI44: 0 | AJ44: 0 | AK44: 0 | AL44: 1.74 | AM44: 27.76 | AN44: 2.3 | AO44: 0 | AP44: 24.44 | AQ44: 0 | AR44: 12.74 | AS44: 25.79 | AT44: 31.8 | AU44: 1.37 | AV44: 127.94 | AW44: 56.24 | AX44: 52.472 | AY44: 3695.58 | AZ44: 785.772 | BA44: 0 | BB44: 0 | BC44: 4171.97 | BD44: 6456.02 | BE44: 10701.1 | BF44: 478.69 | BG44: 26341.6 | BH44: 61.1221 | BI44: 0 | BJ44: 0 | BK44: 0 | BL44: 1052.26 | BM44: 0 | BN44: 291.216 | BO44: 0 | BP44: 0 | BQ44: 1404.6 | BR44: 0 | BS44: 0 | BT44: 0 | BU44: 0 | BV44: 0 | BW44: 0 | BX44: 0 | BY44: 0 | BZ44: 0 | CA44: 0 | CB44: 1.74 | CC44: 27.76 | CD44: 2.3 | CE44: 0 | CF44: 24.44 | CG44: 12.74 | CH44: 25.79 | CI44: 31.8 | CJ44: 1.37 | CK44: 127.94 | CL44: 56.24 | CM44: CA Residential 2013, Vers. 1.0 | CN44: CSE 0.813 EXE | CP44: MPCBECC | CQ44: 0 | CR44: 5.20627 | CS44: 0.0897263 | CT44: 0 | CU44: 0 | CV44: 0.529445 | CW44: 0.738709 | CX44: 1.23653 | CY44: 0.0265759 | CZ44: 7.82726 | DA44: 5.296 | DB44: 0 | DC44: 5.20633 | DD44: 0.0897263 | DE44: 0 | DF44: 0 | DG44: 0.529445 | DH44: 0.738709 | DI44: 1.23653 | DJ44: 0.0265759 | DK44: 7.82732 | DL44: 5.29606 | DM44: 5.72205e-05 | DN44: 5.72205e-05 | DO44: 0 | DP44: 0
A45: 2016-08-31T17:03:10 | B45: T03R10 | C45: v26 10 S69 G15 M01 | D45: Proposed and Standard | E45: PASS | F45: 0 | G45: 0 | H45: 68.4003 | I45: 4357.77 | J45: 785.772 | K45: 0 | L45: 0 | M45: 4171.97 | N45: 6456.02 | O45: 10701.1 | P45: 478.69 | Q45: 27019.7 | R45: 79.6797 | S45: 0 | T45: 0 | U45: 0 | V45: 1048.27 | W45: 0 | X45: 291.216 | Y45: 0 | Z45: 0 | AA45: 1419.16 | AB45: 0 | AC45: 0 | AD45: 0 | AE45: 0 | AF45: 0 | AG45: 0 | AH45: 0 | AI45: 0 | AJ45: 0 | AK45: 0 | AL45: 2.25 | AM45: 28.83 | AN45: 2.3 | AO45: 0 | AP45: 24.37 | AQ45: 0 | AR45: 12.63 | AS45: 25.77 | AT45: 31.66 | AU45: 1.36 | AV45: 129.17 | AW45: 57.75 | AX45: 68.3998 | AY45: 4357.92 | AZ45: 785.772 | BA45: 0 | BB45: 0 | BC45: 4171.97 | BD45: 6456.02 | BE45: 10701.1 | BF45: 478.69 | BG45: 27019.9 | BH45: 79.6792 | BI45: 0 | BJ45: 0 | BK45: 0 | BL45: 1048.27 | BM45: 0 | BN45: 291.216 | BO45: 0 | BP45: 0 | BQ45: 1419.16 | BR45: 0 | BS45: 0 | BT45: 0 | BU45: 0 | BV45: 0 | BW45: 0 | BX45: 0 | BY45: 0 | BZ45: 0 | CA45: 0 | CB45: 2.25 | CC45: 28.83 | CD45: 2.3 | CE45: 0 | CF45: 24.37 | CG45: 12.63 | CH45: 25.77 | CI45: 31.66 | CJ45: 1.36 | CK45: 129.17 | CL45: 57.75 | CM45: CA Residential 2013, Vers. 1.0 | CN45: CSE 0.813 EXE | CP45: MPCBECC | CQ45: 0 | CR45: 5.33615 | CS45: 0.0897263 | CT45: 0 | CU45: 0 | CV45: 0.529445 | CW45: 0.738709 | CX45: 1.23653 | CY45: 0.0265759 | CZ45: 7.95714 | DA45: 5.42588 | DB45: 0 | DC45: 5.33621 | DD45: 0.0897263 | DE45: 0 | DF45: 0 | DG45: 0.529445 | DH45: 0.738709 | DI45: 1.23653 | DJ45: 0.0265759 | DK45: 7.9572 | DL45: 5.42593 | DM45: 5.29289e-05 | DN45: 5.29289e-05 | DO45: 0 | DP45: 0
A46: 2016-08-31T17:03:01 | B46: T03R11 | C46: v26 11 S69 G15 M01 | D46: Proposed and Standard | E46: PASS | F46: 0 | G46: 0 | H46: 335.007 | I46: 6859.34 | J46: 785.772 | K46: 0 | L46: 0 | M46: 4171.97 | N46: 6456.02 | O46: 10701.1 | P46: 478.69 | Q46: 29787.9 | R46: 390.161 | S46: 0 | T46: 0 | U46: 0 | V46: 1056.6 | W46: 0 | X46: 291.216 | Y46: 0 | Z46: 0 | AA46: 1737.97 | AB46: 0 | AC46: 0 | AD46: 0 | AE46: 0 | AF46: 0 | AG46: 0 | AH46: 0 | AI46: 0 | AJ46: 0 | AK46: 0 | AL46: 11.12 | AM46: 44.5 | AN46: 2.4 | AO46: 0 | AP46: 24.55 | AQ46: 0 | AR46: 13.39 | AS46: 26.55 | AT46: 33.19 | AU46: 1.43 | AV46: 157.13 | AW46: 82.57 | AX46: 335.007 | AY46: 6859.46 | AZ46: 785.772 | BA46: 0 | BB46: 0 | BC46: 4171.97 | BD46: 6456.02 | BE46: 10701.1 | BF46: 478.69 | BG46: 29788 | BH46: 390.161 | BI46: 0 | BJ46: 0 | BK46: 0 | BL46: 1056.6 | BM46: 0 | BN46: 291.216 | BO46: 0 | BP46: 0 | BQ46: 1737.97 | BR46: 0 | BS46: 0 | BT46: 0 | BU46: 0 | BV46: 0 | BW46: 0 | BX46: 0 | BY46: 0 | BZ46: 0 | CA46: 0 | CB46: 11.12 | CC46: 44.5 | CD46: 2.4 | CE46: 0 | CF46: 24.55 | CG46: 13.39 | CH46: 26.55 | CI46: 33.19 | CJ46: 1.43 | CK46: 157.13 | CL46: 82.57 | CM46: CA Residential 2013, Vers. 1.0 | CN46: CSE 0.813 EXE | CP46: MPCBECC | CQ46: 0 | CR46: 6.72284 | CS46: 0.0897263 | CT46: 0 | CU46: 0 | CV46: 0.529445 | CW46: 0.738709 | CX46: 1.23653 | CY46: 0.0265759 | CZ46: 9.34383 | DA46: 6.81256 | DB46: 0 | DC46: 6.7229 | DD46: 0.0897263 | DE46: 0 | DF46: 0 | DG46: 0.529445 | DH46: 0.738709 | DI46: 1.23653 | DJ46: 0.0265759 | DK46: 9.34389 | DL46: 6.81263 | DM46: 6.48499e-05 | DN46: 6.48499e-05 | DO46: 0 | DP46: 0
A47: 2016-08-31T17:03:01 | B47: T03R12 | C47: v26 12 S69 G15 M01 | D47: Proposed and Standard | E47: PASS | F47: 0 | G47: 0 | H47: 327.225 | I47: 3104.71 | J47: 785.772 | K47: 0 | L47: 0 | M47: 4171.97 | N47: 6456.02 | O47: 10701.1 | P47: 478.69 | Q47: 26025.5 | R47: 381.04 | S47: 0 | T47: 0 | U47: 0 | V47: 1081.39 | W47: 0 | X47: 291.216 | Y47: 0 | Z47: 0 | AA47: 1753.65 | AB47: 0 | AC47: 0 | AD47: 0 | AE47: 0 | AF47: 0 | AG47: 0 | AH47: 0 | AI47: 0 | AJ47: 0 | AK47: 0 | AL47: 10.91 | AM47: 26.89 | AN47: 2.4 | AO47: 0 | AP47: 25.03 | AQ47: 0 | AR47: 13.45 | AS47: 26.56 | AT47: 33.26 | AU47: 1.43 | AV47: 139.93 | AW47: 65.23 | AX47: 327.225 | AY47: 3104.93 | AZ47: 785.772 | BA47: 0 | BB47: 0 | BC47: 4171.97 | BD47: 6456.02 | BE47: 10701.1 | BF47: 478.69 | BG47: 26025.7 | BH47: 381.04 | BI47: 0 | BJ47: 0 | BK47: 0 | BL47: 1081.39 | BM47: 0 | BN47: 291.216 | BO47: 0 | BP47: 0 | BQ47: 1753.65 | BR47: 0 | BS47: 0 | BT47: 0 | BU47: 0 | BV47: 0 | BW47: 0 | BX47: 0 | BY47: 0 | BZ47: 0 | CA47: 0 | CB47: 10.91 | CC47: 26.89 | CD47: 2.4 | CE47: 0 | CF47: 25.03 | CG47: 13.45 | CH47: 26.56 | CI47: 33.26 | CJ47: 1.43 | CK47: 139.93 | CL47: 65.23 | CM47: CA Residential 2013, Vers. 1.0 | CN47: CSE 0.813 EXE | CP47: MPCBECC | CQ47: 0 | CR47: 4.71056 | CS47: 0.0897263 | CT47: 0 | CU47: 0 | CV47: 0.529445 | CW47: 0.738709 | CX47: 1.23653 | CY47: 0.0265759 | CZ47: 7.33154 | DA47: 4.80028 | DB47: 0 | DC47: 4.71069 | DD47: 0.0897263 | DE47: 0 | DF47: 0 | DG47: 0.529445 | DH47: 0.738709 | DI47: 1.23653 | DJ47: 0.0265759 | DK47: 7.33168 | DL47: 4.80042 | DM47: 0.000133991 | DN47: 0.000133991 | DO47: 0 | DP47: 0
A48: 2016-08-31T17:03:01 | B48: T03R13 | C48: v26 13 S69 G15 M01 | D48: Proposed and Standard | E48: PASS | F48: 0 | G48: 0 | H48: 285.796 | I48: 7608.11 | J48: 785.772 | K48: 0 | L48: 0 | M48: 4171.97 | N48: 6456.02 | O48: 10701.1 | P48: 478.69 | Q48: 30487.5 | R48: 332.846 | S48: 0 | T48: 0 | U48: 0 | V48: 1047.02 | W48: 0 | X48: 291.216 | Y48: 0 | Z48: 0 | AA48: 1671.08 | AB48: 0 | AC48: 0 | AD48: 0 | AE48: 0 | AF48: 0 | AG48: 0 | AH48: 0 | AI48: 0 | AJ48: 0 | AK48: 0 | AL48: 9.57 | AM48: 47.75 | AN48: 2.4 | AO48: 0 | AP48: 24.33 | AQ48: 0 | AR48: 13.36 | AS48: 26.55 | AT48: 33.19 | AU48: 1.42 | AV48: 158.57 | AW48: 84.05 | AX48: 285.796 | AY48: 7608.24 | AZ48: 785.772 | BA48: 0 | BB48: 0 | BC48: 4171.97 | BD48: 6456.02 | BE48: 10701.1 | BF48: 478.69 | BG48: 30487.6 | BH48: 332.846 | BI48: 0 | BJ48: 0 | BK48: 0 | BL48: 1047.02 | BM48: 0 | BN48: 291.216 | BO48: 0 | BP48: 0 | BQ48: 1671.08 | BR48: 0 | BS48: 0 | BT48: 0 | BU48: 0 | BV48: 0 | BW48: 0 | BX48: 0 | BY48: 0 | BZ48: 0 | CA48: 0 | CB48: 9.57 | CC48: 47.75 | CD48: 2.4 | CE48: 0 | CF48: 24.33 | CG48: 13.36 | CH48: 26.55 | CI48: 33.19 | CJ48: 1.42 | CK48: 158.57 | CL48: 84.05 | CM48: CA Residential 2013, Vers. 1.0 | CN48: CSE 0.813 EXE | CP48: MPCBECC | CQ48: 0 | CR48: 7.46371 | CS48: 0.0897263 | CT48: 0 | CU48: 0 | CV48: 0.529445 | CW48: 0.738709 | CX48: 1.23653 | CY48: 0.0265759 | CZ48: 10.0847 | DA48: 7.55344 | DB48: 0 | DC48: 7.46374 | DD48: 0.0897263 | DE48: 0 | DF48: 0 | DG48: 0.529445 | DH48: 0.738709 | DI48: 1.23653 | DJ48: 0.0265759 | DK48: 10.0847 | DL48: 7.55347 | DM48: 3.24249e-05 | DN48: 3.19481e-05 | DO48: 0 | DP48: 0
A49: 2016-08-31T17:03:00 | B49: T03R14 | C49: v26 14 S69 G15 M01 | D49: Proposed and Standard | E49: PASS | F49: 0 | G49: 0 | H49: 323.758 | I49: 6460.1 | J49: 785.772 | K49: 0 | L49: 0 | M49: 4171.97 | N49: 6456.02 | O49: 10701.1 | P49: 478.69 | Q49: 29377.4 | R49: 377.46 | S49: 0 | T49: 0 | U49: 0 | V49: 1061.5 | W49: 0 | X49: 291.216 | Y49: 0 | Z49: 0 | AA49: 1730.17 | AB49: 0 | AC49: 0 | AD49: 0 | AE49: 0 | AF49: 0 | AG49: 0 | AH49: 0 | AI49: 0 | AJ49: 0 | AK49: 0 | AL49: 10.78 | AM49: 40.49 | AN49: 2.3 | AO49: 0 | AP49: 24.83 | AQ49: 0 | AR49: 12.76 | AS49: 25.77 | AT49: 31.73 | AU49: 1.36 | AV49: 150.02 | AW49: 78.4 | AX49: 323.758 | AY49: 6460.2 | AZ49: 785.772 | BA49: 0 | BB49: 0 | BC49: 4171.97 | BD49: 6456.02 | BE49: 10701.1 | BF49: 478.69 | BG49: 29377.5 | BH49: 377.46 | BI49: 0 | BJ49: 0 | BK49: 0 | BL49: 1061.5 | BM49: 0 | BN49: 291.216 | BO49: 0 | BP49: 0 | BQ49: 1730.17 | BR49: 0 | BS49: 0 | BT49: 0 | BU49: 0 | BV49: 0 | BW49: 0 | BX49: 0 | BY49: 0 | BZ49: 0 | CA49: 0 | CB49: 10.78 | CC49: 40.49 | CD49: 2.3 | CE49: 0 | CF49: 24.83 | CG49: 12.76 | CH49: 25.77 | CI49: 31.73 | CJ49: 1.36 | CK49: 150.02 | CL49: 78.4 | CM49: CA Residential 2013, Vers. 1.0 | CN49: CSE 0.813 EXE | CP49: MPCBECC | CQ49: 0 | CR49: 6.62741 | CS49: 0.0897263 | CT49: 0 | CU49: 0 | CV49: 0.529445 | CW49: 0.738709 | CX49: 1.23653 | CY49: 0.0265759 | CZ49: 9.24839 | DA49: 6.71713 | DB49: 0 | DC49: 6.62744 | DD49: 0.0897263 | DE49: 0 | DF49: 0 | DG49: 0.529445 | DH49: 0.738709 | DI49: 1.23653 | DJ49: 0.0265759 | DK49: 9.24843 | DL49: 6.71717 | DM49: 3.62396e-05 | DN49: 3.62396e-05 | DO49: 0 | DP49: 0
A50: 2016-08-31T17:03:00 | B50: T03R15 | C50: v26 15 S69 G15 M01 | D50: Proposed and Standard | E50: PASS | F50: 0 | G50: 0 | H50: 4.94954 | I50: 19156.8 | J50: 785.772 | K50: 0 | L50: 0 | M50: 4171.97 | N50: 6456.02 | O50: 10701.1 | P50: 478.69 | Q50: 41755.3 | R50: 5.76476 | S50: 0 | T50: 0 | U50: 0 | V50: 927.325 | W50: 0 | X50: 291.216 | Y50: 0 | Z50: 0 | AA50: 1224.31 | AB50: 0 | AC50: 0 | AD50: 0 | AE50: 0 | AF50: 0 | AG50: 0 | AH50: 0 | AI50: 0 | AJ50: 0 | AK50: 0 | AL50: 0.16 | AM50: 94.7 | AN50: 2.3 | AO50: 0 | AP50: 21.77 | AQ50: 0 | AR50: 12.81 | AS50: 25.79 | AT50: 31.8 | AU50: 1.37 | AV50: 190.7 | AW50: 118.93 | AX50: 4.94932 | AY50: 19156.9 | AZ50: 785.772 | BA50: 0 | BB50: 0 | BC50: 4171.97 | BD50: 6456.02 | BE50: 10701.1 | BF50: 478.69 | BG50: 41755.4 | BH50: 5.76449 | BI50: 0 | BJ50: 0 | BK50: 0 | BL50: 927.325 | BM50: 0 | BN50: 291.216 | BO50: 0 | BP50: 0 | BQ50: 1224.3 | BR50: 0 | BS50: 0 | BT50: 0 | BU50: 0 | BV50: 0 | BW50: 0 | BX50: 0 | BY50: 0 | BZ50: 0 | CA50: 0 | CB50: 0.16 | CC50: 94.7 | CD50: 2.3 | CE50: 0 | CF50: 21.77 | CG50: 12.81 | CH50: 25.79 | CI50: 31.8 | CJ50: 1.37 | CK50: 190.7 | CL50: 118.93 | CM50: CA Residential 2013, Vers. 1.0 | CN50: CSE 0.813 EXE | CP50: MPCBECC | CQ50: 0 | CR50: 12.6562 | CS50: 0.0897263 | CT50: 0 | CU50: 0 | CV50: 0.529445 | CW50: 0.738709 | CX50: 1.23653 | CY50: 0.0265759 | CZ50: 15.2772 | DA50: 12.7459 | DB50: 0 | DC50: 12.6562 | DD50: 0.0897263 | DE50: 0 | DF50: 0 | DG50: 0.529445 | DH50: 0.738709 | DI50: 1.23653 | DJ50: 0.0265759 | DK50: 15.2772 | DL50: 12.7459 | DM50: 0 | DN50: 0 | DO50: 0 | DP50: 0
A51: 2016-08-31T17:03:17 | B51: T03R16 | C51: v26 16 S69 G15 M01 | D51: Proposed and Standard | E51: PASS | F51: 0 | G51: 0 | H51: 935.078 | I51: 1124.69 | J51: 785.772 | K51: 0 | L51: 0 | M51: 4171.97 | N51: 6456.02 | O51: 10701.1 | P51: 478.69 | Q51: 24653.3 | R51: 1091.81 | S51: 0 | T51: 0 | U51: 0 | V51: 1174.09 | W51: 0 | X51: 291.216 | Y51: 0 | Z51: 0 | AA51: 2557.12 | AB51: 0 | AC51: 0 | AD51: 0 | AE51: 0 | AF51: 0 | AG51: 0 | AH51: 0 | AI51: 0 | AJ51: 0 | AK51: 0 | AL51: 29.99 | AM51: 9.87 | AN51: 2.3 | AO51: 0 | AP51: 27.34 | AQ51: 0 | AR51: 12.68 | AS51: 25.74 | AT51: 31.66 | AU51: 1.35 | AV51: 140.93 | AW51: 69.5 | AX51: 935.078 | AY51: 1124.74 | AZ51: 785.772 | BA51: 0 | BB51: 0 | BC51: 4171.97 | BD51: 6456.02 | BE51: 10701.1 | BF51: 478.69 | BG51: 24653.4 | BH51: 1091.81 | BI51: 0 | BJ51: 0 | BK51: 0 | BL51: 1174.09 | BM51: 0 | BN51: 291.216 | BO51: 0 | BP51: 0 | BQ51: 2557.12 | BR51: 0 | BS51: 0 | BT51: 0 | BU51: 0 | BV51: 0 | BW51: 0 | BX51: 0 | BY51: 0 | BZ51: 0 | CA51: 0 | CB51: 29.99 | CC51: 9.87 | CD51: 2.3 | CE51: 0 | CF51: 27.34 | CG51: 12.68 | CH51: 25.74 | CI51: 31.66 | CJ51: 1.35 | CK51: 140.93 | CL51: 69.5 | CM51: CA Residential 2013, Vers. 1.0 | CN51: CSE 0.813 EXE | CP51: MPCBECC | CQ51: 0 | CR51: 1.93364 | CS51: 0.0897263 | CT51: 0 | CU51: 0 | CV51: 0.529445 | CW51: 0.738709 | CX51: 1.23653 | CY51: 0.0265759 | CZ51: 4.55462 | DA51: 2.02336 | DB51: 0 | DC51: 1.9337 | DD51: 0.0897263 | DE51: 0 | DF51: 0 | DG51: 0.529445 | DH51: 0.738709 | DI51: 1.23653 | DJ51: 0.0265759 | DK51: 4.55469 | DL51: 2.02343 | DM51: 6.91414e-05 | DN51: 6.93798e-05 | DO51: 0 | DP51: 0
A52: 2016-08-31T17:02:55 | B52: T04R01 | C52: v26 01 P21 U20 M01 | D52: Proposed and Standard | E52: PASS | F52: 1.81 | G52: 0 | H52: 295.942 | I52: 0 | J52: 111.69 | K52: 0 | L52: 0 | M52: 1044.66 | N52: 957.89 | O52: 2206.29 | P52: 116.718 | Q52: 4733.19 | R52: 344.641 | S52: 0 | T52: 0 | U52: 0 | V52: 191.027 | W52: 0 | X52: 52.5151 | Y52: 0 | Z52: 0 | AA52: 588.183 | AB52: 0 | AC52: 0 | AD52: 0 | AE52: 0 | AF52: 0 | AG52: 0 | AH52: 0 | AI52: 0 | AJ52: 0 | AK52: 0 | AL52: 30.59 | AM52: 0 | AN52: 1.13 | AO52: 0 | AP52: 14.55 | AQ52: 0 | AR52: 11 | AS52: 13.78 | AT52: 22.61 | AU52: 1.15 | AV52: 94.81 | AW52: 46.27 | AX52: 309.864 | AY52: 0 | AZ52: 111.69 | BA52: 0 | BB52: 0 | BC52: 1044.66 | BD52: 957.89 | BE52: 2206.29 | BF52: 116.718 | BG52: 4747.12 | BH52: 360.855 | BI52: 0 | BJ52: 0 | BK52: 0 | BL52: 191.027 | BM52: 0 | BN52: 52.5151 | BO52: 0 | BP52: 0 | BQ52: 604.397 | BR52: 0 | BS52: 0 | BT52: 0 | BU52: 0 | BV52: 0 | BW52: 0 | BX52: 0 | BY52: 0 | BZ52: 0 | CA52: 0 | CB52: 32.4 | CC52: 0 | CD52: 1.13 | CE52: 0 | CF52: 14.55 | CG52: 11 | CH52: 13.78 | CI52: 22.61 | CJ52: 1.15 | CK52: 96.62 | CL52: 48.08 | CM52: CA Residential 2013, Vers. 1.0 | CN52: CSE 0.813 EXE | CP52: MPCBECC | CQ52: 0 | CR52: 0 | CS52: 0.0127538 | CT52: 0 | CU52: 0 | CV52: 0.132573 | CW52: 0.109774 | CX52: 0.254941 | CY52: 0.00647993 | CZ52: 0.516522 | DA52: 0.0127538 | DB52: 0 | DC52: 0 | DD52: 0.0127538 | DE52: 0 | DF52: 0 | DG52: 0.132573 | DH52: 0.109774 | DI52: 0.254941 | DJ52: 0.00647993 | DK52: 0.516522 | DL52: 0.0127538 | DM52: 0 | DN52: 0 | DO52: 1.87332 | DP52: 3.76456
A53: 2016-08-31T17:02:57 | B53: T04R02 | C53: v26 02 P21 U20 M01 | D53: Proposed and Standard | E53: PASS | F53: 2.05 | G53: 0 | H53: 198.075 | I53: 3.62614 | J53: 111.69 | K53: 0 | L53: 0 | M53: 1044.66 | N53: 957.89 | O53: 2206.29 | P53: 116.718 | Q53: 4638.95 | R53: 230.661 | S53: 0 | T53: 0 | U53: 0 | V53: 180.413 | W53: 0 | X53: 52.5151 | Y53: 0 | Z53: 0 | AA53: 463.59 | AB53: 0 | AC53: 0 | AD53: 0 | AE53: 0 | AF53: 0 | AG53: 0 | AH53: 0 | AI53: 0 | AJ53: 0 | AK53: 0 | AL53: 21.43 | AM53: 0.24 | AN53: 1.13 | AO53: 0 | AP53: 13.79 | AQ53: 0 | AR53: 11.01 | AS53: 13.78 | AT53: 22.62 | AU53: 1.14 | AV53: 85.14 | AW53: 36.59 | AX53: 208.925 | AY53: 16.1766 | AZ53: 111.69 | BA53: 0 | BB53: 0 | BC53: 1044.66 | BD53: 957.89 | BE53: 2206.29 | BF53: 116.718 | BG53: 4662.35 | BH53: 243.297 | BI53: 0 | BJ53: 0 | BK53: 0 | BL53: 180.413 | BM53: 0 | BN53: 52.5151 | BO53: 0 | BP53: 0 | BQ53: 476.225 | BR53: 0 | BS53: 0 | BT53: 0 | BU53: 0 | BV53: 0 | BW53: 0 | BX53: 0 | BY53: 0 | BZ53: 0 | CA53: 0 | CB53: 22.7 | CC53: 1.02 | CD53: 1.13 | CE53: 0 | CF53: 13.79 | CG53: 11.01 | CH53: 13.78 | CI53: 22.62 | CJ53: 1.14 | CK53: 87.19 | CL53: 38.64 | CM53: CA Residential 2013, Vers. 1.0 | CN53: CSE 0.813 EXE | CP53: MPCBECC | CQ53: 0 | CR53: 0.0180858 | CS53: 0.0127538 | CT53: 0 | CU53: 0 | CV53: 0.132573 | CW53: 0.109774 | CX53: 0.254941 | CY53: 0.00647993 | CZ53: 0.534608 | DA53: 0.0308396 | DB53: 0 | DC53: 0.0625688 | DD53: 0.0127538 | DE53: 0 | DF53: 0 | DG53: 0.132573 | DH53: 0.109774 | DI53: 0.254941 | DJ53: 0.00647993 | DK53: 0.579091 | DL53: 0.0753225 | DM53: 0.044483 | DN53: 0.044483 | DO53: 2.35119 | DP53: 5.30538
A54: 2016-08-31T17:02:57 | B54: T04R03 | C54: v26 03 P21 U20 M01 | D54: Proposed and Standard | E54: PASS | F54: 2.07 | G54: 0 | H54: 101.931 | I54: 0 | J54: 111.69 | K54: 0 | L54: 0 | M54: 1044.66 | N54: 957.89 | O54: 2206.29 | P54: 116.718 | Q54: 4539.18 | R54: 118.694 | S54: 0 | T54: 0 | U54: 0 | V54: 180.892 | W54: 0 | X54: 52.5151 | Y54: 0 | Z54: 0 | AA54: 352.1 | AB54: 0 | AC54: 0 | AD54: 0 | AE54: 0 | AF54: 0 | AG54: 0 | AH54: 0 | AI54: 0 | AJ54: 0 | AK54: 0 | AL54: 11.12 | AM54: 0 | AN54: 1.13 | AO54: 0 | AP54: 13.8 | AQ54: 0 | AR54: 10.96 | AS54: 13.78 | AT54: 22.6 | AU54: 1.14 | AV54: 74.53 | AW54: 26.05 | AX54: 119.76 | AY54: 0 | AZ54: 111.69 | BA54: 0 | BB54: 0 | BC54: 1044.66 | BD54: 957.89 | BE54: 2206.29 | BF54: 116.718 | BG54: 4557.01 | BH54: 139.455 | BI54: 0 | BJ54: 0 | BK54: 0 | BL54: 180.892 | BM54: 0 | BN54: 52.5151 | BO54: 0 | BP54: 0 | BQ54: 372.862 | BR54: 0 | BS54: 0 | BT54: 0 | BU54: 0 | BV54: 0 | BW54: 0 | BX54: 0 | BY54: 0 | BZ54: 0 | CA54: 0 | CB54: 13.19 | CC54: 0 | CD54: 1.13 | CE54: 0 | CF54: 13.8 | CG54: 10.96 | CH54: 13.78 | CI54: 22.6 | CJ54: 1.14 | CK54: 76.6 | CL54: 28.12 | CM54: CA Residential 2013, Vers. 1.0 | CN54: CSE 0.813 EXE | CP54: MPCBECC | CQ54: 0 | CR54: 0 | CS54: 0.0127538 | CT54: 0 | CU54: 0 | CV54: 0.132573 | CW54: 0.109774 | CX54: 0.254941 | CY54: 0.00647993 | CZ54: 0.516522 | DA54: 0.0127538 | DB54: 0 | DC54: 0 | DD54: 0.0127538 | DE54: 0 | DF54: 0 | DG54: 0.132573 | DH54: 0.109774 | DI54: 0.254941 | DJ54: 0.00647993 | DK54: 0.516522 | DL54: 0.0127538 | DM54: 0 | DN54: 0 | DO54: 2.70235 | DP54: 7.36131
A55: 2016-08-31T17:02:55 | B55: T04R04 | C55: v26 04 P21 U20 M01 | D55: Proposed and Standard | E55: PASS | F55: 2.24 | G55: 0 | H55: 145.646 | I55: 57.6944 | J55: 111.69 | K55: 0 | L55: 0 | M55: 1044.66 | N55: 957.89 | O55: 2206.29 | P55: 116.718 | Q55: 4640.59 | R55: 169.608 | S55: 0 | T55: 0 | U55: 0 | V55: 176.348 | W55: 0 | X55: 52.5151 | Y55: 0 | Z55: 0 | AA55: 398.471 | AB55: 0 | AC55: 0 | AD55: 0 | AE55: 0 | AF55: 0 | AG55: 0 | AH55: 0 | AI55: 0 | AJ55: 0 | AK55: 0 | AL55: 15.83 | AM55: 1.97 | AN55: 1.13 | AO55: 0 | AP55: 13.49 | AQ55: 0 | AR55: 11.03 | AS55: 13.79 | AT55: 22.64 | AU55: 1.14 | AV55: 81.02 | AW55: 32.42 | AX55: 158.292 | AY55: 73.0588 | AZ55: 111.69 | BA55: 0 | BB55: 0 | BC55: 1044.66 | BD55: 957.89 | BE55: 2206.29 | BF55: 116.718 | BG55: 4668.6 | BH55: 184.335 | BI55: 0 | BJ55: 0 | BK55: 0 | BL55: 176.348 | BM55: 0 | BN55: 52.5151 | BO55: 0 | BP55: 0 | BQ55: 413.197 | BR55: 0 | BS55: 0 | BT55: 0 | BU55: 0 | BV55: 0 | BW55: 0 | BX55: 0 | BY55: 0 | BZ55: 0 | CA55: 0 | CB55: 17.29 | CC55: 2.75 | CD55: 1.13 | CE55: 0 | CF55: 13.49 | CG55: 11.03 | CH55: 13.79 | CI55: 22.64 | CJ55: 1.14 | CK55: 83.26 | CL55: 34.66 | CM55: CA Residential 2013, Vers. 1.0 | CN55: CSE 0.813 EXE | CP55: MPCBECC | CQ55: 0 | CR55: 0.140407 | CS55: 0.0127538 | CT55: 0 | CU55: 0 | CV55: 0.132573 | CW55: 0.109774 | CX55: 0.254941 | CY55: 0.00647993 | CZ55: 0.656929 | DA55: 0.153161 | DB55: 0 | DC55: 0.198419 | DD55: 0.0127538 | DE55: 0 | DF55: 0 | DG55: 0.132573 | DH55: 0.109774 | DI55: 0.254941 | DJ55: 0.00647993 | DK55: 0.714941 | DL55: 0.211173 | DM55: 0.0580119 | DN55: 0.0580119 | DO55: 2.69037 | DP55: 6.46279
A56: 2016-08-31T17:03:01 | B56: T04R05 | C56: v26 05 P21 U20 M01 | D56: Proposed and Standard | E56: PASS | F56: 2.16 | G56: 0 | H56: 80.428 | I56: 0 | J56: 111.69 | K56: 0 | L56: 0 | M56: 1044.66 | N56: 957.89 | O56: 2206.29 | P56: 116.718 | Q56: 4517.68 | R56: 93.6652 | S56: 0 | T56: 0 | U56: 0 | V56: 183.121 | W56: 0 | X56: 52.5151 | Y56: 0 | Z56: 0 | AA56: 329.301 | AB56: 0 | AC56: 0 | AD56: 0 | AE56: 0 | AF56: 0 | AG56: 0 | AH56: 0 | AI56: 0 | AJ56: 0 | AK56: 0 | AL56: 8.45 | AM56: 0 | AN56: 1.13 | AO56: 0 | AP56: 13.96 | AQ56: 0 | AR56: 10.89 | AS56: 13.77 | AT56: 22.53 | AU56: 1.13 | AV56: 71.86 | AW56: 23.54 | AX56: 98.4222 | AY56: 0 | AZ56: 111.69 | BA56: 0 | BB56: 0 | BC56: 1044.66 | BD56: 957.89 | BE56: 2206.29 | BF56: 116.718 | BG56: 4535.67 | BH56: 114.621 | BI56: 0 | BJ56: 0 | BK56: 0 | BL56: 183.121 | BM56: 0 | BN56: 52.5151 | BO56: 0 | BP56: 0 | BQ56: 350.257 | BR56: 0 | BS56: 0 | BT56: 0 | BU56: 0 | BV56: 0 | BW56: 0 | BX56: 0 | BY56: 0 | BZ56: 0 | CA56: 0 | CB56: 10.61 | CC56: 0 | CD56: 1.13 | CE56: 0 | CF56: 13.96 | CG56: 10.89 | CH56: 13.77 | CI56: 22.53 | CJ56: 1.13 | CK56: 74.02 | CL56: 25.7 | CM56: CA Residential 2013, Vers. 1.0 | CN56: CSE 0.813 EXE | CP56: MPCBECC | CQ56: 0 | CR56: 0 | CS56: 0.0127538 | CT56: 0 | CU56: 0 | CV56: 0.132573 | CW56: 0.109774 | CX56: 0.254941 | CY56: 0.00647993 | CZ56: 0.516522 | DA56: 0.0127538 | DB56: 0 | DC56: 0 | DD56: 0.0127538 | DE56: 0 | DF56: 0 | DG56: 0.132573 | DH56: 0.109774 | DI56: 0.254941 | DJ56: 0.00647993 | DK56: 0.516522 | DL56: 0.0127538 | DM56: 0 | DN56: 0 | DO56: 2.91813 | DP56: 8.40468
A57: 2016-08-31T17:03:01 | B57: T04R06 | C57: v26 06 P21 U20 M01 | D57: Proposed and Standard | E57: PASS | F57: 1.54 | G57: 0 | H57: 41.9038 | I57: 30.6713 | J57: 111.69 | K57: 0 | L57: 0 | M57: 1044.66 | N57: 957.89 | O57: 2206.29 | P57: 116.718 | Q57: 4509.83 | R57: 48.7968 | S57: 0 | T57: 0 | U57: 0 | V57: 172.404 | W57: 0 | X57: 52.5151 | Y57: 0 | Z57: 0 | AA57: 273.716 | AB57: 0 | AC57: 0 | AD57: 0 | AE57: 0 | AF57: 0 | AG57: 0 | AH57: 0 | AI57: 0 | AJ57: 0 | AK57: 0 | AL57: 4.59 | AM57: 1.55 | AN57: 1.09 | AO57: 0 | AP57: 13.24 | AQ57: 0 | AR57: 10.6 | AS57: 13.48 | AT57: 21.84 | AU57: 1.1 | AV57: 67.49 | AW57: 20.47 | AX57: 50.5009 | AY57: 46.8832 | AZ57: 111.69 | BA57: 0 | BB57: 0 | BC57: 1044.66 | BD57: 957.89 | BE57: 2206.29 | BF57: 116.718 | BG57: 4534.64 | BH57: 58.8081 | BI57: 0 | BJ57: 0 | BK57: 0 | BL57: 172.404 | BM57: 0 | BN57: 52.5151 | BO57: 0 | BP57: 0 | BQ57: 283.727 | BR57: 0 | BS57: 0 | BT57: 0 | BU57: 0 | BV57: 0 | BW57: 0 | BX57: 0 | BY57: 0 | BZ57: 0 | CA57: 0 | CB57: 5.59 | CC57: 2.09 | CD57: 1.09 | CE57: 0 | CF57: 13.24 | CG57: 10.6 | CH57: 13.48 | CI57: 21.84 | CJ57: 1.1 | CK57: 69.03 | CL57: 22.01 | CM57: CA Residential 2013, Vers. 1.0 | CN57: CSE 0.813 EXE | CP57: MPCBECC | CQ57: 0 | CR57: 0.110825 | CS57: 0.0127538 | CT57: 0 | CU57: 0 | CV57: 0.132573 | CW57: 0.109774 | CX57: 0.254941 | CY57: 0.00647993 | CZ57: 0.627347 | DA57: 0.123579 | DB57: 0 | DC57: 0.144859 | DD57: 0.0127538 | DE57: 0 | DF57: 0 | DG57: 0.132573 | DH57: 0.109774 | DI57: 0.254941 | DJ57: 0.00647993 | DK57: 0.66138 | DL57: 0.157612 | DM57: 0.0340338 | DN57: 0.0340338 | DO57: 2.23092 | DP57: 6.99682
A58: 2016-08-31T17:03:01 | B58: T04R07 | C58: v26 07 P21 U20 M01 | D58: Proposed and Standard | E58: PASS | F58: 0.76 | G58: 0 | H58: 10.347 | I58: 4.0165 | J58: 111.69 | K58: 0 | L58: 0 | M58: 1044.66 | N58: 957.89 | O58: 2206.29 | P58: 116.718 | Q58: 4451.61 | R58: 12.0487 | S58: 0 | T58: 0 | U58: 0 | V58: 171.11 | W58: 0 | X58: 52.5151 | Y58: 0 | Z58: 0 | AA58: 235.674 | AB58: 0 | AC58: 0 | AD58: 0 | AE58: 0 | AF58: 0 | AG58: 0 | AH58: 0 | AI58: 0 | AJ58: 0 | AK58: 0 | AL58: 1.07 | AM58: 0.24 | AN58: 1.13 | AO58: 0 | AP58: 12.89 | AQ58: 0 | AR58: 11.1 | AS58: 13.77 | AT58: 22.75 | AU58: 1.17 | AV58: 64.12 | AW58: 15.33 | AX58: 14.1955 | AY58: 9.33663 | AZ58: 111.69 | BA58: 0 | BB58: 0 | BC58: 1044.66 | BD58: 957.89 | BE58: 2206.29 | BF58: 116.718 | BG58: 4460.78 | BH58: 16.53 | BI58: 0 | BJ58: 0 | BK58: 0 | BL58: 171.11 | BM58: 0 | BN58: 52.5151 | BO58: 0 | BP58: 0 | BQ58: 240.155 | BR58: 0 | BS58: 0 | BT58: 0 | BU58: 0 | BV58: 0 | BW58: 0 | BX58: 0 | BY58: 0 | BZ58: 0 | CA58: 0 | CB58: 1.51 | CC58: 0.56 | CD58: 1.13 | CE58: 0 | CF58: 12.89 | CG58: 11.1 | CH58: 13.77 | CI58: 22.75 | CJ58: 1.17 | CK58: 64.88 | CL58: 16.09 | CM58: CA Residential 2013, Vers. 1.0 | CN58: CSE 0.813 EXE | CP58: MPCBECC | CQ58: 0 | CR58: 0.0204648 | CS58: 0.0127538 | CT58: 0 | CU58: 0 | CV58: 0.132573 | CW58: 0.109774 | CX58: 0.254941 | CY58: 0.00647993 | CZ58: 0.536986 | DA58: 0.0332185 | DB58: 0 | DC58: 0.044141 | DD58: 0.0127538 | DE58: 0 | DF58: 0 | DG58: 0.132573 | DH58: 0.109774 | DI58: 0.254941 | DJ58: 0.00647993 | DK58: 0.560663 | DL58: 0.0568948 | DM58: 0.0236763 | DN58: 0.0236763 | DO58: 1.17138 | DP58: 4.72343
A59: 2016-08-31T17:02:54 | B59: T04R08 | C59: v26 08 P21 U20 M01 | D59: Proposed and Standard | E59: PASS | F59: 2.3 | G59: 0 | H59: 28.4771 | I59: 301.621 | J59: 111.69 | K59: 0 | L59: 0 | M59: 1044.66 | N59: 957.89 | O59: 2206.29 | P59: 116.718 | Q59: 4767.35 | R59: 33.1615 | S59: 0 | T59: 0 | U59: 0 | V59: 168.805 | W59: 0 | X59: 52.5151 | Y59: 0 | Z59: 0 | AA59: 254.481 | AB59: 0 | AC59: 0 | AD59: 0 | AE59: 0 | AF59: 0 | AG59: 0 | AH59: 0 | AI59: 0 | AJ59: 0 | AK59: 0 | AL59: 3.13 | AM59: 7.59 | AN59: 1.09 | AO59: 0 | AP59: 12.97 | AQ59: 0 | AR59: 10.67 | AS59: 13.5 | AT59: 21.92 | AU59: 1.12 | AV59: 71.99 | AW59: 24.78 | AX59: 34.9609 | AY59: 364.376 | AZ59: 111.69 | BA59: 0 | BB59: 0 | BC59: 1044.66 | BD59: 957.89 | BE59: 2206.29 | BF59: 116.718 | BG59: 4836.59 | BH59: 40.712 | BI59: 0 | BJ59: 0 | BK59: 0 | BL59: 168.805 | BM59: 0 | BN59: 52.5151 | BO59: 0 | BP59: 0 | BQ59: 262.032 | BR59: 0 | BS59: 0 | BT59: 0 | BU59: 0 | BV59: 0 | BW59: 0 | BX59: 0 | BY59: 0 | BZ59: 0 | CA59: 0 | CB59: 3.88 | CC59: 9.14 | CD59: 1.09 | CE59: 0 | CF59: 12.97 | CG59: 10.67 | CH59: 13.5 | CI59: 21.92 | CJ59: 1.12 | CK59: 74.29 | CL59: 27.08 | CM59: CA Residential 2013, Vers. 1.0 | CN59: CSE 0.813 EXE | CP59: MPCBECC | CQ59: 0 | CR59: 0.468413 | CS59: 0.0127538 | CT59: 0 | CU59: 0 | CV59: 0.132573 | CW59: 0.109774 | CX59: 0.254941 | CY59: 0.00647993 | CZ59: 0.984935 | DA59: 0.481167 | DB59: 0 | DC59: 0.586574 | DD59: 0.0127538 | DE59: 0 | DF59: 0 | DG59: 0.132573 | DH59: 0.109774 | DI59: 0.254941 | DJ59: 0.00647993 | DK59: 1.1031 | DL59: 0.599327 | DM59: 0.118161 | DN59: 0.118161 | DO59: 3.09598 | DP59: 8.49335
A60: 2016-08-31T17:03:02 | B60: T04R09 | C60: v26 09 P21 U20 M01 | D60: Proposed and Standard | E60: PASS | F60: 3.75 | G60: 0 | H60: 48.4232 | I60: 584.105 | J60: 111.69 | K60: 0 | L60: 0 | M60: 1044.66 | N60: 957.89 | O60: 2206.29 | P60: 116.718 | Q60: 5069.78 | R60: 56.4058 | S60: 0 | T60: 0 | U60: 0 | V60: 168.621 | W60: 0 | X60: 52.5151 | Y60: 0 | Z60: 0 | AA60: 277.542 | AB60: 0 | AC60: 0 | AD60: 0 | AE60: 0 | AF60: 0 | AG60: 0 | AH60: 0 | AI60: 0 | AJ60: 0 | AK60: 0 | AL60: 5.28 | AM60: 17.19 | AN60: 1.09 | AO60: 0 | AP60: 12.98 | AQ60: 0 | AR60: 10.57 | AS60: 13.43 | AT60: 21.73 | AU60: 1.1 | AV60: 83.37 | AW60: 36.54 | AX60: 56.2128 | AY60: 685.125 | AZ60: 111.69 | BA60: 0 | BB60: 0 | BC60: 1044.66 | BD60: 957.89 | BE60: 2206.29 | BF60: 116.718 | BG60: 5178.59 | BH60: 65.4796 | BI60: 0 | BJ60: 0 | BK60: 0 | BL60: 168.621 | BM60: 0 | BN60: 52.5151 | BO60: 0 | BP60: 0 | BQ60: 286.616 | BR60: 0 | BS60: 0 | BT60: 0 | BU60: 0 | BV60: 0 | BW60: 0 | BX60: 0 | BY60: 0 | BZ60: 0 | CA60: 0 | CB60: 6.18 | CC60: 20.04 | CD60: 1.09 | CE60: 0 | CF60: 12.98 | CG60: 10.57 | CH60: 13.43 | CI60: 21.73 | CJ60: 1.1 | CK60: 87.12 | CL60: 40.29 | CM60: CA Residential 2013, Vers. 1.0 | CN60: CSE 0.813 EXE | CP60: MPCBECC | CQ60: 0 | CR60: 1.02186 | CS60: 0.0127538 | CT60: 0 | CU60: 0 | CV60: 0.132573 | CW60: 0.109774 | CX60: 0.254941 | CY60: 0.00647993 | CZ60: 1.53838 | DA60: 1.03461 | DB60: 0 | DC60: 1.22111 | DD60: 0.0127538 | DE60: 0 | DF60: 0 | DG60: 0.132573 | DH60: 0.109774 | DI60: 0.254941 | DJ60: 0.00647993 | DK60: 1.73764 | DL60: 1.23387 | DM60: 0.199259 | DN60: 0.199259 | DO60: 4.30441 | DP60: 9.30752
A61: 2016-08-31T17:03:02 | B61: T04R10 | C61: v26 10 P21 U20 M01 | D61: Proposed and Standard | E61: PASS | F61: 4.06 | G61: 0 | H61: 58.4347 | I61: 712.134 | J61: 111.69 | K61: 0 | L61: 0 | M61: 1044.66 | N61: 957.89 | O61: 2206.29 | P61: 116.718 | Q61: 5207.82 | R61: 68.0709 | S61: 0 | T61: 0 | U61: 0 | V61: 167.936 | W61: 0 | X61: 52.5151 | Y61: 0 | Z61: 0 | AA61: 288.522 | AB61: 0 | AC61: 0 | AD61: 0 | AE61: 0 | AF61: 0 | AG61: 0 | AH61: 0 | AI61: 0 | AJ61: 0 | AK61: 0 | AL61: 6.33 | AM61: 17.5 | AN61: 1.08 | AO61: 0 | AP61: 12.94 | AQ61: 0 | AR61: 10.48 | AS61: 13.41 | AT61: 21.64 | AU61: 1.1 | AV61: 84.48 | AW61: 37.85 | AX61: 67.6431 | AY61: 838.158 | AZ61: 111.69 | BA61: 0 | BB61: 0 | BC61: 1044.66 | BD61: 957.89 | BE61: 2206.29 | BF61: 116.718 | BG61: 5343.05 | BH61: 78.7978 | BI61: 0 | BJ61: 0 | BK61: 0 | BL61: 167.936 | BM61: 0 | BN61: 52.5151 | BO61: 0 | BP61: 0 | BQ61: 299.249 | BR61: 0 | BS61: 0 | BT61: 0 | BU61: 0 | BV61: 0 | BW61: 0 | BX61: 0 | BY61: 0 | BZ61: 0 | CA61: 0 | CB61: 7.41 | CC61: 20.48 | CD61: 1.08 | CE61: 0 | CF61: 12.94 | CG61: 10.48 | CH61: 13.41 | CI61: 21.64 | CJ61: 1.1 | CK61: 88.54 | CL61: 41.91 | CM61: CA Residential 2013, Vers. 1.0 | CN61: CSE 0.813 EXE | CP61: MPCBECC | CQ61: 0 | CR61: 1.12451 | CS61: 0.0127538 | CT61: 0 | CU61: 0 | CV61: 0.132573 | CW61: 0.109774 | CX61: 0.254941 | CY61: 0.00647993 | CZ61: 1.64103 | DA61: 1.13726 | DB61: 0 | DC61: 1.30707 | DD61: 0.0127538 | DE61: 0 | DF61: 0 | DG61: 0.132573 | DH61: 0.109774 | DI61: 0.254941 | DJ61: 0.00647993 | DK61: 1.82359 | DL61: 1.31982 | DM61: 0.182559 | DN61: 0.182559 | DO61: 4.5855 | DP61: 9.68743
A62: 2016-08-31T17:03:02 | B62: T04R11 | C62: v26 11 P21 U20 M01 | D62: Proposed and Standard | E62: PASS | F62: 5.55 | G62: 0 | H62: 173.727 | I62: 1505.97 | J62: 111.69 | K62: 0 | L62: 0 | M62: 1044.66 | N62: 957.89 | O62: 2206.29 | P62: 116.718 | Q62: 6116.95 | R62: 202.329 | S62: 0 | T62: 0 | U62: 0 | V62: 169.437 | W62: 0 | X62: 52.5151 | Y62: 0 | Z62: 0 | AA62: 424.281 | AB62: 0 | AC62: 0 | AD62: 0 | AE62: 0 | AF62: 0 | AG62: 0 | AH62: 0 | AI62: 0 | AJ62: 0 | AK62: 0 | AL62: 18.97 | AM62: 35.99 | AN62: 1.13 | AO62: 0 | AP62: 13.05 | AQ62: 0 | AR62: 11.11 | AS62: 13.79 | AT62: 22.68 | AU62: 1.16 | AV62: 117.88 | AW62: 69.14 | AX62: 187.452 | AY62: 1675.92 | AZ62: 111.69 | BA62: 0 | BB62: 0 | BC62: 1044.66 | BD62: 957.89 | BE62: 2206.29 | BF62: 116.718 | BG62: 6300.62 | BH62: 218.313 | BI62: 0 | BJ62: 0 | BK62: 0 | BL62: 169.437 | BM62: 0 | BN62: 52.5151 | BO62: 0 | BP62: 0 | BQ62: 440.265 | BR62: 0 | BS62: 0 | BT62: 0 | BU62: 0 | BV62: 0 | BW62: 0 | BX62: 0 | BY62: 0 | BZ62: 0 | CA62: 0 | CB62: 20.54 | CC62: 39.97 | CD62: 1.13 | CE62: 0 | CF62: 13.05 | CG62: 11.11 | CH62: 13.79 | CI62: 22.68 | CJ62: 1.16 | CK62: 123.43 | CL62: 74.69 | CM62: CA Residential 2013, Vers. 1.0 | CN62: CSE 0.813 EXE | CP62: MPCBECC | CQ62: 0 | CR62: 1.71477 | CS62: 0.0127538 | CT62: 0 | CU62: 0 | CV62: 0.132573 | CW62: 0.109774 | CX62: 0.254941 | CY62: 0.00647993 | CZ62: 2.23129 | DA62: 1.72753 | DB62: 0 | DC62: 1.8903 | DD62: 0.0127538 | DE62: 0 | DF62: 0 | DG62: 0.132573 | DH62: 0.109774 | DI62: 0.254941 | DJ62: 0.00647993 | DK62: 2.40682 | DL62: 1.90306 | DM62: 0.17553 | DN62: 0.17553 | DO62: 4.49648 | DP62: 7.43072
A63: 2016-08-31T17:02:54 | B63: T04R12 | C63: v26 12 P21 U20 M01 | D63: Proposed and Standard | E63: PASS | F63: 4.44 | G63: 0 | H63: 191.595 | I63: 342.046 | J63: 111.69 | K63: 0 | L63: 0 | M63: 1044.66 | N63: 957.89 | O63: 2206.29 | P63: 116.718 | Q63: 4970.89 | R63: 223.104 | S63: 0 | T63: 0 | U63: 0 | V63: 173.765 | W63: 0 | X63: 52.5151 | Y63: 0 | Z63: 0 | AA63: 449.384 | AB63: 0 | AC63: 0 | AD63: 0 | AE63: 0 | AF63: 0 | AG63: 0 | AH63: 0 | AI63: 0 | AJ63: 0 | AK63: 0 | AL63: 20.99 | AM63: 11.43 | AN63: 1.13 | AO63: 0 | AP63: 13.33 | AQ63: 0 | AR63: 11.16 | AS63: 13.8 | AT63: 22.73 | AU63: 1.16 | AV63: 95.73 | AW63: 46.88 | AX63: 202.173 | AY63: 429.942 | AZ63: 111.69 | BA63: 0 | BB63: 0 | BC63: 1044.66 | BD63: 957.89 | BE63: 2206.29 | BF63: 116.718 | BG63: 5069.37 | BH63: 235.422 | BI63: 0 | BJ63: 0 | BK63: 0 | BL63: 173.765 | BM63: 0 | BN63: 52.5151 | BO63: 0 | BP63: 0 | BQ63: 461.702 | BR63: 0 | BS63: 0 | BT63: 0 | BU63: 0 | BV63: 0 | BW63: 0 | BX63: 0 | BY63: 0 | BZ63: 0 | CA63: 0 | CB63: 22.22 | CC63: 14.64 | CD63: 1.13 | CE63: 0 | CF63: 13.33 | CG63: 11.16 | CH63: 13.8 | CI63: 22.73 | CJ63: 1.16 | CK63: 100.17 | CL63: 51.32 | CM63: CA Residential 2013, Vers. 1.0 | CN63: CSE 0.813 EXE | CP63: MPCBECC | CQ63: 0 | CR63: 0.644385 | CS63: 0.0127538 | CT63: 0 | CU63: 0 | CV63: 0.132573 | CW63: 0.109774 | CX63: 0.254941 | CY63: 0.00647993 | CZ63: 1.16091 | DA63: 0.657138 | DB63: 0 | DC63: 0.819695 | DD63: 0.0127538 | DE63: 0 | DF63: 0 | DG63: 0.132573 | DH63: 0.109774 | DI63: 0.254941 | DJ63: 0.00647993 | DK63: 1.33622 | DL63: 0.832449 | DM63: 0.17531 | DN63: 0.17531 | DO63: 4.43246 | DP63: 8.6516
A64: 2016-08-31T17:02:55 | B64: T04R13 | C64: v26 13 P21 U20 M01 | D64: Proposed and Standard | E64: PASS | F64: 5.74 | G64: 0 | H64: 157.248 | I64: 1759.31 | J64: 111.69 | K64: 0 | L64: 0 | M64: 1044.66 | N64: 957.89 | O64: 2206.29 | P64: 116.718 | Q64: 6353.81 | R64: 183.135 | S64: 0 | T64: 0 | U64: 0 | V64: 167.773 | W64: 0 | X64: 52.5151 | Y64: 0 | Z64: 0 | AA64: 403.423 | AB64: 0 | AC64: 0 | AD64: 0 | AE64: 0 | AF64: 0 | AG64: 0 | AH64: 0 | AI64: 0 | AJ64: 0 | AK64: 0 | AL64: 17.34 | AM64: 40.04 | AN64: 1.13 | AO64: 0 | AP64: 12.92 | AQ64: 0 | AR64: 11.09 | AS64: 13.79 | AT64: 22.68 | AU64: 1.15 | AV64: 120.14 | AW64: 71.43 | AX64: 166.106 | AY64: 1943.96 | AZ64: 111.69 | BA64: 0 | BB64: 0 | BC64: 1044.66 | BD64: 957.89 | BE64: 2206.29 | BF64: 116.718 | BG64: 6547.32 | BH64: 193.452 | BI64: 0 | BJ64: 0 | BK64: 0 | BL64: 167.773 | BM64: 0 | BN64: 52.5151 | BO64: 0 | BP64: 0 | BQ64: 413.74 | BR64: 0 | BS64: 0 | BT64: 0 | BU64: 0 | BV64: 0 | BW64: 0 | BX64: 0 | BY64: 0 | BZ64: 0 | CA64: 0 | CB64: 18.35 | CC64: 44.77 | CD64: 1.13 | CE64: 0 | CF64: 12.92 | CG64: 11.09 | CH64: 13.79 | CI64: 22.68 | CJ64: 1.15 | CK64: 125.88 | CL64: 77.17 | CM64: CA Residential 2013, Vers. 1.0 | CN64: CSE 0.813 EXE | CP64: MPCBECC | CQ64: 0 | CR64: 2.05306 | CS64: 0.0127538 | CT64: 0 | CU64: 0 | CV64: 0.132573 | CW64: 0.109774 | CX64: 0.254941 | CY64: 0.00647993 | CZ64: 2.56958 | DA64: 2.06581 | DB64: 0 | DC64: 2.29044 | DD64: 0.0127538 | DE64: 0 | DF64: 0 | DG64: 0.132573 | DH64: 0.109774 | DI64: 0.254941 | DJ64: 0.00647993 | DK64: 2.80696 | DL64: 2.30319 | DM64: 0.237382 | DN64: 0.237382 | DO64: 4.5599 | DP64: 7.43812
A65: 2016-08-31T17:02:55 | B65: T04R14 | C65: v26 14 P21 U20 M01 | D65: Proposed and Standard | E65: PASS | F65: 6.7 | G65: 0 | H65: 165.995 | I65: 1394.85 | J65: 111.69 | K65: 0 | L65: 0 | M65: 1044.66 | N65: 957.89 | O65: 2206.29 | P65: 116.718 | Q65: 5998.09 | R65: 193.529 | S65: 0 | T65: 0 | U65: 0 | V65: 170.318 | W65: 0 | X65: 52.5151 | Y65: 0 | Z65: 0 | AA65: 416.362 | AB65: 0 | AC65: 0 | AD65: 0 | AE65: 0 | AF65: 0 | AG65: 0 | AH65: 0 | AI65: 0 | AJ65: 0 | AK65: 0 | AL65: 18.13 | AM65: 31.41 | AN65: 1.08 | AO65: 0 | AP65: 13.21 | AQ65: 0 | AR65: 10.59 | AS65: 13.41 | AT65: 21.68 | AU65: 1.1 | AV65: 110.61 | AW65: 63.83 | AX65: 182.489 | AY65: 1598.03 | AZ65: 111.69 | BA65: 0 | BB65: 0 | BC65: 1044.66 | BD65: 957.89 | BE65: 2206.29 | BF65: 116.718 | BG65: 6217.77 | BH65: 212.759 | BI65: 0 | BJ65: 0 | BK65: 0 | BL65: 170.318 | BM65: 0 | BN65: 52.5151 | BO65: 0 | BP65: 0 | BQ65: 435.592 | BR65: 0 | BS65: 0 | BT65: 0 | BU65: 0 | BV65: 0 | BW65: 0 | BX65: 0 | BY65: 0 | BZ65: 0 | CA65: 0 | CB65: 20.06 | CC65: 36.18 | CD65: 1.08 | CE65: 0 | CF65: 13.21 | CG65: 10.59 | CH65: 13.41 | CI65: 21.68 | CJ65: 1.1 | CK65: 117.31 | CL65: 70.53 | CM65: CA Residential 2013, Vers. 1.0 | CN65: CSE 0.813 EXE | CP65: MPCBECC | CQ65: 0 | CR65: 1.6952 | CS65: 0.0127538 | CT65: 0 | CU65: 0 | CV65: 0.132573 | CW65: 0.109774 | CX65: 0.254941 | CY65: 0.00647993 | CZ65: 2.21173 | DA65: 1.70796 | DB65: 0 | DC65: 1.92233 | DD65: 0.0127538 | DE65: 0 | DF65: 0 | DG65: 0.132573 | DH65: 0.109774 | DI65: 0.254941 | DJ65: 0.00647993 | DK65: 2.43885 | DL65: 1.93508 | DM65: 0.227126 | DN65: 0.227126 | DO65: 5.71136 | DP65: 9.4995
A66: 2016-08-31T17:02:56 | B66: T04R15 | C66: v26 15 P21 U20 M01 | D66: Proposed and Standard | E66: PASS | F66: 5.57 | G66: 0 | H66: 3.43814 | I66: 5518.05 | J66: 111.69 | K66: 0 | L66: 0 | M66: 1044.66 | N66: 957.89 | O66: 2206.29 | P66: 116.718 | Q66: 9958.74 | R66: 4.00442 | S66: 0 | T66: 0 | U66: 0 | V66: 146.706 | W66: 0 | X66: 52.5151 | Y66: 0 | Z66: 0 | AA66: 203.226 | AB66: 0 | AC66: 0 | AD66: 0 | AE66: 0 | AF66: 0 | AG66: 0 | AH66: 0 | AI66: 0 | AJ66: 0 | AK66: 0 | AL66: 0.38 | AM66: 93.61 | AN66: 1.09 | AO66: 0 | AP66: 11.41 | AQ66: 0 | AR66: 10.63 | AS66: 13.43 | AT66: 21.73 | AU66: 1.11 | AV66: 153.39 | AW66: 106.49 | AX66: 5.46332 | AY66: 5779.57 | AZ66: 111.69 | BA66: 0 | BB66: 0 | BC66: 1044.66 | BD66: 957.89 | BE66: 2206.29 | BF66: 116.718 | BG66: 10222.3 | BH66: 6.36316 | BI66: 0 | BJ66: 0 | BK66: 0 | BL66: 146.706 | BM66: 0 | BN66: 52.5151 | BO66: 0 | BP66: 0 | BQ66: 205.585 | BR66: 0 | BS66: 0 | BT66: 0 | BU66: 0 | BV66: 0 | BW66: 0 | BX66: 0 | BY66: 0 | BZ66: 0 | CA66: 0 | CB66: 0.61 | CC66: 98.95 | CD66: 1.09 | CE66: 0 | CF66: 11.41 | CG66: 10.63 | CH66: 13.43 | CI66: 21.73 | CJ66: 1.11 | CK66: 158.96 | CL66: 112.06 | CM66: CA Residential 2013, Vers. 1.0 | CN66: CSE 0.813 EXE | CP66: MPCBECC | CQ66: 0 | CR66: 3.93629 | CS66: 0.0127538 | CT66: 0 | CU66: 0 | CV66: 0.132573 | CW66: 0.109774 | CX66: 0.254941 | CY66: 0.00647993 | CZ66: 4.45281 | DA66: 3.94905 | DB66: 0 | DC66: 4.1847 | DD66: 0.0127538 | DE66: 0 | DF66: 0 | DG66: 0.132573 | DH66: 0.109774 | DI66: 0.254941 | DJ66: 0.00647993 | DK66: 4.70122 | DL66: 4.19746 | DM66: 0.24841 | DN66: 0.24841 | DO66: 3.50402 | DP66: 4.97055
A67: 2016-08-31T17:02:53 | B67: T04R16 | C67: v26 16 P21 U20 M01 | D67: Proposed and Standard | E67: PASS | F67: 4.21 | G67: 0 | H67: 436.964 | I67: 38.9693 | J67: 111.69 | K67: 0 | L67: 0 | M67: 1044.66 | N67: 957.89 | O67: 2206.29 | P67: 116.718 | Q67: 4913.19 | R67: 510.206 | S67: 0 | T67: 0 | U67: 0 | V67: 189.976 | W67: 0 | X67: 52.5151 | Y67: 0 | Z67: 0 | AA67: 752.697 | AB67: 0 | AC67: 0 | AD67: 0 | AE67: 0 | AF67: 0 | AG67: 0 | AH67: 0 | AI67: 0 | AJ67: 0 | AK67: 0 | AL67: 46.25 | AM67: 1.57 | AN67: 1.08 | AO67: 0 | AP67: 14.66 | AQ67: 0 | AR67: 10.53 | AS67: 13.4 | AT67: 21.64 | AU67: 1.09 | AV67: 110.22 | AW67: 63.56 | AX67: 455.015 | AY67: 96.2848 | AZ67: 111.69 | BA67: 0 | BB67: 0 | BC67: 1044.66 | BD67: 957.89 | BE67: 2206.29 | BF67: 116.718 | BG67: 4988.55 | BH67: 531.282 | BI67: 0 | BJ67: 0 | BK67: 0 | BL67: 189.976 | BM67: 0 | BN67: 52.5151 | BO67: 0 | BP67: 0 | BQ67: 773.773 | BR67: 0 | BS67: 0 | BT67: 0 | BU67: 0 | BV67: 0 | BW67: 0 | BX67: 0 | BY67: 0 | BZ67: 0 | CA67: 0 | CB67: 48.38 | CC67: 3.65 | CD67: 1.08 | CE67: 0 | CF67: 14.66 | CG67: 10.53 | CH67: 13.4 | CI67: 21.64 | CJ67: 1.09 | CK67: 114.43 | CL67: 67.77 | CM67: CA Residential 2013, Vers. 1.0 | CN67: CSE 0.813 EXE | CP67: MPCBECC | CQ67: 0 | CR67: 0.101942 | CS67: 0.0127538 | CT67: 0 | CU67: 0 | CV67: 0.132573 | CW67: 0.109774 | CX67: 0.254941 | CY67: 0.00647993 | CZ67: 0.618463 | DA67: 0.114695 | DB67: 0 | DC67: 0.219434 | DD67: 0.0127538 | DE67: 0 | DF67: 0 | DG67: 0.132573 | DH67: 0.109774 | DI67: 0.254941 | DJ67: 0.00647993 | DK67: 0.735956 | DL67: 0.232188 | DM67: 0.117493 | DN67: 0.117493 | DO67: 3.6791 | DP67: 6.21218
A68: 2016-08-31T17:03:09 | B68: T05R01 | C68: v26 01 P27 U20 M01 | D68: Proposed and Standard | E68: PASS | F68: 1.86 | G68: 0 | H68: 290.237 | I68: 0 | J68: 141.255 | K68: 0 | L68: 0 | M68: 1299.86 | N68: 1022.71 | O68: 2630.03 | P68: 161.406 | Q68: 5545.5 | R68: 337.998 | S68: 0 | T68: 0 | U68: 0 | V68: 204.655 | W68: 0 | X68: 60.3752 | Y68: 0 | Z68: 0 | AA68: 603.027 | AB68: 0 | AC68: 0 | AD68: 0 | AE68: 0 | AF68: 0 | AG68: 0 | AH68: 0 | AI68: 0 | AJ68: 0 | AK68: 0 | AL68: 23.44 | AM68: 0 | AN68: 1.11 | AO68: 0 | AP68: 12.12 | AQ68: 0 | AR68: 10.64 | AS68: 11.71 | AT68: 20.96 | AU68: 1.23 | AV68: 81.21 | AW68: 36.67 | AX68: 309.226 | AY68: 0 | AZ68: 141.255 | BA68: 0 | BB68: 0 | BC68: 1299.86 | BD68: 1022.71 | BE68: 2630.03 | BF68: 161.406 | BG68: 5564.49 | BH68: 360.112 | BI68: 0 | BJ68: 0 | BK68: 0 | BL68: 204.655 | BM68: 0 | BN68: 60.3752 | BO68: 0 | BP68: 0 | BQ68: 625.141 | BR68: 0 | BS68: 0 | BT68: 0 | BU68: 0 | BV68: 0 | BW68: 0 | BX68: 0 | BY68: 0 | BZ68: 0 | CA68: 0 | CB68: 25.3 | CC68: 0 | CD68: 1.11 | CE68: 0 | CF68: 12.12 | CG68: 10.64 | CH68: 11.71 | CI68: 20.96 | CJ68: 1.23 | CK68: 83.07 | CL68: 38.53 | CM68: CA Residential 2013, Vers. 1.0 | CN68: CSE 0.813 EXE | CP68: MPCBECC | CQ68: 0 | CR68: 0 | CS68: 0.0161297 | CT68: 0 | CU68: 0 | CV68: 0.16496 | CW68: 0.117264 | CX68: 0.303904 | CY68: 0.00896094 | CZ68: 0.611219 | DA68: 0.0161297 | DB68: 0 | DC68: 0 | DD68: 0.0161297 | DE68: 0 | DF68: 0 | DG68: 0.16496 | DH68: 0.117264 | DI68: 0.303904 | DJ68: 0.00896094 | DK68: 0.611219 | DL68: 0.0161297 | DM68: 0 | DN68: 0 | DO68: 2.23908 | DP68: 4.8274
A69: 2016-08-31T17:02:55 | B69: T05R02 | C69: v26 02 P27 U20 M01 | D69: Proposed and Standard | E69: PASS | F69: 2.88 | G69: 0 | H69: 221.496 | I69: 32.1764 | J69: 141.255 | K69: 0 | L69: 0 | M69: 1299.86 | N69: 1022.71 | O69: 2630.03 | P69: 161.406 | Q69: 5508.94 | R69: 257.936 | S69: 0 | T69: 0 | U69: 0 | V69: 193.11 | W69: 0 | X69: 60.3752 | Y69: 0 | Z69: 0 | AA69: 511.421 | AB69: 0 | AC69: 0 | AD69: 0 | AE69: 0 | AF69: 0 | AG69: 0 | AH69: 0 | AI69: 0 | AJ69: 0 | AK69: 0 | AL69: 18.62 | AM69: 1.32 | AN69: 1.11 | AO69: 0 | AP69: 11.48 | AQ69: 0 | AR69: 10.65 | AS69: 11.71 | AT69: 20.97 | AU69: 1.23 | AV69: 77.09 | AW69: 32.53 | AX69: 234.941 | AY69: 71.688 | AZ69: 141.255 | BA69: 0 | BB69: 0 | BC69: 1299.86 | BD69: 1022.71 | BE69: 2630.03 | BF69: 161.406 | BG69: 5561.89 | BH69: 273.592 | BI69: 0 | BJ69: 0 | BK69: 0 | BL69: 193.11 | BM69: 0 | BN69: 60.3752 | BO69: 0 | BP69: 0 | BQ69: 527.077 | BR69: 0 | BS69: 0 | BT69: 0 | BU69: 0 | BV69: 0 | BW69: 0 | BX69: 0 | BY69: 0 | BZ69: 0 | CA69: 0 | CB69: 19.86 | CC69: 2.96 | CD69: 1.11 | CE69: 0 | CF69: 11.48 | CG69: 10.65 | CH69: 11.71 | CI69: 20.97 | CJ69: 1.23 | CK69: 79.97 | CL69: 35.41 | CM69: CA Residential 2013, Vers. 1.0 | CN69: CSE 0.813 EXE | CP69: MPCBECC | CQ69: 0 | CR69: 0.103929 | CS69: 0.0161297 | CT69: 0 | CU69: 0 | CV69: 0.16496 | CW69: 0.117264 | CX69: 0.303904 | CY69: 0.00896094 | CZ69: 0.715148 | DA69: 0.120059 | DB69: 0 | DC69: 0.218968 | DD69: 0.0161297 | DE69: 0 | DF69: 0 | DG69: 0.16496 | DH69: 0.117264 | DI69: 0.303904 | DJ69: 0.00896094 | DK69: 0.830187 | DL69: 0.235098 | DM69: 0.115039 | DN69: 0.115039 | DO69: 3.60136 | DP69: 8.1333
A70: 2016-08-31T17:02:55 | B70: T05R03 | C70: v26 03 P27 U20 M01 | D70: Proposed and Standard | E70: PASS | F70: 2.13 | G70: 0 | H70: 100.299 | I70: 3.59174 | J70: 141.255 | K70: 0 | L70: 0 | M70: 1299.86 | N70: 1022.71 | O70: 2630.03 | P70: 161.406 | Q70: 5359.15 | R70: 116.794 | S70: 0 | T70: 0 | U70: 0 | V70: 193.626 | W70: 0 | X70: 60.3752 | Y70: 0 | Z70: 0 | AA70: 370.795 | AB70: 0 | AC70: 0 | AD70: 0 | AE70: 0 | AF70: 0 | AG70: 0 | AH70: 0 | AI70: 0 | AJ70: 0 | AK70: 0 | AL70: 8.54 | AM70: 0.11 | AN70: 1.11 | AO70: 0 | AP70: 11.49 | AQ70: 0 | AR70: 10.61 | AS70: 11.71 | AT70: 20.95 | AU70: 1.22 | AV70: 65.74 | AW70: 21.25 | AX70: 122.061 | AY70: 6.22351 | AZ70: 141.255 | BA70: 0 | BB70: 0 | BC70: 1299.86 | BD70: 1022.71 | BE70: 2630.03 | BF70: 161.406 | BG70: 5383.55 | BH70: 142.134 | BI70: 0 | BJ70: 0 | BK70: 0 | BL70: 193.626 | BM70: 0 | BN70: 60.3752 | BO70: 0 | BP70: 0 | BQ70: 396.136 | BR70: 0 | BS70: 0 | BT70: 0 | BU70: 0 | BV70: 0 | BW70: 0 | BX70: 0 | BY70: 0 | BZ70: 0 | CA70: 0 | CB70: 10.49 | CC70: 0.29 | CD70: 1.11 | CE70: 0 | CF70: 11.49 | CG70: 10.61 | CH70: 11.71 | CI70: 20.95 | CJ70: 1.22 | CK70: 67.87 | CL70: 23.38 | CM70: CA Residential 2013, Vers. 1.0 | CN70: CSE 0.813 EXE | CP70: MPCBECC | CQ70: 0 | CR70: 0.00816689 | CS70: 0.0161297 | CT70: 0 | CU70: 0 | CV70: 0.16496 | CW70: 0.117264 | CX70: 0.303904 | CY70: 0.00896094 | CZ70: 0.619386 | DA70: 0.0242966 | DB70: 0 | DC70: 0.0275584 | DD70: 0.0161297 | DE70: 0 | DF70: 0 | DG70: 0.16496 | DH70: 0.117264 | DI70: 0.303904 | DJ70: 0.00896094 | DK70: 0.638777 | DL70: 0.0436881 | DM70: 0.0193915 | DN70: 0.0193915 | DO70: 3.13836 | DP70: 9.11035
A71: 2016-08-31T17:02:55 | B71: T05R04 | C71: v26 04 P27 U20 M01 | D71: Proposed and Standard | E71: PASS | F71: 2.94 | G71: 0 | H71: 162.812 | I71: 111.346 | J71: 141.255 | K71: 0 | L71: 0 | M71: 1299.86 | N71: 1022.71 | O71: 2630.03 | P71: 161.406 | Q71: 5529.42 | R71: 189.598 | S71: 0 | T71: 0 | U71: 0 | V71: 188.685 | W71: 0 | X71: 60.3752 | Y71: 0 | Z71: 0 | AA71: 438.658 | AB71: 0 | AC71: 0 | AD71: 0 | AE71: 0 | AF71: 0 | AG71: 0 | AH71: 0 | AI71: 0 | AJ71: 0 | AK71: 0 | AL71: 13.75 | AM71: 2.73 | AN71: 1.11 | AO71: 0 | AP71: 11.22 | AQ71: 0 | AR71: 10.67 | AS71: 11.71 | AT71: 20.99 | AU71: 1.23 | AV71: 73.41 | AW71: 28.81 | AX71: 178.407 | AY71: 159.893 | AZ71: 141.255 | BA71: 0 | BB71: 0 | BC71: 1299.86 | BD71: 1022.71 | BE71: 2630.03 | BF71: 161.406 | BG71: 5593.56 | BH71: 207.759 | BI71: 0 | BJ71: 0 | BK71: 0 | BL71: 188.685 | BM71: 0 | BN71: 60.3752 | BO71: 0 | BP71: 0 | BQ71: 456.819 | BR71: 0 | BS71: 0 | BT71: 0 | BU71: 0 | BV71: 0 | BW71: 0 | BX71: 0 | BY71: 0 | BZ71: 0 | CA71: 0 | CB71: 15.16 | CC71: 4.26 | CD71: 1.11 | CE71: 0 | CF71: 11.22 | CG71: 10.67 | CH71: 11.71 | CI71: 20.99 | CJ71: 1.23 | CK71: 76.35 | CL71: 31.75 | CM71: CA Residential 2013, Vers. 1.0 | CN71: CSE 0.813 EXE | CP71: MPCBECC | CQ71: 0 | CR71: 0.24566 | CS71: 0.0161297 | CT71: 0 | CU71: 0 | CV71: 0.16496 | CW71: 0.117264 | CX71: 0.303904 | CY71: 0.00896094 | CZ71: 0.856879 | DA71: 0.26179 | DB71: 0 | DC71: 0.382657 | DD71: 0.0161297 | DE71: 0 | DF71: 0 | DG71: 0.16496 | DH71: 0.117264 | DI71: 0.303904 | DJ71: 0.00896094 | DK71: 0.993876 | DL71: 0.398786 | DM71: 0.136996 | DN71: 0.136996 | DO71: 3.85069 | DP71: 9.25984
A72: 2016-08-31T17:02:58 | B72: T05R05 | C72: v26 05 P27 U20 M01 | D72: Proposed and Standard | E72: PASS | F72: 2 | G72: 0 | H72: 73.6887 | I72: 2.25677 | J72: 141.255 | K72: 0 | L72: 0 | M72: 1299.86 | N72: 1022.71 | O72: 2630.03 | P72: 161.406 | Q72: 5331.21 | R72: 85.8167 | S72: 0 | T72: 0 | U72: 0 | V72: 196.052 | W72: 0 | X72: 60.3752 | Y72: 0 | Z72: 0 | AA72: 342.244 | AB72: 0 | AC72: 0 | AD72: 0 | AE72: 0 | AF72: 0 | AG72: 0 | AH72: 0 | AI72: 0 | AJ72: 0 | AK72: 0 | AL72: 5.99 | AM72: 0.04 | AN72: 1.11 | AO72: 0 | AP72: 11.62 | AQ72: 0 | AR72: 10.54 | AS72: 11.7 | AT72: 20.89 | AU72: 1.22 | AV72: 63.11 | AW72: 18.76 | AX72: 95.4487 | AY72: 0.299824 | AZ72: 141.255 | BA72: 0 | BB72: 0 | BC72: 1299.86 | BD72: 1022.71 | BE72: 2630.03 | BF72: 161.406 | BG72: 5351.01 | BH72: 111.158 | BI72: 0 | BJ72: 0 | BK72: 0 | BL72: 196.052 | BM72: 0 | BN72: 60.3752 | BO72: 0 | BP72: 0 | BQ72: 367.585 | BR72: 0 | BS72: 0 | BT72: 0 | BU72: 0 | BV72: 0 | BW72: 0 | BX72: 0 | BY72: 0 | BZ72: 0 | CA72: 0 | CB72: 8.02 | CC72: 0.01 | CD72: 1.11 | CE72: 0 | CF72: 11.62 | CG72: 10.54 | CH72: 11.7 | CI72: 20.89 | CJ72: 1.22 | CK72: 65.11 | CL72: 20.76 | CM72: CA Residential 2013, Vers. 1.0 | CN72: CSE 0.813 EXE | CP72: MPCBECC | CQ72: 0 | CR72: 0 | CS72: 0.0161297 | CT72: 0 | CU72: 0 | CV72: 0.16496 | CW72: 0.117264 | CX72: 0.303904 | CY72: 0.00896094 | CZ72: 0.611219 | DA72: 0.0161297 | DB72: 0 | DC72: 0 | DD72: 0.0161297 | DE72: 0 | DF72: 0 | DG72: 0.16496 | DH72: 0.117264 | DI72: 0.303904 | DJ72: 0.00896094 | DK72: 0.611219 | DL72: 0.0161297 | DM72: 0 | DN72: 0 | DO72: 3.07172 | DP72: 9.63391
A73: 2016-08-31T17:02:59 | B73: T05R06 | C73: v26 06 P27 U20 M01 | D73: Proposed and Standard | E73: PASS | F73: 1.5 | G73: 0 | H73: 47.558 | I73: 62.0372 | J73: 141.255 | K73: 0 | L73: 0 | M73: 1299.86 | N73: 1022.71 | O73: 2630.03 | P73: 161.406 | Q73: 5364.86 | R73: 55.3811 | S73: 0 | T73: 0 | U73: 0 | V73: 184.388 | W73: 0 | X73: 60.3752 | Y73: 0 | Z73: 0 | AA73: 300.144 | AB73: 0 | AC73: 0 | AD73: 0 | AE73: 0 | AF73: 0 | AG73: 0 | AH73: 0 | AI73: 0 | AJ73: 0 | AK73: 0 | AL73: 4.03 | AM73: 2.11 | AN73: 1.07 | AO73: 0 | AP73: 11.02 | AQ73: 0 | AR73: 10.26 | AS73: 11.45 | AT73: 20.25 | AU73: 1.19 | AV73: 61.38 | AW73: 18.23 | AX73: 57.2456 | AY73: 89.2273 | AZ73: 141.255 | BA73: 0 | BB73: 0 | BC73: 1299.86 | BD73: 1022.71 | BE73: 2630.03 | BF73: 161.406 | BG73: 5401.74 | BH73: 66.6623 | BI73: 0 | BJ73: 0 | BK73: 0 | BL73: 184.388 | BM73: 0 | BN73: 60.3752 | BO73: 0 | BP73: 0 | BQ73: 311.426 | BR73: 0 | BS73: 0 | BT73: 0 | BU73: 0 | BV73: 0 | BW73: 0 | BX73: 0 | BY73: 0 | BZ73: 0 | CA73: 0 | CB73: 4.91 | CC73: 2.73 | CD73: 1.07 | CE73: 0 | CF73: 11.02 | CG73: 10.26 | CH73: 11.45 | CI73: 20.25 | CJ73: 1.19 | CK73: 62.88 | CL73: 19.73 | CM73: CA Residential 2013, Vers. 1.0 | CN73: CSE 0.813 EXE | CP73: MPCBECC | CQ73: 0 | CR73: 0.174176 | CS73: 0.0161297 | CT73: 0 | CU73: 0 | CV73: 0.16496 | CW73: 0.117264 | CX73: 0.303904 | CY73: 0.00896094 | CZ73: 0.785395 | DA73: 0.190306 | DB73: 0 | DC73: 0.224883 | DD73: 0.0161297 | DE73: 0 | DF73: 0 | DG73: 0.16496 | DH73: 0.117264 | DI73: 0.303904 | DJ73: 0.00896094 | DK73: 0.836102 | DL73: 0.241013 | DM73: 0.0507072 | DN73: 0.0507071 | DO73: 2.3855 | DP73: 7.60263
A74: 2016-08-31T17:02:59 | B74: T05R07 | C74: v26 07 P27 U20 M01 | D74: Proposed and Standard | E74: PASS | F74: 0.78 | G74: 0 | H74: 12.1732 | I74: 13.07 | J74: 141.255 | K74: 0 | L74: 0 | M74: 1299.86 | N74: 1022.71 | O74: 2630.03 | P74: 161.406 | Q74: 5280.51 | R74: 14.1752 | S74: 0 | T74: 0 | U74: 0 | V74: 182.975 | W74: 0 | X74: 60.3752 | Y74: 0 | Z74: 0 | AA74: 257.525 | AB74: 0 | AC74: 0 | AD74: 0 | AE74: 0 | AF74: 0 | AG74: 0 | AH74: 0 | AI74: 0 | AJ74: 0 | AK74: 0 | AL74: 0.97 | AM74: 0.55 | AN74: 1.12 | AO74: 0 | AP74: 10.72 | AQ74: 0 | AR74: 10.74 | AS74: 11.69 | AT74: 21.1 | AU74: 1.26 | AV74: 58.15 | AW74: 13.36 | AX74: 15.4492 | AY74: 23.6042 | AZ74: 141.255 | BA74: 0 | BB74: 0 | BC74: 1299.86 | BD74: 1022.71 | BE74: 2630.03 | BF74: 161.406 | BG74: 5294.32 | BH74: 17.9899 | BI74: 0 | BJ74: 0 | BK74: 0 | BL74: 182.975 | BM74: 0 | BN74: 60.3752 | BO74: 0 | BP74: 0 | BQ74: 261.34 | BR74: 0 | BS74: 0 | BT74: 0 | BU74: 0 | BV74: 0 | BW74: 0 | BX74: 0 | BY74: 0 | BZ74: 0 | CA74: 0 | CB74: 1.27 | CC74: 1.03 | CD74: 1.12 | CE74: 0 | CF74: 10.72 | CG74: 10.74 | CH74: 11.69 | CI74: 21.1 | CJ74: 1.26 | CK74: 58.93 | CL74: 14.14 | CM74: CA Residential 2013, Vers. 1.0 | CN74: CSE 0.813 EXE | CP74: MPCBECC | CQ74: 0 | CR74: 0.0472675 | CS74: 0.0161297 | CT74: 0 | CU74: 0 | CV74: 0.16496 | CW74: 0.117264 | CX74: 0.303904 | CY74: 0.00896094 | CZ74: 0.658486 | DA74: 0.0633972 | DB74: 0 | DC74: 0.0919592 | DD74: 0.0161297 | DE74: 0 | DF74: 0 | DG74: 0.16496 | DH74: 0.117264 | DI74: 0.303904 | DJ74: 0.00896094 | DK74: 0.703178 | DL74: 0.108089 | DM74: 0.0446917 | DN74: 0.0446917 | DO74: 1.3236 | DP74: 5.51626
A75: 2016-08-31T17:03:00 | B75: T05R08 | C75: v26 08 P27 U20 M01 | D75: Proposed and Standard | E75: PASS | F75: 2.33 | G75: 0 | H75: 36.4296 | I75: 398.326 | J75: 141.255 | K75: 0 | L75: 0 | M75: 1299.86 | N75: 1022.71 | O75: 2630.03 | P75: 161.406 | Q75: 5690.02 | R75: 42.4222 | S75: 0 | T75: 0 | U75: 0 | V75: 180.471 | W75: 0 | X75: 60.3752 | Y75: 0 | Z75: 0 | AA75: 283.268 | AB75: 0 | AC75: 0 | AD75: 0 | AE75: 0 | AF75: 0 | AG75: 0 | AH75: 0 | AI75: 0 | AJ75: 0 | AK75: 0 | AL75: 3.1 | AM75: 8.14 | AN75: 1.08 | AO75: 0 | AP75: 10.79 | AQ75: 0 | AR75: 10.33 | AS75: 11.47 | AT75: 20.32 | AU75: 1.2 | AV75: 66.43 | AW75: 23.11 | AX75: 43.6064 | AY75: 484.434 | AZ75: 141.255 | BA75: 0 | BB75: 0 | BC75: 1299.86 | BD75: 1022.71 | BE75: 2630.03 | BF75: 161.406 | BG75: 5783.3 | BH75: 50.7797 | BI75: 0 | BJ75: 0 | BK75: 0 | BL75: 180.471 | BM75: 0 | BN75: 60.3752 | BO75: 0 | BP75: 0 | BQ75: 291.625 | BR75: 0 | BS75: 0 | BT75: 0 | BU75: 0 | BV75: 0 | BW75: 0 | BX75: 0 | BY75: 0 | BZ75: 0 | CA75: 0 | CB75: 3.75 | CC75: 9.82 | CD75: 1.08 | CE75: 0 | CF75: 10.79 | CG75: 10.33 | CH75: 11.47 | CI75: 20.32 | CJ75: 1.2 | CK75: 68.76 | CL75: 25.44 | CM75: CA Residential 2013, Vers. 1.0 | CN75: CSE 0.813 EXE | CP75: MPCBECC | CQ75: 0 | CR75: 0.637015 | CS75: 0.0161297 | CT75: 0 | CU75: 0 | CV75: 0.16496 | CW75: 0.117264 | CX75: 0.303904 | CY75: 0.00896094 | CZ75: 1.24823 | DA75: 0.653145 | DB75: 0 | DC75: 0.805648 | DD75: 0.0161297 | DE75: 0 | DF75: 0 | DG75: 0.16496 | DH75: 0.117264 | DI75: 0.303904 | DJ75: 0.00896094 | DK75: 1.41687 | DL75: 0.821778 | DM75: 0.168633 | DN75: 0.168633 | DO75: 3.3886 | DP75: 9.1588
A76: 2016-08-31T17:03:09 | B76: T05R09 | C76: v26 09 P27 U20 M01 | D76: Proposed and Standard | E76: PASS | F76: 4.21 | G76: 0 | H76: 62.0341 | I76: 773.417 | J76: 141.255 | K76: 0 | L76: 0 | M76: 1299.86 | N76: 1022.71 | O76: 2630.03 | P76: 161.406 | Q76: 6090.71 | R76: 72.2604 | S76: 0 | T76: 0 | U76: 0 | V76: 180.273 | W76: 0 | X76: 60.3752 | Y76: 0 | Z76: 0 | AA76: 312.908 | AB76: 0 | AC76: 0 | AD76: 0 | AE76: 0 | AF76: 0 | AG76: 0 | AH76: 0 | AI76: 0 | AJ76: 0 | AK76: 0 | AL76: 5.24 | AM76: 17.67 | AN76: 1.07 | AO76: 0 | AP76: 10.79 | AQ76: 0 | AR76: 10.23 | AS76: 11.41 | AT76: 20.15 | AU76: 1.19 | AV76: 77.75 | AW76: 34.77 | AX76: 71.0427 | AY76: 924.443 | AZ76: 141.255 | BA76: 0 | BB76: 0 | BC76: 1299.86 | BD76: 1022.71 | BE76: 2630.03 | BF76: 161.406 | BG76: 6250.75 | BH76: 82.7541 | BI76: 0 | BJ76: 0 | BK76: 0 | BL76: 180.273 | BM76: 0 | BN76: 60.3752 | BO76: 0 | BP76: 0 | BQ76: 323.402 | BR76: 0 | BS76: 0 | BT76: 0 | BU76: 0 | BV76: 0 | BW76: 0 | BX76: 0 | BY76: 0 | BZ76: 0 | CA76: 0 | CB76: 6.05 | CC76: 21.07 | CD76: 1.07 | CE76: 0 | CF76: 10.79 | CG76: 10.23 | CH76: 11.41 | CI76: 20.15 | CJ76: 1.19 | CK76: 81.96 | CL76: 38.98 | CM76: CA Residential 2013, Vers. 1.0 | CN76: CSE 0.813 EXE | CP76: MPCBECC | CQ76: 0 | CR76: 1.35346 | CS76: 0.0161297 | CT76: 0 | CU76: 0 | CV76: 0.16496 | CW76: 0.117264 | CX76: 0.303904 | CY76: 0.00896094 | CZ76: 1.96468 | DA76: 1.36959 | DB76: 0 | DC76: 1.65487 | DD76: 0.0161297 | DE76: 0 | DF76: 0 | DG76: 0.16496 | DH76: 0.117264 | DI76: 0.303904 | DJ76: 0.00896094 | DK76: 2.26609 | DL76: 1.671 | DM76: 0.301416 | DN76: 0.301416 | DO76: 5.13665 | DP76: 10.8004
A77: 2016-08-31T17:03:09 | B77: T05R10 | C77: v26 10 P27 U20 M01 | D77: Proposed and Standard | E77: PASS | F77: 4.48 | G77: 0 | H77: 72.9589 | I77: 957.598 | J77: 141.255 | K77: 0 | L77: 0 | M77: 1299.86 | N77: 1022.71 | O77: 2630.03 | P77: 161.406 | Q77: 6285.82 | R77: 84.9901 | S77: 0 | T77: 0 | U77: 0 | V77: 179.53 | W77: 0 | X77: 60.3752 | Y77: 0 | Z77: 0 | AA77: 324.895 | AB77: 0 | AC77: 0 | AD77: 0 | AE77: 0 | AF77: 0 | AG77: 0 | AH77: 0 | AI77: 0 | AJ77: 0 | AK77: 0 | AL77: 6.13 | AM77: 18.71 | AN77: 1.07 | AO77: 0 | AP77: 10.76 | AQ77: 0 | AR77: 10.14 | AS77: 11.39 | AT77: 20.06 | AU77: 1.18 | AV77: 79.44 | AW77: 36.67 | AX77: 83.7218 | AY77: 1141.06 | AZ77: 141.255 | BA77: 0 | BB77: 0 | BC77: 1299.86 | BD77: 1022.71 | BE77: 2630.03 | BF77: 161.406 | BG77: 6480.04 | BH77: 97.5279 | BI77: 0 | BJ77: 0 | BK77: 0 | BL77: 179.53 | BM77: 0 | BN77: 60.3752 | BO77: 0 | BP77: 0 | BQ77: 337.433 | BR77: 0 | BS77: 0 | BT77: 0 | BU77: 0 | BV77: 0 | BW77: 0 | BX77: 0 | BY77: 0 | BZ77: 0 | CA77: 0 | CB77: 7.12 | CC77: 22.2 | CD77: 1.07 | CE77: 0 | CF77: 10.76 | CG77: 10.14 | CH77: 11.39 | CI77: 20.06 | CJ77: 1.18 | CK77: 83.92 | CL77: 41.15 | CM77: CA Residential 2013, Vers. 1.0 | CN77: CSE 0.813 EXE | CP77: MPCBECC | CQ77: 0 | CR77: 1.55544 | CS77: 0.0161297 | CT77: 0 | CU77: 0 | CV77: 0.16496 | CW77: 0.117264 | CX77: 0.303904 | CY77: 0.00896094 | CZ77: 2.16666 | DA77: 1.57157 | DB77: 0 | DC77: 1.82822 | DD77: 0.0161297 | DE77: 0 | DF77: 0 | DG77: 0.16496 | DH77: 0.117264 | DI77: 0.303904 | DJ77: 0.00896094 | DK77: 2.43944 | DL77: 1.84435 | DM77: 0.272782 | DN77: 0.272782 | DO77: 5.33842 | DP77: 10.887
A78: 2016-08-31T17:03:08 | B78: T05R11 | C78: v26 11 P27 U20 M01 | D78: Proposed and Standard | E78: PASS | F78: 6.28 | G78: 0 | H78: 212.992 | I78: 1999.3 | J78: 141.255 | K78: 0 | L78: 0 | M78: 1299.86 | N78: 1022.71 | O78: 2630.03 | P78: 161.406 | Q78: 7467.55 | R78: 248.058 | S78: 0 | T78: 0 | U78: 0 | V78: 181.172 | W78: 0 | X78: 60.3752 | Y78: 0 | Z78: 0 | AA78: 489.605 | AB78: 0 | AC78: 0 | AD78: 0 | AE78: 0 | AF78: 0 | AG78: 0 | AH78: 0 | AI78: 0 | AJ78: 0 | AK78: 0 | AL78: 18.08 | AM78: 36.86 | AN78: 1.11 | AO78: 0 | AP78: 10.85 | AQ78: 0 | AR78: 10.76 | AS78: 11.71 | AT78: 21.03 | AU78: 1.25 | AV78: 111.65 | AW78: 66.9 | AX78: 230.206 | AY78: 2252.94 | AZ78: 141.255 | BA78: 0 | BB78: 0 | BC78: 1299.86 | BD78: 1022.71 | BE78: 2630.03 | BF78: 161.406 | BG78: 7738.41 | BH78: 268.106 | BI78: 0 | BJ78: 0 | BK78: 0 | BL78: 181.172 | BM78: 0 | BN78: 60.3752 | BO78: 0 | BP78: 0 | BQ78: 509.653 | BR78: 0 | BS78: 0 | BT78: 0 | BU78: 0 | BV78: 0 | BW78: 0 | BX78: 0 | BY78: 0 | BZ78: 0 | CA78: 0 | CB78: 19.61 | CC78: 41.61 | CD78: 1.11 | CE78: 0 | CF78: 10.85 | CG78: 10.76 | CH78: 11.71 | CI78: 21.03 | CJ78: 1.25 | CK78: 117.93 | CL78: 73.18 | CM78: CA Residential 2013, Vers. 1.0 | CN78: CSE 0.813 EXE | CP78: MPCBECC | CQ78: 0 | CR78: 2.25764 | CS78: 0.0161297 | CT78: 0 | CU78: 0 | CV78: 0.16496 | CW78: 0.117264 | CX78: 0.303904 | CY78: 0.00896094 | CZ78: 2.86886 | DA78: 2.27377 | DB78: 0 | DC78: 2.53047 | DD78: 0.0161297 | DE78: 0 | DF78: 0 | DG78: 0.16496 | DH78: 0.117264 | DI78: 0.303904 | DJ78: 0.00896094 | DK78: 3.14168 | DL78: 2.5466 | DM78: 0.272822 | DN78: 0.272822 | DO78: 5.32519 | DP78: 8.58158
A79: 2016-08-31T17:02:59 | B79: T05R12 | C79: v26 12 P27 U20 M01 | D79: Proposed and Standard | E79: PASS | F79: 4.97 | G79: 0 | H79: 225.213 | I79: 552.317 | J79: 141.255 | K79: 0 | L79: 0 | M79: 1299.86 | N79: 1022.71 | O79: 2630.03 | P79: 161.406 | Q79: 6032.79 | R79: 262.251 | S79: 0 | T79: 0 | U79: 0 | V79: 185.879 | W79: 0 | X79: 60.3752 | Y79: 0 | Z79: 0 | AA79: 508.505 | AB79: 0 | AC79: 0 | AD79: 0 | AE79: 0 | AF79: 0 | AG79: 0 | AH79: 0 | AI79: 0 | AJ79: 0 | AK79: 0 | AL79: 19.19 | AM79: 14.44 | AN79: 1.11 | AO79: 0 | AP79: 11.09 | AQ79: 0 | AR79: 10.8 | AS79: 11.72 | AT79: 21.07 | AU79: 1.24 | AV79: 90.66 | AW79: 45.83 | AX79: 238.187 | AY79: 698.922 | AZ79: 141.255 | BA79: 0 | BB79: 0 | BC79: 1299.86 | BD79: 1022.71 | BE79: 2630.03 | BF79: 161.406 | BG79: 6192.37 | BH79: 277.359 | BI79: 0 | BJ79: 0 | BK79: 0 | BL79: 185.879 | BM79: 0 | BN79: 60.3752 | BO79: 0 | BP79: 0 | BQ79: 523.613 | BR79: 0 | BS79: 0 | BT79: 0 | BU79: 0 | BV79: 0 | BW79: 0 | BX79: 0 | BY79: 0 | BZ79: 0 | CA79: 0 | CB79: 20.37 | CC79: 18.23 | CD79: 1.11 | CE79: 0 | CF79: 11.09 | CG79: 10.8 | CH79: 11.72 | CI79: 21.07 | CJ79: 1.24 | CK79: 95.63 | CL79: 50.8 | CM79: CA Residential 2013, Vers. 1.0 | CN79: CSE 0.813 EXE | CP79: MPCBECC | CQ79: 0 | CR79: 1.04033 | CS79: 0.0161297 | CT79: 0 | CU79: 0 | CV79: 0.16496 | CW79: 0.117264 | CX79: 0.303904 | CY79: 0.00896094 | CZ79: 1.65154 | DA79: 1.05646 | DB79: 0 | DC79: 1.29297 | DD79: 0.0161297 | DE79: 0 | DF79: 0 | DG79: 0.16496 | DH79: 0.117264 | DI79: 0.303904 | DJ79: 0.00896094 | DK79: 1.90419 | DL79: 1.3091 | DM79: 0.252645 | DN79: 0.252645 | DO79: 5.19712 | DP79: 9.78347
A80: 2016-08-31T17:03:07 | B80: T05R13 | C80: v26 13 P27 U20 M01 | D80: Proposed and Standard | E80: PASS | F80: 6.62 | G80: 0 | H80: 197.759 | I80: 2271.07 | J80: 141.255 | K80: 0 | L80: 0 | M80: 1299.86 | N80: 1022.71 | O80: 2630.03 | P80: 161.406 | Q80: 7724.1 | R80: 230.316 | S80: 0 | T80: 0 | U80: 0 | V80: 179.364 | W80: 0 | X80: 60.3752 | Y80: 0 | Z80: 0 | AA80: 470.054 | AB80: 0 | AC80: 0 | AD80: 0 | AE80: 0 | AF80: 0 | AG80: 0 | AH80: 0 | AI80: 0 | AJ80: 0 | AK80: 0 | AL80: 16.94 | AM80: 39.78 | AN80: 1.11 | AO80: 0 | AP80: 10.74 | AQ80: 0 | AR80: 10.73 | AS80: 11.72 | AT80: 21.03 | AU80: 1.23 | AV80: 113.28 | AW80: 68.57 | AX80: 208.894 | AY80: 2548.96 | AZ80: 141.255 | BA80: 0 | BB80: 0 | BC80: 1299.86 | BD80: 1022.71 | BE80: 2630.03 | BF80: 161.406 | BG80: 8013.12 | BH80: 243.284 | BI80: 0 | BJ80: 0 | BK80: 0 | BL80: 179.364 | BM80: 0 | BN80: 60.3752 | BO80: 0 | BP80: 0 | BQ80: 483.023 | BR80: 0 | BS80: 0 | BT80: 0 | BU80: 0 | BV80: 0 | BW80: 0 | BX80: 0 | BY80: 0 | BZ80: 0 | CA80: 0 | CB80: 17.95 | CC80: 45.39 | CD80: 1.11 | CE80: 0 | CF80: 10.74 | CG80: 10.73 | CH80: 11.72 | CI80: 21.03 | CJ80: 1.23 | CK80: 119.9 | CL80: 75.19 | CM80: CA Residential 2013, Vers. 1.0 | CN80: CSE 0.813 EXE | CP80: MPCBECC | CQ80: 0 | CR80: 2.59378 | CS80: 0.0161297 | CT80: 0 | CU80: 0 | CV80: 0.16496 | CW80: 0.117264 | CX80: 0.303904 | CY80: 0.00896094 | CZ80: 3.205 | DA80: 2.60991 | DB80: 0 | DC80: 2.96493 | DD80: 0.0161297 | DE80: 0 | DF80: 0 | DG80: 0.16496 | DH80: 0.117264 | DI80: 0.303904 | DJ80: 0.00896094 | DK80: 3.57615 | DL80: 2.98106 | DM80: 0.371148 | DN80: 0.371148 | DO80: 5.52127 | DP80: 8.80437
A81: 2016-08-31T17:03:15 | B81: T05R14 | C81: v26 14 P27 U20 M01 | D81: Proposed and Standard | E81: PASS | F81: 7.37 | G81: 0 | H81: 203.181 | I81: 1881.3 | J81: 141.255 | K81: 0 | L81: 0 | M81: 1299.86 | N81: 1022.71 | O81: 2630.03 | P81: 161.406 | Q81: 7339.75 | R81: 236.883 | S81: 0 | T81: 0 | U81: 0 | V81: 182.136 | W81: 0 | X81: 60.3752 | Y81: 0 | Z81: 0 | AA81: 479.394 | AB81: 0 | AC81: 0 | AD81: 0 | AE81: 0 | AF81: 0 | AG81: 0 | AH81: 0 | AI81: 0 | AJ81: 0 | AK81: 0 | AL81: 17.26 | AM81: 32.67 | AN81: 1.07 | AO81: 0 | AP81: 10.98 | AQ81: 0 | AR81: 10.25 | AS81: 11.39 | AT81: 20.1 | AU81: 1.18 | AV81: 104.9 | AW81: 61.98 | AX81: 224.012 | AY81: 2181.96 | AZ81: 141.255 | BA81: 0 | BB81: 0 | BC81: 1299.86 | BD81: 1022.71 | BE81: 2630.03 | BF81: 161.406 | BG81: 7661.23 | BH81: 261.169 | BI81: 0 | BJ81: 0 | BK81: 0 | BL81: 182.136 | BM81: 0 | BN81: 60.3752 | BO81: 0 | BP81: 0 | BQ81: 503.68 | BR81: 0 | BS81: 0 | BT81: 0 | BU81: 0 | BV81: 0 | BW81: 0 | BX81: 0 | BY81: 0 | BZ81: 0 | CA81: 0 | CB81: 19.16 | CC81: 38.14 | CD81: 1.07 | CE81: 0 | CF81: 10.98 | CG81: 10.25 | CH81: 11.39 | CI81: 20.1 | CJ81: 1.18 | CK81: 112.27 | CL81: 69.35 | CM81: CA Residential 2013, Vers. 1.0 | CN81: CSE 0.813 EXE | CP81: MPCBECC | CQ81: 0 | CR81: 2.24368 | CS81: 0.0161297 | CT81: 0 | CU81: 0 | CV81: 0.16496 | CW81: 0.117264 | CX81: 0.303904 | CY81: 0.00896094 | CZ81: 2.8549 | DA81: 2.25981 | DB81: 0 | DC81: 2.58426 | DD81: 0.0161297 | DE81: 0 | DF81: 0 | DG81: 0.16496 | DH81: 0.117264 | DI81: 0.303904 | DJ81: 0.00896094 | DK81: 3.19548 | DL81: 2.60039 | DM81: 0.340583 | DN81: 0.340583 | DO81: 6.56453 | DP81: 10.6273
A82: 2016-08-31T17:03:15 | B82: T05R15 | C82: v26 15 P27 U20 M01 | D82: Proposed and Standard | E82: PASS | F82: 6.75999 | G82: 0 | H82: 12.4254 | I82: 6667.32 | J82: 141.255 | K82: 0 | L82: 0 | M82: 1299.86 | N82: 1022.71 | O82: 2630.03 | P82: 161.406 | Q82: 11935 | R82: 14.4719 | S82: 0 | T82: 0 | U82: 0 | V82: 156.421 | W82: 0 | X82: 60.3752 | Y82: 0 | Z82: 0 | AA82: 231.268 | AB82: 0 | AC82: 0 | AD82: 0 | AE82: 0 | AF82: 0 | AG82: 0 | AH82: 0 | AI82: 0 | AJ82: 0 | AK82: 0 | AL82: 1.08 | AM82: 87.78 | AN82: 1.07 | AO82: 0 | AP82: 9.47 | AQ82: 0 | AR82: 10.29 | AS82: 11.4 | AT82: 20.14 | AU82: 1.19 | AV82: 142.42 | AW82: 99.4 | AX82: 16.9969 | AY82: 7061.71 | AZ82: 141.255 | BA82: 0 | BB82: 0 | BC82: 1299.86 | BD82: 1022.71 | BE82: 2630.03 | BF82: 161.406 | BG82: 12334 | BH82: 19.7964 | BI82: 0 | BJ82: 0 | BK82: 0 | BL82: 156.421 | BM82: 0 | BN82: 60.3752 | BO82: 0 | BP82: 0 | BQ82: 236.592 | BR82: 0 | BS82: 0 | BT82: 0 | BU82: 0 | BV82: 0 | BW82: 0 | BX82: 0 | BY82: 0 | BZ82: 0 | CA82: 0 | CB82: 1.48 | CC82: 94.14 | CD82: 1.07 | CE82: 0 | CF82: 9.47 | CG82: 10.29 | CH82: 11.4 | CI82: 20.14 | CJ82: 1.19 | CK82: 149.18 | CL82: 106.16 | CM82: CA Residential 2013, Vers. 1.0 | CN82: CSE 0.813 EXE | CP82: MPCBECC | CQ82: 0 | CR82: 4.72376 | CS82: 0.0161297 | CT82: 0 | CU82: 0 | CV82: 0.16496 | CW82: 0.117264 | CX82: 0.303904 | CY82: 0.00896094 | CZ82: 5.33498 | DA82: 4.73989 | DB82: 0 | DC82: 5.11049 | DD82: 0.0161297 | DE82: 0 | DF82: 0 | DG82: 0.16496 | DH82: 0.117264 | DI82: 0.303904 | DJ82: 0.00896094 | DK82: 5.72171 | DL82: 5.12662 | DM82: 0.38673 | DN82: 0.38673 | DO82: 4.53144 | DP82: 6.36774
A83: 2016-08-31T17:03:14 | B83: T05R16 | C83: v26 16 P27 U20 M01 | D83: Proposed and Standard | E83: PASS | F83: 4.61 | G83: 0 | H83: 511.122 | I83: 132.934 | J83: 141.255 | K83: 0 | L83: 0 | M83: 1299.86 | N83: 1022.71 | O83: 2630.03 | P83: 161.406 | Q83: 5899.32 | R83: 596.793 | S83: 0 | T83: 0 | U83: 0 | V83: 203.523 | W83: 0 | X83: 60.3752 | Y83: 0 | Z83: 0 | AA83: 860.692 | AB83: 0 | AC83: 0 | AD83: 0 | AE83: 0 | AF83: 0 | AG83: 0 | AH83: 0 | AI83: 0 | AJ83: 0 | AK83: 0 | AL83: 42.01 | AM83: 3.67 | AN83: 1.06 | AO83: 0 | AP83: 12.22 | AQ83: 0 | AR83: 10.19 | AS83: 11.38 | AT83: 20.06 | AU83: 1.17 | AV83: 101.76 | AW83: 58.96 | AX83: 532.721 | AY83: 227.586 | AZ83: 141.255 | BA83: 0 | BB83: 0 | BC83: 1299.86 | BD83: 1022.71 | BE83: 2630.03 | BF83: 161.406 | BG83: 6015.57 | BH83: 622.013 | BI83: 0 | BJ83: 0 | BK83: 0 | BL83: 203.523 | BM83: 0 | BN83: 60.3752 | BO83: 0 | BP83: 0 | BQ83: 885.911 | BR83: 0 | BS83: 0 | BT83: 0 | BU83: 0 | BV83: 0 | BW83: 0 | BX83: 0 | BY83: 0 | BZ83: 0 | CA83: 0 | CB83: 44.02 | CC83: 6.27 | CD83: 1.06 | CE83: 0 | CF83: 12.22 | CG83: 10.19 | CH83: 11.38 | CI83: 20.06 | CJ83: 1.17 | CK83: 106.37 | CL83: 63.57 | CM83: CA Residential 2013, Vers. 1.0 | CN83: CSE 0.813 EXE | CP83: MPCBECC | CQ83: 0 | CR83: 0.293244 | CS83: 0.0161297 | CT83: 0 | CU83: 0 | CV83: 0.16496 | CW83: 0.117264 | CX83: 0.303904 | CY83: 0.00896094 | CZ83: 0.904463 | DA83: 0.309374 | DB83: 0 | DC83: 0.485104 | DD83: 0.0161297 | DE83: 0 | DF83: 0 | DG83: 0.16496 | DH83: 0.117264 | DI83: 0.303904 | DJ83: 0.00896094 | DK83: 1.09632 | DL83: 0.501233 | DM83: 0.19186 | DN83: 0.19186 | DO83: 4.33393 | DP83: 7.25185
A84: 2016-08-31T17:03:20 | B84: T06R01 | C84: v26 01 P69 U15 M01 | D84: Proposed and Standard | E84: FAIL | F84: -0.779999 | G84: 0 | H84: 506.327 | I84: 0 | J84: 785.772 | K84: 0 | L84: 0 | M84: 4171.97 | N84: 6456.02 | O84: 10701.1 | P84: 478.69 | Q84: 23099.9 | R84: 589.647 | S84: 0 | T84: 0 | U84: 0 | V84: 1180.43 | W84: 0 | X84: 291.216 | Y84: 0 | Z84: 0 | AA84: 2061.3 | AB84: 0 | AC84: 0 | AD84: 0 | AE84: 0 | AF84: 0 | AG84: 0 | AH84: 0 | AI84: 0 | AJ84: 0 | AK84: 0 | AL84: 15.89 | AM84: 0 | AN84: 2.4 | AO84: 0 | AP84: 27.13 | AQ84: 0 | AR84: 13.25 | AS84: 26.54 | AT84: 33.09 | AU84: 1.42 | AV84: 119.72 | AW84: 45.42 | AX84: 473.583 | AY84: 4.13279 | AZ84: 785.772 | BA84: 0 | BB84: 0 | BC84: 4171.97 | BD84: 6456.02 | BE84: 10701.1 | BF84: 478.69 | BG84: 23071.3 | BH84: 551.515 | BI84: 0 | BJ84: 0 | BK84: 0 | BL84: 1180.43 | BM84: 0 | BN84: 291.216 | BO84: 0 | BP84: 0 | BQ84: 2023.16 | BR84: 0 | BS84: 0 | BT84: 0 | BU84: 0 | BV84: 0 | BW84: 0 | BX84: 0 | BY84: 0 | BZ84: 0 | CA84: 0 | CB84: 15.08 | CC84: 0.03 | CD84: 2.4 | CE84: 0 | CF84: 27.13 | CG84: 13.25 | CH84: 26.54 | CI84: 33.09 | CJ84: 1.42 | CK84: 118.94 | CL84: 44.64 | CM84: CA Residential 2013, Vers. 1.0 | CN84: CSE 0.813 EXE | CP84: MPCBECC | CQ84: 0 | CR84: 0 | CS84: 0.0897263 | CT84: 0 | CU84: 0 | CV84: 0.529445 | CW84: 0.738709 | CX84: 1.23653 | CY84: 0.0265759 | CZ84: 2.62099 | DA84: 0.0897263 | DB84: 0 | DC84: 0.00281235 | DD84: 0.0897263 | DE84: 0 | DF84: 0 | DG84: 0.529445 | DH84: 0.738709 | DI84: 1.23653 | DJ84: 0.0265759 | DK84: 2.6238 | DL84: 0.0925386 | DM84: 0.00281239 | DN84: 0.00281235 | DO84: -0.655792 | DP84: -1.74731
A85: 2016-08-31T17:03:21 | B85: T06R02 | C85: v26 02 P69 U15 M01 | D85: Proposed and Standard | E85: PASS | F85: 2.13 | G85: 0 | H85: 348.119 | I85: 419.558 | J85: 785.772 | K85: 0 | L85: 0 | M85: 4171.97 | N85: 6456.02 | O85: 10701.1 | P85: 478.69 | Q85: 23361.2 | R85: 405.39 | S85: 0 | T85: 0 | U85: 0 | V85: 1119.55 | W85: 0 | X85: 291.216 | Y85: 0 | Z85: 0 | AA85: 1816.16 | AB85: 0 | AC85: 0 | AD85: 0 | AE85: 0 | AF85: 0 | AG85: 0 | AH85: 0 | AI85: 0 | AJ85: 0 | AK85: 0 | AL85: 11.38 | AM85: 4.88 | AN85: 2.4 | AO85: 0 | AP85: 25.82 | AQ85: 0 | AR85: 13.26 | AS85: 26.54 | AT85: 33.11 | AU85: 1.42 | AV85: 118.81 | AW85: 44.48 | AX85: 334.824 | AY85: 654.07 | AZ85: 785.772 | BA85: 0 | BB85: 0 | BC85: 4171.97 | BD85: 6456.02 | BE85: 10701.1 | BF85: 478.69 | BG85: 23582.4 | BH85: 389.908 | BI85: 0 | BJ85: 0 | BK85: 0 | BL85: 1119.55 | BM85: 0 | BN85: 291.216 | BO85: 0 | BP85: 0 | BQ85: 1800.68 | BR85: 0 | BS85: 0 | BT85: 0 | BU85: 0 | BV85: 0 | BW85: 0 | BX85: 0 | BY85: 0 | BZ85: 0 | CA85: 0 | CB85: 11.03 | CC85: 7.36 | CD85: 2.4 | CE85: 0 | CF85: 25.82 | CG85: 13.26 | CH85: 26.54 | CI85: 33.11 | CJ85: 1.42 | CK85: 120.94 | CL85: 46.61 | CM85: CA Residential 2013, Vers. 1.0 | CN85: CSE 0.813 EXE | CP85: MPCBECC | CQ85: 0 | CR85: 0.886415 | CS85: 0.0897263 | CT85: 0 | CU85: 0 | CV85: 0.529445 | CW85: 0.738709 | CX85: 1.23653 | CY85: 0.0265759 | CZ85: 3.5074 | DA85: 0.976141 | DB85: 0 | DC85: 1.35694 | DD85: 0.0897263 | DE85: 0 | DF85: 0 | DG85: 0.529445 | DH85: 0.738709 | DI85: 1.23653 | DJ85: 0.0265759 | DK85: 3.97793 | DL85: 1.44667 | DM85: 0.470526 | DN85: 0.470526 | DO85: 1.76121 | DP85: 4.56984
A86: 2016-08-31T17:03:09 | B86: T06R03 | C86: v26 03 P69 U15 M01 | D86: Proposed and Standard | E86: PASS | F86: 1.08 | G86: 0 | H86: 142.169 | I86: 68.6158 | J86: 785.772 | K86: 0 | L86: 0 | M86: 4171.97 | N86: 6456.02 | O86: 10701.1 | P86: 478.69 | Q86: 22804.3 | R86: 165.549 | S86: 0 | T86: 0 | U86: 0 | V86: 1122.4 | W86: 0 | X86: 291.216 | Y86: 0 | Z86: 0 | AA86: 1579.17 | AB86: 0 | AC86: 0 | AD86: 0 | AE86: 0 | AF86: 0 | AG86: 0 | AH86: 0 | AI86: 0 | AJ86: 0 | AK86: 0 | AL86: 4.69 | AM86: 0.74 | AN86: 2.4 | AO86: 0 | AP86: 25.83 | AQ86: 0 | AR86: 13.21 | AS86: 26.54 | AT86: 33.07 | AU86: 1.41 | AV86: 107.89 | AW86: 33.66 | AX86: 141.236 | AY86: 163.937 | AZ86: 785.772 | BA86: 0 | BB86: 0 | BC86: 4171.97 | BD86: 6456.02 | BE86: 10701.1 | BF86: 478.69 | BG86: 22898.7 | BH86: 164.462 | BI86: 0 | BJ86: 0 | BK86: 0 | BL86: 1122.4 | BM86: 0 | BN86: 291.216 | BO86: 0 | BP86: 0 | BQ86: 1578.08 | BR86: 0 | BS86: 0 | BT86: 0 | BU86: 0 | BV86: 0 | BW86: 0 | BX86: 0 | BY86: 0 | BZ86: 0 | CA86: 0 | CB86: 4.73 | CC86: 1.78 | CD86: 2.4 | CE86: 0 | CF86: 25.83 | CG86: 13.21 | CH86: 26.54 | CI86: 33.07 | CJ86: 1.41 | CK86: 108.97 | CL86: 34.74 | CM86: CA Residential 2013, Vers. 1.0 | CN86: CSE 0.813 EXE | CP86: MPCBECC | CQ86: 0 | CR86: 0.155326 | CS86: 0.0897263 | CT86: 0 | CU86: 0 | CV86: 0.529445 | CW86: 0.738709 | CX86: 1.23653 | CY86: 0.0265759 | CZ86: 2.77631 | DA86: 0.245052 | DB86: 0 | DC86: 0.354655 | DD86: 0.0897263 | DE86: 0 | DF86: 0 | DG86: 0.529445 | DH86: 0.738709 | DI86: 1.23653 | DJ86: 0.0265759 | DK86: 2.97564 | DL86: 0.444381 | DM86: 0.199329 | DN86: 0.199329 | DO86: 0.9911 | DP86: 3.10881
A87: 2016-08-31T17:03:09 | B87: T06R04 | C87: v26 04 P69 U15 M01 | D87: Proposed and Standard | E87: PASS | F87: 3.27 | G87: 0 | H87: 229.012 | I87: 683.62 | J87: 785.772 | K87: 0 | L87: 0 | M87: 4171.97 | N87: 6456.02 | O87: 10701.1 | P87: 478.69 | Q87: 23506.2 | R87: 266.689 | S87: 0 | T87: 0 | U87: 0 | V87: 1096.29 | W87: 0 | X87: 291.216 | Y87: 0 | Z87: 0 | AA87: 1654.19 | AB87: 0 | AC87: 0 | AD87: 0 | AE87: 0 | AF87: 0 | AG87: 0 | AH87: 0 | AI87: 0 | AJ87: 0 | AK87: 0 | AL87: 7.51 | AM87: 5.77 | AN87: 2.4 | AO87: 0 | AP87: 25.3 | AQ87: 0 | AR87: 13.29 | AS87: 26.55 | AT87: 33.14 | AU87: 1.41 | AV87: 115.37 | AW87: 40.98 | AX87: 221.01 | AY87: 1064.14 | AZ87: 785.772 | BA87: 0 | BB87: 0 | BC87: 4171.97 | BD87: 6456.02 | BE87: 10701.1 | BF87: 478.69 | BG87: 23878.7 | BH87: 257.371 | BI87: 0 | BJ87: 0 | BK87: 0 | BL87: 1096.29 | BM87: 0 | BN87: 291.216 | BO87: 0 | BP87: 0 | BQ87: 1644.88 | BR87: 0 | BS87: 0 | BT87: 0 | BU87: 0 | BV87: 0 | BW87: 0 | BX87: 0 | BY87: 0 | BZ87: 0 | CA87: 0 | CB87: 7.31 | CC87: 9.24 | CD87: 2.4 | CE87: 0 | CF87: 25.3 | CG87: 13.29 | CH87: 26.55 | CI87: 33.14 | CJ87: 1.41 | CK87: 118.64 | CL87: 44.25 | CM87: CA Residential 2013, Vers. 1.0 | CN87: CSE 0.813 EXE | CP87: MPCBECC | CQ87: 0 | CR87: 1.20014 | CS87: 0.0897263 | CT87: 0 | CU87: 0 | CV87: 0.529445 | CW87: 0.738709 | CX87: 1.23653 | CY87: 0.0265759 | CZ87: 3.82113 | DA87: 1.28987 | DB87: 0 | DC87: 1.90065 | DD87: 0.0897263 | DE87: 0 | DF87: 0 | DG87: 0.529445 | DH87: 0.738709 | DI87: 1.23653 | DJ87: 0.0265759 | DK87: 4.52164 | DL87: 1.99038 | DM87: 0.700511 | DN87: 0.700511 | DO87: 2.75623 | DP87: 7.38983
A88: 2016-08-31T17:03:08 | B88: T06R05 | C88: v26 05 P69 U15 M01 | D88: Proposed and Standard | E88: PASS | F88: 0.790001 | G88: 0 | H88: 118.4 | I88: 28.6754 | J88: 785.772 | K88: 0 | L88: 0 | M88: 4171.97 | N88: 6456.02 | O88: 10701.1 | P88: 478.69 | Q88: 22740.6 | R88: 137.887 | S88: 0 | T88: 0 | U88: 0 | V88: 1135.17 | W88: 0 | X88: 291.216 | Y88: 0 | Z88: 0 | AA88: 1564.27 | AB88: 0 | AC88: 0 | AD88: 0 | AE88: 0 | AF88: 0 | AG88: 0 | AH88: 0 | AI88: 0 | AJ88: 0 | AK88: 0 | AL88: 3.75 | AM88: 0.29 | AN88: 2.4 | AO88: 0 | AP88: 26.1 | AQ88: 0 | AR88: 13.12 | AS88: 26.53 | AT88: 32.97 | AU88: 1.4 | AV88: 106.56 | AW88: 32.54 | AX88: 104.506 | AY88: 126.424 | AZ88: 785.772 | BA88: 0 | BB88: 0 | BC88: 4171.97 | BD88: 6456.02 | BE88: 10701.1 | BF88: 478.69 | BG88: 22824.5 | BH88: 121.706 | BI88: 0 | BJ88: 0 | BK88: 0 | BL88: 1135.17 | BM88: 0 | BN88: 291.216 | BO88: 0 | BP88: 0 | BQ88: 1548.09 | BR88: 0 | BS88: 0 | BT88: 0 | BU88: 0 | BV88: 0 | BW88: 0 | BX88: 0 | BY88: 0 | BZ88: 0 | CA88: 0 | CB88: 3.41 | CC88: 1.42 | CD88: 2.4 | CE88: 0 | CF88: 26.1 | CG88: 13.12 | CH88: 26.53 | CI88: 32.97 | CJ88: 1.4 | CK88: 107.35 | CL88: 33.33 | CM88: CA Residential 2013, Vers. 1.0 | CN88: CSE 0.813 EXE | CP88: MPCBECC | CQ88: 0 | CR88: 0.0600589 | CS88: 0.0897263 | CT88: 0 | CU88: 0 | CV88: 0.529445 | CW88: 0.738709 | CX88: 1.23653 | CY88: 0.0265759 | CZ88: 2.68105 | DA88: 0.149785 | DB88: 0 | DC88: 0.320366 | DD88: 0.0897263 | DE88: 0 | DF88: 0 | DG88: 0.529445 | DH88: 0.738709 | DI88: 1.23653 | DJ88: 0.0265759 | DK88: 2.94135 | DL88: 0.410092 | DM88: 0.260307 | DN88: 0.260307 | DO88: 0.735911 | DP88: 2.37024
A89: 2016-08-31T17:03:26 | B89: T06R06 | C89: v26 06 P69 U15 M01 | D89: Proposed and Standard | E89: PASS | F89: 1.88 | G89: 0 | H89: 38.2489 | I89: 490.292 | J89: 785.772 | K89: 0 | L89: 0 | M89: 4171.97 | N89: 6456.02 | O89: 10701.1 | P89: 478.69 | Q89: 23122.1 | R89: 44.5407 | S89: 0 | T89: 0 | U89: 0 | V89: 1073.89 | W89: 0 | X89: 291.216 | Y89: 0 | Z89: 0 | AA89: 1409.65 | AB89: 0 | AC89: 0 | AD89: 0 | AE89: 0 | AF89: 0 | AG89: 0 | AH89: 0 | AI89: 0 | AJ89: 0 | AK89: 0 | AL89: 1.26 | AM89: 4.31 | AN89: 2.32 | AO89: 0 | AP89: 24.89 | AQ89: 0 | AR89: 12.77 | AS89: 25.91 | AT89: 31.97 | AU89: 1.37 | AV89: 104.8 | AW89: 32.78 | AX89: 34.835 | AY89: 744.116 | AZ89: 785.772 | BA89: 0 | BB89: 0 | BC89: 4171.97 | BD89: 6456.02 | BE89: 10701.1 | BF89: 478.69 | BG89: 23372.5 | BH89: 40.5652 | BI89: 0 | BJ89: 0 | BK89: 0 | BL89: 1073.89 | BM89: 0 | BN89: 291.216 | BO89: 0 | BP89: 0 | BQ89: 1405.67 | BR89: 0 | BS89: 0 | BT89: 0 | BU89: 0 | BV89: 0 | BW89: 0 | BX89: 0 | BY89: 0 | BZ89: 0 | CA89: 0 | CB89: 1.17 | CC89: 6.28 | CD89: 2.32 | CE89: 0 | CF89: 24.89 | CG89: 12.77 | CH89: 25.91 | CI89: 31.97 | CJ89: 1.37 | CK89: 106.68 | CL89: 34.66 | CM89: CA Residential 2013, Vers. 1.0 | CN89: CSE 0.813 EXE | CP89: MPCBECC | CQ89: 0 | CR89: 0.841259 | CS89: 0.0897263 | CT89: 0 | CU89: 0 | CV89: 0.529445 | CW89: 0.738709 | CX89: 1.23653 | CY89: 0.0265759 | CZ89: 3.46225 | DA89: 0.930985 | DB89: 0 | DC89: 1.24165 | DD89: 0.0897263 | DE89: 0 | DF89: 0 | DG89: 0.529445 | DH89: 0.738709 | DI89: 1.23653 | DJ89: 0.0265759 | DK89: 3.86264 | DL89: 1.33137 | DM89: 0.400387 | DN89: 0.400387 | DO89: 1.76228 | DP89: 5.42412
A90: 2016-08-31T17:03:09 | B90: T06R07 | C90: v26 07 P69 U15 M01 | D90: Proposed and Standard | E90: PASS | F90: 2 | G90: 0 | H90: 2.73731 | I90: 264.883 | J90: 785.772 | K90: 0 | L90: 0 | M90: 4171.97 | N90: 6456.02 | O90: 10701.1 | P90: 478.69 | Q90: 22861.2 | R90: 3.18749 | S90: 0 | T90: 0 | U90: 0 | V90: 1066.64 | W90: 0 | X90: 291.216 | Y90: 0 | Z90: 0 | AA90: 1361.04 | AB90: 0 | AC90: 0 | AD90: 0 | AE90: 0 | AF90: 0 | AG90: 0 | AH90: 0 | AI90: 0 | AJ90: 0 | AK90: 0 | AL90: 0.09 | AM90: 2.92 | AN90: 2.41 | AO90: 0 | AP90: 24.24 | AQ90: 0 | AR90: 13.38 | AS90: 26.52 | AT90: 33.3 | AU90: 1.45 | AV90: 104.31 | AW90: 29.66 | AX90: 1.04569 | AY90: 448.933 | AZ90: 785.772 | BA90: 0 | BB90: 0 | BC90: 4171.97 | BD90: 6456.02 | BE90: 10701.1 | BF90: 478.69 | BG90: 23043.5 | BH90: 1.21766 | BI90: 0 | BJ90: 0 | BK90: 0 | BL90: 1066.64 | BM90: 0 | BN90: 291.216 | BO90: 0 | BP90: 0 | BQ90: 1359.07 | BR90: 0 | BS90: 0 | BT90: 0 | BU90: 0 | BV90: 0 | BW90: 0 | BX90: 0 | BY90: 0 | BZ90: 0 | CA90: 0 | CB90: 0.03 | CC90: 4.98 | CD90: 2.41 | CE90: 0 | CF90: 24.24 | CG90: 13.38 | CH90: 26.52 | CI90: 33.3 | CJ90: 1.45 | CK90: 106.31 | CL90: 31.66 | CM90: CA Residential 2013, Vers. 1.0 | CN90: CSE 0.813 EXE | CP90: MPCBECC | CQ90: 0 | CR90: 0.519817 | CS90: 0.0897263 | CT90: 0 | CU90: 0 | CV90: 0.529445 | CW90: 0.738709 | CX90: 1.23653 | CY90: 0.0265759 | CZ90: 3.14081 | DA90: 0.609543 | DB90: 0 | DC90: 0.917876 | DD90: 0.0897263 | DE90: 0 | DF90: 0 | DG90: 0.529445 | DH90: 0.738709 | DI90: 1.23653 | DJ90: 0.0265759 | DK90: 3.53886 | DL90: 1.0076 | DM90: 0.398059 | DN90: 0.398059 | DO90: 1.88129 | DP90: 6.31712
